Workbook

Sheet SLA Trab
A1: Name | B1: Start time | C1: End time | D1: Time remaining | E1: Nombre | F1: Dias | G1: Hrs | H1: Total | I1: Lead time
A2: Bjorn Sueco - Speedup | B2: 2023-09-09T23:07:00 | C2: 2023-09-12T18:25:00 | D2: 12d 4h | E2: =IF(A2="","",SUBSTITUTE(SUBSTITUTE(A2,"Ã³","ó"),"Ã±","ñ")) -> Bjorn Sueco - Speedup | F2: =IF(A2="","",IF(ISERROR(FIND("d",D2)),0,SUBSTITUTE(SUBSTITUTE(LEFT(D2,3),"d","")," ","")*1 )) -> 12 | G2: =IF(A2="","",IF(ISERROR(FIND("h",D2)),0,SUBSTITUTE(SUBSTITUTE(SUBSTITUTE(RIGHT(IF(ISERROR(FIND("min",D2)),D2,LEFT(D2,4)),4),"h",""),"d","")," ","")*1 )*IF(F2<0,-1,1)) -> 4 | H2: =IF(A2="","",(F2*24)+G2) -> 292 | I2: =IF(A2="","",((24*15)-H2)/24) -> 2.833333333
A3: Gary Hydracheck - safe-2-bleed Quote on contact | B3: 2023-09-12T13:28:00 | D3: 14d 5h | E3: Gary Hydracheck - safe-2-bleed Quote on contact | F3: =IF(A3="","",IF(ISERROR(FIND("d",D3)),0,SUBSTITUTE(SUBSTITUTE(LEFT(D3,3),"d","")," ","")*1 )) -> 14 | G3: 5 | H3: =IF(A3="","",(F3*24)+G3) -> 341 | I3: =IF(A3="","",((24*15)-H3)/24) -> 0.7916666667
A4: Faby - Crawler Farmakosto | B4: 2023-08-09T10:38:00 | C4: 2023-09-12T12:54:00 | D4: -19d 2h | E4: Faby - Crawler Farmakosto | F4: -19 | G4: -2 | H4: -458 | I4: 34.08333333
A5: Francisco Inlat - Ingeurbe Ingles | B5: 2023-09-12T10:02:00 | D5: 14d 2h | E5: =IF(A5="","",SUBSTITUTE(SUBSTITUTE(A5,"Ã³","ó"),"Ã±","ñ")) -> Francisco Inlat - Ingeurbe Ingles | F5: =IF(A5="","",IF(ISERROR(FIND("d",D5)),0,SUBSTITUTE(SUBSTITUTE(LEFT(D5,3),"d","")," ","")*1 )) -> 14 | G5: 2 | H5: =IF(A5="","",(F5*24)+G5) -> 338 | I5: =IF(A5="","",((24*15)-H5)/24) -> 0.9166666667
A6: Juan Balnearis - unidades medicas | B6: 2023-08-29T17:07:00 | C6: 2023-09-08T13:49:00 | D6: 5d 3h | E6: =IF(A6="","",SUBSTITUTE(SUBSTITUTE(A6,"Ã³","ó"),"Ã±","ñ")) -> Juan Balnearis - unidades medicas | F6: =IF(A6="","",IF(ISERROR(FIND("d",D6)),0,SUBSTITUTE(SUBSTITUTE(LEFT(D6,3),"d","")," ","")*1 )) -> 5 | G6: 3 | H6: =IF(A6="","",(F6*24)+G6) -> 123 | I6: =IF(A6="","",((24*15)-H6)/24) -> 9.875
A7: Ricardo CDMX - Excel a Plataforma Web | B7: 2023-08-26T11:36:00 | C7: 2023-09-01T02:29:00 | D7: 9d 9h | E7: Ricardo CDMX - Excel a Plataforma Web | F7: 9 | G7: 9 | H7: 225 | I7: 5.625
A8: Alejandro Disidentes - Sixbell | B8: 2023-07-11T17:21:00 | C8: 2023-08-21T14:05:00 | D8: -25d 20h | E8: Alejandro Disidentes - Sixbell | F8: -25 | G8: -20 | H8: -620 | I8: 40.83333333
A9: Gary Hydracheck - add to cart godspeedsocks | B9: 2023-08-29T13:34:00 | C9: 2023-09-01T15:21:00 | D9: 11d 22h | E9: Gary Hydracheck - add to cart godspeedsocks | F9: 11 | G9: 22 | H9: 286 | I9: 3.083333333
A10: Ricardo Cuerna - Fixum Carta Porte | B10: 2023-09-06T13:12:00 | D10: 8d 5h | E10: Ricardo Cuerna - Fixum Carta Porte | F10: 8 | G10: 5 | H10: 197 | I10: 6.791666667
A11: Ricardo Cuerna - Fixum facturacion | B11: 2023-06-26T17:54:00 | C11: 2023-09-06T13:12:00 | D11: -56d 19h | E11: Ricardo Cuerna - Fixum facturacion | F11: -56 | G11: -19 | H11: -1363 | I11: 71.79166667
A12: Viv Freelancer - 5 column filter | B12: 2023-08-12T10:04:00 | C12: 2023-08-29T02:09:00 | D12: -1d 16h | E12: Viv Freelancer - 5 column filter | F12: -1 | G12: -16 | H12: -40 | I12: 16.66666667
A13: Jaidi Col - PDF online marker | B13: 2023-09-01T14:36:00 | D13: 3d 6h | E13: Jaidi Col - PDF online marker | F13: 3 | G13: 6 | H13: 78 | I13: 11.75
A14: Juan Balnearis - Landing y cambios web | B14: 2023-08-14T12:42:00 | C14: 2023-08-21T14:02:00 | D14: 7d 22h | E14: Juan Balnearis - Landing y cambios web | F14: 7 | G14: 22 | H14: 190 | I14: 7.083333333
A15: Daren frelancer - cambios maintenance form | B15: 2023-08-29T13:34:00 | C15: 2023-08-30T14:00:00 | D15: 13d 23h | E15: Daren frelancer - cambios maintenance form | F15: 13 | G15: 23 | H15: 335 | I15: 1.041666667
A16: Juan Balnearis - promedicamujer | B16: 2023-08-24T15:25:00 | C16: 2023-08-28T10:54:00 | D16: 11d 4h | E16: Juan Balnearis - promedicamujer | F16: 11 | G16: 4 | H16: 268 | I16: 3.833333333
A17: Juan Balnearis - Bodyclinicmx cambios | B17: 2023-08-29T17:07:00 | D17: 9h 15min | E17: Juan Balnearis - Bodyclinicmx cambios | F17: 0 | G17: 91 | H17: 91 | I17: 11.20833333
A18: Thomas Ferdinand - Website | B18: 2023-07-17T11:23:00 | C18: 2023-07-29T12:09:00 | D18: 2d 23h | E18: Thomas Ferdinand - Website | F18: 2 | G18: 23 | H18: 71 | I18: 12.04166667
A19: Paul Freelancer - 2nd round crypto website | B19: 2023-08-14T12:42:00 | C19: 2023-08-14T23:01:00 | D19: 14d 13h | E19: Paul Freelancer - 2nd round crypto website | F19: 14 | G19: 13 | H19: 349 | I19: 0.4583333333
A20: Bjorn Sueco - Nordic foods 2nd round | B20: 2023-07-26T09:51:00 | C20: 2023-08-01T21:02:00 | D20: 8d 12h | E20: Bjorn Sueco - Nordic foods 2nd round | F20: 8 | G20: 12 | H20: 204 | I20: 6.5
A21: Carlos Sanchez - rehacer chrishop.mx | B21: 2023-08-20T15:46:00 | C21: 2023-08-21T14:05:00 | D21: 14d 1h | E21: Carlos Sanchez - rehacer chrishop.mx | F21: 14 | G21: 1 | H21: 337 | I21: 0.9583333333
A22: Paul Freelancer - Coinbase API site | B22: 2023-07-11T17:21:00 | C22: 2023-07-31T15:18:00 | D22: -4d 21h | E22: Paul Freelancer - Coinbase API site | F22: -4 | G22: -21 | H22: -117 | I22: 19.875
A23: Viv Freelancer - Fourdle game | B23: 2023-07-10T20:04:00 | C23: 2023-08-11T11:36:00 | D23: -16d 15h | E23: Viv Freelancer - Fourdle game | F23: -16 | G23: -15 | H23: -399 | I23: 31.625
A24: Juan Freelancer - Maquetar figma a html | B24: 2023-07-25T12:11:00 | C24: 2023-08-02T22:19:00 | D24: 6d 13h | E24: Juan Freelancer - Maquetar figma a html | F24: 6 | G24: 13 | H24: 157 | I24: 8.458333333
A25: Diana Inlat - Ingeurbe Tablet e Ingles | B25: 2023-05-22T16:14:00 | C25: 2023-06-06T13:32:00 | D25: 2h 42min | E25: Diana Inlat - Ingeurbe Tablet e Ingles | F25: 0 | G25: 24 | H25: 24 | I25: 14
A26: Faby - LB Logistics | B26: 2023-06-08T16:05:00 | C26: 2023-06-26T22:46:00 | D26: -3d 6h | E26: Faby - LB Logistics | F26: -3 | G26: -6 | H26: -78 | I26: 18.25
A27: Ricardo Freelancer - Accounting | B27: 2023-04-04T22:06:00 | C27: 2023-06-26T22:46:00 | D27: -68d | E27: Ricardo Freelancer - Accounting | F27: -68 | G27: 0 | H27: -1632 | I27: 83
A28: Nick Advizee - fijo | B28: 2023-03-23T23:36:00 | C28: 2023-03-28T11:56:00 | D28: 10d 11h | E28: Nick Advizee - fijo | F28: 10 | G28: 11 | H28: 251 | I28: 4.541666667
A29: Steve 5 10 - PÃ¡gina personal protfolio | B29: 2023-07-15T09:54:00 | C29: 2023-08-01T20:01:00 | D29: -2d 10h | E29: Steve 5 10 - PÃ¡gina personal protfolio | F29: -2 | G29: -10 | H29: -58 | I29: 17.41666667
A30: Daren Nuevo Form | B30: 2023-06-26T17:54:00 | C30: 2023-06-26T17:54:00 | D30: 15d | E30: Daren Nuevo Form | F30: 15 | G30: 0 | H30: 360 | I30: 0
A31: Gary Hydracheck - Fix quote shipping | B31: 2023-07-10T14:34:00 | C31: 2023-07-18T08:16:00 | D31: 7d 6h | E31: Gary Hydracheck - Fix quote shipping | F31: 7 | G31: 6 | H31: 174 | I31: 7.75
A32: Bjorn Sueco - ajustes Woo y POS | B32: 2023-05-28T06:27:00 | C32: 2023-07-05T09:56:00 | D32: -23d 3h | E32: Bjorn Sueco - ajustes Woo y POS | F32: -23 | G32: -3 | H32: -555 | I32: 38.125
A33: Carlos Freelancer - Tarea flowchart y reporte | B33: 2023-07-06T14:02:00 | C33: 2023-07-06T14:03:00 | D33: 14d 23h | E33: Carlos Freelancer - Tarea flowchart y reporte | F33: 14 | G33: 23 | H33: 359 | I33: 0.04166666667
A34: Rodrigo Techservices - Kanatest Hosting | B34: 2023-07-05T10:30:00 | C34: 2023-07-05T10:30:00 | D34: 15d | E34: Rodrigo Techservices - Kanatest Hosting | F34: 15 | G34: 0 | H34: 360 | I34: 0
A35: Rodrigo - Techservices Hosting y run4you | B35: 2023-05-26T16:16:00 | C35: 2023-05-26T16:57:00 | D35: 14d 23h | E35: Rodrigo - Techservices Hosting y run4you | F35: 14 | G35: 23 | H35: 359 | I35: 0.04166666667
A36: Carlos Freelancer - Tarea API Tickers | B36: 2023-06-29T18:59:00 | C36: 2023-06-30T10:15:00 | D36: 14d 8h | E36: Carlos Freelancer - Tarea API Tickers | F36: 14 | G36: 8 | H36: 344 | I36: 0.6666666667
A37: Faby - PMI Ame Sitio multilang | B37: 2023-04-19T22:04:00 | C37: 2023-05-22T15:35:00 | D37: -17d 17h | E37: Faby - PMI Ame Sitio multilang | F37: -17 | G37: -17 | H37: -425 | I37: 32.70833333
A38: Viv Freelancer - Historic wordle | B38: 2023-06-29T18:41:00 | C38: 2023-06-29T18:59:00 | D38: 14d 23h | E38: Viv Freelancer - Historic wordle | F38: 14 | G38: 23 | H38: 359 | I38: 0.04166666667
A39: yo - FIRE Business online | B39: 2023-03-24T20:30:00 | D39: -157d 11h | E39: yo - FIRE Business online | F39: -15 | G39: -11 | H39: -371 | I39: 30.45833333
A40: Eduardo Freelancer - Inmobiliaria Cambios php pura | B40: 2023-05-22T16:04:00 | C40: 2023-06-08T16:00:00 | D40: -1d 23h | E40: Eduardo Freelancer - Inmobiliaria Cambios php pura | F40: -1 | G40: -23 | H40: -47 | I40: 16.95833333
A41: Emilio pinturas arreglar su sitio | B41: 2023-06-15T18:51:00 | C41: 2023-06-15T19:40:00 | D41: 14d 23h | E41: Emilio pinturas arreglar su sitio | F41: 14 | G41: 23 | H41: 359 | I41: 0.04166666667
A42: Gary Freelancer - Quote page makeup | B42: 2023-05-22T16:07:00 | C42: 2023-06-07T11:58:00 | D42: -19h 50min | E42: Gary Freelancer - Quote page makeup | F42: 0 | G42: -19 | H42: -19 | I42: 15.79166667
A43: Viv Freelancer - Soporte anual $200 | B43: 2023-06-09T07:15:00 | C43: 2023-06-09T07:16:00 | D43: 14d 23h | E43: Viv Freelancer - Soporte anual $200 | F43: 14 | G43: 23 | H43: 359 | I43: 0.04166666667
A44: Daren freelancer - nuevo form precisemd | B44: 2023-05-24T19:03:00 | C44: 2023-06-06T14:06:00 | D44: 2d 4h | E44: Daren freelancer - nuevo form precisemd | F44: 2 | G44: 4 | H44: 52 | I44: 12.83333333
A45: Viv Freelancer - Ecommerce Wordle | B45: 2023-03-22T17:48:00 | C45: 2023-04-13T13:32:00 | D45: -6d 19h | E45: Viv Freelancer - Ecommerce Wordle | F45: -6 | G45: -19 | H45: -163 | I45: 21.79166667
A46: Miguel Bullkens - B2B Nuevo Exchange | B46: 2023-03-22T17:48:00 | C46: 2023-03-22T19:49:00 | D46: 14d 22h | E46: Miguel Bullkens - B2B Nuevo Exchange | F46: 14 | G46: 22 | H46: 358 | I46: 0.08333333333
A47: Yamel - renovaciÃ³n Konditorhusset 2023 | B47: 2023-05-26T16:49:00 | C47: 2023-05-26T16:49:00 | D47: 15d | E47: Yamel - renovación Konditorhusset 2023 | F47: 15 | G47: 0 | H47: 360 | I47: 0
A48: Viv Freelancer - hosting migration | B48: 2023-05-22T16:10:00 | C48: 2023-05-26T06:11:00 | D48: 11d 9h | E48: Viv Freelancer - hosting migration | F48: 11 | G48: 9 | H48: 273 | I48: 3.625
A49: Pablo Nanofactura - Soporte errores | B49: 2023-05-11T12:27:00 | C49: 2023-05-12T07:14:00 | D49: 14d 5h | E49: Pablo Nanofactura - Soporte errores | F49: 14 | G49: 5 | H49: 341 | I49: 0.7916666667
A50: Diana Inlat - Rehacer Ingeurbe | B50: 2023-03-31T17:52:00 | C50: 2023-05-22T16:07:00 | D50: -36d 22h | E50: Diana Inlat - Rehacer Ingeurbe | F50: -36 | G50: -22 | H50: -886 | I50: 51.91666667
A51: Pablo Nanofactura - Con IVA o sin IVA premium function global | B51: 2023-04-21T12:26:00 | C51: 2023-04-24T19:42:00 | D51: 11d 16h | E51: Pablo Nanofactura - Con IVA o sin IVA premium function global | F51: 11 | G51: 16 | H51: 280 | I51: 3.333333333
A52: Rodrigo Techservices - WP Run4u | B52: 2023-03-31T19:08:00 | C52: 2023-03-31T19:33:00 | D52: 14d 23h | E52: Rodrigo Techservices - WP Run4u | F52: 14 | G52: 23 | H52: 359 | I52: 0.04166666667
A53: Gary Hydracheck New Checkout quitar maquillaje viejo | B53: 2023-04-26T12:50:00 | D53: -124d 19h | E53: Gary Hydracheck New Checkout quitar maquillaje viejo | F53: -12 | G53: -19 | H53: -307 | I53: 27.79166667
A54: Pablo Nanofactura - Nuevo DiseÃ±o y nueva API | B54: 2023-03-22T17:48:00 | C54: 2023-03-22T18:06:00 | D54: 14d 23h | E54: Pablo Nanofactura - Nuevo Diseño y nueva API | F54: 14 | G54: 23 | H54: 359 | I54: 0.04166666667
A55: Carrascosa AC - AsociaciÃ³n Civil | B55: 2023-03-22T17:48:00 | D55: -159d 14h | E55: Carrascosa AC - Asociación Civil | F55: -15 | G55: -14 | H55: -374 | I55: 30.58333333
A56: Emilio Pinturas - bug lotes | B56: 2023-04-04T14:35:00 | C56: 2023-04-04T14:57:00 | D56: 14d 23h | E56: Emilio Pinturas - bug lotes | F56: 14 | G56: 23 | H56: 359 | I56: 0.04166666667
A57: Xavier Bobby - Itel y Movitel Landings | B57: 2023-03-22T17:51:00 | C57: 2023-03-22T18:05:00 | D57: 14d 23h | E57: Xavier Bobby - Itel y Movitel Landings | F57: 14 | G57: 23 | H57: 359 | I57: 0.04166666667
A58: MigraciÃ³n de mi Whatsapp normal a Business | B58: 2023-03-24T20:49:00 | D58: -157d 11h | E58: Migración de mi Whatsapp normal a Business | F58: -15 | G58: -11 | H58: -371 | I58: 30.45833333
A59: Wordle New Probability | B59: 2023-03-22T19:30:00 | C59: 2023-03-23T23:35:00 | D59: 13d 19h | E59: Wordle New Probability | F59: 13 | G59: 19 | H59: 331 | I59: 1.208333333
G66: =IF(A66="","",IF(ISERROR(FIND("h",D66)),0,SUBSTITUTE(SUBSTITUTE(SUBSTITUTE(RIGHT(IF(ISERROR(FIND("min",D66)),D66,LEFT(D66,4)),4),"h",""),"d","")," ","")*1 )*IF(F66<0,-1,1)) -> 
E70: =IF(A70="","",SUBSTITUTE(SUBSTITUTE(A70,"Ã³","ó"),"Ã±","ñ")) ->  | F70: =IF(A70="","",IF(ISERROR(FIND("d",D70)),0,SUBSTITUTE(SUBSTITUTE(LEFT(D70,3),"d","")," ","")*1 )) ->  | H70: =IF(A70="","",(F70*24)+G70) ->  | I70: =IF(A70="","",((24*15)-H70)/24) -> 
G130: =IF(A130="","",IF(ISERROR(FIND("h",D130)),0,SUBSTITUTE(SUBSTITUTE(SUBSTITUTE(RIGHT(IF(ISERROR(FIND("min",D130)),D130,LEFT(D130,4)),4),"h",""),"d","")," ","")*1 )*IF(F130<0,-1,1)) -> 
E134: =IF(A134="","",SUBSTITUTE(SUBSTITUTE(A134,"Ã³","ó"),"Ã±","ñ")) ->  | F134: =IF(A134="","",IF(ISERROR(FIND("d",D134)),0,SUBSTITUTE(SUBSTITUTE(LEFT(D134,3),"d","")," ","")*1 )) ->  | H134: =IF(A134="","",(F134*24)+G134) ->  | I134: =IF(A134="","",((24*15)-H134)/24) -> 
G194: =IF(A194="","",IF(ISERROR(FIND("h",D194)),0,SUBSTITUTE(SUBSTITUTE(SUBSTITUTE(RIGHT(IF(ISERROR(FIND("min",D194)),D194,LEFT(D194,4)),4),"h",""),"d","")," ","")*1 )*IF(F194<0,-1,1)) -> 
E198: =IF(A198="","",SUBSTITUTE(SUBSTITUTE(A198,"Ã³","ó"),"Ã±","ñ")) ->  | F198: =IF(A198="","",IF(ISERROR(FIND("d",D198)),0,SUBSTITUTE(SUBSTITUTE(LEFT(D198,3),"d","")," ","")*1 )) ->  | H198: =IF(A198="","",(F198*24)+G198) ->  | I198: =IF(A198="","",((24*15)-H198)/24) -> 
G258: =IF(A258="","",IF(ISERROR(FIND("h",D258)),0,SUBSTITUTE(SUBSTITUTE(SUBSTITUTE(RIGHT(IF(ISERROR(FIND("min",D258)),D258,LEFT(D258,4)),4),"h",""),"d","")," ","")*1 )*IF(F258<0,-1,1)) -> 
E262: =IF(A262="","",SUBSTITUTE(SUBSTITUTE(A262,"Ã³","ó"),"Ã±","ñ")) ->  | F262: =IF(A262="","",IF(ISERROR(FIND("d",D262)),0,SUBSTITUTE(SUBSTITUTE(LEFT(D262,3),"d","")," ","")*1 )) ->  | H262: =IF(A262="","",(F262*24)+G262) ->  | I262: =IF(A262="","",((24*15)-H262)/24) -> 
G322: =IF(A322="","",IF(ISERROR(FIND("h",D322)),0,SUBSTITUTE(SUBSTITUTE(SUBSTITUTE(RIGHT(IF(ISERROR(FIND("min",D322)),D322,LEFT(D322,4)),4),"h",""),"d","")," ","")*1 )*IF(F322<0,-1,1)) -> 
E326: =IF(A326="","",SUBSTITUTE(SUBSTITUTE(A326,"Ã³","ó"),"Ã±","ñ")) ->  | F326: =IF(A326="","",IF(ISERROR(FIND("d",D326)),0,SUBSTITUTE(SUBSTITUTE(LEFT(D326,3),"d","")," ","")*1 )) ->  | H326: =IF(A326="","",(F326*24)+G326) ->  | I326: =IF(A326="","",((24*15)-H326)/24) -> 
G386: =IF(A386="","",IF(ISERROR(FIND("h",D386)),0,SUBSTITUTE(SUBSTITUTE(SUBSTITUTE(RIGHT(IF(ISERROR(FIND("min",D386)),D386,LEFT(D386,4)),4),"h",""),"d","")," ","")*1 )*IF(F386<0,-1,1)) -> 
E390: =IF(A390="","",SUBSTITUTE(SUBSTITUTE(A390,"Ã³","ó"),"Ã±","ñ")) ->  | F390: =IF(A390="","",IF(ISERROR(FIND("d",D390)),0,SUBSTITUTE(SUBSTITUTE(LEFT(D390,3),"d","")," ","")*1 )) ->  | H390: =IF(A390="","",(F390*24)+G390) ->  | I390: =IF(A390="","",((24*15)-H390)/24) -> 
G450: =IF(A450="","",IF(ISERROR(FIND("h",D450)),0,SUBSTITUTE(SUBSTITUTE(SUBSTITUTE(RIGHT(IF(ISERROR(FIND("min",D450)),D450,LEFT(D450,4)),4),"h",""),"d","")," ","")*1 )*IF(F450<0,-1,1)) -> 
E454: =IF(A454="","",SUBSTITUTE(SUBSTITUTE(A454,"Ã³","ó"),"Ã±","ñ")) ->  | F454: =IF(A454="","",IF(ISERROR(FIND("d",D454)),0,SUBSTITUTE(SUBSTITUTE(LEFT(D454,3),"d","")," ","")*1 )) ->  | H454: =IF(A454="","",(F454*24)+G454) ->  | I454: =IF(A454="","",((24*15)-H454)/24) -> 

Sheet SLA Cobr
A1: Name | B1: Start time | C1: End time | D1: Time remaining | E1: Nombre | F1: Dias | G1: Hrs | H1: Total | I1: Dias credito
A2: Bjorn Sueco - Speedup | B2: 2023-09-12T18:25:00 | D2: 14d 10h | E2: =IF(A2="","",SUBSTITUTE(SUBSTITUTE(A2,"Ã³","ó"),"Ã±","ñ")) -> Bjorn Sueco - Speedup | F2: =IF(A2="","",IF(ISERROR(FIND("d",D2)),0,SUBSTITUTE(SUBSTITUTE(LEFT(D2,3),"d","")," ","")*1 )) -> 14 | G2: =IF(A2="","",IF(ISERROR(FIND("h",D2)),0,SUBSTITUTE(SUBSTITUTE(SUBSTITUTE(RIGHT(IF(ISERROR(FIND("min",D2)),D2,LEFT(D2,4)),4),"h",""),"d","")," ","")*1 )*IF(F2<0,-1,1)) -> 10 | H2: =IF(A2="","",(F2*24)+G2) -> 346 | I2: =IF(A2="","",((24*15)-H2)/24) -> 0.5833333333
A3: Faby - Crawler Farmakosto | B3: 2023-09-12T12:54:00 | D3: 14d 5h | E3: Faby - Crawler Farmakosto | F3: 14 | G3: 5 | H3: 341 | I3: 0.7916666667
A4: Juan Balnearis - unidades medicas | B4: 2023-09-08T13:49:00 | D4: 10d 5h | E4: Juan Balnearis - unidades medicas | F4: 10 | G4: 5 | H4: 245 | I4: 4.791666667
A5: Ricardo CDMX - Excel a Plataforma Web | B5: 2023-09-01T02:29:00 | D5: 2d 18h | E5: =IF(A5="","",SUBSTITUTE(SUBSTITUTE(A5,"Ã³","ó"),"Ã±","ñ")) -> Ricardo CDMX - Excel a Plataforma Web | F5: =IF(A5="","",IF(ISERROR(FIND("d",D5)),0,SUBSTITUTE(SUBSTITUTE(LEFT(D5,3),"d","")," ","")*1 )) -> 2 | G5: 18 | H5: =IF(A5="","",(F5*24)+G5) -> 66 | I5: =IF(A5="","",((24*15)-H5)/24) -> 12.25
A6: Ricardo Freelancer - BDD Spotify | B6: 2022-12-08T16:34:00 | C6: 2023-02-16T11:22:00 | D6: -54d 18h | E6: =IF(A6="","",SUBSTITUTE(SUBSTITUTE(A6,"Ã³","ó"),"Ã±","ñ")) -> Ricardo Freelancer - BDD Spotify | F6: =IF(A6="","",IF(ISERROR(FIND("d",D6)),0,SUBSTITUTE(SUBSTITUTE(LEFT(D6,3),"d","")," ","")*1 )) -> -54 | G6: -18 | H6: =IF(A6="","",(F6*24)+G6) -> -1314 | I6: =IF(A6="","",((24*15)-H6)/24) -> 69.75
A7: Alejandro Disidentes - Sixbell | B7: 2023-08-21T14:05:00 | C7: 2023-08-21T14:06:00 | D7: 15d | E7: Alejandro Disidentes - Sixbell | F7: 15 | G7: 0 | H7: 360 | I7: 0
A8: Gary Hydracheck - add to cart godspeedsocks | B8: 2023-09-01T15:21:00 | C8: 2023-09-06T13:50:00 | D8: 10d 1h | E8: Gary Hydracheck - add to cart godspeedsocks | F8: 10 | G8: 1 | H8: 241 | I8: 4.958333333
A9: Ricardo Cuerna - Fixum facturacion | B9: 2023-09-06T13:12:00 | C9: 2023-09-06T13:12:00 | D9: 15d | E9: Ricardo Cuerna - Fixum facturacion | F9: 15 | G9: 0 | H9: 360 | I9: 0
A10: Viv Freelancer - 5 column filter | B10: 2023-08-29T02:09:00 | C10: 2023-08-30T09:04:00 | D10: 13d 17h | E10: Viv Freelancer - 5 column filter | F10: 13 | G10: 17 | H10: 329 | I10: 1.291666667
A11: Juan Balnearis - Landing y cambios web | B11: 2023-08-21T14:02:00 | C11: 2023-09-01T02:11:00 | D11: 4d 11h | E11: Juan Balnearis - Landing y cambios web | F11: 4 | G11: 11 | H11: 107 | I11: 10.54166667
A12: Yordi - Prestamo Kennedy | B12: 2023-08-31T22:22:00 | D12: 2d 14h | E12: Yordi - Prestamo Kennedy | F12: 2 | G12: 14 | H12: 62 | I12: 12.41666667
A13: Daren frelancer - cambios maintenance form | B13: 2023-08-30T14:00:00 | D13: 1d 6h | E13: Daren frelancer - cambios maintenance form | F13: 1 | G13: 6 | H13: 30 | I13: 13.75
A14: Juan Balnearis - promedicamujer | B14: 2023-08-28T10:54:00 | C14: 2023-08-30T09:03:00 | D14: 13d 1h | E14: Juan Balnearis - promedicamujer | F14: 13 | G14: 1 | H14: 313 | I14: 1.958333333
A15: Andres - Checkout fondo apuestas | B15: 2023-08-18T23:23:00 | C15: 2023-08-30T09:03:00 | D15: 3d 14h | E15: Andres - Checkout fondo apuestas | F15: 3 | G15: 14 | H15: 86 | I15: 11.41666667
A16: Thomas Ferdinand - Website | B16: 2023-07-29T12:09:00 | C16: 2023-08-29T17:06:00 | D16: -16d 4h | E16: Thomas Ferdinand - Website | F16: -16 | G16: -4 | H16: -388 | I16: 31.16666667
A17: Paul Freelancer - 2nd round crypto website | B17: 2023-08-14T23:01:00 | C17: 2023-08-23T09:58:00 | D17: 6d 13h | E17: Paul Freelancer - 2nd round crypto website | F17: 6 | G17: 13 | H17: 157 | I17: 8.458333333
A18: Bjorn Sueco - Nordic foods 2nd round | B18: 2023-08-01T21:02:00 | C18: 2023-08-01T21:02:00 | D18: 15d | E18: Bjorn Sueco - Nordic foods 2nd round | F18: 15 | G18: 0 | H18: 360 | I18: 0
A19: Carlos Sanchez - rehacer chrishop.mx | B19: 2023-08-21T14:05:00 | C19: 2023-08-21T14:06:00 | D19: 15d | E19: Carlos Sanchez - rehacer chrishop.mx | F19: 15 | G19: 0 | H19: 360 | I19: 0
A20: Paul Freelancer - Coinbase API site | B20: 2023-07-31T15:18:00 | C20: 2023-08-14T12:41:00 | D20: 1d 2h | E20: Paul Freelancer - Coinbase API site | F20: 1 | G20: 2 | H20: 26 | I20: 13.91666667
A21: Viv Freelancer - Fourdle game | B21: 2023-08-11T11:36:00 | C21: 2023-08-11T12:20:00 | D21: 14d 23h | E21: Viv Freelancer - Fourdle game | F21: 14 | G21: 23 | H21: 359 | I21: 0.04166666667
A22: Mama Madhu prÃ©stamo | B22: 2023-06-26T14:32:00 | C22: 2023-08-09T17:25:00 | D22: -29d 2h | E22: Mama Madhu prÃ©stamo | F22: -29 | G22: -2 | H22: -698 | I22: 44.08333333
A23: Juan Freelancer - Maquetar figma a html | B23: 2023-08-02T22:19:00 | C23: 2023-08-09T12:22:00 | D23: 8d 9h | E23: Juan Freelancer - Maquetar figma a html | F23: 8 | G23: 9 | H23: 201 | I23: 6.625
A24: Sam - Peters Window Hosting | B24: 2023-08-01T20:18:00 | C24: 2023-08-09T11:31:00 | D24: 7d 8h | E24: Sam - Peters Window Hosting | F24: 7 | G24: 8 | H24: 176 | I24: 7.666666667
A25: Diana Inlat - Ingeurbe Tablet e Ingles | B25: 2023-06-06T13:32:00 | C25: 2023-08-04T16:38:00 | D25: -44d 3h | E25: Diana Inlat - Ingeurbe Tablet e Ingles | F25: -44 | G25: -3 | H25: -1059 | I25: 59.125
A26: Faby - LB Logistics | B26: 2023-06-26T22:46:00 | C26: 2023-06-29T18:59:00 | D26: 12d 3h | E26: Faby - LB Logistics | F26: 12 | G26: 3 | H26: 291 | I26: 2.875
A27: Ricardo Freelancer - Accounting | B27: 2023-06-26T22:46:00 | C27: 2023-08-02T22:19:00 | D27: -21d 23h | E27: Ricardo Freelancer - Accounting | F27: -21 | G27: -23 | H27: -527 | I27: 36.95833333
A28: Nana maletas Feb 23 | B28: 2023-06-26T21:40:00 | C28: 2023-08-02T21:10:00 | D28: -21d 23h | E28: Nana maletas Feb 23 | F28: -21 | G28: -23 | H28: -527 | I28: 36.95833333
A29: Nick Advizee - fijo | B29: 2023-01-17T06:35:00 | C29: 2023-03-22T19:47:00 | D29: -49d 13h | E29: Nick Advizee - fijo | F29: -49 | G29: -13 | H29: -1189 | I29: 64.54166667
A30: Steve 5 10 - PÃ¡gina personal protfolio | B30: 2023-08-01T20:01:00 | C30: 2023-08-01T20:01:00 | D30: 15d | E30: Steve 5 10 - PÃ¡gina personal protfolio | F30: 15 | G30: 0 | H30: 360 | I30: 0
A31: Daren Nuevo Form | B31: 2023-06-26T17:54:00 | C31: 2023-07-21T13:48:00 | D31: -9d 19h | E31: Daren Nuevo Form | F31: -9 | G31: -19 | H31: -235 | I31: 24.79166667
A32: Samantha - vuelo mty | B32: 2023-03-11T20:12:00 | C32: 2023-07-18T11:51:00 | D32: -113d 15h | E32: Samantha - vuelo mty | F32: -11 | G32: -15 | H32: -279 | I32: 26.625
A33: Gary Hydracheck - Fix quote shipping | B33: 2023-07-18T08:16:00 | C33: 2023-07-18T08:44:00 | D33: 14d 23h | E33: Gary Hydracheck - Fix quote shipping | F33: 14 | G33: 23 | H33: 359 | I33: 0.04166666667
A34: Yordi - prÃ©stamo fisher's | B34: 2023-07-10T09:15:00 | C34: 2023-07-18T08:16:00 | D34: 7d | E34: Yordi - prÃ©stamo fisher's | F34: 7 | G34: 0 | H34: 168 | I34: 8
A35: Bjorn Sueco - ajustes Woo y POS | B35: 2023-07-05T09:56:00 | C35: 2023-07-07T15:07:00 | D35: 12d 18h | E35: Bjorn Sueco - ajustes Woo y POS | F35: 12 | G35: 18 | H35: 306 | I35: 2.25
A36: Carlos Freelancer - Tarea flowchart y reporte | B36: 2023-07-06T14:03:00 | C36: 2023-07-06T21:25:00 | D36: 14d 16h | E36: Carlos Freelancer - Tarea flowchart y reporte | F36: 14 | G36: 16 | H36: 352 | I36: 0.3333333333
A37: Rodrigo Techservices - Kanatest Hosting | B37: 2023-07-05T10:30:00 | D37: -54d 21h | E37: Rodrigo Techservices - Kanatest Hosting | F37: -54 | G37: -21 | H37: -1317 | I37: 69.875
A38: Rodrigo - Techservices Hosting y run4you | B38: 2023-05-26T16:57:00 | C38: 2023-07-03T16:15:00 | D38: -22d 23h | E38: Rodrigo - Techservices Hosting y run4you | F38: -22 | G38: -23 | H38: -551 | I38: 37.95833333
A39: Carlos Freelancer - Tarea API Tickers | B39: 2023-06-30T10:15:00 | C39: 2023-07-02T16:04:00 | D39: 12d 18h | E39: Carlos Freelancer - Tarea API Tickers | F39: 12 | G39: 18 | H39: 306 | I39: 2.25
A40: Faby - PMI Ame Sitio multilang | B40: 2023-05-22T15:35:00 | C40: 2023-07-01T16:12:00 | D40: -25d | E40: Faby - PMI Ame Sitio multilang | F40: -25 | G40: 0 | H40: -600 | I40: 40
A41: Viv Freelancer - Historic wordle | B41: 2023-06-29T18:59:00 | C41: 2023-06-30T17:47:00 | D41: 14d 1h | E41: Viv Freelancer - Historic wordle | F41: 14 | G41: 1 | H41: 337 | I41: 0.9583333333
A42: Faby - Candywax Depilaciones | B42: 2023-03-15T12:59:00 | C42: 2023-06-22T18:34:00 | D42: -84d 5h | E42: Faby - Candywax Depilaciones | F42: -84 | G42: -5 | H42: -2021 | I42: 99.20833333
A43: Mama Madhu - prestamo | B43: 2023-04-15T13:42:00 | C43: 2023-06-21T16:35:00 | D43: -52d 2h | E43: Mama Madhu - prestamo | F43: -52 | G43: -2 | H43: -1250 | I43: 67.08333333
A44: Eduardo Freelancer - Inmobiliaria Cambios php pura | B44: 2023-06-08T16:00:00 | C44: 2023-06-19T21:31:00 | D44: 3d 18h | E44: Eduardo Freelancer - Inmobiliaria Cambios php pura | F44: 3 | G44: 18 | H44: 90 | I44: 11.25
A45: Emilio pinturas arreglar su sitio | B45: 2023-06-15T19:40:00 | C45: 2023-06-15T19:41:00 | D45: 14d 23h | E45: Emilio pinturas arreglar su sitio | F45: 14 | G45: 23 | H45: 359 | I45: 0.04166666667
A46: Gary Freelancer - Quote page makeup | B46: 2023-06-07T11:58:00 | C46: 2023-06-13T23:59:00 | D46: 8d 11h | E46: Gary Freelancer - Quote page makeup | F46: 8 | G46: 11 | H46: 203 | I46: 6.541666667
A47: Viv Freelancer - Soporte anual $200 | B47: 2023-06-09T07:16:00 | C47: 2023-06-09T07:42:00 | D47: 14d 23h | E47: Viv Freelancer - Soporte anual $200 | F47: 14 | G47: 23 | H47: 359 | I47: 0.04166666667
A48: Daren freelancer - nuevo form precisemd | B48: 2023-06-06T14:06:00 | C48: 2023-06-08T13:21:00 | D48: 13d | E48: Daren freelancer - nuevo form precisemd | F48: 13 | G48: 0 | H48: 312 | I48: 2
A49: Viv Freelancer - Ecommerce Wordle | B49: 2023-04-13T13:32:00 | C49: 2023-05-31T01:44:00 | D49: -32d 12h | E49: Viv Freelancer - Ecommerce Wordle | F49: -32 | G49: -12 | H49: -780 | I49: 47.5
A50: Miguel Bullkens - B2B Nuevo Exchange | B50: 2023-03-22T19:49:00 | C50: 2023-05-30T06:08:00 | D50: -53d 10h | E50: Miguel Bullkens - B2B Nuevo Exchange | F50: -53 | G50: -10 | H50: -1282 | I50: 68.41666667
A51: Yamel - renovaciÃ³n Konditorhusset 2023 | B51: 2023-05-26T16:49:00 | C51: 2023-05-27T03:35:00 | D51: 14d 13h | E51: Yamel - renovación Konditorhusset 2023 | F51: 14 | G51: 13 | H51: 349 | I51: 0.4583333333
A52: Viv Freelancer - hosting migration | B52: 2023-05-26T06:11:00 | C52: 2023-05-26T09:54:00 | D52: 14d 20h | E52: Viv Freelancer - hosting migration | F52: 14 | G52: 20 | H52: 356 | I52: 0.1666666667
A53: Xavier Bobby - Itel plugins desactivar | B53: 2023-04-14T15:34:00 | C53: 2023-05-25T09:52:00 | D53: -25d 18h | E53: Xavier Bobby - Itel plugins desactivar | F53: -25 | G53: -18 | H53: -618 | I53: 40.75
A54: Pablo Nanofactura - Soporte errores | B54: 2023-05-12T07:14:00 | C54: 2023-05-25T09:52:00 | D54: 1d 21h | E54: Pablo Nanofactura - Soporte errores | F54: 1 | G54: 21 | H54: 45 | I54: 13.125
A55: Diana Inlat - Rehacer Ingeurbe | B55: 2023-05-22T16:07:00 | C55: 2023-05-22T16:07:00 | D55: 15d | E55: Diana Inlat - Rehacer Ingeurbe | F55: 15 | G55: 0 | H55: 360 | I55: 0
A56: Pablo Nanofactura - Con IVA o sin IVA premium function global | B56: 2023-04-24T19:42:00 | C56: 2023-04-25T14:06:00 | D56: 14d 5h | E56: Pablo Nanofactura - Con IVA o sin IVA premium function global | F56: 14 | G56: 5 | H56: 341 | I56: 0.7916666667
A57: Rodrigo Techservices - WP Run4u | B57: 2023-03-31T19:33:00 | C57: 2023-05-03T15:18:00 | D57: -17d 19h | E57: Rodrigo Techservices - WP Run4u | F57: -17 | G57: -19 | H57: -427 | I57: 32.79166667
A58: Gustavo Freelancer - Cambios pag ITESM | B58: 2023-01-26T01:36:00 | C58: 2023-04-11T20:32:00 | D58: -60d 18h | E58: Gustavo Freelancer - Cambios pag ITESM | F58: -60 | G58: -18 | H58: -1458 | I58: 75.75
A59: Pablo Nanofactura - Nuevo DiseÃ±o y nueva API | B59: 2023-03-04T00:55:14.304 | C59: 2023-03-22T18:10:00 | D59: -4d 17h | E59: Pablo Nanofactura - Nuevo Diseño y nueva API | F59: -4 | G59: -17 | H59: -113 | I59: 19.70833333
A60: Emilio Pinturas - bug lotes | B60: 2023-04-04T14:57:00 | C60: 2023-04-06T09:26:00 | D60: 13d 5h | E60: Emilio Pinturas - bug lotes | F60: 13 | G60: 5 | H60: 317 | I60: 1.791666667
A61: Xavier Bobby - Itel y Movitel Landings | B61: 2023-03-22T18:05:00 | C61: 2023-03-22T18:10:00 | D61: 14d 23h | E61: Xavier Bobby - Itel y Movitel Landings | F61: 14 | G61: 23 | H61: 359 | I61: 0.04166666667
A62: Wordle New Probability | B62: 2023-03-23T23:35:00 | C62: 2023-03-24T20:28:00 | D62: 14d 3h | E62: Wordle New Probability | F62: 14 | G62: =IF(A62="","",IF(ISERROR(FIND("h",D62)),0,SUBSTITUTE(SUBSTITUTE(SUBSTITUTE(RIGHT(IF(ISERROR(FIND("min",D62)),D62,LEFT(D62,4)),4),"h",""),"d","")," ","")*1 )*IF(F62<0,-1,1)) -> 3 | H62: 339 | I62: 0.875
A63: Santiago EncuentraTuBote | B63: 2023-02-07T13:29:00 | C63: 2023-03-21T12:00:00 | D63: -26d 22h | E63: Santiago EncuentraTuBote | F63: -26 | G63: =IF(A63="","",IF(ISERROR(FIND("h",D63)),0,SUBSTITUTE(SUBSTITUTE(SUBSTITUTE(RIGHT(IF(ISERROR(FIND("min",D63)),D63,LEFT(D63,4)),4),"h",""),"d","")," ","")*1 )*IF(F63<0,-1,1)) -> -22 | H63: -646 | I63: 41.91666667
A64: John TraducciÃ³n Form Ingles | B64: 2023-03-14T21:13:00 | C64: 2023-03-21T09:50:00 | D64: 8d 11h | E64: John Traducción Form Ingles | F64: 8 | G64: 11 | H64: 203 | I64: 6.541666667
A65: Emilio Pinturas fix error | B65: 2023-03-10T08:34:00 | C65: 2023-03-10T08:34:00 | D65: 15d | E65: Emilio Pinturas fix error | F65: 15 | G65: 0 | H65: 360 | I65: 0
A66: Gary Hydracheck Checkout zipcode issue | B66: 2023-03-09T14:50:00 | C66: 2023-03-09T17:34:00 | D66: 14d 21h | E66: Gary Hydracheck Checkout zipcode issue | F66: 14 | G66: 21 | H66: 357 | I66: 0.125
A67: Nana maletas | B67: 2023-01-30T09:04:00 | C67: 2023-03-09T17:33:00 | D67: -23d 8h | E67: Nana maletas | F67: -23 | G67: -8 | H67: -560 | I67: 38.33333333
A68: Viv Freelancer Doble letra | B68: 2023-03-07T10:51:00 | C68: 2023-03-09T10:44:00 | D68: 13d | E68: Viv Freelancer Doble letra | F68: 13 | G68: 0 | H68: 312 | I68: 2
A69: Jordi Bullkens Bots Demo desde historico o desde 0 | B69: 2023-02-12T18:09:00 | C69: 2023-03-03T09:54:00 | D69: -3d 15h | E69: Jordi Bullkens Bots Demo desde historico o desde 0 | F69: -3 | G69: -15 | H69: -87 | I69: 18.625
A70: Samantha Concierto Banda | B70: 2023-02-20T19:52:00 | C70: 2023-02-27T21:55:00 | D70: 7d 21h | E70: =IF(A70="","",SUBSTITUTE(SUBSTITUTE(A70,"Ã³","ó"),"Ã±","ñ")) -> Samantha Concierto Banda | F70: =IF(A70="","",IF(ISERROR(FIND("d",D70)),0,SUBSTITUTE(SUBSTITUTE(LEFT(D70,3),"d","")," ","")*1 )) -> 7 | G70: 21 | H70: =IF(A70="","",(F70*24)+G70) -> 189 | I70: =IF(A70="","",((24*15)-H70)/24) -> 7.125
A71: Viv Freelancer Strict mode & score | B71: 2023-02-15T12:59:00 | C71: 2023-02-27T11:57:00 | D71: 3d 1h | E71: Viv Freelancer Strict mode & score | F71: 3 | G71: 1 | H71: 73 | I71: 11.95833333
A72: Samantha La Paz Dinn | B72: 2023-02-21T11:26:00 | C72: 2023-02-26T17:45:00 | D72: 9d 17h | E72: Samantha La Paz Dinn | F72: 9 | G72: 17 | H72: 233 | I72: 5.291666667
A73: Nana Vuelo Tijuana | B73: 2023-02-14T18:08:00 | C73: 2023-02-21T18:07:00 | D73: 8d | E73: Nana Vuelo Tijuana | F73: 8 | G73: 0 | H73: 192 | I73: 7
A74: Viv Freelancer Sort out words | B74: 2023-02-02T22:07:00 | C74: 2023-02-21T15:35:00 | D74: -3d 17h | E74: Viv Freelancer Sort out words | F74: -3 | G74: -17 | H74: -89 | I74: 18.70833333
A75: Nana bus Oaxaca | B75: 2023-02-15T17:20:00 | C75: 2023-02-20T20:21:00 | D75: 9d 21h | E75: Nana bus Oaxaca | F75: 9 | G75: 21 | H75: 237 | I75: 5.125
A76: Pablo Nanofactura Factura API | B76: 2022-12-08T02:16:00 | C76: 2023-02-15T17:19:00 | D76: -54d 15h | E76: Pablo Nanofactura Factura API | F76: -54 | G76: -15 | H76: -1311 | I76: 69.625
A77: Diana Inlat Ingeurbe Proyectos Acordeon fix | B77: 2023-02-07T22:47:00 | C77: 2023-02-08T19:36:00 | D77: 14d 3h | E77: Diana Inlat Ingeurbe Proyectos Acordeon fix | F77: 14 | G77: 3 | H77: 339 | I77: 0.875
A78: Gustavo dilo con fresas gmaps checkout | B78: 2023-01-31T17:14:00 | C78: 2023-02-02T18:33:00 | D78: 12d 22h | E78: Gustavo dilo con fresas gmaps checkout | F78: 12 | G78: 22 | H78: 310 | I78: 2.083333333
A79: Caba prestamo | B79: 2023-01-17T06:35:00 | C79: 2023-02-07T12:09:00 | D79: -6d 5h | E79: Caba prestamo | F79: -6 | G79: -5 | H79: -149 | I79: 21.20833333
A80: Viv Freelancer word filter | B80: 2023-01-26T12:07:00 | C80: 2023-02-01T15:36:00 | D80: 8d 20h | E80: Viv Freelancer word filter | F80: 8 | G80: 20 | H80: 212 | I80: 6.166666667
A81: Konditorhusset 1hr cambios | B81: 2023-01-30T13:47:00 | C81: 2023-01-31T13:46:00 | D81: 14d | E81: Konditorhusset 1hr cambios | F81: 14 | G81: 0 | H81: 336 | I81: 1
A82: Rigoberto YourQuickMoney | B82: 2022-11-02T16:47:00 | C82: 2023-01-27T13:40:00 | D82: -70d 20h | E82: Rigoberto YourQuickMoney | F82: -70 | G82: -20 | H82: -1700 | I82: 85.83333333
A83: Nick new edits - filtros - nueva plataforma y advizee free ssl | B83: 2022-12-12T14:08:00 | C83: 2023-01-06T09:45:00 | D83: -9d 19h | E83: Nick new edits - filtros - nueva plataforma y advizee free ssl | F83: -9 | G83: -19 | H83: -235 | I83: 24.79166667
A84: Francisco Ingeurbe cfield y badge | B84: 2022-12-29T15:51:00 | C84: 2022-12-31T00:30:52.416 | D84: 14d 15h | E84: Francisco Ingeurbe cfield y badge | F84: 14 | G84: 15 | H84: 351 | I84: 0.375
A85: Papa EdiEco CRM | B85: 2022-12-14T01:20:00 | C85: 2022-12-23T14:35:00 | D85: 5d 10h | E85: Papa EdiEco CRM | F85: 5 | G85: 10 | H85: 130 | I85: 9.583333333
A86: Daren Precise DM cambios | B86: 2022-11-30T16:18:00 | C86: 2022-12-14T13:51:00 | D86: 1d 2h | E86: Daren Precise DM cambios | F86: 1 | G86: 2 | H86: 26 | I86: 13.91666667
A87: Miguel Bullkens Reunion 2da parte | B87: 2022-10-26T19:57:00 | C87: 2022-12-07T10:19:00 | D87: -26d 15h | E87: Miguel Bullkens Reunion 2da parte | F87: -26 | G87: -15 | H87: -639 | I87: 41.625
A88: Lisandro IAPTI QR y nuevo campo link social tree | B88: mybb mail envios... | C88: 2022-10-21T20:38:00 | D88: 2022-11-30T10:33:00 | E88: Lisandro IAPTI QR y nuevo campo link social tree | F88: 0 | G88: 0 | H88: 0 | I88: 15
A89: JO - Instalar template "Panda" - Lisandro | B89: 2022-10-10T12:19:00 | C89: 2022-11-30T10:33:00 | D89: -35d 23h | E89: JO - Instalar template "Panda" - Lisandro | F89: -35 | G89: -23 | H89: -863 | I89: 50.95833333
A90: Copia form a mail - Iapti - Lisandro | B90: 2022-09-16T10:34:00 | C90: 2022-11-30T10:32:00 | D90: -60d | E90: Copia form a mail - Iapti - Lisandro | F90: -60 | G90: 0 | H90: -1440 | I90: 75
A91: Jason arreglar Facet Ingeurbe | B91: 2022-11-09T14:23:00 | C91: 2022-11-21T13:43:00 | D91: 3d | E91: Jason arreglar Facet Ingeurbe | F91: 3 | G91: 0 | H91: 72 | I91: 12
A92: Samantha Dinn | B92: 2022-09-11T13:01:00 | C92: 2022-11-20T15:19:00 | D92: -55d 3h | E92: Samantha Dinn | F92: -55 | G92: -3 | H92: -1323 | I92: 70.125
A93: Gustav Sitio Recuperado | B93: 2022-11-10T20:57:00 | C93: 2022-11-14T16:09:00 | D93: 11d 4h | E93: Gustav Sitio Recuperado | F93: 11 | G93: 4 | H93: 268 | I93: 3.833333333
A94: Rashid Dogwalkers Hosting | B94: 2022-10-10T16:23:00 | C94: 2022-11-12T18:31:00 | D94: -18d 3h | E94: Rashid Dogwalkers Hosting | F94: -18 | G94: -3 | H94: -435 | I94: 33.125
A95: Cambiar contraseÃ±as del plesk y demÃ¡s sitios para correr a Ivonne | B95: 2022-11-08T11:25:00 | C95: 2022-11-08T11:25:00 | D95: 15d | E95: Cambiar contraseñas del plesk y demÃ¡s sitios para correr a Ivonne | F95: 15 | G95: 0 | H95: 360 | I95: 0
A96: Madhu Kebab | B96: 2022-10-25T16:51:00 | C96: 2022-11-07T09:29:00 | D96: 2d 6h | E96: Madhu Kebab | F96: 2 | G96: 6 | H96: 54 | I96: 12.75
A97: Emilio pinturas | B97: 2022-09-09T18:57:00 | C97: 2022-10-10T20:35:00 | D97: -16d 1h | E97: Emilio pinturas | F97: -16 | G97: -1 | H97: -385 | I97: 31.04166667
A98: Gus Diloconfresas Checkout Horario | B98: 2022-09-29T17:54:00 | C98: 2022-11-01T18:37:00 | D98: -18d 1h | E98: Gus Diloconfresas Checkout Horario | F98: -18 | G98: -1 | H98: -433 | I98: 33.04166667
A99: JoshNBA Scrapp BBallRef | B99: 2022-10-25T20:44:00 | C99: 2022-10-26T16:16:00 | D99: 14d 4h | E99: JoshNBA Scrapp BBallRef | F99: 14 | G99: 4 | H99: 340 | I99: 0.8333333333
A100: Jason Brindabella clonar sitio | B100: 2022-10-25T18:38:00 | C100: 2022-10-26T16:11:00 | D100: 14d 2h | E100: Jason Brindabella clonar sitio | F100: 14 | G100: 2 | H100: 338 | I100: 0.9166666667
A101: Josh NBA Setup nueva temporada | B101: 2022-10-19T22:51:00 | C101: 2022-10-20T18:09:00 | D101: 14d 4h | E101: Josh NBA Setup nueva temporada | F101: 14 | G101: 4 | H101: 340 | I101: 0.8333333333
A102: Nick desactivo pago por hora auto | B102: 2022-10-16T23:56:00 | C102: 2022-10-17T12:18:00 | D102: 14d 11h | E102: Nick desactivo pago por hora auto | F102: 14 | G102: 11 | H102: 347 | I102: 0.5416666667
A103: Yamel Konditor cambios | B103: 2022-09-29T00:20:58.848 | C103: 2022-09-29T00:21:03.168 | D103: 15d | E103: Yamel Konditor cambios | F103: 15 | G103: 0 | H103: 360 | I103: 0
A104: Jason Brindabella Mini Ajustes | B104: 2022-10-14T02:09:00 | C104: 2022-10-14T02:09:00 | D104: 15d | E104: Jason Brindabella Mini Ajustes | F104: 15 | G104: 0 | H104: 360 | I104: 0
A105: G Anita DepÃ³sito | B105: 2022-09-29T20:23:00 | C105: 2022-10-12T16:25:00 | D105: 2d 3h | E105: G Anita Depósito | F105: 2 | G105: 3 | H105: 51 | I105: 12.875
A106: Nick Migracion | B106: 2022-10-11T16:05:00 | C106: 2022-10-11T16:05:00 | D106: 15d | E106: Nick Migracion | F106: 15 | G106: 0 | H106: 360 | I106: 0
A107: Daren precisemd form2 | B107: 2022-10-07T01:42:00 | C107: 2022-10-10T15:46:00 | D107: 11d 9h | E107: Daren precisemd form2 | F107: 11 | G107: 9 | H107: 273 | I107: 3.625
A108: Norma Nateras Hosting | B108: 2022-09-30T09:45:00 | C108: 2022-10-04T22:30:00 | D108: 10d 11h | E108: Norma Nateras Hosting | F108: 10 | G108: 11 | H108: 251 | I108: 4.541666667
A109: Mama Madhu PrÃ©stamo | B109: 2022-09-22T16:00:00 | C109: 2022-10-01T14:01:00 | D109: 6d 2h | E109: Mama Madhu PrÃ©stamo | F109: 6 | G109: 2 | H109: 146 | I109: 8.916666667
A110: Carrascosa Freelancer | B110: 2022-09-11T13:01:00 | C110: 2022-09-29T10:21:00 | D110: -2d 21h | E110: Carrascosa Freelancer | F110: -2 | G110: -21 | H110: -69 | I110: 17.875
A111: Nana Vuelos | B111: 2022-09-11T13:01:00 | C111: 2022-09-27T12:14:00 | D111: -23h 13min | E111: Nana Vuelos | F111: 0 | G111: -23 | H111: -23 | I111: 15.95833333
A112: Kavak Reembolso | B112: 2022-09-11T13:01:00 | C112: 2022-09-27T07:48:00 | D112: -18h 46min | E112: Kavak Reembolso | F112: 0 | G112: -18 | H112: -18 | I112: 15.75
A113: Josh NBA | B113: 2022-09-09T19:42:00 | C113: 2022-09-19T20:36:00 | D113: 4d 23h | E113: Josh NBA | F113: 4 | G113: 23 | H113: 119 | I113: 10.04166667
A114: Speedup - Hydracheck - Gary | B114: 2022-09-14T12:22:00 | C114: 2022-09-19T13:06:00 | D114: 9d 23h | E114: Speedup - Hydracheck - Gary | F114: 9 | G114: 23 | H114: 239 | I114: 5.041666667
A115: Sam PetersWindow Hosting | B115: 2022-09-09T19:43:00 | C115: 2022-09-19T11:47:00 | D115: 5d 7h | E115: Sam PetersWindow Hosting | F115: 5 | G115: 7 | H115: 127 | I115: 9.708333333
A116: Speedup - Brindabella - Jason | B116: 2022-09-14T12:22:00 | C116: 2022-09-14T19:16:00 | D116: 14d 17h | E116: Speedup - Brindabella - Jason | F116: 14 | G116: 17 | H116: 353 | I116: 0.2916666667
G127: =IF(A127="","",IF(ISERROR(FIND("h",D127)),0,SUBSTITUTE(SUBSTITUTE(SUBSTITUTE(RIGHT(IF(ISERROR(FIND("min",D127)),D127,LEFT(D127,4)),4),"h",""),"d","")," ","")*1 )*IF(F127<0,-1,1)) -> 
E134: =IF(A134="","",SUBSTITUTE(SUBSTITUTE(A134,"Ã³","ó"),"Ã±","ñ")) ->  | F134: =IF(A134="","",IF(ISERROR(FIND("d",D134)),0,SUBSTITUTE(SUBSTITUTE(LEFT(D134,3),"d","")," ","")*1 )) ->  | H134: =IF(A134="","",(F134*24)+G134) ->  | I134: =IF(A134="","",((24*15)-H134)/24) -> 
G191: =IF(A191="","",IF(ISERROR(FIND("h",D191)),0,SUBSTITUTE(SUBSTITUTE(SUBSTITUTE(RIGHT(IF(ISERROR(FIND("min",D191)),D191,LEFT(D191,4)),4),"h",""),"d","")," ","")*1 )*IF(F191<0,-1,1)) -> 
E198: =IF(A198="","",SUBSTITUTE(SUBSTITUTE(A198,"Ã³","ó"),"Ã±","ñ")) ->  | F198: =IF(A198="","",IF(ISERROR(FIND("d",D198)),0,SUBSTITUTE(SUBSTITUTE(LEFT(D198,3),"d","")," ","")*1 )) ->  | H198: =IF(A198="","",(F198*24)+G198) ->  | I198: =IF(A198="","",((24*15)-H198)/24) -> 
G255: =IF(A255="","",IF(ISERROR(FIND("h",D255)),0,SUBSTITUTE(SUBSTITUTE(SUBSTITUTE(RIGHT(IF(ISERROR(FIND("min",D255)),D255,LEFT(D255,4)),4),"h",""),"d","")," ","")*1 )*IF(F255<0,-1,1)) -> 
E262: =IF(A262="","",SUBSTITUTE(SUBSTITUTE(A262,"Ã³","ó"),"Ã±","ñ")) ->  | F262: =IF(A262="","",IF(ISERROR(FIND("d",D262)),0,SUBSTITUTE(SUBSTITUTE(LEFT(D262,3),"d","")," ","")*1 )) ->  | H262: =IF(A262="","",(F262*24)+G262) ->  | I262: =IF(A262="","",((24*15)-H262)/24) -> 
G319: =IF(A319="","",IF(ISERROR(FIND("h",D319)),0,SUBSTITUTE(SUBSTITUTE(SUBSTITUTE(RIGHT(IF(ISERROR(FIND("min",D319)),D319,LEFT(D319,4)),4),"h",""),"d","")," ","")*1 )*IF(F319<0,-1,1)) -> 
E326: =IF(A326="","",SUBSTITUTE(SUBSTITUTE(A326,"Ã³","ó"),"Ã±","ñ")) ->  | F326: =IF(A326="","",IF(ISERROR(FIND("d",D326)),0,SUBSTITUTE(SUBSTITUTE(LEFT(D326,3),"d","")," ","")*1 )) ->  | H326: =IF(A326="","",(F326*24)+G326) ->  | I326: =IF(A326="","",((24*15)-H326)/24) -> 
G383: =IF(A383="","",IF(ISERROR(FIND("h",D383)),0,SUBSTITUTE(SUBSTITUTE(SUBSTITUTE(RIGHT(IF(ISERROR(FIND("min",D383)),D383,LEFT(D383,4)),4),"h",""),"d","")," ","")*1 )*IF(F383<0,-1,1)) -> 
E390: =IF(A390="","",SUBSTITUTE(SUBSTITUTE(A390,"Ã³","ó"),"Ã±","ñ")) ->  | F390: =IF(A390="","",IF(ISERROR(FIND("d",D390)),0,SUBSTITUTE(SUBSTITUTE(LEFT(D390,3),"d","")," ","")*1 )) ->  | H390: =IF(A390="","",(F390*24)+G390) ->  | I390: =IF(A390="","",((24*15)-H390)/24) -> 
G447: =IF(A447="","",IF(ISERROR(FIND("h",D447)),0,SUBSTITUTE(SUBSTITUTE(SUBSTITUTE(RIGHT(IF(ISERROR(FIND("min",D447)),D447,LEFT(D447,4)),4),"h",""),"d","")," ","")*1 )*IF(F447<0,-1,1)) -> 
E454: =IF(A454="","",SUBSTITUTE(SUBSTITUTE(A454,"Ã³","ó"),"Ã±","ñ")) ->  | F454: =IF(A454="","",IF(ISERROR(FIND("d",D454)),0,SUBSTITUTE(SUBSTITUTE(LEFT(D454,3),"d","")," ","")*1 )) ->  | H454: =IF(A454="","",(F454*24)+G454) ->  | I454: =IF(A454="","",((24*15)-H454)/24) -> 

Sheet Timecamp
A1: Datum | B1: Benutzer | C1: Aufgabe | D1: Stunden | E1: Notiz | F1: Von | G1: Bis | H1: Einkommen | I1: Kosten | J1: Tiempo | K1: Suma periodo | L1: Unico | M1: https://app.timecamp.com/time_tracking/task_report/130052148#/entries | N1: Fecha | O1: PC | P1: Movil | Q1: Debloqueos | T1: =INDEX($C:$C,MATCH(T2,$L:$L,0),1) -> Administrativo - ACD | U1: =INDEX($C:$C,MATCH(U2,$L:$L,0),1) -> Ricardo CDMX - Excel a Plataforma Web | V1: =INDEX($C:$C,MATCH(V2,$L:$L,0),1) -> Ricardo Freelancer - BDD Spotify | W1: =INDEX($C:$C,MATCH(W2,$L:$L,0),1) -> Faby - Crawler Farmakosto | X1: =INDEX($C:$C,MATCH(X2,$L:$L,0),1) -> Ricardo Cuerna - Fixum facturacion
A2: Export | J2: =IF(D2="","",IF(ISERROR(FIND("s",D2)),IF(ISERROR(FIND("h ",D2)),LEFT(D2,2)/60, LEFT(D2,FIND("h ",D2)-1 )+LEFT(RIGHT(D2,3),2)/60 ),0)) ->  | K2: =SUMIFS(J:J,C:C,C2,A:A,">"&$S$4) -> 0 | L2: =IF(COUNTIF(K$1:K2,K2)=1,K2,"") -> 0 | N2: 2023-04-16 | O2: =SUMIF(A:A,N2,J:J) -> 12 | P2: =SUMIF(Handy!A:A,N2,Handy!J:J) -> 0 | Q2: =SUMIF(Handy!A:A,N2,Handy!K:K) -> 0 | S2: Total | T2: =LARGE($L:$L,COLUMN(T3)-COLUMN($S1)) -> 33.96666667 | U2: =LARGE($L:$L,COLUMN(U3)-COLUMN($S1)) -> 14.98333333 | V2: =LARGE($L:$L,COLUMN(V3)-COLUMN($S1)) -> 9.066666667 | W2: =LARGE($L:$L,COLUMN(W3)-COLUMN($S1)) -> 5.533333333 | X2: =LARGE($L:$L,COLUMN(X3)-COLUMN($S1)) -> 5.466666667 | Y2: =SUM(Y4:Y18) -> 24.03333333
A3: 2023-04-16 | B3: Alejandro Castanon Diaz | C3: Xavier Bobby - Itel y Movitel Landings | D3: 12h 00m | E3: Real tomado todavia en wakatime | F3: 00:00:00 | G3: 23:59:00 | H3: 0 | I3: 0 | J3: =IF(D3="","",IF(ISERROR(FIND("s",D3)),IF(ISERROR(FIND("h ",D3)),LEFT(D3,2)/60, LEFT(D3,FIND("h ",D3)-1 )+LEFT(RIGHT(D3,3),2)/60 ),0)) -> 12 | K3: 0 | L3: =IF(COUNTIF(K$1:K3,K3)=1,K3,"") ->  | N3: =IF(N2+1>TODAY(),NA(),N2+1) -> 2023-04-17 | O3: =SUMIF(A:A,N3,J:J) -> 12 | P3: =SUMIF(Handy!A:A,N3,Handy!J:J) -> 0 | Q3: =SUMIF(Handy!A:A,N3,Handy!K:K) -> 0 | S3: Ult. 15 dias | T3: =IFERROR(LEFT(INDEX($C:$C,MATCH(T2,$L:$L,0),1),FIND("-",INDEX($C:$C,MATCH(T2,$L:$L,0),1))-2),INDEX($C:$C,MATCH(T2,$L:$L,0),1)) -> Administrativo | U3: =IFERROR(LEFT(INDEX($C:$C,MATCH(U2,$L:$L,0),1),FIND("-",INDEX($C:$C,MATCH(U2,$L:$L,0),1))-2),INDEX($C:$C,MATCH(U2,$L:$L,0),1)) -> Ricardo CDMX | V3: =IFERROR(LEFT(INDEX($C:$C,MATCH(V2,$L:$L,0),1),FIND("-",INDEX($C:$C,MATCH(V2,$L:$L,0),1))-2),INDEX($C:$C,MATCH(V2,$L:$L,0),1)) -> Ricardo Freelancer | W3: =IFERROR(LEFT(INDEX($C:$C,MATCH(W2,$L:$L,0),1),FIND("-",INDEX($C:$C,MATCH(W2,$L:$L,0),1))-2),INDEX($C:$C,MATCH(W2,$L:$L,0),1)) -> Faby | X3: =IFERROR(LEFT(INDEX($C:$C,MATCH(X2,$L:$L,0),1),FIND("-",INDEX($C:$C,MATCH(X2,$L:$L,0),1))-2),INDEX($C:$C,MATCH(X2,$L:$L,0),1)) -> Ricardo Cuerna | Y3: Resto | AA3: Ult. 4 semanas | AB3: Media | AC3: Max | AD3: Min | AE3: Total
A4: 2023-04-17 | B4: Alejandro Castanon Diaz | C4: Xavier Bobby - Itel y Movitel Landings | D4: 12h 00m | E4: Real tomado todavia en wakatime | F4: 00:00:00 | G4: 15:32:00 | H4: 0 | I4: 0 | J4: 12 | K4: 0 | L4: =IF(COUNTIF(K$1:K4,K4)=1,K4,"") ->  | N4: =IF(N3+1>TODAY(),NA(),N3+1) -> 2023-04-18 | O4: 15.53333333 | P4: =SUMIF(Handy!A:A,N4,Handy!J:J) -> 0 | Q4: =SUMIF(Handy!A:A,N4,Handy!K:K) -> 0 | S4: =TODAY()-14 -> 2023-08-30 | T4: =SUMIFS($J:$J,$A:$A,$S4,$C:$C,T$1) -> 2.85 | U4: =SUMIFS($J:$J,$A:$A,$S4,$C:$C,U$1) -> 0 | V4: 0 | W4: 0 | X4: 0.4 | Y4: =SUMIF(A:A,S4,J:J)-SUM(T4:X4) -> 2.85 | AA4: =TODAY() -> 2023-09-13 | AB4: =AVERAGEIFS($O:$O,$N:$N,"<="&$AA4,$N:$N,">"&$AA5) -> 5.895238095 | AC4: =_xlfn.MAXIFS($O:$O,$N:$N,"<="&$AA4,$N:$N,">"&$AA5) -> 17 | AD4: =_xlfn.MINIFS($O:$O,$O:$O,">0",$N:$N,"<="&$AA4,$N:$N,">"&$AA5) -> 0.2166666667 | AE4: =SUMIFS($O:$O,$N:$N,"<="&$AA4,$N:$N,">"&$AA5) -> 41.26666667
A5: 2023-04-18 | B5: Alejandro Castanon Diaz | C5: Xavier Bobby - Itel y Movitel Landings | D5: 15h 32m | E5: Real tomado todavia en wakatime | F5: 00:00:00 | G5: 15:32:00 | H5: 0 | I5: 0 | J5: 15.53333333 | K5: 0 | L5: =IF(COUNTIF(K$1:K5,K5)=1,K5,"") ->  | N5: 2023-04-19 | O5: 0 | P5: =SUMIF(Handy!A:A,N5,Handy!J:J) -> 0 | Q5: =SUMIF(Handy!A:A,N5,Handy!K:K) -> 0 | S5: =S4+1 -> 2023-08-31 | T5: 3.666666667 | U5: 1.016666667 | V5: 0 | W5: 0.45 | X5: 0 | Y5: 2.35 | AA5: =AA4-7 -> 2023-09-06 | AB5: =AVERAGEIFS($O:$O,$N:$N,"<="&$AA5,$N:$N,">"&$AA6) -> 6.99047619 | AC5: =_xlfn.MAXIFS($O:$O,$N:$N,"<="&$AA5,$N:$N,">"&$AA6) -> 13.93333333 | AD5: =_xlfn.MINIFS($O:$O,$O:$O,">0",$N:$N,"<="&$AA5,$N:$N,">"&$AA6) -> 1.483333333 | AE5: 48.93333333
A6: 2023-04-20 | B6: Alejandro Castanon Diaz | C6: Faby - PMI Ame Sitio multilang | D6: 02m | F6: 18:38:00 | G6: 18:40:00 | H6: 0 | I6: 0 | J6: 0.03333333333 | K6: 0 | L6: =IF(COUNTIF(K$1:K6,K6)=1,K6,"") ->  | N6: 2023-04-20 | O6: 0.6833333333 | P6: =SUMIF(Handy!A:A,N6,Handy!J:J) -> 0 | Q6: =SUMIF(Handy!A:A,N6,Handy!K:K) -> 0 | S6: =S5+1 -> 2023-09-01 | T6: 4.033333333 | U6: 2.433333333 | V6: 0 | W6: 0.9333333333 | X6: 0.1666666667 | Y6: 6.366666667 | AA6: 2023-08-30 | AB6: 4.771428571 | AC6: 10.9 | AD6: 1.066666667 | AE6: 33.4
A7: 2023-04-20 | B7: Alejandro Castanon Diaz | C7: Diana Inlat - Rehacer Ingeurbe | D7: 24m | F7: 22:38:00 | G7: 23:06:00 | H7: 0 | I7: 0 | J7: 0.4 | K7: 0.01666666667 | L7: =IF(COUNTIF(K$1:K7,K7)=1,K7,"") -> 0.01666666667 | N7: 2023-04-21 | O7: 12.15 | P7: =SUMIF(Handy!A:A,N7,Handy!J:J) -> 19.18333333 | Q7: =SUMIF(Handy!A:A,N7,Handy!K:K) -> 1533 | S7: 2023-09-02 | T7: 0.5166666667 | U7: 0 | V7: 0 | W7: 0.45 | X7: 0 | Y7: 0.5166666667 | AA7: 2023-08-23 | AB7: =AVERAGEIFS($O:$O,$N:$N,"<="&$AA7,$N:$N,">"&$AA8) -> 7.307142857 | AC7: 12.91666667 | AD7: 2.116666667 | AE7: 51.15
A8: 2023-04-20 | B8: Alejandro Castanon Diaz | C8: Diana Inlat - Rehacer Ingeurbe | D8: 03m | F8: 23:06:00 | G8: 23:10:00 | H8: 0 | I8: 0 | J8: 0.05 | K8: 0.01666666667 | L8: =IF(COUNTIF(K$1:K8,K8)=1,K8,"") ->  | N8: 2023-04-22 | O8: 1.5 | P8: =SUMIF(Handy!A:A,N8,Handy!J:J) -> 0 | Q8: =SUMIF(Handy!A:A,N8,Handy!K:K) -> 0 | S8: 2023-09-03 | T8: 0 | U8: 0 | V8: 0 | W8: 0 | X8: 0 | Y8: 0 | AA8: 2023-08-16 | AB8: 2.338095238 | AC8: 7.166666667 | AD8: 1.35 | AE8: 16.36666667
A9: 2023-04-20 | B9: Alejandro Castanon Diaz | C9: Faby - PMI Ame Sitio multilang | D9: 3s | F9: 23:07:00 | G9: 23:07:00 | H9: 0 | I9: 0 | J9: 0 | K9: 0 | L9: =IF(COUNTIF(K$1:K9,K9)=1,K9,"") ->  | N9: 2023-04-23 | O9: 0 | P9: =SUMIF(Handy!A:A,N9,Handy!J:J) -> 0 | Q9: =SUMIF(Handy!A:A,N9,Handy!K:K) -> 0 | S9: 2023-09-04 | T9: 2.85 | U9: 2.733333333 | V9: 0 | W9: 0 | X9: 0 | Y9: 3.4 | AA9: 2023-08-09 | AB9: 6.521428571 | AC9: 11.56666667 | AD9: 5.1 | AE9: 45.65
A10: 2023-04-20 | B10: Alejandro Castanon Diaz | C10: Ricardo Freelancer - Accounting | D10: 24s | F10: 23:09:00 | G10: 23:09:00 | H10: 0 | I10: 0 | J10: 0 | K10: 0 | L10: =IF(COUNTIF(K$1:K10,K10)=1,K10,"") ->  | N10: 2023-04-24 | O10: 7.233333333 | P10: =SUMIF(Handy!A:A,N10,Handy!J:J) -> 0 | Q10: =SUMIF(Handy!A:A,N10,Handy!K:K) -> 0 | S10: 2023-09-05 | T10: 2.35 | U10: 0.4666666667 | V10: 0 | W10: 2.183333333 | X10: 0.4 | Y10: 1.95 | AA10: 2023-08-02 | AB10: 5.402380952 | AC10: 10.18333333 | AD10: 0.3333333333 | AE10: 37.81666667
A11: 2023-04-20 | B11: Alejandro Castanon Diaz | C11: Diana Inlat - Rehacer Ingeurbe | D11: 03m | F11: 23:46:00 | G11: 23:56:00 | H11: 0 | I11: 0 | J11: 0.05 | K11: 0.01666666667 | L11: =IF(COUNTIF(K$1:K11,K11)=1,K11,"") ->  | N11: 2023-04-25 | O11: 8.7 | P11: =SUMIF(Handy!A:A,N11,Handy!J:J) -> 0 | Q11: =SUMIF(Handy!A:A,N11,Handy!K:K) -> 0 | S11: 2023-09-06 | T11: 4.866666667 | U11: 0.4 | V11: 0.7166666667 | W11: 0.75 | X11: 2.016666667 | Y11: 0.95 | AA11: 2023-07-26 | AB11: 4.052380952 | AC11: 10.25 | AD11: 0.1333333333 | AE11: 28.36666667
A12: 2023-04-20 | B12: Alejandro Castanon Diaz | C12: Faby - PMI Ame Sitio multilang | D12: 09m | F12: 23:46:00 | G12: 23:59:00 | H12: 0 | I12: 0 | J12: 0.15 | K12: 0 | L12: =IF(COUNTIF(K$1:K12,K12)=1,K12,"") ->  | N12: 2023-04-26 | O12: 5.933333333 | P12: =SUMIF(Handy!A:A,N12,Handy!J:J) -> 0 | Q12: =SUMIF(Handy!A:A,N12,Handy!K:K) -> 0 | S12: 2023-09-07 | T12: 5.533333333 | U12: 1.3 | V12: 6.516666667 | W12: 0.1 | X12: 2.883333333 | Y12: 0.6666666667 | AA12: 2023-07-19
A13: 2023-04-21 | B13: Alejandro Castanon Diaz | C13: Ricardo Freelancer - Accounting | D13: 2h 46m | E13: Migración a Trello card | F13: 00:00:00 | G13: 02:46:00 | H13: 0 | I13: 0 | J13: 2.766666667 | K13: 0 | L13: =IF(COUNTIF(K$1:K13,K13)=1,K13,"") ->  | N13: 2023-04-27 | O13: 3.383333333 | P13: =SUMIF(Handy!A:A,N13,Handy!J:J) -> 0 | Q13: =SUMIF(Handy!A:A,N13,Handy!K:K) -> 0 | S13: 2023-09-08 | T13: 4.8 | U13: 5.816666667 | V13: 1.833333333 | W13: 0.01666666667 | X13: 0 | Y13: 0.5333333333
A14: 2023-04-21 | B14: Alejandro Castanon Diaz | C14: Faby - PMI Ame Sitio multilang | D14: 27m | F14: 00:00:00 | G14: 00:50:00 | H14: 0 | I14: 0 | J14: 0.45 | K14: 0 | L14: =IF(COUNTIF(K$1:K14,K14)=1,K14,"") ->  | N14: 2023-04-28 | O14: 6.083333333 | P14: =SUMIF(Handy!A:A,N14,Handy!J:J) -> 21.28333333 | Q14: =SUMIF(Handy!A:A,N14,Handy!K:K) -> 2170 | S14: 2023-09-09 | T14: 0 | U14: 0.2166666667 | V14: 0 | W14: 0 | X14: 0 | Y14: 0
A15: 2023-04-21 | B15: Alejandro Castanon Diaz | C15: Diana Inlat - Rehacer Ingeurbe | D15: 01m | F15: 00:05:00 | G15: 00:08:00 | H15: 0 | I15: 0 | J15: 0.01666666667 | K15: 0.01666666667 | L15: =IF(COUNTIF(K$1:K15,K15)=1,K15,"") ->  | N15: 2023-04-29 | O15: 1.183333333 | P15: =SUMIF(Handy!A:A,N15,Handy!J:J) -> 0 | Q15: =SUMIF(Handy!A:A,N15,Handy!K:K) -> 0 | S15: 2023-09-10 | T15: 0 | U15: 0 | V15: 0 | W15: 0 | X15: 0 | Y15: 0
A16: 2023-04-21 | B16: Alejandro Castanon Diaz | C16: Diana Inlat - Rehacer Ingeurbe | D16: 09m | F16: 00:28:00 | G16: 00:38:00 | H16: 0 | I16: 0 | J16: 0.15 | K16: 0.01666666667 | L16: =IF(COUNTIF(K$1:K16,K16)=1,K16,"") ->  | N16: 2023-04-30 | O16: 1.333333333 | P16: =SUMIF(Handy!A:A,N16,Handy!J:J) -> 0 | Q16: =SUMIF(Handy!A:A,N16,Handy!K:K) -> 0 | S16: 2023-09-11 | T16: 1.9 | U16: 0.03333333333 | V16: 0 | W16: 0.15 | X16: 0 | Y16: 0.3833333333
A17: 2023-04-21 | B17: Alejandro Castanon Diaz | C17: Faby - PMI Ame Sitio multilang | D17: 55m | F17: 01:25:00 | G17: 02:40:00 | H17: 0 | I17: 0 | J17: 0.9166666667 | K17: 0 | L17: =IF(COUNTIF(K$1:K17,K17)=1,K17,"") ->  | N17: 2023-05-01 | O17: 4.916666667 | P17: =SUMIF(Handy!A:A,N17,Handy!J:J) -> 0 | Q17: =SUMIF(Handy!A:A,N17,Handy!K:K) -> 0 | S17: 2023-09-12 | T17: 2.75 | U17: 0.1833333333 | V17: 0 | W17: 0.5 | X17: 0 | Y17: 3.716666667
A18: 2023-04-21 | B18: Alejandro Castanon Diaz | C18: Diana Inlat - Rehacer Ingeurbe | D18: 38s | F18: 01:28:00 | G18: 01:28:00 | H18: 0 | I18: 0 | J18: 0 | K18: 0.01666666667 | L18: =IF(COUNTIF(K$1:K18,K18)=1,K18,"") ->  | N18: 2023-05-02 | O18: 8.716666667 | P18: =SUMIF(Handy!A:A,N18,Handy!J:J) -> 0 | Q18: =SUMIF(Handy!A:A,N18,Handy!K:K) -> 0 | S18: 2023-09-13 | T18: 0.7 | U18: 0.3833333333 | V18: 0 | W18: 0 | X18: 0 | Y18: 0.35
A19: 2023-04-21 | B19: Alejandro Castanon Diaz | C19: Ricardo Freelancer - Accounting | D19: 05m | F19: 02:14:00 | G19: 02:19:00 | H19: 0 | I19: 0 | J19: 0.08333333333 | K19: 0 | L19: =IF(COUNTIF(K$1:K19,K19)=1,K19,"") ->  | N19: 2023-05-03 | O19: 9.25 | P19: =SUMIF(Handy!A:A,N19,Handy!J:J) -> 0 | Q19: =SUMIF(Handy!A:A,N19,Handy!K:K) -> 0
A20: 2023-04-21 | B20: Alejandro Castanon Diaz | C20: Diana Inlat - Rehacer Ingeurbe | D20: 1h 55m | F20: 02:24:00 | G20: 04:33:00 | H20: 0 | I20: 0 | J20: 1.916666667 | K20: 0.01666666667 | L20: =IF(COUNTIF(K$1:K20,K20)=1,K20,"") ->  | N20: 2023-05-04 | O20: 9.966666667 | P20: =SUMIF(Handy!A:A,N20,Handy!J:J) -> 0 | Q20: =SUMIF(Handy!A:A,N20,Handy!K:K) -> 0
A21: 2023-04-21 | B21: Alejandro Castanon Diaz | C21: Viv Freelancer - Ecommerce Wordle | D21: 3s | F21: 02:25:00 | G21: 02:25:00 | H21: 0 | I21: 0 | J21: 0 | K21: 0 | L21: =IF(COUNTIF(K$1:K21,K21)=1,K21,"") ->  | N21: 2023-05-05 | O21: 21.66666667 | P21: =SUMIF(Handy!A:A,N21,Handy!J:J) -> 19.41666667 | Q21: =SUMIF(Handy!A:A,N21,Handy!K:K) -> 1476 | T21: =SUM(T23:T26) -> 6.133333333 | U21: =SUM(U23:U26) -> 2.766666667 | V21: 25.41666667 | W21: 28.01666667 | X21: 20.43333333
A22: 2023-04-21 | B22: Alejandro Castanon Diaz | C22: Faby - PMI Ame Sitio multilang | D22: 04m | F22: 03:01:00 | G22: 03:20:00 | H22: 0 | I22: 0 | J22: 0.06666666667 | K22: 0 | L22: =IF(COUNTIF(K$1:K22,K22)=1,K22,"") ->  | N22: 2023-05-06 | O22: 2.483333333 | P22: =SUMIF(Handy!A:A,N22,Handy!J:J) -> 0 | Q22: =SUMIF(Handy!A:A,N22,Handy!K:K) -> 0 | S22: Ult. 4 semanas | T22: Spiele | U22: Soziale Netzwerke | V22: Kommunikation | W22: Arbeit | X22: Rest
A23: 2023-04-21 | B23: Alejandro Castanon Diaz | C23: Faby - PMI Ame Sitio multilang | D23: 06m | F23: 03:30:00 | G23: 03:45:00 | H23: 0 | I23: 0 | J23: 0.1 | K23: 0 | L23: =IF(COUNTIF(K$1:K23,K23)=1,K23,"") ->  | N23: 2023-05-07 | O23: 11.7 | P23: =SUMIF(Handy!A:A,N23,Handy!J:J) -> 0 | Q23: =SUMIF(Handy!A:A,N23,Handy!K:K) -> 0 | S23: =MAX(Handy!A:A) -> 2023-09-10 | T23: =SUMIFS(Handy!$J:$J,Handy!$A:$A,Timecamp!$S23,Handy!$C:$C,Timecamp!T$22) -> 2.2 | U23: =SUMIFS(Handy!$J:$J,Handy!$A:$A,Timecamp!$S23,Handy!$C:$C,Timecamp!U$22) -> 0.45 | V23: =SUMIFS(Handy!$J:$J,Handy!$A:$A,Timecamp!$S23,Handy!$C:$C,Timecamp!V$22) -> 6.1 | W23: =SUMIFS(Handy!$J:$J,Handy!$A:$A,Timecamp!$S23,Handy!$C:$C,Timecamp!W$22) -> 5.433333333 | X23: =SUMIF(Handy!A:A,Timecamp!S23,Handy!J:J)-SUM(T23:W23) -> 3.916666667
A24: 2023-04-21 | B24: Alejandro Castanon Diaz | C24: Gustavo Freelancer - Cambios pag ITESM | D24: 2h 22m | E24: Tiempo real prueba mover cards de board | F24: 04:00:00 | G24: 06:24:00 | H24: 0 | I24: 0 | J24: 2.366666667 | K24: 0 | L24: =IF(COUNTIF(K$1:K24,K24)=1,K24,"") ->  | N24: 2023-05-08 | O24: 9.816666667 | P24: =SUMIF(Handy!A:A,N24,Handy!J:J) -> 0 | Q24: =SUMIF(Handy!A:A,N24,Handy!K:K) -> 0 | S24: =S23-7 -> 2023-09-03 | T24: =SUMIFS(Handy!$J:$J,Handy!$A:$A,Timecamp!$S24,Handy!$C:$C,Timecamp!T$22) -> 3.266666667 | U24: =SUMIFS(Handy!$J:$J,Handy!$A:$A,Timecamp!$S24,Handy!$C:$C,Timecamp!U$22) -> 0.8666666667 | V24: =SUMIFS(Handy!$J:$J,Handy!$A:$A,Timecamp!$S24,Handy!$C:$C,Timecamp!V$22) -> 8.233333333 | W24: =SUMIFS(Handy!$J:$J,Handy!$A:$A,Timecamp!$S24,Handy!$C:$C,Timecamp!W$22) -> 7.333333333 | X24: =SUMIF(Handy!A:A,Timecamp!S24,Handy!J:J)-SUM(T24:W24) -> 4.716666667
A25: 2023-04-21 | B25: Alejandro Castanon Diaz | C25: Miguel Bullkens - B2B Nuevo Exchange | D25: 1h 00m | E25: Prueba a ver si tiempo se mueve entre boards | F25: 04:03:00 | G25: 05:03:00 | H25: 0 | I25: 0 | J25: 1 | K25: 0 | L25: =IF(COUNTIF(K$1:K25,K25)=1,K25,"") ->  | N25: 2023-05-09 | O25: 6.433333333 | P25: =SUMIF(Handy!A:A,N25,Handy!J:J) -> 0 | Q25: =SUMIF(Handy!A:A,N25,Handy!K:K) -> 0 | S25: =S24-7 -> 2023-08-27 | T25: =SUMIFS(Handy!$J:$J,Handy!$A:$A,Timecamp!$S25,Handy!$C:$C,Timecamp!T$22) -> 0.4333333333 | U25: =SUMIFS(Handy!$J:$J,Handy!$A:$A,Timecamp!$S25,Handy!$C:$C,Timecamp!U$22) -> 0.85 | V25: =SUMIFS(Handy!$J:$J,Handy!$A:$A,Timecamp!$S25,Handy!$C:$C,Timecamp!V$22) -> 6.5 | W25: =SUMIFS(Handy!$J:$J,Handy!$A:$A,Timecamp!$S25,Handy!$C:$C,Timecamp!W$22) -> 8.933333333 | X25: =SUMIF(Handy!A:A,Timecamp!S25,Handy!J:J)-SUM(T25:W25) -> 6.833333333
A26: 2023-04-21 | B26: Alejandro Castanon Diaz | C26: Ricardo Freelancer - Accounting | D26: 11m | F26: 04:35:00 | G26: 05:26:00 | H26: 0 | I26: 0 | J26: 0.1833333333 | K26: 0 | L26: =IF(COUNTIF(K$1:K26,K26)=1,K26,"") ->  | N26: 2023-05-10 | O26: 11.13333333 | P26: =SUMIF(Handy!A:A,N26,Handy!J:J) -> 0 | Q26: =SUMIF(Handy!A:A,N26,Handy!K:K) -> 0 | S26: 2023-08-20 | T26: =SUMIFS(Handy!$J:$J,Handy!$A:$A,Timecamp!$S26,Handy!$C:$C,Timecamp!T$22) -> 0.2333333333 | U26: =SUMIFS(Handy!$J:$J,Handy!$A:$A,Timecamp!$S26,Handy!$C:$C,Timecamp!U$22) -> 0.6 | V26: =SUMIFS(Handy!$J:$J,Handy!$A:$A,Timecamp!$S26,Handy!$C:$C,Timecamp!V$22) -> 4.583333333 | W26: =SUMIFS(Handy!$J:$J,Handy!$A:$A,Timecamp!$S26,Handy!$C:$C,Timecamp!W$22) -> 6.316666667 | X26: =SUMIF(Handy!A:A,Timecamp!S26,Handy!J:J)-SUM(T26:W26) -> 4.966666667
A27: 2023-04-21 | B27: Alejandro Castanon Diaz | C27: Ricardo Freelancer - Accounting | D27: 13m | F27: 05:37:00 | G27: 06:09:00 | H27: 0 | I27: 0 | J27: 0.2166666667 | K27: 0 | L27: =IF(COUNTIF(K$1:K27,K27)=1,K27,"") ->  | N27: 2023-05-11 | O27: 9.433333333 | P27: =SUMIF(Handy!A:A,N27,Handy!J:J) -> 0 | Q27: =SUMIF(Handy!A:A,N27,Handy!K:K) -> 0 | S27: 2023-08-13 | T27: =SUMIFS(Handy!$J:$J,Handy!$A:$A,Timecamp!$S27,Handy!$C:$C,Timecamp!T$22) -> 5.733333333 | U27: =SUMIFS(Handy!$J:$J,Handy!$A:$A,Timecamp!$S27,Handy!$C:$C,Timecamp!U$22) -> 1.166666667 | V27: =SUMIFS(Handy!$J:$J,Handy!$A:$A,Timecamp!$S27,Handy!$C:$C,Timecamp!V$22) -> 3.966666667 | W27: =SUMIFS(Handy!$J:$J,Handy!$A:$A,Timecamp!$S27,Handy!$C:$C,Timecamp!W$22) -> 6.233333333 | X27: =SUMIF(Handy!A:A,Timecamp!S27,Handy!J:J)-SUM(T27:W27) -> 4.733333333
A28: 2023-04-21 | B28: Alejandro Castanon Diaz | C28: Miguel Bullkens - B2B Nuevo Exchange | D28: 07m | E28: prueba mover tiempos | F28: 06:00:00 | G28: 06:07:00 | H28: 0 | I28: 0 | J28: 0.1166666667 | K28: 0 | L28: =IF(COUNTIF(K$1:K28,K28)=1,K28,"") ->  | N28: 2023-05-12 | O28: 13.98333333 | P28: =SUMIF(Handy!A:A,N28,Handy!J:J) -> 0 | Q28: =SUMIF(Handy!A:A,N28,Handy!K:K) -> 0 | S28: 2023-08-06 | T28: =SUMIFS(Handy!$J:$J,Handy!$A:$A,Timecamp!$S28,Handy!$C:$C,Timecamp!T$22) -> 0.5833333333 | U28: =SUMIFS(Handy!$J:$J,Handy!$A:$A,Timecamp!$S28,Handy!$C:$C,Timecamp!U$22) -> 0.6833333333 | V28: =SUMIFS(Handy!$J:$J,Handy!$A:$A,Timecamp!$S28,Handy!$C:$C,Timecamp!V$22) -> 3.133333333 | W28: =SUMIFS(Handy!$J:$J,Handy!$A:$A,Timecamp!$S28,Handy!$C:$C,Timecamp!W$22) -> 5.083333333 | X28: =SUMIF(Handy!A:A,Timecamp!S28,Handy!J:J)-SUM(T28:W28) -> 4.266666667
A29: 2023-04-21 | B29: Alejandro Castanon Diaz | C29: Miguel Bullkens - B2B Nuevo Exchange | D29: 06m | F29: 06:02:00 | G29: 06:08:00 | H29: 0 | I29: 0 | J29: 0.1 | K29: 0 | L29: =IF(COUNTIF(K$1:K29,K29)=1,K29,"") ->  | N29: 2023-05-13 | O29: 6.55 | P29: =SUMIF(Handy!A:A,N29,Handy!J:J) -> 0 | Q29: =SUMIF(Handy!A:A,N29,Handy!K:K) -> 0 | S29: 2023-07-30 | T29: =SUMIFS(Handy!$J:$J,Handy!$A:$A,Timecamp!$S29,Handy!$C:$C,Timecamp!T$22) -> 0.3166666667 | U29: =SUMIFS(Handy!$J:$J,Handy!$A:$A,Timecamp!$S29,Handy!$C:$C,Timecamp!U$22) -> 0.7 | V29: =SUMIFS(Handy!$J:$J,Handy!$A:$A,Timecamp!$S29,Handy!$C:$C,Timecamp!V$22) -> 3.183333333 | W29: =SUMIFS(Handy!$J:$J,Handy!$A:$A,Timecamp!$S29,Handy!$C:$C,Timecamp!W$22) -> 6.633333333 | X29: =SUMIF(Handy!A:A,Timecamp!S29,Handy!J:J)-SUM(T29:W29) -> 3.25
A30: 2023-04-21 | B30: Alejandro Castanon Diaz | C30: Miguel Bullkens - B2B Nuevo Exchange | D30: 04m | E30: clonado | F30: 06:05:00 | G30: 06:10:00 | H30: 0 | I30: 0 | J30: 0.06666666667 | K30: 0 | L30: =IF(COUNTIF(K$1:K30,K30)=1,K30,"") ->  | N30: 2023-05-14 | O30: 0.2333333333 | P30: =SUMIF(Handy!A:A,N30,Handy!J:J) -> 42.31666667 | Q30: =SUMIF(Handy!A:A,N30,Handy!K:K) -> 1844 | S30: 2023-07-23 | T30: =SUMIFS(Handy!$J:$J,Handy!$A:$A,Timecamp!$S30,Handy!$C:$C,Timecamp!T$22) -> 5.75 | U30: =SUMIFS(Handy!$J:$J,Handy!$A:$A,Timecamp!$S30,Handy!$C:$C,Timecamp!U$22) -> 1.55 | V30: =SUMIFS(Handy!$J:$J,Handy!$A:$A,Timecamp!$S30,Handy!$C:$C,Timecamp!V$22) -> 4.583333333 | W30: =SUMIFS(Handy!$J:$J,Handy!$A:$A,Timecamp!$S30,Handy!$C:$C,Timecamp!W$22) -> 4.533333333 | X30: =SUMIF(Handy!A:A,Timecamp!S30,Handy!J:J)-SUM(T30:W30) -> 5.116666667
A31: 2023-04-21 | B31: Alejandro Castanon Diaz | C31: Miguel Bullkens - B2B Nuevo Exchange | D31: 10m | F31: 06:24:00 | G31: 06:35:00 | H31: 0 | I31: 0 | J31: 0.1666666667 | K31: 0 | L31: =IF(COUNTIF(K$1:K31,K31)=1,K31,"") ->  | N31: 2023-05-15 | O31: 16.71666667 | P31: =SUMIF(Handy!A:A,N31,Handy!J:J) -> 0 | Q31: =SUMIF(Handy!A:A,N31,Handy!K:K) -> 0 | S31: 2023-07-16 | T31: =SUMIFS(Handy!$J:$J,Handy!$A:$A,Timecamp!$S31,Handy!$C:$C,Timecamp!T$22) -> 0.15 | U31: =SUMIFS(Handy!$J:$J,Handy!$A:$A,Timecamp!$S31,Handy!$C:$C,Timecamp!U$22) -> 0.85 | V31: =SUMIFS(Handy!$J:$J,Handy!$A:$A,Timecamp!$S31,Handy!$C:$C,Timecamp!V$22) -> 5.633333333 | W31: =SUMIFS(Handy!$J:$J,Handy!$A:$A,Timecamp!$S31,Handy!$C:$C,Timecamp!W$22) -> 4.85 | X31: =SUMIF(Handy!A:A,Timecamp!S31,Handy!J:J)-SUM(T31:W31) -> 7.55
A32: 2023-04-21 | B32: Alejandro Castanon Diaz | C32: Ricardo Freelancer - Accounting | D32: 17m | F32: 11:09:00 | G32: 11:32:00 | H32: 0 | I32: 0 | J32: 0.2833333333 | K32: 0 | L32: =IF(COUNTIF(K$1:K32,K32)=1,K32,"") ->  | N32: 2023-05-16 | O32: 10.25 | P32: =SUMIF(Handy!A:A,N32,Handy!J:J) -> 0 | Q32: =SUMIF(Handy!A:A,N32,Handy!K:K) -> 0 | S32: 2023-07-09 | T32: =SUMIFS(Handy!$J:$J,Handy!$A:$A,Timecamp!$S32,Handy!$C:$C,Timecamp!T$22) -> 0.3833333333 | U32: =SUMIFS(Handy!$J:$J,Handy!$A:$A,Timecamp!$S32,Handy!$C:$C,Timecamp!U$22) -> 0.8333333333 | V32: =SUMIFS(Handy!$J:$J,Handy!$A:$A,Timecamp!$S32,Handy!$C:$C,Timecamp!V$22) -> 4.283333333 | W32: =SUMIFS(Handy!$J:$J,Handy!$A:$A,Timecamp!$S32,Handy!$C:$C,Timecamp!W$22) -> 6.4 | X32: =SUMIF(Handy!A:A,Timecamp!S32,Handy!J:J)-SUM(T32:W32) -> 3.7
A33: 2023-04-21 | B33: Alejandro Castanon Diaz | C33: Viv Freelancer - Ecommerce Wordle | D33: 25s | F33: 11:09:00 | G33: 11:10:00 | H33: 0 | I33: 0 | J33: 0 | K33: 0 | L33: =IF(COUNTIF(K$1:K33,K33)=1,K33,"") ->  | N33: 2023-05-17 | O33: 0.95 | P33: =SUMIF(Handy!A:A,N33,Handy!J:J) -> 0 | Q33: =SUMIF(Handy!A:A,N33,Handy!K:K) -> 0
A34: 2023-04-21 | B34: Alejandro Castanon Diaz | C34: Xavier Bobby - Itel y Movitel Landings | D34: 49s | F34: 11:10:00 | G34: 11:11:00 | H34: 0 | I34: 0 | J34: 0 | K34: 0 | L34: =IF(COUNTIF(K$1:K34,K34)=1,K34,"") ->  | N34: 2023-05-18 | O34: 5.783333333 | P34: =SUMIF(Handy!A:A,N34,Handy!J:J) -> 0 | Q34: =SUMIF(Handy!A:A,N34,Handy!K:K) -> 0
A35: 2023-04-21 | B35: Alejandro Castanon Diaz | C35: Diana Inlat - Rehacer Ingeurbe | D35: 30s | F35: 11:11:00 | G35: 11:11:00 | H35: 0 | I35: 0 | J35: 0 | K35: 0.01666666667 | L35: =IF(COUNTIF(K$1:K35,K35)=1,K35,"") ->  | N35: 2023-05-19 | O35: 4.466666667 | P35: =SUMIF(Handy!A:A,N35,Handy!J:J) -> 0 | Q35: =SUMIF(Handy!A:A,N35,Handy!K:K) -> 0
A36: 2023-04-21 | B36: Alejandro Castanon Diaz | C36: Nick Advizee - ult pago a 22 abr (sigue 23) | D36: 05m | F36: 11:24:00 | G36: 11:33:00 | H36: 0 | I36: 0 | J36: 0.08333333333 | K36: 0 | L36: =IF(COUNTIF(K$1:K36,K36)=1,K36,"") ->  | N36: 2023-05-20 | O36: 3.733333333 | P36: =SUMIF(Handy!A:A,N36,Handy!J:J) -> 0 | Q36: =SUMIF(Handy!A:A,N36,Handy!K:K) -> 0
A37: 2023-04-21 | B37: Alejandro Castanon Diaz | C37: Pablo Nanofactura - Nuevo Diseño y nueva API | D37: 01m | F37: 12:01:00 | G37: 12:02:00 | H37: 0 | I37: 0 | J37: 0.01666666667 | K37: 0 | L37: =IF(COUNTIF(K$1:K37,K37)=1,K37,"") ->  | N37: 2023-05-21 | O37: 0.8333333333 | P37: =SUMIF(Handy!A:A,N37,Handy!J:J) -> 35.63333333 | Q37: =SUMIF(Handy!A:A,N37,Handy!K:K) -> 1413
A38: 2023-04-21 | B38: Alejandro Castanon Diaz | C38: Ricardo Freelancer - Accounting | D38: 01m | F38: 12:08:00 | G38: 12:09:00 | H38: 0 | I38: 0 | J38: 0.01666666667 | K38: 0 | L38: =IF(COUNTIF(K$1:K38,K38)=1,K38,"") ->  | N38: 2023-05-22 | O38: 3.933333333 | P38: =SUMIF(Handy!A:A,N38,Handy!J:J) -> 0 | Q38: =SUMIF(Handy!A:A,N38,Handy!K:K) -> 0
A39: 2023-04-21 | B39: Alejandro Castanon Diaz | C39: Ricardo Freelancer - Accounting | D39: 01m | F39: 12:20:00 | G39: 12:21:00 | H39: 0 | I39: 0 | J39: 0.01666666667 | K39: 0 | L39: =IF(COUNTIF(K$1:K39,K39)=1,K39,"") ->  | N39: 2023-05-23 | O39: 9.316666667 | P39: =SUMIF(Handy!A:A,N39,Handy!J:J) -> 0 | Q39: =SUMIF(Handy!A:A,N39,Handy!K:K) -> 0
A40: 2023-04-21 | B40: Alejandro Castanon Diaz | C40: Diana Inlat - Rehacer Ingeurbe | D40: 01m | F40: 12:21:00 | G40: 12:23:00 | H40: 0 | I40: 0 | J40: 0.01666666667 | K40: 0.01666666667 | L40: =IF(COUNTIF(K$1:K40,K40)=1,K40,"") ->  | N40: 2023-05-24 | O40: 7.783333333 | P40: =SUMIF(Handy!A:A,N40,Handy!J:J) -> 0 | Q40: =SUMIF(Handy!A:A,N40,Handy!K:K) -> 0
A41: 2023-04-21 | B41: Alejandro Castanon Diaz | C41: Ricardo Freelancer - Accounting | D41: 33m | F41: 12:38:00 | G41: 13:28:00 | H41: 0 | I41: 0 | J41: 0.55 | K41: 0 | L41: =IF(COUNTIF(K$1:K41,K41)=1,K41,"") ->  | N41: 2023-05-25 | O41: 17.16666667 | P41: =SUMIF(Handy!A:A,N41,Handy!J:J) -> 0 | Q41: =SUMIF(Handy!A:A,N41,Handy!K:K) -> 0
A42: 2023-04-21 | B42: Alejandro Castanon Diaz | C42: Mama Madhu - prestamo | D42: 19m | F42: 13:28:00 | G42: 13:47:00 | H42: 0 | I42: 0 | J42: 0.3166666667 | K42: 0 | L42: =IF(COUNTIF(K$1:K42,K42)=1,K42,"") ->  | N42: 2023-05-26 | O42: 7.066666667 | P42: =SUMIF(Handy!A:A,N42,Handy!J:J) -> 0 | Q42: =SUMIF(Handy!A:A,N42,Handy!K:K) -> 0
A43: 2023-04-21 | B43: Alejandro Castanon Diaz | C43: Faby - PMI Ame Sitio multilang | D43: 10m | F43: 13:48:00 | G43: 13:58:00 | H43: 0 | I43: 0 | J43: 0.1666666667 | K43: 0 | L43: =IF(COUNTIF(K$1:K43,K43)=1,K43,"") ->  | N43: 2023-05-27 | O43: 0.15 | P43: =SUMIF(Handy!A:A,N43,Handy!J:J) -> 0 | Q43: =SUMIF(Handy!A:A,N43,Handy!K:K) -> 0
A44: 2023-04-22 | B44: Alejandro Castanon Diaz | C44: Ricardo Freelancer - Accounting | D44: 8s | F44: 10:00:00 | G44: 10:01:00 | H44: 0 | I44: 0 | J44: 0 | K44: 0 | L44: =IF(COUNTIF(K$1:K44,K44)=1,K44,"") ->  | N44: 2023-05-28 | O44: 0 | P44: =SUMIF(Handy!A:A,N44,Handy!J:J) -> 34.41666667 | Q44: =SUMIF(Handy!A:A,N44,Handy!K:K) -> 2227
A45: 2023-04-22 | B45: Alejandro Castanon Diaz | C45: Faby - Candywax Depilaciones | D45: 21m | F45: 10:01:00 | G45: 10:25:00 | H45: 0 | I45: 0 | J45: 0.35 | K45: 0 | L45: =IF(COUNTIF(K$1:K45,K45)=1,K45,"") ->  | N45: 2023-05-29 | O45: 0.75 | P45: =SUMIF(Handy!A:A,N45,Handy!J:J) -> 0 | Q45: =SUMIF(Handy!A:A,N45,Handy!K:K) -> 0
A46: 2023-04-22 | B46: Alejandro Castanon Diaz | C46: ---Templates Checklists | D46: 11m | F46: 10:18:00 | G46: 10:31:00 | H46: 0 | I46: 0 | J46: 0.1833333333 | K46: 0 | L46: =IF(COUNTIF(K$1:K46,K46)=1,K46,"") ->  | N46: 2023-05-30 | O46: 4.55 | P46: =SUMIF(Handy!A:A,N46,Handy!J:J) -> 0 | Q46: =SUMIF(Handy!A:A,N46,Handy!K:K) -> 0
A47: 2023-04-22 | B47: Alejandro Castanon Diaz | C47: Ricardo Freelancer - Accounting | D47: 19m | F47: 10:28:00 | G47: 10:49:00 | H47: 0 | I47: 0 | J47: 0.3166666667 | K47: 0 | L47: =IF(COUNTIF(K$1:K47,K47)=1,K47,"") ->  | N47: 2023-05-31 | O47: 2.783333333 | P47: =SUMIF(Handy!A:A,N47,Handy!J:J) -> 0 | Q47: =SUMIF(Handy!A:A,N47,Handy!K:K) -> 0
A48: 2023-04-22 | B48: Alejandro Castanon Diaz | C48: Nick Advizee - ult pago a 22 abr (sigue 23) | D48: 10m | F48: 11:08:00 | G48: 11:18:00 | H48: 0 | I48: 0 | J48: 0.1666666667 | K48: 0 | L48: =IF(COUNTIF(K$1:K48,K48)=1,K48,"") ->  | N48: 2023-06-01 | O48: 3.35 | P48: =SUMIF(Handy!A:A,N48,Handy!J:J) -> 0 | Q48: =SUMIF(Handy!A:A,N48,Handy!K:K) -> 0
A49: 2023-04-22 | B49: Alejandro Castanon Diaz | C49: Faby - Candywax Depilaciones | D49: 11m | F49: 11:46:00 | G49: 12:00:00 | H49: 0 | I49: 0 | J49: 0.1833333333 | K49: 0 | L49: =IF(COUNTIF(K$1:K49,K49)=1,K49,"") ->  | N49: 2023-06-02 | O49: 2.666666667 | P49: =SUMIF(Handy!A:A,N49,Handy!J:J) -> 0 | Q49: =SUMIF(Handy!A:A,N49,Handy!K:K) -> 0
A50: 2023-04-22 | B50: Alejandro Castanon Diaz | C50: Viv Freelancer - Ecommerce Wordle | D50: 18m | F50: 13:15:00 | G50: 13:34:00 | H50: 0 | I50: 0 | J50: 0.3 | K50: 0 | L50: =IF(COUNTIF(K$1:K50,K50)=1,K50,"") ->  | N50: 2023-06-03 | O50: 0.45 | P50: =SUMIF(Handy!A:A,N50,Handy!J:J) -> 0 | Q50: =SUMIF(Handy!A:A,N50,Handy!K:K) -> 0
A51: 2023-04-24 | B51: Alejandro Castanon Diaz | C51: Viv Freelancer - Ecommerce Wordle | D51: 21s | F51: 12:24:00 | G51: 12:24:00 | H51: 0 | I51: 0 | J51: 0 | K51: 0 | L51: =IF(COUNTIF(K$1:K51,K51)=1,K51,"") ->  | N51: 2023-06-04 | O51: 0.1 | P51: =SUMIF(Handy!A:A,N51,Handy!J:J) -> 26.96666667 | Q51: =SUMIF(Handy!A:A,N51,Handy!K:K) -> 2620
A52: 2023-04-24 | B52: Alejandro Castanon Diaz | C52: Faby - Candywax Depilaciones | D52: 33s | F52: 12:24:00 | G52: 12:24:00 | H52: 0 | I52: 0 | J52: 0 | K52: 0 | L52: =IF(COUNTIF(K$1:K52,K52)=1,K52,"") ->  | N52: 2023-06-05 | O52: 1.816666667 | P52: =SUMIF(Handy!A:A,N52,Handy!J:J) -> 0 | Q52: =SUMIF(Handy!A:A,N52,Handy!K:K) -> 0
A53: 2023-04-24 | B53: Alejandro Castanon Diaz | C53: Xavier Bobby - Itel plugins desactivar | D53: 08m | F53: 12:24:00 | G53: 12:33:00 | H53: 0 | I53: 0 | J53: 0.1333333333 | K53: 0 | L53: =IF(COUNTIF(K$1:K53,K53)=1,K53,"") ->  | N53: 2023-06-06 | O53: 6.983333333 | P53: =SUMIF(Handy!A:A,N53,Handy!J:J) -> 0 | Q53: =SUMIF(Handy!A:A,N53,Handy!K:K) -> 0
A54: 2023-04-24 | B54: Alejandro Castanon Diaz | C54: Nick Advizee - ult pago a 22 abr (sigue 23) | D54: 26s | F54: 12:33:00 | G54: 12:34:00 | H54: 0 | I54: 0 | J54: 0 | K54: 0 | L54: =IF(COUNTIF(K$1:K54,K54)=1,K54,"") ->  | N54: 2023-06-07 | O54: 11.33333333 | P54: =SUMIF(Handy!A:A,N54,Handy!J:J) -> 0 | Q54: =SUMIF(Handy!A:A,N54,Handy!K:K) -> 0
A55: 2023-04-24 | B55: Alejandro Castanon Diaz | C55: Pablo Nanofactura - Con IVA o sin IVA premium function global | D55: 10m | F55: 12:34:00 | G55: 12:44:00 | H55: 0 | I55: 0 | J55: 0.1666666667 | K55: 0 | L55: =IF(COUNTIF(K$1:K55,K55)=1,K55,"") ->  | N55: 2023-06-08 | O55: 1.366666667 | P55: =SUMIF(Handy!A:A,N55,Handy!J:J) -> 0 | Q55: =SUMIF(Handy!A:A,N55,Handy!K:K) -> 0
A56: 2023-04-24 | B56: Alejandro Castanon Diaz | C56: Pablo Nanofactura - Con IVA o sin IVA premium function global | D56: 35m | F56: 13:00:00 | G56: 13:33:00 | H56: 0 | I56: 0 | J56: 0.5833333333 | K56: 0 | L56: =IF(COUNTIF(K$1:K56,K56)=1,K56,"") ->  | N56: 2023-06-09 | O56: 8.9 | P56: =SUMIF(Handy!A:A,N56,Handy!J:J) -> 0 | Q56: =SUMIF(Handy!A:A,N56,Handy!K:K) -> 0
A57: 2023-04-24 | B57: Alejandro Castanon Diaz | C57: Diana Inlat - Rehacer Ingeurbe | D57: 48s | F57: 15:17:00 | G57: 15:18:00 | H57: 0 | I57: 0 | J57: 0 | K57: 0.01666666667 | L57: =IF(COUNTIF(K$1:K57,K57)=1,K57,"") ->  | N57: 2023-06-10 | O57: 0 | P57: =SUMIF(Handy!A:A,N57,Handy!J:J) -> 0 | Q57: =SUMIF(Handy!A:A,N57,Handy!K:K) -> 0
A58: 2023-04-24 | B58: Alejandro Castanon Diaz | C58: Pablo Nanofactura - Con IVA o sin IVA premium function global | D58: 1h 06m | F58: 17:02:00 | G58: 18:18:00 | H58: 0 | I58: 0 | J58: 1.1 | K58: 0 | L58: =IF(COUNTIF(K$1:K58,K58)=1,K58,"") ->  | N58: 2023-06-11 | O58: 0.4166666667 | P58: =SUMIF(Handy!A:A,N58,Handy!J:J) -> 27.26666667 | Q58: =SUMIF(Handy!A:A,N58,Handy!K:K) -> 2605
A59: 2023-04-24 | B59: Alejandro Castanon Diaz | C59: Faby - Candywax Depilaciones | D59: 04m | F59: 18:04:00 | G59: 18:08:00 | H59: 0 | I59: 0 | J59: 0.06666666667 | K59: 0 | L59: =IF(COUNTIF(K$1:K59,K59)=1,K59,"") ->  | N59: 2023-06-12 | O59: 4.366666667 | P59: =SUMIF(Handy!A:A,N59,Handy!J:J) -> 0 | Q59: =SUMIF(Handy!A:A,N59,Handy!K:K) -> 0
A60: 2023-04-24 | B60: Alejandro Castanon Diaz | C60: Diana Inlat - Rehacer Ingeurbe | D60: 1h 29m | F60: 18:18:00 | G60: 19:41:00 | H60: 0 | I60: 0 | J60: 1.483333333 | K60: 0.01666666667 | L60: =IF(COUNTIF(K$1:K60,K60)=1,K60,"") ->  | N60: 2023-06-13 | O60: 4.016666667 | P60: =SUMIF(Handy!A:A,N60,Handy!J:J) -> 0 | Q60: =SUMIF(Handy!A:A,N60,Handy!K:K) -> 0
A61: 2023-04-24 | B61: Alejandro Castanon Diaz | C61: Nick Advizee - ult pago a 22 abr (sigue 23) | D61: 19s | F61: 18:43:00 | G61: 18:43:00 | H61: 0 | I61: 0 | J61: 0 | K61: 0 | L61: =IF(COUNTIF(K$1:K61,K61)=1,K61,"") ->  | N61: 2023-06-14 | O61: 1.366666667 | P61: =SUMIF(Handy!A:A,N61,Handy!J:J) -> 0 | Q61: =SUMIF(Handy!A:A,N61,Handy!K:K) -> 0
A62: 2023-04-24 | B62: Alejandro Castanon Diaz | C62: Pablo Nanofactura - Con IVA o sin IVA premium function global | D62: 48m | F62: 19:01:00 | G62: 19:53:00 | H62: 0 | I62: 0 | J62: 0.8 | K62: 0 | L62: =IF(COUNTIF(K$1:K62,K62)=1,K62,"") ->  | N62: 2023-06-15 | O62: 7.666666667 | P62: =SUMIF(Handy!A:A,N62,Handy!J:J) -> 0 | Q62: =SUMIF(Handy!A:A,N62,Handy!K:K) -> 0
A63: 2023-04-24 | B63: Alejandro Castanon Diaz | C63: Diana Inlat - Rehacer Ingeurbe | D63: 37m | F63: 20:01:00 | G63: 21:07:00 | H63: 0 | I63: 0 | J63: 0.6166666667 | K63: 0.01666666667 | L63: =IF(COUNTIF(K$1:K63,K63)=1,K63,"") ->  | N63: 2023-06-16 | O63: 3.766666667 | P63: =SUMIF(Handy!A:A,N63,Handy!J:J) -> 0 | Q63: =SUMIF(Handy!A:A,N63,Handy!K:K) -> 0
A64: 2023-04-24 | B64: Alejandro Castanon Diaz | C64: Pablo Nanofactura - Con IVA o sin IVA premium function global | D64: 18m | F64: 20:58:00 | G64: 21:17:00 | H64: 0 | I64: 0 | J64: 0.3 | K64: 0 | L64: =IF(COUNTIF(K$1:K64,K64)=1,K64,"") ->  | N64: 2023-06-17 | O64: 0.2666666667 | P64: =SUMIF(Handy!A:A,N64,Handy!J:J) -> 0 | Q64: =SUMIF(Handy!A:A,N64,Handy!K:K) -> 0
A65: 2023-04-24 | B65: Alejandro Castanon Diaz | C65: Faby - Candywax Depilaciones | D65: 21s | F65: 21:16:00 | G65: 21:16:00 | H65: 0 | I65: 0 | J65: 0 | K65: 0 | L65: =IF(COUNTIF(K$1:K65,K65)=1,K65,"") ->  | N65: 2023-06-18 | O65: 0 | P65: =SUMIF(Handy!A:A,N65,Handy!J:J) -> 25.4 | Q65: =SUMIF(Handy!A:A,N65,Handy!K:K) -> 1429
A66: 2023-04-24 | B66: Alejandro Castanon Diaz | C66: Diana Inlat - Rehacer Ingeurbe | D66: 1h 42m | F66: 21:16:00 | G66: 23:12:00 | H66: 0 | I66: 0 | J66: 1.7 | K66: =SUMIFS(J:J,C:C,C66,A:A,">"&$S$4) -> 0.01666666667 | L66: =IF(COUNTIF(K$1:K66,K66)=1,K66,"") ->  | N66: 2023-06-19 | O66: 4.966666667 | P66: =SUMIF(Handy!A:A,N66,Handy!J:J) -> 0 | Q66: =SUMIF(Handy!A:A,N66,Handy!K:K) -> 0
A67: 2023-04-24 | B67: Alejandro Castanon Diaz | C67: Pablo Nanofactura - Con IVA o sin IVA premium function global | D67: 11s | F67: 21:38:00 | G67: 21:38:00 | H67: 0 | I67: 0 | J67: =IF(D67="","",IF(ISERROR(FIND("s",D67)),IF(ISERROR(FIND("h ",D67)),LEFT(D67,2)/60, LEFT(D67,FIND("h ",D67)-1 )+LEFT(RIGHT(D67,3),2)/60 ),0)) -> 0 | K67: 0 | L67: =IF(COUNTIF(K$1:K67,K67)=1,K67,"") ->  | N67: 2023-06-20 | O67: =SUMIF(A:A,N67,J:J) -> 2.616666667 | P67: =SUMIF(Handy!A:A,N67,Handy!J:J) -> 0 | Q67: =SUMIF(Handy!A:A,N67,Handy!K:K) -> 0
A68: 2023-04-24 | B68: Alejandro Castanon Diaz | C68: Pablo Nanofactura - Con IVA o sin IVA premium function global | D68: 25s | F68: 22:06:00 | G68: 22:07:00 | H68: 0 | I68: 0 | J68: 0 | K68: 0 | L68: =IF(COUNTIF(K$1:K68,K68)=1,K68,"") ->  | N68: =IF(N67+1>TODAY(),NA(),N67+1) -> 2023-06-21 | O68: 5.833333333 | P68: =SUMIF(Handy!A:A,N68,Handy!J:J) -> 0 | Q68: =SUMIF(Handy!A:A,N68,Handy!K:K) -> 0
A69: 2023-04-24 | B69: Alejandro Castanon Diaz | C69: Pablo Nanofactura - Con IVA o sin IVA premium function global | D69: 0s | F69: 23:08:00 | G69: 23:08:00 | H69: 0 | I69: 0 | J69: 0 | K69: 0 | L69: =IF(COUNTIF(K$1:K69,K69)=1,K69,"") ->  | N69: 2023-06-22 | O69: 2.233333333 | P69: =SUMIF(Handy!A:A,N69,Handy!J:J) -> 0 | Q69: =SUMIF(Handy!A:A,N69,Handy!K:K) -> 0
A70: 2023-04-24 | B70: Alejandro Castanon Diaz | C70: Pablo Nanofactura - Con IVA o sin IVA premium function global | D70: 10m | F70: 23:20:00 | G70: 23:30:00 | H70: 0 | I70: 0 | J70: 0.1666666667 | K70: 0 | L70: =IF(COUNTIF(K$1:K70,K70)=1,K70,"") ->  | N70: 2023-06-23 | O70: 1.916666667 | P70: =SUMIF(Handy!A:A,N70,Handy!J:J) -> 0 | Q70: =SUMIF(Handy!A:A,N70,Handy!K:K) -> 0
A71: 2023-04-24 | B71: Alejandro Castanon Diaz | C71: Ricardo Freelancer - Accounting | D71: 07m | F71: 23:52:00 | G71: 23:59:00 | H71: 0 | I71: 0 | J71: 0.1166666667 | K71: 0 | L71: =IF(COUNTIF(K$1:K71,K71)=1,K71,"") ->  | N71: 2023-06-24 | O71: 1.933333333 | P71: =SUMIF(Handy!A:A,N71,Handy!J:J) -> 0 | Q71: =SUMIF(Handy!A:A,N71,Handy!K:K) -> 0
A72: 2023-04-25 | B72: Alejandro Castanon Diaz | C72: Ricardo Freelancer - Accounting | D72: 55m | F72: 00:00:00 | G72: 00:58:00 | H72: 0 | I72: 0 | J72: 0.9166666667 | K72: 0 | L72: =IF(COUNTIF(K$1:K72,K72)=1,K72,"") ->  | N72: 2023-06-25 | O72: 2.533333333 | P72: =SUMIF(Handy!A:A,N72,Handy!J:J) -> 23.2 | Q72: =SUMIF(Handy!A:A,N72,Handy!K:K) -> 1659
A73: 2023-04-25 | B73: Alejandro Castanon Diaz | C73: Ricardo Freelancer - Accounting | D73: 1h 01m | F73: 00:58:00 | G73: 01:59:00 | H73: 0 | I73: 0 | J73: 1.016666667 | K73: 0 | L73: =IF(COUNTIF(K$1:K73,K73)=1,K73,"") ->  | N73: 2023-06-26 | O73: 4.316666667 | P73: =SUMIF(Handy!A:A,N73,Handy!J:J) -> 0 | Q73: =SUMIF(Handy!A:A,N73,Handy!K:K) -> 0
A74: 2023-04-25 | B74: Alejandro Castanon Diaz | C74: Ricardo Freelancer - Accounting | D74: 3h 19m | F74: 02:02:00 | G74: 05:22:00 | H74: 0 | I74: 0 | J74: 3.316666667 | K74: 0 | L74: =IF(COUNTIF(K$1:K74,K74)=1,K74,"") ->  | N74: 2023-06-27 | O74: 7.166666667 | P74: =SUMIF(Handy!A:A,N74,Handy!J:J) -> 0 | Q74: =SUMIF(Handy!A:A,N74,Handy!K:K) -> 0
A75: 2023-04-25 | B75: Alejandro Castanon Diaz | C75: Ricardo Freelancer - Accounting | D75: 2h 20m | F75: 12:04:00 | G75: 14:27:00 | H75: 0 | I75: 0 | J75: 2.333333333 | K75: 0 | L75: =IF(COUNTIF(K$1:K75,K75)=1,K75,"") ->  | N75: 2023-06-28 | O75: 0.6166666667 | P75: =SUMIF(Handy!A:A,N75,Handy!J:J) -> 0 | Q75: =SUMIF(Handy!A:A,N75,Handy!K:K) -> 0
A76: 2023-04-25 | B76: Alejandro Castanon Diaz | C76: Pablo Nanofactura - Con IVA o sin IVA premium function global | D76: 2s | F76: 14:03:00 | G76: 14:03:00 | H76: 0 | I76: 0 | J76: 0 | K76: 0 | L76: =IF(COUNTIF(K$1:K76,K76)=1,K76,"") ->  | N76: 2023-06-29 | O76: 10 | P76: =SUMIF(Handy!A:A,N76,Handy!J:J) -> 0 | Q76: =SUMIF(Handy!A:A,N76,Handy!K:K) -> 0
A77: 2023-04-25 | B77: Alejandro Castanon Diaz | C77: Pablo Nanofactura - Nuevo Diseño y nueva API | D77: 02m | F77: 14:06:00 | G77: 14:09:00 | H77: 0 | I77: 0 | J77: 0.03333333333 | K77: 0 | L77: =IF(COUNTIF(K$1:K77,K77)=1,K77,"") ->  | N77: 2023-06-30 | O77: 7.866666667 | P77: =SUMIF(Handy!A:A,N77,Handy!J:J) -> 0 | Q77: =SUMIF(Handy!A:A,N77,Handy!K:K) -> 0
A78: 2023-04-25 | B78: Alejandro Castanon Diaz | C78: Diana Inlat - ecomm + blog estilo figurella | D78: 24s | F78: 14:26:00 | G78: 14:26:00 | H78: 0 | I78: 0 | J78: 0 | K78: 0 | L78: =IF(COUNTIF(K$1:K78,K78)=1,K78,"") ->  | N78: 2023-07-01 | O78: 2.75 | P78: =SUMIF(Handy!A:A,N78,Handy!J:J) -> 0 | Q78: =SUMIF(Handy!A:A,N78,Handy!K:K) -> 0
A79: 2023-04-25 | B79: Alejandro Castanon Diaz | C79: Viv Freelancer - Ecommerce Wordle | D79: 05m | F79: 14:27:00 | G79: 14:32:00 | H79: 0 | I79: 0 | J79: 0.08333333333 | K79: 0 | L79: =IF(COUNTIF(K$1:K79,K79)=1,K79,"") ->  | N79: 2023-07-02 | O79: 1.766666667 | P79: =SUMIF(Handy!A:A,N79,Handy!J:J) -> 27.18333333 | Q79: =SUMIF(Handy!A:A,N79,Handy!K:K) -> 2047
A80: 2023-04-25 | B80: Alejandro Castanon Diaz | C80: Diana Inlat - Rehacer Ingeurbe | D80: 05m | F80: 14:57:00 | G80: 15:03:00 | H80: 0 | I80: 0 | J80: 0.08333333333 | K80: 0.01666666667 | L80: =IF(COUNTIF(K$1:K80,K80)=1,K80,"") ->  | N80: 2023-07-03 | O80: 0 | P80: =SUMIF(Handy!A:A,N80,Handy!J:J) -> 0 | Q80: =SUMIF(Handy!A:A,N80,Handy!K:K) -> 0
A81: 2023-04-25 | B81: Alejandro Castanon Diaz | C81: Ricardo Freelancer - Accounting | D81: 48m | F81: 17:09:00 | G81: 17:58:00 | H81: 0 | I81: 0 | J81: 0.8 | K81: 0 | L81: =IF(COUNTIF(K$1:K81,K81)=1,K81,"") ->  | N81: 2023-07-04 | O81: 1.933333333 | P81: =SUMIF(Handy!A:A,N81,Handy!J:J) -> 0 | Q81: =SUMIF(Handy!A:A,N81,Handy!K:K) -> 0
A82: 2023-04-25 | B82: Alejandro Castanon Diaz | C82: Diana Inlat - Rehacer Ingeurbe | D82: 07m | F82: 20:45:00 | G82: 20:53:00 | H82: 0 | I82: 0 | J82: 0.1166666667 | K82: 0.01666666667 | L82: =IF(COUNTIF(K$1:K82,K82)=1,K82,"") ->  | N82: 2023-07-05 | O82: 3.483333333 | P82: =SUMIF(Handy!A:A,N82,Handy!J:J) -> 0 | Q82: =SUMIF(Handy!A:A,N82,Handy!K:K) -> 0
A83: 2023-04-26 | B83: Alejandro Castanon Diaz | C83: Nick Advizee - ult pago a 22 abr (sigue 23) | D83: 04m | F83: 06:34:00 | G83: 06:38:00 | H83: 0 | I83: 0 | J83: 0.06666666667 | K83: 0 | L83: =IF(COUNTIF(K$1:K83,K83)=1,K83,"") ->  | N83: 2023-07-06 | O83: 2.333333333 | P83: =SUMIF(Handy!A:A,N83,Handy!J:J) -> 0 | Q83: =SUMIF(Handy!A:A,N83,Handy!K:K) -> 0
A84: 2023-04-26 | B84: Alejandro Castanon Diaz | C84: Diana Inlat - Rehacer Ingeurbe | D84: 1h 32m | F84: 06:38:00 | G84: 08:28:00 | H84: 0 | I84: 0 | J84: 1.533333333 | K84: 0.01666666667 | L84: =IF(COUNTIF(K$1:K84,K84)=1,K84,"") ->  | N84: 2023-07-07 | O84: 4.633333333 | P84: =SUMIF(Handy!A:A,N84,Handy!J:J) -> 0 | Q84: =SUMIF(Handy!A:A,N84,Handy!K:K) -> 0
A85: 2023-04-26 | B85: Alejandro Castanon Diaz | C85: Faby - PMI Ame Sitio multilang | D85: 09m | F85: 07:31:00 | G85: 07:42:00 | H85: 0 | I85: 0 | J85: 0.15 | K85: 0 | L85: =IF(COUNTIF(K$1:K85,K85)=1,K85,"") ->  | N85: 2023-07-08 | O85: 0.9166666667 | P85: =SUMIF(Handy!A:A,N85,Handy!J:J) -> 0 | Q85: =SUMIF(Handy!A:A,N85,Handy!K:K) -> 0
A86: 2023-04-26 | B86: Alejandro Castanon Diaz | C86: Ricardo Freelancer - Accounting | D86: 07m | F86: 08:42:00 | G86: 08:49:00 | H86: 0 | I86: 0 | J86: 0.1166666667 | K86: 0 | L86: =IF(COUNTIF(K$1:K86,K86)=1,K86,"") ->  | N86: 2023-07-09 | O86: 0 | P86: =SUMIF(Handy!A:A,N86,Handy!J:J) -> 15.6 | Q86: =SUMIF(Handy!A:A,N86,Handy!K:K) -> 1358
A87: 2023-04-26 | B87: Alejandro Castanon Diaz | C87: Faby - PMI Ame Sitio multilang | D87: 7s | F87: 08:55:00 | G87: 08:55:00 | H87: 0 | I87: 0 | J87: 0 | K87: 0 | L87: =IF(COUNTIF(K$1:K87,K87)=1,K87,"") ->  | N87: 2023-07-10 | O87: 8.016666667 | P87: =SUMIF(Handy!A:A,N87,Handy!J:J) -> 0 | Q87: =SUMIF(Handy!A:A,N87,Handy!K:K) -> 0
A88: 2023-04-26 | B88: Alejandro Castanon Diaz | C88: Ricardo Freelancer - Accounting | D88: 1h 15m | F88: 10:05:00 | G88: 11:21:00 | H88: 0 | I88: 0 | J88: 1.25 | K88: 0 | L88: =IF(COUNTIF(K$1:K88,K88)=1,K88,"") ->  | N88: 2023-07-11 | O88: 4.533333333 | P88: =SUMIF(Handy!A:A,N88,Handy!J:J) -> 0 | Q88: =SUMIF(Handy!A:A,N88,Handy!K:K) -> 0
A89: 2023-04-26 | B89: Alejandro Castanon Diaz | C89: Diana Inlat - Rehacer Ingeurbe | D89: 02m | F89: 12:48:00 | G89: 12:51:00 | H89: 0 | I89: 0 | J89: 0.03333333333 | K89: 0.01666666667 | L89: =IF(COUNTIF(K$1:K89,K89)=1,K89,"") ->  | N89: 2023-07-12 | O89: 4.583333333 | P89: =SUMIF(Handy!A:A,N89,Handy!J:J) -> 0 | Q89: =SUMIF(Handy!A:A,N89,Handy!K:K) -> 0
A90: 2023-04-26 | B90: Alejandro Castanon Diaz | C90: Ricardo Freelancer - Accounting | D90: 37m | F90: 12:51:00 | G90: 13:30:00 | H90: 0 | I90: 0 | J90: 0.6166666667 | K90: 0 | L90: =IF(COUNTIF(K$1:K90,K90)=1,K90,"") ->  | N90: 2023-07-13 | O90: 4.516666667 | P90: =SUMIF(Handy!A:A,N90,Handy!J:J) -> 0 | Q90: =SUMIF(Handy!A:A,N90,Handy!K:K) -> 0
A91: 2023-04-26 | B91: Alejandro Castanon Diaz | C91: Faby - PMI Ame Sitio multilang | D91: 10m | F91: 13:58:00 | G91: 14:08:00 | H91: 0 | I91: 0 | J91: 0.1666666667 | K91: 0 | L91: =IF(COUNTIF(K$1:K91,K91)=1,K91,"") ->  | N91: 2023-07-14 | O91: 5.283333333 | P91: =SUMIF(Handy!A:A,N91,Handy!J:J) -> 0 | Q91: =SUMIF(Handy!A:A,N91,Handy!K:K) -> 0
A92: 2023-04-26 | B92: Alejandro Castanon Diaz | C92: Ricardo Freelancer - Accounting | D92: 26m | F92: 14:37:00 | G92: 15:04:00 | H92: 0 | I92: 0 | J92: 0.4333333333 | K92: 0 | L92: =IF(COUNTIF(K$1:K92,K92)=1,K92,"") ->  | N92: 2023-07-15 | O92: 0 | P92: =SUMIF(Handy!A:A,N92,Handy!J:J) -> 0 | Q92: =SUMIF(Handy!A:A,N92,Handy!K:K) -> 0
A93: 2023-04-26 | B93: Alejandro Castanon Diaz | C93: Pablo Nanofactura - Con IVA o sin IVA premium function global | D93: 22m | F93: 15:06:00 | G93: 15:28:00 | H93: 0 | I93: 0 | J93: 0.3666666667 | K93: 0 | L93: =IF(COUNTIF(K$1:K93,K93)=1,K93,"") ->  | N93: 2023-07-16 | O93: 0 | P93: =SUMIF(Handy!A:A,N93,Handy!J:J) -> 19.03333333 | Q93: =SUMIF(Handy!A:A,N93,Handy!K:K) -> 1235
A94: 2023-04-26 | B94: Alejandro Castanon Diaz | C94: Ricardo Freelancer - Accounting | D94: 53m | F94: 15:28:00 | G94: 16:17:00 | H94: 0 | I94: 0 | J94: 0.8833333333 | K94: 0 | L94: =IF(COUNTIF(K$1:K94,K94)=1,K94,"") ->  | N94: 2023-07-17 | O94: 0.6333333333 | P94: =SUMIF(Handy!A:A,N94,Handy!J:J) -> 0 | Q94: =SUMIF(Handy!A:A,N94,Handy!K:K) -> 0
A95: 2023-04-26 | B95: Alejandro Castanon Diaz | C95: Nick Advizee - ult pago a 22 abr (sigue 23) | D95: 6s | F95: 15:36:00 | G95: 15:36:00 | H95: 0 | I95: 0 | J95: 0 | K95: 0 | L95: =IF(COUNTIF(K$1:K95,K95)=1,K95,"") ->  | N95: 2023-07-18 | O95: 7.7 | P95: =SUMIF(Handy!A:A,N95,Handy!J:J) -> 0 | Q95: =SUMIF(Handy!A:A,N95,Handy!K:K) -> 0
A96: 2023-04-26 | B96: Alejandro Castanon Diaz | C96: Diana Inlat - Rehacer Ingeurbe | D96: 01m | F96: 16:01:00 | G96: 16:02:00 | H96: 0 | I96: 0 | J96: 0.01666666667 | K96: 0.01666666667 | L96: =IF(COUNTIF(K$1:K96,K96)=1,K96,"") ->  | N96: 2023-07-19 | O96: 1.616666667 | P96: =SUMIF(Handy!A:A,N96,Handy!J:J) -> 0 | Q96: =SUMIF(Handy!A:A,N96,Handy!K:K) -> 0
A97: 2023-04-26 | B97: Alejandro Castanon Diaz | C97: Faby - PMI Ame Sitio multilang | D97: 02m | F97: 16:17:00 | G97: 16:19:00 | H97: 0 | I97: 0 | J97: 0.03333333333 | K97: 0 | L97: =IF(COUNTIF(K$1:K97,K97)=1,K97,"") ->  | N97: 2023-07-20 | O97: 1.15 | P97: =SUMIF(Handy!A:A,N97,Handy!J:J) -> 0 | Q97: =SUMIF(Handy!A:A,N97,Handy!K:K) -> 0
A98: 2023-04-26 | B98: Alejandro Castanon Diaz | C98: Ricardo Freelancer - Accounting | D98: 01m | F98: 18:00:00 | G98: 18:01:00 | H98: 0 | I98: 0 | J98: 0.01666666667 | K98: 0 | L98: =IF(COUNTIF(K$1:K98,K98)=1,K98,"") ->  | N98: 2023-07-21 | O98: 5.066666667 | P98: =SUMIF(Handy!A:A,N98,Handy!J:J) -> 0 | Q98: =SUMIF(Handy!A:A,N98,Handy!K:K) -> 0
A99: 2023-04-26 | B99: Alejandro Castanon Diaz | C99: Diana Inlat - Rehacer Ingeurbe | D99: 29s | F99: 18:00:00 | G99: 18:01:00 | H99: 0 | I99: 0 | J99: 0 | K99: 0.01666666667 | L99: =IF(COUNTIF(K$1:K99,K99)=1,K99,"") ->  | N99: 2023-07-22 | O99: 0 | P99: =SUMIF(Handy!A:A,N99,Handy!J:J) -> 0 | Q99: =SUMIF(Handy!A:A,N99,Handy!K:K) -> 0
A100: 2023-04-26 | B100: Alejandro Castanon Diaz | C100: Miguel Bullkens - B2B Nuevo Exchange | D100: 05m | F100: 18:01:00 | G100: 18:07:00 | H100: 0 | I100: 0 | J100: 0.08333333333 | K100: 0 | L100: =IF(COUNTIF(K$1:K100,K100)=1,K100,"") ->  | N100: 2023-07-23 | O100: 0.1333333333 | P100: =SUMIF(Handy!A:A,N100,Handy!J:J) -> 21.53333333 | Q100: =SUMIF(Handy!A:A,N100,Handy!K:K) -> 1372
A101: 2023-04-26 | B101: Alejandro Castanon Diaz | C101: Ricardo Freelancer - Accounting | D101: 10m | F101: 18:57:00 | G101: 19:08:00 | H101: 0 | I101: 0 | J101: 0.1666666667 | K101: 0 | L101: =IF(COUNTIF(K$1:K101,K101)=1,K101,"") ->  | N101: 2023-07-24 | O101: 4.083333333 | P101: =SUMIF(Handy!A:A,N101,Handy!J:J) -> 0 | Q101: =SUMIF(Handy!A:A,N101,Handy!K:K) -> 0
A102: 2023-04-27 | B102: Alejandro Castanon Diaz | C102: Ricardo Freelancer - Accounting | D102: 27m | F102: 05:23:00 | G102: 05:51:00 | H102: 0 | I102: 0 | J102: 0.45 | K102: 0 | L102: =IF(COUNTIF(K$1:K102,K102)=1,K102,"") ->  | N102: 2023-07-25 | O102: 7.683333333 | P102: =SUMIF(Handy!A:A,N102,Handy!J:J) -> 0 | Q102: =SUMIF(Handy!A:A,N102,Handy!K:K) -> 0
A103: 2023-04-27 | B103: Alejandro Castanon Diaz | C103: Ricardo Freelancer - Accounting | D103: 17m | F103: 06:15:00 | G103: 06:33:00 | H103: 0 | I103: 0 | J103: 0.2833333333 | K103: 0 | L103: =IF(COUNTIF(K$1:K103,K103)=1,K103,"") ->  | N103: 2023-07-26 | O103: 10.25 | P103: =SUMIF(Handy!A:A,N103,Handy!J:J) -> 0 | Q103: =SUMIF(Handy!A:A,N103,Handy!K:K) -> 0
A104: 2023-04-27 | B104: Alejandro Castanon Diaz | C104: Miguel Bullkens - B2B Nuevo Exchange | D104: 04m | F104: 06:23:00 | G104: 06:28:00 | H104: 0 | I104: 0 | J104: 0.06666666667 | K104: 0 | L104: =IF(COUNTIF(K$1:K104,K104)=1,K104,"") ->  | N104: 2023-07-27 | O104: 10.18333333 | P104: =SUMIF(Handy!A:A,N104,Handy!J:J) -> 0 | Q104: =SUMIF(Handy!A:A,N104,Handy!K:K) -> 0
A105: 2023-04-27 | B105: Alejandro Castanon Diaz | C105: Miguel Bullkens - B2B Nuevo Exchange | D105: 58s | F105: 07:50:00 | G105: 07:51:00 | H105: 0 | I105: 0 | J105: 0 | K105: 0 | L105: =IF(COUNTIF(K$1:K105,K105)=1,K105,"") ->  | N105: 2023-07-28 | O105: 7.2 | P105: =SUMIF(Handy!A:A,N105,Handy!J:J) -> 0 | Q105: =SUMIF(Handy!A:A,N105,Handy!K:K) -> 0
A106: 2023-04-27 | B106: Alejandro Castanon Diaz | C106: Nick Advizee - ult pago a 22 abr (sigue 23) | D106: 01m | F106: 07:51:00 | G106: 07:53:00 | H106: 0 | I106: 0 | J106: 0.01666666667 | K106: 0 | L106: =IF(COUNTIF(K$1:K106,K106)=1,K106,"") ->  | N106: 2023-07-29 | O106: 0.3333333333 | P106: =SUMIF(Handy!A:A,N106,Handy!J:J) -> 0 | Q106: =SUMIF(Handy!A:A,N106,Handy!K:K) -> 0
A107: 2023-04-27 | B107: Alejandro Castanon Diaz | C107: Nick Advizee - ult pago a 22 abr (sigue 23) | D107: 05m | F107: 08:26:00 | G107: 08:31:00 | H107: 0 | I107: 0 | J107: 0.08333333333 | K107: 0 | L107: =IF(COUNTIF(K$1:K107,K107)=1,K107,"") ->  | N107: 2023-07-30 | O107: 0.6833333333 | P107: =SUMIF(Handy!A:A,N107,Handy!J:J) -> 14.08333333 | Q107: =SUMIF(Handy!A:A,N107,Handy!K:K) -> 1143
A108: 2023-04-27 | B108: Alejandro Castanon Diaz | C108: Nick Advizee - ult pago a 22 abr (sigue 23) | D108: 09m | F108: 08:50:00 | G108: 08:59:00 | H108: 0 | I108: 0 | J108: 0.15 | K108: 0 | L108: =IF(COUNTIF(K$1:K108,K108)=1,K108,"") ->  | N108: 2023-07-31 | O108: 7.416666667 | P108: =SUMIF(Handy!A:A,N108,Handy!J:J) -> 0 | Q108: =SUMIF(Handy!A:A,N108,Handy!K:K) -> 0
A109: 2023-04-27 | B109: Alejandro Castanon Diaz | C109: Ricardo Freelancer - Accounting | D109: 08m | F109: 12:50:00 | G109: 13:09:00 | H109: 0 | I109: 0 | J109: 0.1333333333 | K109: 0 | L109: =IF(COUNTIF(K$1:K109,K109)=1,K109,"") ->  | N109: 2023-08-01 | O109: 6.05 | P109: =SUMIF(Handy!A:A,N109,Handy!J:J) -> 0 | Q109: =SUMIF(Handy!A:A,N109,Handy!K:K) -> 0
A110: 2023-04-27 | B110: Alejandro Castanon Diaz | C110: Nick Advizee - ult pago a 22 abr (sigue 23) | D110: 35m | F110: 12:50:00 | G110: 13:47:00 | H110: 0 | I110: 0 | J110: 0.5833333333 | K110: 0 | L110: =IF(COUNTIF(K$1:K110,K110)=1,K110,"") ->  | N110: 2023-08-02 | O110: 5.95 | P110: =SUMIF(Handy!A:A,N110,Handy!J:J) -> 0 | Q110: =SUMIF(Handy!A:A,N110,Handy!K:K) -> 0
A111: 2023-04-27 | B111: Alejandro Castanon Diaz | C111: Ricardo Freelancer - Accounting | D111: 07m | F111: 13:22:00 | G111: 13:32:00 | H111: 0 | I111: 0 | J111: 0.1166666667 | K111: 0 | L111: =IF(COUNTIF(K$1:K111,K111)=1,K111,"") ->  | N111: 2023-08-03 | O111: 11.56666667 | P111: =SUMIF(Handy!A:A,N111,Handy!J:J) -> 0 | Q111: =SUMIF(Handy!A:A,N111,Handy!K:K) -> 0
A112: 2023-04-27 | B112: Alejandro Castanon Diaz | C112: Nick Advizee - ult pago a 22 abr (sigue 23) | D112: 11s | F112: 15:11:00 | G112: 15:12:00 | H112: 0 | I112: 0 | J112: 0 | K112: 0 | L112: =IF(COUNTIF(K$1:K112,K112)=1,K112,"") ->  | N112: 2023-08-04 | O112: 7.55 | P112: =SUMIF(Handy!A:A,N112,Handy!J:J) -> 0 | Q112: =SUMIF(Handy!A:A,N112,Handy!K:K) -> 0
A113: 2023-04-27 | B113: Alejandro Castanon Diaz | C113: Ricardo Freelancer - Accounting | D113: 1h 30m | F113: 15:11:00 | G113: 16:42:00 | H113: 0 | I113: 0 | J113: 1.5 | K113: 0 | L113: =IF(COUNTIF(K$1:K113,K113)=1,K113,"") ->  | N113: 2023-08-05 | O113: 5.1 | P113: =SUMIF(Handy!A:A,N113,Handy!J:J) -> 0 | Q113: =SUMIF(Handy!A:A,N113,Handy!K:K) -> 0
A114: 2023-04-28 | B114: Alejandro Castanon Diaz | C114: Nick Advizee - ult pago a 22 abr (sigue 23) | D114: 22m | F114: 05:57:00 | G114: 06:20:00 | H114: 0 | I114: 0 | J114: 0.3666666667 | K114: 0 | L114: =IF(COUNTIF(K$1:K114,K114)=1,K114,"") ->  | N114: 2023-08-06 | O114: 0 | P114: =SUMIF(Handy!A:A,N114,Handy!J:J) -> 13.75 | Q114: =SUMIF(Handy!A:A,N114,Handy!K:K) -> 826
A115: 2023-04-28 | B115: Alejandro Castanon Diaz | C115: Ricardo Freelancer - Accounting | D115: 23m | F115: 06:20:00 | G115: 06:44:00 | H115: 0 | I115: 0 | J115: 0.3833333333 | K115: 0 | L115: =IF(COUNTIF(K$1:K115,K115)=1,K115,"") ->  | N115: 2023-08-07 | O115: 7.7 | P115: =SUMIF(Handy!A:A,N115,Handy!J:J) -> 0 | Q115: =SUMIF(Handy!A:A,N115,Handy!K:K) -> 0
A116: 2023-04-28 | B116: Alejandro Castanon Diaz | C116: Diana Inlat - Rehacer Ingeurbe | D116: 1h 02m | F116: 06:38:00 | G116: 07:46:00 | H116: 0 | I116: 0 | J116: 1.033333333 | K116: 0.01666666667 | L116: =IF(COUNTIF(K$1:K116,K116)=1,K116,"") ->  | N116: 2023-08-08 | O116: 5.183333333 | P116: =SUMIF(Handy!A:A,N116,Handy!J:J) -> 0 | Q116: =SUMIF(Handy!A:A,N116,Handy!K:K) -> 0
A117: 2023-04-28 | B117: Alejandro Castanon Diaz | C117: Ricardo Freelancer - Accounting | D117: 15m | F117: 10:09:00 | G117: 10:31:00 | H117: 0 | I117: 0 | J117: 0.25 | K117: 0 | L117: =IF(COUNTIF(K$1:K117,K117)=1,K117,"") ->  | N117: 2023-08-09 | O117: 8.55 | P117: =SUMIF(Handy!A:A,N117,Handy!J:J) -> 0 | Q117: =SUMIF(Handy!A:A,N117,Handy!K:K) -> 0
A118: 2023-04-28 | B118: Alejandro Castanon Diaz | C118: Nick Advizee - ult pago a 22 abr (sigue 23) | D118: 1h 42m | F118: 10:21:00 | G118: 12:08:00 | H118: 0 | I118: 0 | J118: 1.7 | K118: 0 | L118: =IF(COUNTIF(K$1:K118,K118)=1,K118,"") ->  | N118: 2023-08-10 | O118: 2.15 | P118: =SUMIF(Handy!A:A,N118,Handy!J:J) -> 0 | Q118: =SUMIF(Handy!A:A,N118,Handy!K:K) -> 0
A119: 2023-04-28 | B119: Alejandro Castanon Diaz | C119: Ricardo Freelancer - Accounting | D119: 8s | F119: 10:43:00 | G119: 10:43:00 | H119: 0 | I119: 0 | J119: 0 | K119: 0 | L119: =IF(COUNTIF(K$1:K119,K119)=1,K119,"") ->  | N119: 2023-08-11 | O119: 1.55 | P119: =SUMIF(Handy!A:A,N119,Handy!J:J) -> 0 | Q119: =SUMIF(Handy!A:A,N119,Handy!K:K) -> 0
A120: 2023-04-28 | B120: Alejandro Castanon Diaz | C120: Ricardo Freelancer - Accounting | D120: 42m | F120: 12:08:00 | G120: 12:53:00 | H120: 0 | I120: 0 | J120: 0.7 | K120: 0 | L120: =IF(COUNTIF(K$1:K120,K120)=1,K120,"") ->  | N120: 2023-08-12 | O120: 0 | P120: =SUMIF(Handy!A:A,N120,Handy!J:J) -> 0 | Q120: =SUMIF(Handy!A:A,N120,Handy!K:K) -> 0
A121: 2023-04-28 | B121: Alejandro Castanon Diaz | C121: Pablo Nanofactura - Con IVA o sin IVA premium function global | D121: 03m | F121: 12:14:00 | G121: 12:17:00 | H121: 0 | I121: 0 | J121: 0.05 | K121: 0 | L121: =IF(COUNTIF(K$1:K121,K121)=1,K121,"") ->  | N121: 2023-08-13 | O121: 0 | P121: =SUMIF(Handy!A:A,N121,Handy!J:J) -> 21.83333333 | Q121: =SUMIF(Handy!A:A,N121,Handy!K:K) -> 1267
A122: 2023-04-28 | B122: Alejandro Castanon Diaz | C122: Diana Inlat - Rehacer Ingeurbe | D122: 53m | F122: 12:53:00 | G122: 13:47:00 | H122: 0 | I122: 0 | J122: 0.8833333333 | K122: 0.01666666667 | L122: =IF(COUNTIF(K$1:K122,K122)=1,K122,"") ->  | N122: 2023-08-14 | O122: 7.166666667 | P122: =SUMIF(Handy!A:A,N122,Handy!J:J) -> 0 | Q122: =SUMIF(Handy!A:A,N122,Handy!K:K) -> 0
A123: 2023-04-28 | B123: Alejandro Castanon Diaz | C123: Diana Inlat - Rehacer Ingeurbe | D123: 01m | F123: 18:00:00 | G123: 18:02:00 | H123: 0 | I123: 0 | J123: 0.01666666667 | K123: 0.01666666667 | L123: =IF(COUNTIF(K$1:K123,K123)=1,K123,"") ->  | N123: 2023-08-15 | O123: 4.15 | P123: =SUMIF(Handy!A:A,N123,Handy!J:J) -> 0 | Q123: =SUMIF(Handy!A:A,N123,Handy!K:K) -> 0
A124: 2023-04-28 | B124: Alejandro Castanon Diaz | C124: Nick Advizee - ult pago a 22 abr (sigue 23) | D124: 42m | F124: 18:01:00 | G124: 18:54:00 | H124: 0 | I124: 0 | J124: 0.7 | K124: 0 | L124: =IF(COUNTIF(K$1:K124,K124)=1,K124,"") ->  | N124: 2023-08-16 | O124: 1.35 | P124: =SUMIF(Handy!A:A,N124,Handy!J:J) -> 0 | Q124: =SUMIF(Handy!A:A,N124,Handy!K:K) -> 0
A125: 2023-04-29 | B125: Alejandro Castanon Diaz | C125: Nick Advizee - ult pago a 22 abr (sigue 23) | D125: 24m | F125: 03:27:00 | G125: 03:52:00 | H125: 0 | I125: 0 | J125: 0.4 | K125: 0 | L125: =IF(COUNTIF(K$1:K125,K125)=1,K125,"") ->  | N125: 2023-08-17 | O125: 4.533333333 | P125: =SUMIF(Handy!A:A,N125,Handy!J:J) -> 0 | Q125: =SUMIF(Handy!A:A,N125,Handy!K:K) -> 0
A126: 2023-04-29 | B126: Alejandro Castanon Diaz | C126: Nick Advizee - ult pago a 22 abr (sigue 23) | D126: 47m | F126: 10:05:00 | G126: 10:52:00 | H126: 0 | I126: 0 | J126: 0.7833333333 | K126: 0 | L126: =IF(COUNTIF(K$1:K126,K126)=1,K126,"") ->  | N126: 2023-08-18 | O126: 8 | P126: =SUMIF(Handy!A:A,N126,Handy!J:J) -> 0 | Q126: =SUMIF(Handy!A:A,N126,Handy!K:K) -> 0
A127: 2023-04-30 | B127: Alejandro Castanon Diaz | C127: Nick Advizee - ult pago a 22 abr (sigue 23) | D127: 06m | F127: 04:56:00 | G127: 05:02:00 | H127: 0 | I127: 0 | J127: 0.1 | K127: 0 | L127: =IF(COUNTIF(K$1:K127,K127)=1,K127,"") ->  | N127: 2023-08-19 | O127: 12.91666667 | P127: =SUMIF(Handy!A:A,N127,Handy!J:J) -> 0 | Q127: =SUMIF(Handy!A:A,N127,Handy!K:K) -> 0
A128: 2023-04-30 | B128: Alejandro Castanon Diaz | C128: Nick Advizee - ult pago a 22 abr (sigue 23) | D128: 12m | F128: 05:35:00 | G128: 05:48:00 | H128: 0 | I128: 0 | J128: 0.2 | K128: 0 | L128: =IF(COUNTIF(K$1:K128,K128)=1,K128,"") ->  | N128: 2023-08-20 | O128: 2.116666667 | P128: =SUMIF(Handy!A:A,N128,Handy!J:J) -> 16.7 | Q128: =SUMIF(Handy!A:A,N128,Handy!K:K) -> 1206
A129: 2023-04-30 | B129: Alejandro Castanon Diaz | C129: Nick Advizee - ult pago a 22 abr (sigue 23) | D129: 10m | F129: 11:12:00 | G129: 11:23:00 | H129: 0 | I129: 0 | J129: 0.1666666667 | K129: 0 | L129: =IF(COUNTIF(K$1:K129,K129)=1,K129,"") ->  | N129: 2023-08-21 | O129: 9.133333333 | P129: =SUMIF(Handy!A:A,N129,Handy!J:J) -> 0 | Q129: =SUMIF(Handy!A:A,N129,Handy!K:K) -> 0
A130: 2023-04-30 | B130: Alejandro Castanon Diaz | C130: Nick Advizee - ult pago a 22 abr (sigue 23) | D130: 01m | F130: 17:30:00 | G130: 17:32:00 | H130: 0 | I130: 0 | J130: 0.01666666667 | K130: =SUMIFS(J:J,C:C,C130,A:A,">"&$S$4) -> 0 | L130: =IF(COUNTIF(K$1:K130,K130)=1,K130,"") ->  | N130: 2023-08-22 | O130: 4.283333333 | P130: =SUMIF(Handy!A:A,N130,Handy!J:J) -> 0 | Q130: =SUMIF(Handy!A:A,N130,Handy!K:K) -> 0
A131: 2023-04-30 | B131: Alejandro Castanon Diaz | C131: Viv Freelancer - Ecommerce Wordle | D131: 51m | F131: 17:32:00 | G131: 18:23:00 | H131: 0 | I131: 0 | J131: =IF(D131="","",IF(ISERROR(FIND("s",D131)),IF(ISERROR(FIND("h ",D131)),LEFT(D131,2)/60, LEFT(D131,FIND("h ",D131)-1 )+LEFT(RIGHT(D131,3),2)/60 ),0)) -> 0.85 | K131: 0 | L131: =IF(COUNTIF(K$1:K131,K131)=1,K131,"") ->  | N131: 2023-08-23 | O131: =SUMIF(A:A,N131,J:J) -> 10.16666667 | P131: =SUMIF(Handy!A:A,N131,Handy!J:J) -> 0 | Q131: =SUMIF(Handy!A:A,N131,Handy!K:K) -> 0
A132: 2023-05-01 | B132: Alejandro Castanon Diaz | C132: Ricardo Freelancer - Accounting | D132: 19m | F132: 02:41:00 | G132: 03:01:00 | H132: 0 | I132: 0 | J132: 0.3166666667 | K132: 0 | L132: =IF(COUNTIF(K$1:K132,K132)=1,K132,"") ->  | N132: =IF(N131+1>TODAY(),NA(),N131+1) -> 2023-08-24 | O132: 6.816666667 | P132: =SUMIF(Handy!A:A,N132,Handy!J:J) -> 0 | Q132: =SUMIF(Handy!A:A,N132,Handy!K:K) -> 0
A133: 2023-05-01 | B133: Alejandro Castanon Diaz | C133: Nick Advizee - ult pago a 22 abr (sigue 23) | D133: 50s | F133: 15:22:00 | G133: 15:22:00 | H133: 0 | I133: 0 | J133: 0 | K133: 0 | L133: =IF(COUNTIF(K$1:K133,K133)=1,K133,"") ->  | N133: 2023-08-25 | O133: 1.95 | P133: =SUMIF(Handy!A:A,N133,Handy!J:J) -> 0 | Q133: =SUMIF(Handy!A:A,N133,Handy!K:K) -> 0
A134: 2023-05-01 | B134: Alejandro Castanon Diaz | C134: Ricardo Freelancer - Accounting | D134: 07m | F134: 15:22:00 | G134: 15:30:00 | H134: 0 | I134: 0 | J134: 0.1166666667 | K134: 0 | L134: =IF(COUNTIF(K$1:K134,K134)=1,K134,"") ->  | N134: 2023-08-26 | O134: 1.066666667 | P134: =SUMIF(Handy!A:A,N134,Handy!J:J) -> 0 | Q134: =SUMIF(Handy!A:A,N134,Handy!K:K) -> 0
A135: 2023-05-01 | B135: Alejandro Castanon Diaz | C135: Ricardo Freelancer - Accounting | D135: 42m | F135: 17:36:00 | G135: 18:19:00 | H135: 0 | I135: 0 | J135: 0.7 | K135: 0 | L135: =IF(COUNTIF(K$1:K135,K135)=1,K135,"") ->  | N135: 2023-08-27 | O135: 0 | P135: =SUMIF(Handy!A:A,N135,Handy!J:J) -> 23.55 | Q135: =SUMIF(Handy!A:A,N135,Handy!K:K) -> 1841
A136: 2023-05-01 | B136: Alejandro Castanon Diaz | C136: Ricardo Freelancer - Accounting | D136: 39m | F136: 19:20:00 | G136: 19:59:00 | H136: 0 | I136: 0 | J136: 0.65 | K136: 0 | L136: =IF(COUNTIF(K$1:K136,K136)=1,K136,"") ->  | N136: 2023-08-28 | O136: 6.566666667 | P136: =SUMIF(Handy!A:A,N136,Handy!J:J) -> 0 | Q136: =SUMIF(Handy!A:A,N136,Handy!K:K) -> 0
A137: 2023-05-01 | B137: Alejandro Castanon Diaz | C137: Ricardo Freelancer - Accounting | D137: 2h 07m | F137: 19:59:00 | G137: 21:33:00 | H137: 0 | I137: 0 | J137: 2.116666667 | K137: 0 | L137: =IF(COUNTIF(K$1:K137,K137)=1,K137,"") ->  | N137: 2023-08-29 | O137: 10.9 | P137: =SUMIF(Handy!A:A,N137,Handy!J:J) -> 0 | Q137: =SUMIF(Handy!A:A,N137,Handy!K:K) -> 0
A138: 2023-05-01 | B138: Alejandro Castanon Diaz | C138: Diana Inlat - Rehacer Ingeurbe | D138: 01m | F138: 20:12:00 | G138: 20:14:00 | H138: 0 | I138: 0 | J138: 0.01666666667 | K138: 0.01666666667 | L138: =IF(COUNTIF(K$1:K138,K138)=1,K138,"") ->  | N138: 2023-08-30 | O138: 6.1 | P138: =SUMIF(Handy!A:A,N138,Handy!J:J) -> 0 | Q138: =SUMIF(Handy!A:A,N138,Handy!K:K) -> 0
A139: 2023-05-01 | B139: Alejandro Castanon Diaz | C139: Ricardo Freelancer - Accounting | D139: 12m | F139: 21:51:00 | G139: 22:05:00 | H139: 0 | I139: 0 | J139: 0.2 | K139: 0 | L139: =IF(COUNTIF(K$1:K139,K139)=1,K139,"") ->  | N139: 2023-08-31 | O139: 7.483333333 | P139: =SUMIF(Handy!A:A,N139,Handy!J:J) -> 0 | Q139: =SUMIF(Handy!A:A,N139,Handy!K:K) -> 0
A140: 2023-05-01 | B140: Alejandro Castanon Diaz | C140: Ricardo Freelancer - Accounting | D140: 48m | F140: 22:52:00 | G140: 23:40:00 | H140: 0 | I140: 0 | J140: 0.8 | K140: 0 | L140: =IF(COUNTIF(K$1:K140,K140)=1,K140,"") ->  | N140: 2023-09-01 | O140: 13.93333333 | P140: =SUMIF(Handy!A:A,N140,Handy!J:J) -> 0 | Q140: =SUMIF(Handy!A:A,N140,Handy!K:K) -> 0
A141: 2023-05-02 | B141: Alejandro Castanon Diaz | C141: Ricardo Freelancer - Accounting | D141: 2h 46m | F141: 02:17:00 | G141: 05:09:00 | H141: 0 | I141: 0 | J141: 2.766666667 | K141: 0 | L141: =IF(COUNTIF(K$1:K141,K141)=1,K141,"") ->  | N141: 2023-09-02 | O141: 1.483333333 | P141: =SUMIF(Handy!A:A,N141,Handy!J:J) -> 0 | Q141: =SUMIF(Handy!A:A,N141,Handy!K:K) -> 0
A142: 2023-05-02 | B142: Alejandro Castanon Diaz | C142: Diana Inlat - Rehacer Ingeurbe | D142: 56s | F142: 03:10:00 | G142: 03:12:00 | H142: 0 | I142: 0 | J142: 0 | K142: 0.01666666667 | L142: =IF(COUNTIF(K$1:K142,K142)=1,K142,"") ->  | N142: 2023-09-03 | O142: 0 | P142: =SUMIF(Handy!A:A,N142,Handy!J:J) -> 24.41666667 | Q142: =SUMIF(Handy!A:A,N142,Handy!K:K) -> 1600
A143: 2023-05-02 | B143: Alejandro Castanon Diaz | C143: Ricardo Freelancer - Accounting | D143: 5h 57m | F143: 11:42:00 | G143: 17:39:00 | H143: 0 | I143: 0 | J143: 5.95 | K143: 0 | L143: =IF(COUNTIF(K$1:K143,K143)=1,K143,"") ->  | N143: 2023-09-04 | O143: 8.983333333 | P143: =SUMIF(Handy!A:A,N143,Handy!J:J) -> 0 | Q143: =SUMIF(Handy!A:A,N143,Handy!K:K) -> 0
A144: 2023-05-03 | B144: Alejandro Castanon Diaz | C144: Viv Freelancer - Ecommerce Wordle | D144: 12m | F144: 14:52:00 | G144: 15:05:00 | H144: 0 | I144: 0 | J144: 0.2 | K144: 0 | L144: =IF(COUNTIF(K$1:K144,K144)=1,K144,"") ->  | N144: 2023-09-05 | O144: 7.35 | P144: =SUMIF(Handy!A:A,N144,Handy!J:J) -> 0 | Q144: =SUMIF(Handy!A:A,N144,Handy!K:K) -> 0
A145: 2023-05-03 | B145: Alejandro Castanon Diaz | C145: Viv Freelancer - Ecommerce Wordle | D145: 11m | F145: 16:13:00 | G145: 16:46:00 | H145: 0 | I145: 0 | J145: 0.1833333333 | K145: 0 | L145: =IF(COUNTIF(K$1:K145,K145)=1,K145,"") ->  | N145: 2023-09-06 | O145: 9.7 | P145: =SUMIF(Handy!A:A,N145,Handy!J:J) -> 0 | Q145: =SUMIF(Handy!A:A,N145,Handy!K:K) -> 0
A146: 2023-05-03 | B146: Alejandro Castanon Diaz | C146: Faby - PMI Ame Sitio multilang | D146: 08m | F146: 16:15:00 | G146: 16:24:00 | H146: 0 | I146: 0 | J146: 0.1333333333 | K146: 0 | L146: =IF(COUNTIF(K$1:K146,K146)=1,K146,"") ->  | N146: 2023-09-07 | O146: 17 | P146: =SUMIF(Handy!A:A,N146,Handy!J:J) -> 0 | Q146: =SUMIF(Handy!A:A,N146,Handy!K:K) -> 0
A147: 2023-05-03 | B147: Alejandro Castanon Diaz | C147: Gary Hydracheck New Checkout quitar maquillaje viejo | D147: 27s | F147: 16:25:00 | G147: 16:26:00 | H147: 0 | I147: 0 | J147: 0 | K147: 0 | L147: =IF(COUNTIF(K$1:K147,K147)=1,K147,"") ->  | N147: 2023-09-08 | O147: 13 | P147: =SUMIF(Handy!A:A,N147,Handy!J:J) -> 0 | Q147: =SUMIF(Handy!A:A,N147,Handy!K:K) -> 0
A148: 2023-05-03 | B148: Alejandro Castanon Diaz | C148: Pablo Nanofactura - Con IVA o sin IVA premium function global | D148: 04m | F148: 16:26:00 | G148: 16:31:00 | H148: 0 | I148: 0 | J148: 0.06666666667 | K148: 0 | L148: =IF(COUNTIF(K$1:K148,K148)=1,K148,"") ->  | N148: 2023-09-09 | O148: 0.2166666667 | P148: =SUMIF(Handy!A:A,N148,Handy!J:J) -> 0 | Q148: =SUMIF(Handy!A:A,N148,Handy!K:K) -> 0
A149: 2023-05-03 | B149: Alejandro Castanon Diaz | C149: Faby - PMI Ame Sitio multilang | D149: 07m | F149: 16:34:00 | G149: 16:42:00 | H149: 0 | I149: 0 | J149: 0.1166666667 | K149: 0 | L149: =IF(COUNTIF(K$1:K149,K149)=1,K149,"") ->  | N149: 2023-09-10 | O149: 0 | P149: =SUMIF(Handy!A:A,N149,Handy!J:J) -> 18.1 | Q149: =SUMIF(Handy!A:A,N149,Handy!K:K) -> 1431
A150: 2023-05-03 | B150: Alejandro Castanon Diaz | C150: Ricardo Freelancer - Accounting | D150: 11s | F150: 16:58:00 | G150: 16:59:00 | H150: 0 | I150: 0 | J150: 0 | K150: 0 | L150: =IF(COUNTIF(K$1:K150,K150)=1,K150,"") ->  | N150: 2023-09-11 | O150: 2.466666667 | P150: =SUMIF(Handy!A:A,N150,Handy!J:J) -> 0 | Q150: =SUMIF(Handy!A:A,N150,Handy!K:K) -> 0
A151: 2023-05-03 | B151: Alejandro Castanon Diaz | C151: Viv Freelancer - Ecommerce Wordle | D151: 2h 38m | F151: 18:16:00 | G151: 20:54:00 | H151: 0 | I151: 0 | J151: 2.633333333 | K151: 0 | L151: =IF(COUNTIF(K$1:K151,K151)=1,K151,"") ->  | N151: 2023-09-12 | O151: 7.15 | P151: =SUMIF(Handy!A:A,N151,Handy!J:J) -> 0 | Q151: =SUMIF(Handy!A:A,N151,Handy!K:K) -> 0
A152: 2023-05-03 | B152: Alejandro Castanon Diaz | C152: Ricardo Freelancer - Accounting | D152: 1h 39m | F152: 19:18:00 | G152: 20:58:00 | H152: 0 | I152: 0 | J152: 1.65 | K152: 0 | L152: =IF(COUNTIF(K$1:K152,K152)=1,K152,"") ->  | N152: 2023-09-13 | O152: 1.433333333 | P152: =SUMIF(Handy!A:A,N152,Handy!J:J) -> 0 | Q152: =SUMIF(Handy!A:A,N152,Handy!K:K) -> 0
A153: 2023-05-03 | B153: Alejandro Castanon Diaz | C153: Gary Hydracheck New Checkout quitar maquillaje viejo | D153: 32m | F153: 20:54:00 | G153: 21:33:00 | H153: 0 | I153: 0 | J153: 0.5333333333 | K153: 0 | L153: =IF(COUNTIF(K$1:K153,K153)=1,K153,"") ->  | O153: 0 | P153: =SUMIF(Handy!A:A,N153,Handy!J:J) -> 0 | Q153: =SUMIF(Handy!A:A,N153,Handy!K:K) -> 0
A154: 2023-05-03 | B154: Alejandro Castanon Diaz | C154: Diana Inlat - Rehacer Ingeurbe | D154: 01m | F154: 20:58:00 | G154: 20:59:00 | H154: 0 | I154: 0 | J154: 0.01666666667 | K154: 0.01666666667 | L154: =IF(COUNTIF(K$1:K154,K154)=1,K154,"") ->  | O154: 0 | P154: =SUMIF(Handy!A:A,N154,Handy!J:J) -> 0 | Q154: =SUMIF(Handy!A:A,N154,Handy!K:K) -> 0
A155: 2023-05-03 | B155: Alejandro Castanon Diaz | C155: Viv Freelancer - Ecommerce Wordle | D155: 05m | F155: 21:16:00 | G155: 21:33:00 | H155: 0 | I155: 0 | J155: 0.08333333333 | K155: 0 | L155: =IF(COUNTIF(K$1:K155,K155)=1,K155,"") ->  | O155: 0 | P155: =SUMIF(Handy!A:A,N155,Handy!J:J) -> 0 | Q155: =SUMIF(Handy!A:A,N155,Handy!K:K) -> 0
A156: 2023-05-03 | B156: Alejandro Castanon Diaz | C156: Diana Inlat - Rehacer Ingeurbe | D156: 20s | F156: 21:33:00 | G156: 21:34:00 | H156: 0 | I156: 0 | J156: 0 | K156: 0.01666666667 | L156: =IF(COUNTIF(K$1:K156,K156)=1,K156,"") ->  | O156: 0 | P156: =SUMIF(Handy!A:A,N156,Handy!J:J) -> 0 | Q156: =SUMIF(Handy!A:A,N156,Handy!K:K) -> 0
A157: 2023-05-03 | B157: Alejandro Castanon Diaz | C157: Ricardo Freelancer - Accounting | D157: 1h 29m | F157: 21:34:00 | G157: 22:59:00 | H157: 0 | I157: 0 | J157: 1.483333333 | K157: 0 | L157: =IF(COUNTIF(K$1:K157,K157)=1,K157,"") ->  | O157: 0 | P157: =SUMIF(Handy!A:A,N157,Handy!J:J) -> 0 | Q157: =SUMIF(Handy!A:A,N157,Handy!K:K) -> 0
A158: 2023-05-03 | B158: Alejandro Castanon Diaz | C158: Diana Inlat - Rehacer Ingeurbe | D158: 44s | F158: 21:49:00 | G158: 21:49:00 | H158: 0 | I158: 0 | J158: 0 | K158: 0.01666666667 | L158: =IF(COUNTIF(K$1:K158,K158)=1,K158,"") ->  | O158: 0 | P158: =SUMIF(Handy!A:A,N158,Handy!J:J) -> 0 | Q158: =SUMIF(Handy!A:A,N158,Handy!K:K) -> 0
A159: 2023-05-03 | B159: Alejandro Castanon Diaz | C159: Gary Hydracheck New Checkout quitar maquillaje viejo | D159: 1h 16m | F159: 21:52:00 | G159: 23:13:00 | H159: 0 | I159: 0 | J159: 1.266666667 | K159: 0 | L159: =IF(COUNTIF(K$1:K159,K159)=1,K159,"") ->  | O159: 0 | P159: =SUMIF(Handy!A:A,N159,Handy!J:J) -> 0 | Q159: =SUMIF(Handy!A:A,N159,Handy!K:K) -> 0
A160: 2023-05-03 | B160: Alejandro Castanon Diaz | C160: Viv Freelancer - Ecommerce Wordle | D160: 13s | F160: 21:59:00 | G160: 21:59:00 | H160: 0 | I160: 0 | J160: 0 | K160: 0 | L160: =IF(COUNTIF(K$1:K160,K160)=1,K160,"") ->  | O160: 0 | P160: =SUMIF(Handy!A:A,N160,Handy!J:J) -> 0 | Q160: =SUMIF(Handy!A:A,N160,Handy!K:K) -> 0
A161: 2023-05-03 | B161: Alejandro Castanon Diaz | C161: Ricardo Freelancer - Accounting | D161: 09m | F161: 22:59:00 | G161: 23:09:00 | H161: 0 | I161: 0 | J161: 0.15 | K161: 0 | L161: =IF(COUNTIF(K$1:K161,K161)=1,K161,"") ->  | O161: 0 | P161: =SUMIF(Handy!A:A,N161,Handy!J:J) -> 0 | Q161: =SUMIF(Handy!A:A,N161,Handy!K:K) -> 0
A162: 2023-05-03 | B162: Alejandro Castanon Diaz | C162: Diana Inlat - Rehacer Ingeurbe | D162: 15s | F162: 23:09:00 | G162: 23:10:00 | H162: 0 | I162: 0 | J162: 0 | K162: 0.01666666667 | L162: =IF(COUNTIF(K$1:K162,K162)=1,K162,"") ->  | O162: 0 | P162: =SUMIF(Handy!A:A,N162,Handy!J:J) -> 0 | Q162: =SUMIF(Handy!A:A,N162,Handy!K:K) -> 0
A163: 2023-05-03 | B163: Alejandro Castanon Diaz | C163: Gustavo Freelancer - Cambios pag ITESM | D163: 23s | F163: 23:10:00 | G163: 23:11:00 | H163: 0 | I163: 0 | J163: 0 | K163: 0 | L163: =IF(COUNTIF(K$1:K163,K163)=1,K163,"") ->  | O163: 0 | P163: =SUMIF(Handy!A:A,N163,Handy!J:J) -> 0 | Q163: =SUMIF(Handy!A:A,N163,Handy!K:K) -> 0
A164: 2023-05-03 | B164: Alejandro Castanon Diaz | C164: Faby - Candywax Depilaciones | D164: 03m | F164: 23:13:00 | G164: 23:17:00 | H164: 0 | I164: 0 | J164: 0.05 | K164: 0 | L164: =IF(COUNTIF(K$1:K164,K164)=1,K164,"") ->  | O164: 0 | P164: =SUMIF(Handy!A:A,N164,Handy!J:J) -> 0 | Q164: =SUMIF(Handy!A:A,N164,Handy!K:K) -> 0
A165: 2023-05-03 | B165: Alejandro Castanon Diaz | C165: Ricardo Freelancer - Accounting | D165: 32m | F165: 23:17:00 | G165: 23:57:00 | H165: 0 | I165: 0 | J165: 0.5333333333 | K165: 0 | L165: =IF(COUNTIF(K$1:K165,K165)=1,K165,"") ->  | O165: 0 | P165: =SUMIF(Handy!A:A,N165,Handy!J:J) -> 0 | Q165: =SUMIF(Handy!A:A,N165,Handy!K:K) -> 0
A166: 2023-05-03 | B166: Alejandro Castanon Diaz | C166: Nick Advizee - ult pago a 22 abr (sigue 23) | D166: 32s | F166: 23:18:00 | G166: 23:18:00 | H166: 0 | I166: 0 | J166: 0 | K166: 0 | L166: =IF(COUNTIF(K$1:K166,K166)=1,K166,"") ->  | O166: 0 | P166: =SUMIF(Handy!A:A,N166,Handy!J:J) -> 0 | Q166: =SUMIF(Handy!A:A,N166,Handy!K:K) -> 0
A167: 2023-05-03 | B167: Alejandro Castanon Diaz | C167: Gary Hydracheck New Checkout quitar maquillaje viejo | D167: 07m | F167: 23:44:00 | G167: 23:51:00 | H167: 0 | I167: 0 | J167: 0.1166666667 | K167: 0 | L167: =IF(COUNTIF(K$1:K167,K167)=1,K167,"") ->  | O167: 0 | P167: =SUMIF(Handy!A:A,N167,Handy!J:J) -> 0 | Q167: =SUMIF(Handy!A:A,N167,Handy!K:K) -> 0
A168: 2023-05-03 | B168: Alejandro Castanon Diaz | C168: Viv Freelancer - Ecommerce Wordle | D168: 02m | F168: 23:57:00 | G168: 23:59:00 | H168: 0 | I168: 0 | J168: 0.03333333333 | K168: 0 | L168: =IF(COUNTIF(K$1:K168,K168)=1,K168,"") ->  | O168: 0 | P168: =SUMIF(Handy!A:A,N168,Handy!J:J) -> 0 | Q168: =SUMIF(Handy!A:A,N168,Handy!K:K) -> 0
A169: 2023-05-04 | B169: Alejandro Castanon Diaz | C169: Viv Freelancer - Ecommerce Wordle | D169: 14s | F169: 00:00:00 | G169: 00:00:00 | H169: 0 | I169: 0 | J169: 0 | K169: 0 | L169: =IF(COUNTIF(K$1:K169,K169)=1,K169,"") ->  | O169: 0 | P169: =SUMIF(Handy!A:A,N169,Handy!J:J) -> 0 | Q169: =SUMIF(Handy!A:A,N169,Handy!K:K) -> 0
A170: 2023-05-04 | B170: Alejandro Castanon Diaz | C170: Ricardo Freelancer - Accounting | D170: 8h 36m | F170: 00:00:00 | G170: 09:11:00 | H170: 0 | I170: 0 | J170: 8.6 | K170: 0 | L170: =IF(COUNTIF(K$1:K170,K170)=1,K170,"") ->  | O170: 0 | P170: =SUMIF(Handy!A:A,N170,Handy!J:J) -> 0 | Q170: =SUMIF(Handy!A:A,N170,Handy!K:K) -> 0
A171: 2023-05-04 | B171: Alejandro Castanon Diaz | C171: Gary Hydracheck New Checkout quitar maquillaje viejo | D171: 04m | F171: 01:03:00 | G171: 01:07:00 | H171: 0 | I171: 0 | J171: 0.06666666667 | K171: 0 | L171: =IF(COUNTIF(K$1:K171,K171)=1,K171,"") ->  | O171: 0 | P171: =SUMIF(Handy!A:A,N171,Handy!J:J) -> 0 | Q171: =SUMIF(Handy!A:A,N171,Handy!K:K) -> 0
A172: 2023-05-04 | B172: Alejandro Castanon Diaz | C172: Diana Inlat - Rehacer Ingeurbe | D172: 9s | F172: 05:25:00 | G172: 05:25:00 | H172: 0 | I172: 0 | J172: 0 | K172: 0.01666666667 | L172: =IF(COUNTIF(K$1:K172,K172)=1,K172,"") ->  | O172: 0 | P172: =SUMIF(Handy!A:A,N172,Handy!J:J) -> 0 | Q172: =SUMIF(Handy!A:A,N172,Handy!K:K) -> 0
A173: 2023-05-04 | B173: Alejandro Castanon Diaz | C173: Ricardo Freelancer - Accounting | D173: 09m | F173: 10:49:00 | G173: 10:59:00 | H173: 0 | I173: 0 | J173: 0.15 | K173: 0 | L173: =IF(COUNTIF(K$1:K173,K173)=1,K173,"") ->  | O173: 0 | P173: =SUMIF(Handy!A:A,N173,Handy!J:J) -> 0 | Q173: =SUMIF(Handy!A:A,N173,Handy!K:K) -> 0
A174: 2023-05-04 | B174: Alejandro Castanon Diaz | C174: Viv Freelancer - Ecommerce Wordle | D174: 10m | F174: 11:59:00 | G174: 12:09:00 | H174: 0 | I174: 0 | J174: 0.1666666667 | K174: 0 | L174: =IF(COUNTIF(K$1:K174,K174)=1,K174,"") ->  | O174: 0 | P174: =SUMIF(Handy!A:A,N174,Handy!J:J) -> 0 | Q174: =SUMIF(Handy!A:A,N174,Handy!K:K) -> 0
A175: 2023-05-04 | B175: Alejandro Castanon Diaz | C175: Ricardo Freelancer - Accounting | D175: 26m | F175: 12:09:00 | G175: 12:27:00 | H175: 0 | I175: 0 | J175: 0.4333333333 | K175: 0 | L175: =IF(COUNTIF(K$1:K175,K175)=1,K175,"") ->  | O175: 0 | P175: =SUMIF(Handy!A:A,N175,Handy!J:J) -> 0 | Q175: =SUMIF(Handy!A:A,N175,Handy!K:K) -> 0
A176: 2023-05-04 | B176: Alejandro Castanon Diaz | C176: Ricardo Freelancer - Accounting | D176: 10m | F176: 15:24:00 | G176: 15:34:00 | H176: 0 | I176: 0 | J176: 0.1666666667 | K176: 0 | L176: =IF(COUNTIF(K$1:K176,K176)=1,K176,"") ->  | O176: 0 | P176: =SUMIF(Handy!A:A,N176,Handy!J:J) -> 0 | Q176: =SUMIF(Handy!A:A,N176,Handy!K:K) -> 0
A177: 2023-05-04 | B177: Alejandro Castanon Diaz | C177: Ricardo Freelancer - Accounting | D177: 10m | F177: 18:58:00 | G177: 19:08:00 | H177: 0 | I177: 0 | J177: 0.1666666667 | K177: 0 | L177: =IF(COUNTIF(K$1:K177,K177)=1,K177,"") ->  | O177: 0 | P177: =SUMIF(Handy!A:A,N177,Handy!J:J) -> 0 | Q177: =SUMIF(Handy!A:A,N177,Handy!K:K) -> 0
A178: 2023-05-04 | B178: Alejandro Castanon Diaz | C178: Ricardo Freelancer - Accounting | D178: 13m | F178: 20:24:00 | G178: 20:46:00 | H178: 0 | I178: 0 | J178: 0.2166666667 | K178: 0 | L178: =IF(COUNTIF(K$1:K178,K178)=1,K178,"") ->  | O178: 0 | P178: =SUMIF(Handy!A:A,N178,Handy!J:J) -> 0 | Q178: =SUMIF(Handy!A:A,N178,Handy!K:K) -> 0
A179: 2023-05-05 | B179: Alejandro Castanon Diaz | C179: Faby - Candywax Depilaciones | D179: 2s | F179: 02:18:00 | G179: 02:18:00 | H179: 0 | I179: 0 | J179: 0 | K179: 0 | L179: =IF(COUNTIF(K$1:K179,K179)=1,K179,"") ->  | O179: 0 | P179: =SUMIF(Handy!A:A,N179,Handy!J:J) -> 0 | Q179: =SUMIF(Handy!A:A,N179,Handy!K:K) -> 0
A180: 2023-05-05 | B180: Alejandro Castanon Diaz | C180: Faby - PMI Ame Sitio multilang | D180: 11m | F180: 02:18:00 | G180: 02:30:00 | H180: 0 | I180: 0 | J180: 0.1833333333 | K180: 0 | L180: =IF(COUNTIF(K$1:K180,K180)=1,K180,"") ->  | O180: 0 | P180: =SUMIF(Handy!A:A,N180,Handy!J:J) -> 0 | Q180: =SUMIF(Handy!A:A,N180,Handy!K:K) -> 0
A181: 2023-05-05 | B181: Alejandro Castanon Diaz | C181: Gary Hydracheck New Checkout quitar maquillaje viejo | D181: 05m | F181: 02:30:00 | G181: 02:36:00 | H181: 0 | I181: 0 | J181: 0.08333333333 | K181: 0 | L181: =IF(COUNTIF(K$1:K181,K181)=1,K181,"") -> 
A182: 2023-05-05 | B182: Alejandro Castanon Diaz | C182: Viv Freelancer - Ecommerce Wordle | D182: 28m | F182: 02:36:00 | G182: 03:10:00 | H182: 0 | I182: 0 | J182: 0.4666666667 | K182: 0 | L182: =IF(COUNTIF(K$1:K182,K182)=1,K182,"") -> 
A183: 2023-05-05 | B183: Alejandro Castanon Diaz | C183: Ricardo Freelancer - Accounting | D183: 2h 11m | F183: 02:42:00 | G183: 04:41:00 | H183: 0 | I183: 0 | J183: 2.183333333 | K183: 0 | L183: =IF(COUNTIF(K$1:K183,K183)=1,K183,"") -> 
A184: 2023-05-05 | B184: Alejandro Castanon Diaz | C184: Gary Hydracheck New Checkout quitar maquillaje viejo | D184: 27m | F184: 03:10:00 | G184: 03:42:00 | H184: 0 | I184: 0 | J184: 0.45 | K184: 0 | L184: =IF(COUNTIF(K$1:K184,K184)=1,K184,"") -> 
A185: 2023-05-05 | B185: Alejandro Castanon Diaz | C185: Faby - Candywax Depilaciones | D185: 14s | F185: 03:15:00 | G185: 03:15:00 | H185: 0 | I185: 0 | J185: 0 | K185: 0 | L185: =IF(COUNTIF(K$1:K185,K185)=1,K185,"") -> 
A186: 2023-05-05 | B186: Alejandro Castanon Diaz | C186: Mama Madhu - prestamo | D186: 0s | F186: 03:23:00 | G186: 03:27:00 | H186: 0 | I186: 0 | J186: 0 | K186: 0 | L186: =IF(COUNTIF(K$1:K186,K186)=1,K186,"") -> 
A187: 2023-05-05 | B187: Alejandro Castanon Diaz | C187: Diana Inlat - Rehacer Ingeurbe | D187: 6h 32m | F187: 03:44:00 | G187: 10:18:00 | H187: 0 | I187: 0 | J187: 6.533333333 | K187: 0.01666666667 | L187: =IF(COUNTIF(K$1:K187,K187)=1,K187,"") -> 
A188: 2023-05-05 | B188: Alejandro Castanon Diaz | C188: Ricardo Freelancer - Accounting | D188: 02m | F188: 05:00:00 | G188: 05:02:00 | H188: 0 | I188: 0 | J188: 0.03333333333 | K188: 0 | L188: =IF(COUNTIF(K$1:K188,K188)=1,K188,"") -> 
A189: 2023-05-05 | B189: Alejandro Castanon Diaz | C189: Diana Inlat - Rehacer Ingeurbe | D189: 46m | F189: 10:18:00 | G189: 10:46:00 | H189: 0 | I189: 0 | J189: 0.7666666667 | K189: 0.01666666667 | L189: =IF(COUNTIF(K$1:K189,K189)=1,K189,"") -> 
A190: 2023-05-05 | B190: Alejandro Castanon Diaz | C190: Ricardo Freelancer - Accounting | D190: 07m | F190: 10:23:00 | G190: 10:30:00 | H190: 0 | I190: 0 | J190: 0.1166666667 | K190: 0 | L190: =IF(COUNTIF(K$1:K190,K190)=1,K190,"") -> 
A191: 2023-05-05 | B191: Alejandro Castanon Diaz | C191: Ricardo Freelancer - Accounting | D191: 1h 15m | F191: 10:46:00 | G191: 12:02:00 | H191: 0 | I191: 0 | J191: 1.25 | K191: 0 | L191: =IF(COUNTIF(K$1:K191,K191)=1,K191,"") -> 
A192: 2023-05-05 | B192: Alejandro Castanon Diaz | C192: Diana Inlat - Rehacer Ingeurbe | D192: 44m | F192: 11:17:00 | G192: 12:02:00 | H192: 0 | I192: 0 | J192: 0.7333333333 | K192: 0.01666666667 | L192: =IF(COUNTIF(K$1:K192,K192)=1,K192,"") -> 
A193: 2023-05-05 | B193: Alejandro Castanon Diaz | C193: Diana Inlat - Rehacer Ingeurbe | D193: 1h 32m | F193: 12:02:00 | G193: 13:20:00 | H193: 0 | I193: 0 | J193: 1.533333333 | K193: 0.01666666667 | L193: =IF(COUNTIF(K$1:K193,K193)=1,K193,"") -> 
A194: 2023-05-05 | B194: Alejandro Castanon Diaz | C194: Ricardo Freelancer - Accounting | D194: 19m | F194: 12:41:00 | G194: 13:08:00 | H194: 0 | I194: 0 | J194: 0.3166666667 | K194: =SUMIFS(J:J,C:C,C194,A:A,">"&$S$4) -> 0 | L194: =IF(COUNTIF(K$1:K194,K194)=1,K194,"") -> 
A195: 2023-05-05 | B195: Alejandro Castanon Diaz | C195: Ricardo Freelancer - Accounting | D195: 1h 13m | F195: 13:13:00 | G195: 14:28:00 | H195: 0 | I195: 0 | J195: =IF(D195="","",IF(ISERROR(FIND("s",D195)),IF(ISERROR(FIND("h ",D195)),LEFT(D195,2)/60, LEFT(D195,FIND("h ",D195)-1 )+LEFT(RIGHT(D195,3),2)/60 ),0)) -> 1.216666667 | K195: 0 | L195: =IF(COUNTIF(K$1:K195,K195)=1,K195,"") -> 
A196: 2023-05-05 | B196: Alejandro Castanon Diaz | C196: Ricardo Freelancer - Accounting | D196: 06m | F196: 15:10:00 | G196: 15:16:00 | H196: 0 | I196: 0 | J196: 0.1 | K196: 0 | L196: =IF(COUNTIF(K$1:K196,K196)=1,K196,"") -> 
A197: 2023-05-05 | B197: Alejandro Castanon Diaz | C197: Diana Inlat - Rehacer Ingeurbe | D197: 57m | F197: 15:16:00 | G197: 16:24:00 | H197: 0 | I197: 0 | J197: 0.95 | K197: 0.01666666667 | L197: =IF(COUNTIF(K$1:K197,K197)=1,K197,"") -> 
A198: 2023-05-05 | B198: Alejandro Castanon Diaz | C198: Ricardo Freelancer - Accounting | D198: 03m | F198: 15:48:00 | G198: 15:56:00 | H198: 0 | I198: 0 | J198: 0.05 | K198: 0 | L198: =IF(COUNTIF(K$1:K198,K198)=1,K198,"") -> 
A199: 2023-05-05 | B199: Alejandro Castanon Diaz | C199: Ricardo Freelancer - Accounting | D199: 36m | F199: 16:24:00 | G199: 17:00:00 | H199: 0 | I199: 0 | J199: 0.6 | K199: 0 | L199: =IF(COUNTIF(K$1:K199,K199)=1,K199,"") -> 
A200: 2023-05-05 | B200: Alejandro Castanon Diaz | C200: Diana Inlat - Rehacer Ingeurbe | D200: 41m | F200: 17:00:00 | G200: 17:52:00 | H200: 0 | I200: 0 | J200: 0.6833333333 | K200: 0.01666666667 | L200: =IF(COUNTIF(K$1:K200,K200)=1,K200,"") -> 
... 3800 more rows

Sheet Trello
A1: | | B1: |__grupo | C1: |__total | D1: |__tarjetas__| | E1: |__tarjetas__|__nombre | F1: |__tarjetas__|__numero | G1: |__tarjetas__|__checklist | H1: |__tarjetas__|__adjuntos | I1: |__tarjetas__|__comentarios | J1: |__tarjetas__|__card_age | K1: |__tarjetas__|__mxn | L1: |__tarjetas__|__debt | M1: |__tarjetas__|__cost | N1: |__tarjetas__|__foreign | O1: |__tarjetas__|__deadline | P1: |__tarjetas__|__delivered | Q1: |__tarjetas__|__sla | R1: |__tarjetas__|__timecamp | S1: |__tarjetas__|__estimate | T1: |__tarjetas__|__plugin__0 | U1: |__tarjetas__|__plugin__1 | V1: |__tarjetas__|__plugin__2 | W1: |__tarjetas__|__plugin__3 | X1: |__tarjetas__|__plugin__4 | Y1: |__tarjetas__|__plugin__5 | Z1: |__tarjetas__|__plugin__6
A2: Vendiendo | B2: Vendiendo | C2: 8 | D2: 0 | E2: Manuel Austria - agentur.xxx | H2: 2 | I2: 1 | J2: ⌚ 14 days | N2: Foreign: 2.100 | T2: ⌚ 14 days | U2: Foreign: 2.100
D3: 1 | E3: Wilbur LAX - lotusesthetic.com | H3: 3 | I3: 2 | J3: ⌚ 15 days | N3: Foreign: 800 | S3: Estimate hrs: 20 | T3: ⌚ 15 days | U3: Foreign: 800 | V3: Estimate hrs: 20
D4: 2 | E4: Ricardo CDMX - Página web | H4: 2 | I4: 1 | J4: ⌚ 18 days | N4: Foreign: 500 | T4: ⌚ 18 days | U4: Foreign: 500
D5: 3 | E5: Juan Balnearis - Landing bodyclinic | H5: 1 | I5: 1 | J5: ⌚ 14 days | N5: Foreign: 75 | T5: ⌚ 14 days | U5: Foreign: 75
D6: 4 | E6: Francisco Inlat - Nuevo Figurella Franquicias | H6: 1 | I6: 1 | J6: ⌚ 141 days | N6: Foreign: 1.400 | S6: Estimate hrs: 40 | T6: ⌚ 141 days | U6: Foreign: 1.400 | V6: Estimate hrs: 40
D7: 5 | E7: Ricardo Cuerna - Designer space | H7: 3 | I7: 2 | J7: ⌚ 6 days | N7: Foreign: 750 | S7: Estimate hrs: 20 | T7: ⌚ 6 days | U7: Foreign: 750 | V7: Estimate hrs: 20
D8: 6 | E8: Faby - APIs Libreria y rediseño | I8: 1 | J8: ⌚ 1 days | K8: MXN: 22.000 | T8: ⌚ 1 days | U8: MXN: 22.000
D9: 7 | E9: Eduardo Freelancer - cambios Arekkusu 2do round | H9: 1 | I9: 1 | J9: ⌚ 1 days | N9: Foreign: 300 | T9: ⌚ 1 days | U9: Foreign: 300
A10: Actual | B10: Actual | C10: 6 | D10: 0 | E10: Ricardo CDMX - Excel a Plataforma Web | G10: 2023-05-04 | H10: 2 | I10: 4 | J10: ⌚ 18 days | N10: Foreign: 300 | O10: Deadline: Mi., 30. Aug. 2023 | P10: Delivered: Fr., 1. Sept. 2023 | Q10: 2d 18h | R10: 15:26:00 | T10: ⌚ 18 days | U10: Foreign: 300 | V10: Deadline: Mi., 30. Aug. 2023 | W10: Delivered: Fr., 1. Sept. 2023 | X10: 2d 18h | Y10: 15:26:00
D11: 1 | E11: Jaidi Col - PDF online marker | H11: 5 | I11: 4 | J11: ⌚ 12 days | N11: Foreign: 700 | O11: Deadline: Fr., 15. Sept. 2023 | Q11: 3d 6h | R11: 00:36:00 | S11: Estimate hrs: 15 | T11: ⌚ 12 days | U11: Foreign: 700 | V11: Estimate hrs: 15 | W11: Deadline: Fr., 15. Sept. 2023 | X11: 3d 6h | Y11: 00:36:00
D12: 2 | E12: Francisco Inlat - Ingeurbe Ingles | H12: 1 | I12: 4 | J12: ⌚ 22 days | N12: Foreign: 800 | Q12: 14d 2h | T12: ⌚ 22 days | U12: Foreign: 800 | V12: 14d 2h
D13: 3 | E13: Gary Hydracheck - safe-2-bleed Quote on contact | H13: 2 | J13: ⌚ 1 days | Q13: 14d 5h | T13: ⌚ 1 day | U13: 14d 5h
D14: 4 | E14: Ricardo Cuerna - Fixum Carta Porte | H14: 1 | I14: 3 | J14: ⌚ 28 days | N14: Foreign: 2.500 | Q14: 8d 5h | R14: 00:01:00 | T14: ⌚ 28 days | U14: Foreign: 2.500 | V14: 8d 5h | W14: 00:01:00
D15: 5 | E15: Juan Balnearis - Bodyclinicmx cambios | H15: 6 | I15: 3 | J15: ⌚ 23 days | N15: Foreign: 200 | Q15: 9h 19min | R15: 00:37:00 | T15: ⌚ 23 days | U15: Foreign: 200 | V15: 9h 19min | W15: 00:37:00
A16: Cobrando | B16: Cobrando | C16: 7 | D16: 0 | E16: Faby - Crawler Farmakosto | G16: 2023-04-04 | H16: 1 | I16: 5 | J16: ⌚ 43 days | K16: MXN: 30.000 | L16: Debt: 15.000 | O16: Deadline: Mi., 13. Sept. 2023 | Q16: 14d 5h | R16: 0.4173611111 | T16: ⌚ 43 days | U16: MXN: 30.000 | V16: Debt: 15.000 | W16: Deadline: Mi., 13. Sept. 2023 | X16: 14d 5h | Y16: 10:01:00
D17: 1 | E17: Bjorn Sueco - Speedup | H17: 1 | I17: 1 | J17: ⌚ 3 days | N17: Foreign: 300 | Q17: 14d 10h | T17: ⌚ 3 days | U17: Foreign: 300 | V17: 14d 10h
D18: 2 | E18: Juan Balnearis - unidades medicas | H18: 3 | I18: 3 | J18: ⌚ 23 days | N18: Foreign: 400 | Q18: 10d 6h | R18: 00:37:00 | T18: ⌚ 23 days | U18: Foreign: 400 | V18: 10d 6h | W18: 00:37:00
D19: 3 | E19: Daren frelancer - cambios maintenance form | H19: 5 | I19: 8 | J19: ⌚ 15 days | L19: Debt: 100 | N19: Foreign: 100 | Q19: 1d 6h | R19: 01:00:00 | T19: ⌚ 15 days | U19: Foreign: 100 | V19: Debt: 100 | W19: 1d 6h | X19: 01:00:00
D20: 4 | E20: Rodrigo Techservices - Kanatest Hosting | I20: 2 | J20: ⌚ 70 days | K20: MXN: 2.000 | L20: Debt: 1.700 | Q20: -54d 21h | T20: ⌚ 70 days | U20: MXN: 2.000 | V20: Debt: 1.700 | W20: -54d 21h
D21: 5 | E21: Ricardo Freelancer - BDD Spotify | G21: 42/46 | H21: 5 | I21: 10 | J21: ⌚ 321 days | L21: Debt: 257 | N21: Foreign: 5.497 | R21: 09:52:00 | T21: ⌚ 321 days | U21: Foreign: 5.497 | V21: Debt: 257 | W21: 09:52:00
D22: 6 | E22: Yordi - Prestamo Kennedy | H22: 1 | I22: 1 | J22: ⌚ 12 days | K22: MXN: 1.750 | Q22: 2d 14h | T22: ⌚ 12 days | U22: MXN: 1.750 | V22: 2d 14h
A23: Terminado | B23: Terminado | C23: 118 | D23: 0 | E23: Alejandro Disidentes - Sixbell | H23: 4 | I23: 3 | J23: ⌚ 65 days | L23: Debt: 0 | N23: Foreign: 450 | R23: 07:53:00 | T23: ⌚ 65 days | U23: Foreign: 450 | V23: Debt: 0 | W23: 07:53:00
D24: 1 | E24: Gary Hydracheck - add to cart godspeedsocks | I24: 3 | J24: ⌚ 15 days | L24: Debt: 100 | M24: Cost: 10 $ | N24: Foreign: 100 | T24: ⌚ 15 days | U24: Foreign: 100 | V24: Debt: 100 | W24: Cost: 10 $
D25: 2 | E25: Ricardo Cuerna - Fixum facturacion | H25: 12 | I25: 9 | J25: ⌚ 83 days | L25: Debt: 0 | N25: Foreign: 1.900 | O25: Deadline: Mo., 31. Juli 2023 | R25: 1.080555556 | S25: Estimate hrs: 40 | T25: ⌚ 83 days | U25: Foreign: 1.900 | V25: Debt: 0 | W25: Estimate hrs: 40 | X25: Deadline: Mo., 31. Juli 2023 | Y25: 1.080555556
D26: 3 | E26: Viv Freelancer - 5 column filter | H26: 4 | I26: 8 | J26: ⌚ 32 days | L26: Debt: 0 | N26: Foreign: 200 | P26: Delivered: Di., 29. Aug. 2023 | R26: 09:03:00 | T26: ⌚ 32 days | U26: Foreign: 200 | V26: Debt: 0 | W26: Delivered: Di., 29. Aug. 2023 | X26: 09:03:00
D27: 4 | E27: Juan Balnearis - Landing y cambios web | H27: 6 | I27: 3 | J27: ⌚ 30 days | L27: Debt: 0 | N27: Foreign: 350 | P27: Delivered: Di., 29. Aug. 2023 | R27: 09:38:00 | T27: ⌚ 30 days | U27: Foreign: 350 | V27: Debt: 0 | W27: Delivered: Di., 29. Aug. 2023 | X27: 09:38:00
D28: 5 | E28: Juan Balnearis - promedicamujer | H28: 2 | I28: 4 | J28: ⌚ 22 days | L28: Debt: 0 | N28: Foreign: 200 | O28: Deadline: Do., 24. Aug. 2023 | P28: Delivered: Di., 29. Aug. 2023 | R28: 00:40:00 | T28: ⌚ 22 days | U28: Foreign: 200 | V28: Debt: 0 | W28: Deadline: Do., 24. Aug. 2023 | X28: Delivered: Di., 29. Aug. 2023 | Y28: 00:40:00
D29: 6 | E29: Andres - Checkout fondo apuestas | I29: 3 | J29: ⌚ 25 days | K29: MXN: 3.000 | L29: Debt: 0 | T29: ⌚ 25 days | U29: MXN: 3.000 | V29: Debt: 0
D30: 7 | E30: Thomas Ferdinand - Website | H30: 4 | I30: 11 | J30: ⌚ 58 days | L30: Debt: 375 | M30: Cost: 220 $ | N30: Foreign: 375 | O30: Deadline: Mi., 26. Juli 2023 | P30: Delivered: Di., 22. Aug. 2023 | R30: 02:10:00 | T30: ⌚ 58 days | U30: Foreign: 375 | V30: Debt: 375 | W30: Cost: 220 $ | X30: Deadline: Mi., 26. Juli 2023 | Y30: Delivered: Di., 22. Aug. 2023 | Z30: 0.09027777778
D31: 8 | E31: Paul Freelancer - 2nd round crypto website | H31: 1 | I31: 2 | J31: ⌚ 30 days | L31: Debt: 0 | N31: Foreign: 205 | R31: 03:28:00 | T31: ⌚ 30 days | U31: Foreign: 205 | V31: Debt: 0 | W31: 03:28:00
D32: 9 | E32: Bjorn Sueco - Nordic foods 2nd round | H32: 4 | I32: 11 | J32: ⌚ 54 days | L32: Debt: 0 | M32: Cost: 212 $ | N32: Foreign: 600 | R32: 10:39:00 | T32: ⌚ 54 days | U32: Foreign: 600 | V32: Debt: 0 | W32: Cost: 212 $ | X32: 10:39:00
D33: 10 | E33: Carlos Sanchez - rehacer chrishop.mx | H33: 1 | I33: 2 | J33: ⌚ 70 days | K33: MXN: 1.000 | R33: 01:03:00 | T33: ⌚ 70 days | U33: MXN: 1.000 | V33: 01:03:00
D34: 11 | E34: Paul Freelancer - Coinbase API site | H34: 3 | I34: 8 | J34: ⌚ 64 days | L34: Debt: 0 | M34: Cost: 200 $ | N34: Foreign: 575 | O34: Deadline: Di., 25. Juli 2023 | R34: 01:17:00 | S34: Estimate hrs: 10 | T34: ⌚ 64 days | U34: Foreign: 575 | V34: Debt: 0 | W34: Cost: 200 $ | X34: Estimate hrs: 10 | Y34: Deadline: Di., 25. Juli 2023 | Z34: 0.05347222222
D35: 12 | E35: Viv Freelancer - Fourdle game | G35: 2023-02-01 | H35: 1 | I35: 21 | J35: ⌚ 65 days | L35: Debt: 0 | M35: Cost: 470 $ | N35: Foreign: 685 | O35: Deadline: Mi., 26. Juli 2023 | R35: 1.157638889 | T35: ⌚ 65 days | U35: Foreign: 685 | V35: Debt: 0 | W35: Cost: 470 $ | X35: Deadline: Mi., 26. Juli 2023 | Y35: 1.157638889
D36: 13 | E36: Mama Madhu préstamo | I36: 2 | J36: ⌚ 79 days | K36: MXN: 5.000 | O36: Deadline: Mo., 10. Juli 2023 | T36: ⌚ 79 days | U36: MXN: 5.000 | V36: Deadline: Mo., 10. Juli 2023
D37: 14 | E37: Juan Balnearis - Maquetar figma a html | H37: 6 | I37: 8 | J37: ⌚ 50 days | L37: Debt: 0 | M37: Cost: 140 $ | N37: Foreign: 325 | R37: 00:10:00 | T37: ⌚ 50 days | U37: Foreign: 325 | V37: Debt: 0 | W37: Cost: 140 $ | X37: 00:10:00
D38: 15 | E38: Sam - Peters Window Hosting | I38: 3 | J38: ⌚ 42 days | L38: Debt: 0 | N38: Foreign: 100 | T38: ⌚ 42 days | U38: Foreign: 100 | V38: Debt: 0
D39: 16 | E39: Diana Inlat - Ingeurbe Tablet e Ingles | H39: 1 | I39: 1 | J39: ⌚ 114 days | M39: Cost: 50 $ | N39: Foreign: 500 | R39: 01:30:00 | S39: Estimate hrs: 5 | T39: ⌚ 114 days | U39: Foreign: 500 | V39: Cost: 50 $ | W39: Estimate hrs: 5 | X39: 01:30:00
D40: 17 | E40: Faby - LB Logistics | H40: 1 | I40: 10 | J40: ⌚ 110 days | K40: MXN: 12.000 | L40: Debt: 0 | M40: Cost: 260 $ | O40: Deadline: Do., 20. Juli 2023 | R40: 10:49:00 | S40: Estimate hrs: 5 | T40: ⌚ 110 days | U40: MXN: 12.000 | V40: Debt: 0 | W40: Cost: 260 $ | X40: Estimate hrs: 5 | Y40: Deadline: Do., 20. Juli 2023 | Z40: 10:49:00
D41: 18 | E41: Ricardo Freelancer - Accounting | G41: 52/61 | H41: 16 | I41: 12 | J41: ⌚ 162 days | L41: Debt: 0 | N41: Foreign: 6.000 | O41: Deadline: Fr., 28. Apr. 2023 | R41: 6.227083333 | T41: ⌚ 162 days | U41: Foreign: 6.000 | V41: Debt: 0 | W41: Deadline: Fr., 28. Apr. 2023 | X41: 6.227083333
D42: 19 | E42: Nana maletas Feb 23 | I42: 1 | J42: ⌚ 78 days | K42: MXN: 1.750 | T42: ⌚ 78 days | U42: MXN: 1.750
D43: 20 | E43: Steve 5 10 - Página personal protfolio | H43: 4 | I43: 7 | J43: ⌚ 111 days | L43: Debt: 0 | M43: Cost: 75 $ | N43: Foreign: 450 | O43: Deadline: Fr., 21. Juli 2023 | R43: 0.3194444444 | T43: ⌚ 111 days | U43: Foreign: 450 | V43: Debt: 0 | W43: Cost: 75 $ | X43: Deadline: Fr., 21. Juli 2023 | Y43: 07:40:00
D44: 21 | E44: Daren freelancer - Nuevo Form | H44: 1 | I44: 5 | J44: ⌚ 97 days | L44: Debt: 0 | N44: Foreign: 250 | R44: 00:19:00 | S44: Estimate hrs: 5 | T44: ⌚ 97 days | U44: Foreign: 250 | V44: Debt: 0 | W44: Estimate hrs: 5 | X44: 00:19:00
D45: 22 | E45: Samantha - vuelo mty | I45: 3 | J45: ⌚ 185 days | K45: MXN: 4.148 | L45: Debt: 4.148 | T45: ⌚ 185 days | U45: MXN: 4.148 | V45: Debt: 4.148
D46: 23 | E46: Gary Hydracheck - Fix quote shipping | H46: 2 | I46: 8 | J46: ⌚ 79 days | L46: Debt: 0 | N46: Foreign: 250 | R46: 04:36:00 | S46: Estimate hrs: 5 | T46: ⌚ 79 days | U46: Foreign: 250 | V46: Debt: 0 | W46: Estimate hrs: 5 | X46: 04:36:00
D47: 24 | E47: Yordi - préstamo fisher's | I47: 3 | J47: ⌚ 65 days | K47: MXN: 1.500 | O47: Deadline: So., 13. Aug. 2023 | T47: ⌚ 65 days | U47: MXN: 1.500 | V47: Deadline: So., 13. Aug. 2023
D48: 25 | E48: Bjorn Sueco - ajustes Woo y POS | H48: 4 | I48: 3 | J48: ⌚ 112 days | L48: Debt: 0 | M48: Cost: 450 $ | N48: Foreign: 900 | R48: 08:54:00 | S48: Estimate hrs: 10 | T48: ⌚ 112 days | U48: Foreign: 900 | V48: Debt: 0 | W48: Cost: 450 $ | X48: Estimate hrs: 10 | Y48: 08:54:00
D49: 26 | E49: Carlos Freelancer - Tarea flowchart y reporte | H49: 2 | I49: 4 | J49: ⌚ 69 days | M49: Cost: 0 $ | N49: Foreign: 50 | R49: 01:13:00 | S49: Estimate hrs: 1 | T49: ⌚ 69 days | U49: Foreign: 50 | V49: Cost: 0 $ | W49: Estimate hrs: 1 | X49: 01:13:00
D50: 27 | E50: Rodrigo Techservices - Techservices Hosting y run4you | H50: 8 | I50: 5 | J50: ⌚ 110 days | K50: MXN: 3.000 | R50: 0.1 | S50: Estimate hrs: 2 | T50: ⌚ 110 days | U50: MXN: 3.000 | V50: Estimate hrs: 2 | W50: 02:24:00
D51: 28 | E51: Carlos Freelancer - Tarea API Tickers | H51: 1 | I51: 1 | J51: ⌚ 76 days | N51: Foreign: 500 | R51: 13:09:00 | T51: ⌚ 76 days | U51: Foreign: 500 | V51: 13:09:00
D52: 29 | E52: Faby - PMI Ame Sitio multilang | G52: 19/21 | H52: 4 | I52: 5 | J52: ⌚ 180 days | K52: MXN: 13.000 | L52: Debt: 6.500 | M52: Cost: 200 $ | O52: Deadline: Fr., 28. Apr. 2023 | R52: 10:19:00 | S52: Estimate hrs: 10 | T52: ⌚ 180 days | U52: MXN: 13.000 | V52: Debt: 6.500 | W52: Cost: 200 $ | X52: Estimate hrs: 10 | Y52: Deadline: Fr., 28. Apr. 2023 | Z52: 10:19:00
D53: 30 | E53: Viv Freelancer - Historic wordle | H53: 2 | I53: 2 | J53: ⌚ 76 days | L53: Debt: 125 | N53: Foreign: 250 | R53: 04:44:00 | T53: ⌚ 76 days | U53: Foreign: 250 | V53: Debt: 125 | W53: 04:44:00
D54: 31 | E54: Faby - Candywax Depilaciones | G54: 13/18 | H54: 2 | I54: 2 | J54: ⌚ 237 days | K54: MXN: 12.000 | L54: Debt: 7.000 | O54: Deadline: Di., 28. Feb. 2023 | P54: Delivered: Mi., 8. März 2023 | R54: 02:40:00 | T54: ⌚ 237 days | U54: MXN: 12.000 | V54: Debt: 7.000 | W54: Deadline: Di., 28. Feb. 2023 | X54: Delivered: Mi., 8. März 2023 | Y54: 02:40:00
D55: 32 | E55: Mama Madhu - prestamo | H55: 1 | I55: 3 | J55: ⌚ 151 days | K55: MXN: 6.000 | L55: Debt: -400 | R55: 00:41:00 | T55: ⌚ 151 days | U55: MXN: 6.000 | V55: Debt: -400 | W55: 00:41:00
D56: 33 | E56: Eduardo Freelancer - Inmobiliaria Cambios php pura | H56: 5 | I56: 3 | J56: ⌚ 224 days | L56: Debt: 0 | M56: Cost: 200 $ | N56: Foreign: 500 | R56: 07:03:00 | T56: ⌚ 224 days | U56: Foreign: 500 | V56: Debt: 0 | W56: Cost: 200 $ | X56: 07:03:00
D57: 34 | E57: Emilio pinturas arreglar su sitio | H57: 1 | I57: 1 | J57: ⌚ 90 days | N57: Foreign: 35 | T57: ⌚ 90 days | U57: Foreign: 35
D58: 35 | E58: Gary Hydracheck - Quote page makeup | H58: 1 | I58: 1 | J58: ⌚ 115 days | M58: Cost: 80 $ | N58: Foreign: 200 | R58: 05:57:00 | T58: ⌚ 115 days | U58: Foreign: 200 | V58: Cost: 80 $ | W58: 05:57:00
D59: 36 | E59: Viv Freelancer - Soporte anual $200 | H59: 2 | I59: 1 | J59: ⌚ 96 days | N59: Foreign: 230 | R59: 06:01:00 | T59: ⌚ 96 days | U59: Foreign: 230 | V59: 06:01:00
D60: 37 | E60: Daren freelancer - nuevo form precisemd | H60: 4 | I60: 1 | J60: ⌚ 112 days | M60: Cost: 30 $ | N60: Foreign: 250 | R60: 08:54:00 | T60: ⌚ 112 days | U60: Foreign: 250 | V60: Cost: 30 $ | W60: 08:54:00
D61: 38 | E61: Viv Freelancer - Ecommerce Wordle | G61: 41/43 | H61: 6 | I61: 8 | J61: ⌚ 175 days | L61: Debt: 0 | N61: Foreign: 885 | O61: Deadline: Mi., 12. Apr. 2023 | R61: 21:18:00 | S61: Estimate hrs: 20 | T61: ⌚ 175 days | U61: Foreign: 885 | V61: Debt: 0 | W61: Estimate hrs: 20 | X61: Deadline: Mi., 12. Apr. 2023 | Y61: 21:18:00
D62: 39 | E62: Miguel Bullkens - B2B Nuevo Exchange | H62: 3 | I62: 1 | J62: ⌚ 239 days | L62: Debt: 350 | N62: Foreign: 650 | O62: Deadline: Fr., 17. Feb. 2023 | R62: 0.06875 | S62: Estimate hrs: 5 | T62: ⌚ 239 days | U62: Foreign: 650 | V62: Debt: 350 | W62: Estimate hrs: 5 | X62: Deadline: Fr., 17. Feb. 2023 | Y62: 01:39:00
D63: 40 | E63: Yamel - renovación Konditorhusset 2023 | I63: 1 | J63: ⌚ 110 days | K63: MXN: 2.000 | T63: ⌚ 110 days | U63: MXN: 2.000
D64: 41 | E64: Viv Freelancer - hosting migration | H64: 1 | I64: 1 | J64: ⌚ 115 days | N64: Foreign: 400 | R64: 05:27:00 | S64: Estimate hrs: 3 | T64: ⌚ 115 days | U64: Foreign: 400 | V64: Estimate hrs: 3 | W64: 05:27:00
D65: 42 | E65: Xavier Bobby - Itel plugins desactivar | H65: 4 | I65: 2 | J65: ⌚ 152 days | L65: Debt: 35 | N65: Foreign: 35 | R65: 00:08:00 | T65: ⌚ 152 days | U65: Foreign: 35 | V65: Debt: 35 | W65: 00:08:00
D66: 43 | E66: Pablo Nanofactura - Soporte errores | H66: 2 | I66: 2 | J66: ⌚ 125 days | K66: MXN: 2.100 | L66: Debt: 2.100 | R66: 04:48:00 | S66: Estimate hrs: 3 | T66: ⌚ 125 days | U66: MXN: 2.100 | V66: Debt: 2.100 | W66: Estimate hrs: 3 | X66: 04:48:00
D67: 44 | E67: Diana Inlat - Rehacer Ingeurbe | G67: 2023-07-06 | H67: 5 | I67: 3 | J67: ⌚ 196 days | L67: Debt: 650 | M67: Cost: 250 $ | N67: Foreign: 1.000 | O67: Deadline: Fr., 21. Apr. 2023 | R67: 1.833333333 | S67: Estimate hrs: 15 | T67: ⌚ 196 days | U67: Foreign: 1.000 | V67: Debt: 650 | W67: Cost: 250 $ | X67: Estimate hrs: 15 | Y67: Deadline: Fr., 21. Apr. 2023 | Z67: 1.833333333
D68: 45 | E68: Pablo Nanofactura - Con IVA o sin IVA premium function global | H68: 1 | J68: ⌚ 145 days | R68: 03:58:00 | T68: ⌚ 145 days | U68: 03:58:00
D69: 46 | E69: Rodrigo Techservices - WP Run4u | I69: 2 | J69: ⌚ 166 days | K69: MXN: 350 | T69: ⌚ 166 days | U69: MXN: 350
D70: 47 | E70: Gary Hydracheck New Checkout quitar maquillaje viejo | H70: 1 | I70: 4 | J70: ⌚ 140 days | L70: Debt: 0 | N70: Foreign: 200 | O70: Deadline: Fr., 5. Mai 2023 | P70: Delivered: Mi., 3. Mai 2023 | Q70: -124d 18h | R70: 03:04:00 | T70: ⌚ 140 days | U70: Foreign: 200 | V70: Debt: 0 | W70: Deadline: Fr., 5. Mai 2023 | X70: Delivered: Mi., 3. Mai 2023 | Y70: -124d 18h | Z70: 03:04:00
D71: 48 | E71: Gustavo Freelancer - Cambios pag ITESM | G71: 2023-03-03 | H71: 5 | I71: 5 | J71: ⌚ 238 days | K71: MXN: 2.750 | L71: Debt: 1.125 | O71: Deadline: Di., 24. Jan. 2023 | P71: Delivered: Do., 26. Jan. 2023 | R71: 02:25:00 | T71: ⌚ 238 days | U71: MXN: 2.750 | V71: Debt: 1.125 | W71: Deadline: Di., 24. Jan. 2023 | X71: Delivered: Do., 26. Jan. 2023 | Y71: 02:25:00
D72: 49 | E72: Pablo Nanofactura - Nuevo Diseño y nueva API | H72: 7 | I72: 8 | J72: ⌚ 212 days | K72: MXN: 11.000 | L72: Debt: 3.300 | O72: Deadline: Fr., 24. Feb. 2023 | P72: Delivered: Di., 4. Apr. 2023 | S72: Estimate hrs: 25 | T72: ⌚ 212 days | U72: MXN: 11.000 | V72: Debt: 3.300 | W72: Estimate hrs: 25 | X72: Deadline: Fr., 24. Feb. 2023 | Y72: Delivered: Di., 4. Apr. 2023
D73: 50 | E73: Emilio Pinturas - bug lotes | H73: 5 | I73: 1 | J73: ⌚ 162 days | N73: Foreign: 30 | T73: ⌚ 162 days | U73: Foreign: 30
D74: 51 | E74: Xavier Bobby - Itel y Movitel Landings | G74: 41/42 | H74: 7 | I74: 7 | J74: ⌚ 260 days | L74: Debt: 0 | N74: Foreign: 600 | O74: Deadline: Mi., 22. März 2023 | R74: 1.646527778 | S74: Estimate hrs: 35 | T74: ⌚ 260 days | U74: Foreign: 600 | V74: Debt: 0 | W74: Estimate hrs: 35 | X74: Deadline: Mi., 22. März 2023 | Y74: 1.646527778
D75: 52 | E75: yo - Migración de mi Whatsapp normal a Business | H75: 16 | J75: ⌚ 172 days | Q75: -157d 11h | T75: ⌚ 172 days | U75: -157d 11h
D76: 53 | E76: Viv Freelancer - Wordle New Probability | H76: 2 | I76: 1 | J76: ⌚ 175 days | N76: Foreign: 80 | O76: Deadline: Fr., 24. März 2023 | T76: ⌚ 175 days | U76: Foreign: 80 | V76: Deadline: Fr., 24. März 2023
D77: 54 | E77: Santiago Freelancer - EncuentraTuBote | G77: 41/41 | H77: 2 | I77: 1 | J77: ⌚ 357 days | L77: Debt: 250 | N77: Foreign: 500 | O77: Deadline: Fr., 27. Jan. 2023 | T77: ⌚ 357 days | U77: Foreign: 500 | V77: Debt: 250 | W77: Deadline: Fr., 27. Jan. 2023
D78: 55 | E78: John Freelancer - Traducción Form Ingles | H78: 4 | I78: 1 | J78: ⌚ 187 days | L78: Debt: -150 | N78: Foreign: 200 | T78: ⌚ 187 days | U78: Foreign: 200 | V78: Debt: -150
D79: 56 | E79: Emilio pinturas - Pinturas fix error | J79: ⌚ 187 days | N79: Foreign: 25 | T79: ⌚ 187 days | U79: Foreign: 25
D80: 57 | E80: Gary Hydracheck - Checkout zipcode issue | J80: ⌚ 188 days | N80: Foreign: 30 | T80: ⌚ 188 days | U80: Foreign: 30
D81: 58 | E81: Nana - maletas | I81: 2 | J81: ⌚ 226 days | K81: MXN: 4.292 | L81: Debt: 3.847 | T81: ⌚ 226 days | U81: MXN: 4.292 | V81: Debt: 3.847
D82: 59 | E82: Viv Freelancer - Doble letra | J82: ⌚ 191 days | N82: Foreign: 30 | T82: ⌚ 191 days | U82: Foreign: 30
D83: 60 | E83: Miguel Bullkens - Bots Demo desde historico o desde 0 | G83: 2023-08-03 | H83: 1 | J83: ⌚ 216 days | N83: Foreign: 200 | O83: Deadline: So., 12. Feb. 2023 | P83: Delivered: So., 12. Feb. 2023 | T83: ⌚ 216 days | U83: Foreign: 200 | V83: Deadline: So., 12. Feb. 2023 | W83: Delivered: So., 12. Feb. 2023
D84: 61 | E84: Samantha - Concierto Banda | I84: 2 | J84: ⌚ 204 days | K84: MXN: 3.045 | T84: ⌚ 204 days | U84: MXN: 3.045
D85: 62 | E85: Viv Freelancer - Strict mode & score | I85: 2 | J85: ⌚ 210 days | N85: Foreign: 350 | P85: Delivered: Di., 21. Feb. 2023 | T85: ⌚ 210 days | U85: Foreign: 350 | V85: Delivered: Di., 21. Feb. 2023
D86: 63 | E86: Samantha - La Paz Dinn | I86: 3 | J86: ⌚ 204 days | K86: MXN: 9.222 | T86: ⌚ 204 days | U86: MXN: 9.222
D87: 64 | E87: Nana - Vuelo Tijuana | I87: 1 | J87: ⌚ 211 days | K87: MXN: 3.555 | T87: ⌚ 211 days | U87: MXN: 3.555
D88: 65 | E88: Viv Freelancer - Sort out words | H88: 3 | J88: ⌚ 222 days | N88: Foreign: 150 | T88: ⌚ 222 days | U88: Foreign: 150
D89: 66 | E89: Nana - bus Oaxaca | I89: 1 | J89: ⌚ 210 days | K89: MXN: 1.290 | T89: ⌚ 210 days | U89: MXN: 1.290
D90: 67 | E90: Pablo Nanofactura - Nanofactura Factura API | G90: 39/47 | H90: 14 | I90: 6 | J90: ⌚ 330 days | K90: MXN: 50.000 | L90: Debt: 0 | O90: Deadline: Fr., 9. Dez. 2022 | P90: Delivered: Fr., 10. Feb. 2023 | T90: ⌚ 330 days | U90: MXN: 50.000 | V90: Debt: 0 | W90: Deadline: Fr., 9. Dez. 2022 | X90: Delivered: Fr., 10. Feb. 2023
D91: 68 | E91: Carrascosa - Firma Valuación | I91: 1 | J91: ⌚ 211 days | K91: MXN: 2.000 | T91: ⌚ 211 days | U91: MXN: 2.000
D92: 69 | E92: Diana Inlat - Ingeurbe Proyectos Acordeon fix | H92: 1 | J92: ⌚ 217 days | N92: Foreign: 75 | T92: ⌚ 217 days | U92: Foreign: 75
D93: 70 | E93: Gustavo Freelancer - Diloconfresas gmaps checkout | I93: 1 | J93: ⌚ 237 days | K93: MXN: 500 | P93: Delivered: Do., 2. Feb. 2023 | T93: ⌚ 237 days | U93: MXN: 500 | V93: Delivered: Do., 2. Feb. 2023
D94: 71 | E94: Caba - prestamo | I94: 1 | J94: ⌚ 239 days | K94: MXN: 5.000 | O94: Deadline: Mi., 15. Feb. 2023 | P94: Delivered: Mo., 9. Jan. 2023 | T94: ⌚ 239 days | U94: MXN: 5.000 | V94: Deadline: Mi., 15. Feb. 2023 | W94: Delivered: Mo., 9. Jan. 2023
D95: 72 | E95: Viv Freelancer - Wordle word filter | H95: 2 | I95: 2 | J95: ⌚ 231 days | L95: Debt: 480 | N95: Foreign: 800 | T95: ⌚ 231 days | U95: Foreign: 800 | V95: Debt: 480
D96: 73 | E96: Yamel Freelancer - Konditorhusset 1hr cambios | J96: ⌚ 226 days | N96: Foreign: 30 | T96: ⌚ 226 days | U96: Foreign: 30
D97: 74 | E97: Rigoberto Freelancer - YourQuickMoney | H97: 4 | I97: 3 | J97: ⌚ 345 days | N97: Foreign: 1.200 | O97: Deadline: Fr., 21. Okt. 2022 | T97: ⌚ 345 days | U97: Foreign: 1.200 | V97: Deadline: Fr., 21. Okt. 2022
D98: 75 | E98: Nick Advizee - new edits, filtros, nueva plataforma y advizee free ssl | H98: 1 | I98: 10 | J98: ⌚ 293 days | L98: Debt: 0 | N98: Foreign: 200 | T98: ⌚ 293 days | U98: Foreign: 200 | V98: Debt: 0
D99: 76 | E99: Francisco Inlat - Ingeurbe cfield y badge | J99: ⌚ 258 days | N99: Foreign: 90 | T99: ⌚ 258 days | U99: Foreign: 90
D100: 77 | E100: Papa - EdiEco CRM | G100: 15/16 | I100: 2 | J100: ⌚ 366 days | K100: MXN: 15.000 | L100: Debt: 0 | O100: Deadline: Mo., 31. Okt. 2022 | T100: ⌚ 366 days | U100: MXN: 15.000 | V100: Debt: 0 | W100: Deadline: Mo., 31. Okt. 2022
D101: 78 | E101: Daren Freelancer - Precise DM cambios | H101: 6 | J101: ⌚ 293 days | N101: Foreign: 180 | P101: Delivered: Mi., 30. Nov. 2022 | T101: ⌚ 293 days | U101: Foreign: 180 | V101: Delivered: Mi., 30. Nov. 2022
D102: 79 | E102: Miguel Bullkens - Reunion 2da parte | G102: 2023-05-05 | H102: 12 | I102: 3 | J102: ⌚ 369 days | L102: Debt: 0 | N102: Foreign: 600 | O102: Deadline: Mo., 17. Okt. 2022 | P102: Delivered: Mi., 26. Okt. 2022 | T102: ⌚ 369 days | U102: Foreign: 600 | V102: Debt: 0 | W102: Deadline: Mo., 17. Okt. 2022 | X102: Delivered: Mi., 26. Okt. 2022
D103: 80 | E103: Lisandro - IAPTI QR y nuevo campo link social tree, mybb mail envios... | J103: ⌚ 341 days | N103: Foreign: 70 | P103: Delivered: Fr., 21. Okt. 2022 | T103: ⌚ 341 days | U103: Foreign: 70 | V103: Delivered: Fr., 21. Okt. 2022
D104: 81 | E104: Lisandro - JO Instalar template "Panda" | J104: ⌚ 359 days | N104: Foreign: 200 | P104: Delivered: Fr., 7. Okt. 2022 | T104: ⌚ 359 days | U104: Foreign: 200 | V104: Delivered: Fr., 7. Okt. 2022
D105: 82 | E105: Lisandro - Copia form a mail Iapti | J105: ⌚ 364 days | N105: Foreign: 30 | P105: Delivered: Sa., 17. Sept. 2022 | T105: ⌚ 364 days | U105: Foreign: 30 | V105: Delivered: Sa., 17. Sept. 2022
D106: 83 | E106: Jason Inlat - Arreglar Farm. Etica | J106: ⌚ 288 days | N106: Foreign: 100 | T106: ⌚ 288 days | U106: Foreign: 100
D107: 84 | E107: yo - Videojuegos | H107: 1 | I107: 1 | J107: ⌚ 292 days | K107: MXN: -4.700 | T107: ⌚ 292 days | U107: MXN: -4.700
D108: 85 | E108: Arreglar Facet Ingeurbe | J108: ⌚ 308 days | N108: Foreign: 25 | P108: Delivered: Mi., 9. Nov. 2022 | T108: ⌚ 308 days | U108: Foreign: 25 | V108: Delivered: Mi., 9. Nov. 2022
D109: 86 | E109: Samantha - Dinn | I109: 8 | J109: ⌚ 367 days | K109: MXN: 7.400 | P109: Delivered: Fr., 26. Aug. 2022 | T109: ⌚ 367 days | U109: MXN: 7.400 | V109: Delivered: Fr., 26. Aug. 2022
D110: 87 | E110: Nick Advizee - Localbeauty cambios | J110: ⌚ 300 days | N110: Foreign: 40 | T110: ⌚ 300 days | U110: Foreign: 40
D111: 88 | E111: Gustavo Freelancer - Sitio Recuperado | J111: ⌚ 306 days | N111: Foreign: 150 | T111: ⌚ 306 days | U111: Foreign: 150
D112: 89 | E112: Rashid - Dogwalkers Hosting | I112: 3 | J112: ⌚ 338 days | L112: Debt: 0 | N112: Foreign: 100 | O112: Deadline: Mi., 2. Nov. 2022 | T112: ⌚ 338 days | U112: Foreign: 100 | V112: Debt: 0 | W112: Deadline: Mi., 2. Nov. 2022
D113: 90 | E113: Papa - Edi Financial | H113: 4 | I113: 1 | J113: ⌚ 334 days | K113: MXN: 0 | T113: ⌚ 334 days | U113: MXN: 0
D114: 91 | E114: yo - Cambiar contraseñas del plesk y demás sitios para correr a Ivonne | J114: ⌚ 309 days | T114: ⌚ 309 days
D115: 92 | E115: Madhu - Kebab | G115: 2023-06-06 | H115: 2 | I115: 2 | J115: ⌚ 327 days | N115: Foreign: 300 | O115: Deadline: Mi., 26. Okt. 2022 | T115: ⌚ 327 days | U115: Foreign: 300 | V115: Deadline: Mi., 26. Okt. 2022
D116: 93 | E116: Emilio pinturas - crear plataforma | I116: 5 | J116: ⌚ 369 days | N116: Foreign: 1.025 | P116: Delivered: Mo., 5. Sept. 2022 | T116: ⌚ 369 days | U116: Foreign: 1.025 | V116: Delivered: Mo., 5. Sept. 2022
D117: 94 | E117: Papa - Economatica Bkp Services | H117: 4 | I117: 2 | J117: ⌚ 366 days | K117: MXN: 15.000 | O117: Deadline: Fr., 7. Okt. 2022 | P117: Delivered: Fr., 21. Okt. 2022 | T117: ⌚ 366 days | U117: MXN: 15.000 | V117: Deadline: Fr., 7. Okt. 2022 | W117: Delivered: Fr., 21. Okt. 2022
D118: 95 | E118: Gustavo Freelancer - Diloconfresas Checkout Horario | H118: 2 | I118: 1 | J118: ⌚ 351 days | K118: MXN: 3.500 | P118: Delivered: Do., 29. Sept. 2022 | T118: ⌚ 351 days | U118: MXN: 3.500 | V118: Delivered: Do., 29. Sept. 2022
D119: 96 | E119: JoshNBA - Scrapp BBallRef | J119: ⌚ 324 days | N119: Foreign: 100 | P119: Delivered: Di., 25. Okt. 2022 | T119: ⌚ 324 days | U119: Foreign: 100 | V119: Delivered: Di., 25. Okt. 2022
D120: 97 | E120: Jason Freelancer - Brindabella clonar sitio | H120: 2 | J120: ⌚ 328 days | N120: Foreign: 250 | P120: Delivered: Di., 25. Okt. 2022 | T120: ⌚ 328 days | U120: Foreign: 250 | V120: Delivered: Di., 25. Okt. 2022
D121: 98 | G121: 0/35 | J121: ⌚ 621 days | T121: ⌚ 621 days
D122: 99 | E122: Nick Advizee - aimsfitting.com error DNS | J122: ⌚ 329 days | N122: Foreign: 10 | T122: ⌚ 329 days | U122: Foreign: 10
D123: 100 | E123: JoshNBA - Setup nueva temporada | J123: ⌚ 329 days | N123: Foreign: 60 | T123: ⌚ 329 days | U123: Foreign: 60
D124: 101 | E124: Nick Advizee - Desactivo pago por hora auto | J124: ⌚ 331 days | N124: Foreign: 57 | P124: Delivered: So., 9. Okt. 2022 | T124: ⌚ 331 days | U124: Foreign: 57 | V124: Delivered: So., 9. Okt. 2022
D125: 102 | E125: Yamel Freelancer - Konditor cambios | I125: 1 | J125: ⌚ 354 days | N125: Foreign: 60 | T125: ⌚ 354 days | U125: Foreign: 60
D126: 103 | E126: Jason Freelancer - Brindabella Mini Ajustes | J126: ⌚ 334 days | N126: Foreign: 0 | T126: ⌚ 334 days | U126: Foreign: 0
D127: 104 | E127: varios - Chipre Usability Tests | J127: ⌚ 337 days | N127: Foreign: 60 | O127: Deadline: Fr., 14. Okt. 2022 | T127: ⌚ 337 days | U127: Foreign: 60 | V127: Deadline: Fr., 14. Okt. 2022
D128: 105 | E128: Buita - Depósito | I128: 6 | J128: ⌚ 349 days | K128: MXN: -1.787 | L128: Debt: 0 | T128: ⌚ 349 days | U128: MXN: -1.787 | V128: Debt: 0
D129: 106 | E129: Nick Advizee - Migracion | J129: ⌚ 341 days | T129: ⌚ 341 days
D130: 107 | E130: Daren freelancer - Precisemd form2 | H130: 3 | J130: ⌚ 349 days | N130: Foreign: 220 | T130: ⌚ 349 days | U130: Foreign: 220
D131: 108 | E131: Norma Nateras - Hosting | I131: 3 | J131: ⌚ 348 days | K131: MXN: 2.000 | O131: Deadline: Mo., 3. Okt. 2022 | T131: ⌚ 348 days | U131: MXN: 2.000 | V131: Deadline: Mo., 3. Okt. 2022
D132: 109 | E132: Mama Madhu - Préstamo | I132: 1 | J132: ⌚ 356 days | K132: MXN: 7.600 | T132: ⌚ 356 days | U132: MXN: 7.600
D133: 110 | E133: Carrascosa - Freelancer | J133: ⌚ 367 days | N133: Foreign: 100 | P133: Delivered: Mo., 5. Sept. 2022 | T133: ⌚ 367 days | U133: Foreign: 100 | V133: Delivered: Mo., 5. Sept. 2022
D134: 111 | E134: Nana - Vuelos | I134: 1 | J134: ⌚ 367 days | K134: MXN: 2.279 | P134: Delivered: Mo., 29. Aug. 2022 | T134: ⌚ 367 days | U134: MXN: 2.279 | V134: Delivered: Mo., 29. Aug. 2022
D135: 112 | E135: yo - Kavak Reembolso | I135: 1 | J135: ⌚ 367 days | K135: MXN: 1.500 | P135: Delivered: So., 7. Aug. 2022 | T135: ⌚ 367 days | U135: MXN: 1.500 | V135: Delivered: So., 7. Aug. 2022
D136: 113 | E136: Nick Advizee - Localbeaty - tags taxonomy filter | H136: 1 | J136: ⌚ 365 days | O136: Deadline: Di., 20. Sept. 2022 | T136: ⌚ 365 days | U136: Deadline: Di., 20. Sept. 2022
D137: 114 | E137: JoshNBA - Josh NBA | J137: ⌚ 369 days | N137: Foreign: 400 | P137: Delivered: Mi., 7. Sept. 2022 | T137: ⌚ 369 days | U137: Foreign: 400 | V137: Delivered: Mi., 7. Sept. 2022
D138: 115 | E138: Gary Hydracheck - Speedup | G138: 2023-04-02 | H138: 2 | J138: ⌚ 369 days | N138: Foreign: 150 | O138: Deadline: Di., 13. Sept. 2022 | T138: ⌚ 369 days | U138: Foreign: 150 | V138: Deadline: Di., 13. Sept. 2022
D139: 116 | E139: Sam Freelancer - PetersWindow Hosting | J139: ⌚ 369 days | N139: Foreign: 100 | P139: Delivered: Di., 30. Aug. 2022 | T139: ⌚ 369 days | U139: Foreign: 100 | V139: Delivered: Di., 30. Aug. 2022
D140: 117 | E140: Jason Freelancer - Speedup Brindabella | G140: 2023-05-05 | J140: ⌚ 369 days | N140: Foreign: 460 | O140: Deadline: Do., 15. Sept. 2022 | T140: ⌚ 369 days | U140: Foreign: 460 | V140: Deadline: Do., 15. Sept. 2022
A141: Fijos | B141: Fijos | C141: 6 | D141: 0 | E141: Tiempo Libre - ACD | G141: 0/30 | H141: 3 | J141: ⌚ 48 days | R141: 17:18:00 | T141: ⌚ 48 days | U141: 17:18:00
D142: 1 | E142: Administrativo - ACD | H142: 1 | J142: ⌚ 48 days | R142: 4.3375 | T142: ⌚ 48 days | U142: 4.3375
D143: 2 | E143: Hostings - ACD | G143: 0/2 | H143: 2 | I143: 6 | J143: ⌚ 41 days | N143: Foreign: 100 | O143: Deadline: Mo., 7. Aug. 2023 | R143: 09:49:00 | T143: ⌚ 41 days | U143: Foreign: 100 | V143: Deadline: Mo., 7. Aug. 2023 | W143: 09:49:00
D144: 3 | E144: Nick Advizee - fijo | G144: 2023-01-01 | H144: 2 | I144: 15 | J144: ⌚ 239 days | N144: Foreign: 25 | R144: 3.514583333 | T144: ⌚ 239 days | U144: Foreign: 25 | V144: 3.514583333
D145: 4 | E145: Alejandro Disidentes - Sixbell Mtto | I145: 1 | J145: ⌚ 7 days | N145: Foreign: 100 | T145: ⌚ 7 days | U145: Foreign: 100
D146: 5 | E146: Ricardo Cuerna - Fixum Mtto | I146: 1 | J146: ⌚ 6 days | K146: MXN: 3.000 | T146: ⌚ 6 days | U146: MXN: 3.000
A147: Cotizado | B147: Cotizado | C147: 46 | D147: 0 | E147: Francesco - LearnDash | H147: 1 | I147: 1 | J147: ⌚ 20 days | N147: Foreign: 150 | T147: ⌚ 20 days | U147: Foreign: 150
D148: 1 | E148: Diana Inlat - ecomm + blog estilo figurella | H148: 2 | I148: 1 | J148: ⌚ 167 days | N148: Foreign: 750 | T148: ⌚ 167 days | U148: Foreign: 750
D149: 2 | E149: Ricardo Cuerna - Freelancer Mexa | I149: 1 | J149: ⌚ 29 days | N149: Foreign: 800 | T149: ⌚ 29 days | U149: Foreign: 800
D150: 3 | E150: Ulises Freelancer - WP Crowdfunding | I150: 1 | J150: ⌚ 25 days | N150: Foreign: 800 | T150: ⌚ 25 days | U150: Foreign: 800
D151: 4 | E151: Rodrigo Techservices - Formulario medico | I151: 1 | J151: ⌚ 44 days | N151: Foreign: 500 | T151: ⌚ 44 days | U151: Foreign: 500
D152: 5 | E152: Faby - PMI AxxiPay self install templates | I152: 1 | J152: ⌚ 65 days | N152: Foreign: 750 | T152: ⌚ 65 days | U152: Foreign: 750
D153: 6 | E153: Ricardo Chile - Carlson Electricos | I153: 1 | J153: ⌚ 58 days | N153: Foreign: 500 | T153: ⌚ 58 days | U153: Foreign: 500
D154: 7 | E154: Ricardo Cuerna - Eventos ecuestres | H154: 2 | I154: 1 | J154: ⌚ 54 days | K154: MXN: 19.000 | T154: ⌚ 54 days | U154: MXN: 19.000
D155: 8 | E155: Paloma Freelancer - cambios tcandiani | H155: 1 | I155: 1 | J155: ⌚ 91 days | K155: MXN: 8.000 | T155: ⌚ 91 days | U155: MXN: 8.000
D156: 9 | E156: Faby - Suscr. super semanal | H156: 1 | I156: 1 | J156: ⌚ 111 days | K156: MXN: 17.000 | T156: ⌚ 111 days | U156: MXN: 17.000
D157: 10 | E157: yo - FIRE Business online | H157: 1 | I157: 1 | J157: ⌚ 263 days | O157: Deadline: Di., 31. Okt. 2023 | Q157: -157d 11h | R157: 00:32:00 | T157: ⌚ 263 days | U157: Deadline: Di., 31. Okt. 2023 | V157: -157d 11h | W157: 00:32:00
D158: 11 | E158: Xavier Bobby - Itel Speedup | I158: 1 | J158: ⌚ 152 days | N158: Foreign: 150 | T158: ⌚ 152 days | U158: Foreign: 150
D159: 12 | E159: yo - Hacer robot de trades de acciones gringas, super diversificarlo y listo... | I159: 1 | J159: ⌚ 224 days | O159: Deadline: Fr., 28. Apr. 2023 | T159: ⌚ 224 days | U159: Deadline: Fr., 28. Apr. 2023
D160: 13 | E160: Carrascosa AC - Página de Contratos | G160: 2023-12-01 | I160: 1 | J160: ⌚ 337 days | K160: MXN: 0 | O160: Deadline: Sa., 31. Dez. 2022 | T160: ⌚ 337 days | U160: MXN: 0 | V160: Deadline: Sa., 31. Dez. 2022
D161: 14 | E161: Carrascosa AC - Asociación Civil | H161: 5 | I161: 1 | J161: ⌚ 285 days | K161: MXN: -18.000 | Q161: -159d 14h | T161: ⌚ 285 days | U161: MXN: -18.000 | V161: -159d 14h
D162: 15 | E162: Faby - Sportsworld rehacer | H162: 1 | J162: ⌚ 169 days | T162: ⌚ 169 days
D163: 16 | E163: Emilio Pinturas - Stock dentista | I163: 1 | J163: ⌚ 165 days | N163: Foreign: 500 | T163: ⌚ 165 days | U163: Foreign: 500
D164: 17 | E164: Faby - Axxipay nuevo sitio | I164: 1 | J164: ⌚ 180 days | K164: MXN: 10.000 | T164: ⌚ 180 days | U164: MXN: 10.000
D165: 18 | E165: Jason Freelancer - Speedup Brindabella de nuevo | I165: 1 | J165: ⌚ 173 days | N165: Foreign: 80 | T165: ⌚ 173 days | U165: Foreign: 80
D166: 19 | E166: yo - Clonar facturación goteo aprovechando nanofactura | J166: ⌚ 216 days | T166: ⌚ 216 days
D167: 20 | E167: Miguel Bullkens - Bulkens NFT | J167: ⌚ 217 days | N167: Foreign: 900 | T167: ⌚ 217 days | U167: Foreign: 900
D168: 21 | E168: Gustavo Freelancer - Formularios en pagina | J168: ⌚ 209 days | N168: Foreign: 50 | T168: ⌚ 209 days | U168: Foreign: 50
D169: 22 | E169: Gustavo Freelancer - Ootness Twilio | H169: 2 | I169: 2 | J169: ⌚ 211 days | N169: Foreign: 500 | T169: ⌚ 211 days | U169: Foreign: 500
D170: 23 | E170: Fernando Freelancer - Funeraria | H170: 2 | J170: ⌚ 222 days | N170: Foreign: 1.500 | T170: ⌚ 222 days | U170: Foreign: 1.500
D171: 24 | E171: Gustavo Freelancer - Filtro estrellas inmobiliaria Arg | I171: 1 | J171: ⌚ 218 days | K171: MXN: 1.500 | T171: ⌚ 218 days | U171: MXN: 1.500
D172: 25 | E172: Ruva - Motos copia encuentra tu moto | J172: ⌚ 237 days | N172: Foreign: 700 | T172: ⌚ 237 days | U172: Foreign: 700
D173: 26 | E173: Santiago Freelancer - EncuentraTuMoto a WP | J173: ⌚ 230 days | N173: Foreign: 600 | T173: ⌚ 230 days | U173: Foreign: 600
D174: 27 | E174: Rigoberto Freelancer - Alertas Ajax | J174: ⌚ 228 days | N174: Foreign: 125 | T174: ⌚ 228 days | U174: Foreign: 125
D175: 28 | E175: Caba - ERP Casanova rent copia edimex | I175: 1 | J175: ⌚ 278 days | K175: MXN: 10.000 | T175: ⌚ 278 days | U175: MXN: 10.000
D176: 29 | E176: Fidel Samantha - E-learning Cursos Financieros | J176: ⌚ 250 days | N176: Foreign: 900 | T176: ⌚ 250 days | U176: Foreign: 900
D177: 30 | E177: Gustavo Freelancer - Viajes act. posts/productos | I177: 1 | J177: ⌚ 250 days | K177: MXN: 3.000 | T177: ⌚ 250 days | U177: MXN: 3.000
D178: 31 | E178: Faby - Racelab Reservas Tailored | J178: ⌚ 252 days | N178: Foreign: 350 | T178: ⌚ 252 days | U178: Foreign: 350
D179: 32 | E179: Diana Inlat - Farmacia | H179: 1 | J179: ⌚ 250 days | N179: Foreign: 1.220 | T179: ⌚ 250 days | U179: Foreign: 1.220
D180: 33 | E180: Miguel Bullkens - Bot 2Fa | J180: ⌚ 280 days | N180: Foreign: 250 | T180: ⌚ 280 days | U180: Foreign: 250
D181: 34 | E181: Rodrigo Techservices - Hotel Casa Ballena | H181: 1 | I181: 1 | J181: ⌚ 288 days | K181: MXN: 18.000 | T181: ⌚ 288 days | U181: MXN: 18.000
D182: 35 | E182: Rodrigo Techservices - Inmuebles | I182: 1 | J182: ⌚ 288 days | K182: MXN: 22.000 | T182: ⌚ 288 days | U182: MXN: 22.000
D183: 36 | E183: Sam Freelancer - Horse Ranch | J183: ⌚ 321 days | N183: Foreign: 1.300 | T183: ⌚ 321 days | U183: Foreign: 1.300
D184: 37 | E184: JoshNBA - Bet scrapper | H184: 1 | J184: ⌚ 369 days | N184: Foreign: 1.450 | T184: ⌚ 369 days | U184: Foreign: 1.450
D185: 38 | E185: Madhu - Ammar Construction | H185: 3 | J185: ⌚ 328 days | N185: Foreign: 300 | T185: ⌚ 328 days | U185: Foreign: 300
D186: 39 | E186: Jason Inlat - MPago Subscripcion | H186: 1 | I186: 2 | J186: ⌚ 369 days | K186: MXN: 7.000 | T186: ⌚ 369 days | U186: MXN: 7.000
D187: 40 | E187: varios - Disque pospone | H187: 2 | I187: 1 | J187: ⌚ 338 days | L187: Debt: 1.150 | N187: Foreign: 1.200 | O187: Deadline: Fr., 21. Okt. 2022 | T187: ⌚ 338 days | U187: Foreign: 1.200 | V187: Debt: 1.150 | W187: Deadline: Fr., 21. Okt. 2022
D188: 41 | E188: Luis Axo - 100 hosting | J188: ⌚ 365 days | N188: Foreign: 100 | T188: ⌚ 365 days | U188: Foreign: 100
D189: 42 | E189: Lisandro - JO Shipnow + Maoar destacados | J189: ⌚ 369 days | N189: Foreign: 480 | T189: ⌚ 369 days | U189: Foreign: 480
D190: 43 | E190: Rodrigo Techservices - Proepta | I190: 1 | J190: ⌚ 369 days | K190: MXN: 27.000 | T190: ⌚ 369 days | U190: MXN: 27.000
D191: 44 | E191: Olga Freelancer - SportsMaster Mx | J191: ⌚ 369 days | N191: Foreign: 300 | T191: ⌚ 369 days | U191: Foreign: 300
D192: 45 | E192: Bea Axo Fea - Pagina su chamba | J192: ⌚ 369 days | N192: Foreign: 300 | T192: ⌚ 369 days | U192: Foreign: 300

Sheet Reporte
D1: Columna | E1: =MATCH("|__tarjetas__|__foreign", Trello!1:1, 0) -> 14 | F1: =MATCH("|__tarjetas__|__mxn", Trello!1:1, 0) -> 11 | G1: =MATCH("|__tarjetas__|__debt", Trello!1:1, 0) -> 12 | H1: =MATCH("|__tarjetas__|__cost", Trello!1:1, 0) -> 13 | L1: =MATCH("|__tarjetas__|__deadline", Trello!1:1, 0) -> 15 | M1: =MATCH("|__tarjetas__|__delivered", Trello!1:1, 0) -> 16 | O1: =MATCH("|__tarjetas__|__estimate", Trello!1:1, 0) -> 19
A2: Card | B2: Status | C2: Created | D2: Card age | E2: Foreign | F2: 17.5 | G2: Debt Mxn | H2: Cost Mxn | I2: Margin | J2: real dead | K2: real deliver | L2: Deadline | M2: Delivered | N2: Backorder | O2: Estimate | P2: Spent hrs | Q2: Forecast | R2: Hourly rate | S2: Lead time | T2: Days sales outstanding
A3: =IFERROR(IF(Trello!E2="","",Trello!E2)," ") -> Manuel Austria - agentur.xxx | B3: =IF($A3="","",IF(Trello!A2="",B2,Trello!A2)) -> Vendiendo | C3: =IF($A3="","",TODAY()-D3) -> 2023-08-30 | D3: =IF($A3="","",SUBSTITUTE(SUBSTITUTE(Trello!J2," days",""),"⌚ ","")*1) -> 14 | E3: =IFERROR(IF($A3="","",SUBSTITUTE(SUBSTITUTE(SUBSTITUTE(INDIRECT("Trello!"&ADDRESS(ROW()-1, E$1, 4)),"Foreign: ","")," $",""),".","")*1),"") -> 2100 | F3: =IF($E3="",IFERROR(IF($A3="","",SUBSTITUTE(SUBSTITUTE(SUBSTITUTE(INDIRECT("Trello!"&ADDRESS(ROW()-1, F$1, 4)),"MXN: ","")," MX$",""),".","")*1),""),E3*F$2) -> 36750 | G3: =IFERROR(IF($A3="","",SUBSTITUTE(SUBSTITUTE(SUBSTITUTE(INDIRECT("Trello!"&ADDRESS(ROW()-1, G$1, 4)),"Debt: ","")," $",""),".","")*1)*IF(E3="",1,F$2),"") ->  | H3: =IFERROR(IF($A3="","",SUBSTITUTE(SUBSTITUTE(SUBSTITUTE(INDIRECT("Trello!"&ADDRESS(ROW()-1, H$1, 4)),"Cost: ","")," $",""),".","")*1*$F$2),"") ->  | I3: =IF(OR(F3="",H3=""),F3,F3-H3) -> 36750 | J3: =IFERROR(SUBSTITUTE(SUBSTITUTE(SUBSTITUTE(RIGHT(INDIRECT("Trello!"&ADDRESS(ROW()-1, L$1, 4)),LEN(INDIRECT("Trello!"&ADDRESS(ROW()-1, L$1, 4)))-15),". ","/")," 20","/20")," ",""),"") ->  | K3: =IFERROR(SUBSTITUTE(SUBSTITUTE(SUBSTITUTE(RIGHT(INDIRECT("Trello!"&ADDRESS(ROW()-1, M$1, 4)),LEN(INDIRECT("Trello!"&ADDRESS(ROW()-1, M$1, 4)))-15),". ","/")," 20","/20")," ",""),"") ->  | L3: =IFERROR(SUBSTITUTE(SUBSTITUTE(SUBSTITUTE(SUBSTITUTE(SUBSTITUTE(SUBSTITUTE(SUBSTITUTE(SUBSTITUTE(SUBSTITUTE(SUBSTITUTE(SUBSTITUTE(SUBSTITUTE(J3,"Dez",12),"Nov",11),"Okt",10),"Sept",9),"Aug",8),"Juli",7),"Juni",6),"Mai",5),"Apr",4),"März",3),"Feb",2),"Jan",1)*1,"") ->  | N3: =IF(AND(L3>0,M3>0,L3<>"",M3<>""),L3-M3,"") ->  | O3: =IFERROR(SUBSTITUTE(INDIRECT("Trello!"&ADDRESS(ROW()-1, O$1, 4)),"Estimate hrs: ","")*1,"") ->  | P3: =IF(SUMIF(Timecamp!C:C,Reporte!A3,Timecamp!J:J)=0,"",SUMIF(Timecamp!C:C,Reporte!A3,Timecamp!J:J)) -> 0.1 | Q3: =IF(AND(O3>0,P3>0,O3<>"",P3<>""),(P3/O3)-1,"") ->  | R3: =IF(OR(P3="",F3=""),"",F3/P3) -> 367500 | S3: =IFERROR(VLOOKUP(A3,'SLA Trab'!E:I,5,FALSE),"") ->  | T3: =IFERROR(VLOOKUP(A3,'SLA Cobr'!E:I,5,FALSE),"") ->  | V3: Resumen | W3: # | X3: Avg. Age | Y3: Debt | Z3: Margin | AA3: Avg. Back | AB3: Spent hrs | AC3: Spent days | AD3: Forecast | AE3: Hourly rate | AF3: Lead time | AG3: DSO | AI3: Instrucciones | AK3: * Handy time
A4: =IFERROR(IF(Trello!E3="","",Trello!E3)," ") -> Wilbur LAX - lotusesthetic.com | B4: =IF($A4="","",IF(Trello!A3="",B3,Trello!A3)) -> Vendiendo | C4: =IF($A4="","",TODAY()-D4) -> 2023-08-29 | D4: =IF($A4="","",SUBSTITUTE(SUBSTITUTE(Trello!J3," days",""),"⌚ ","")*1) -> 15 | E4: =IFERROR(IF($A4="","",SUBSTITUTE(SUBSTITUTE(SUBSTITUTE(INDIRECT("Trello!"&ADDRESS(ROW()-1, E$1, 4)),"Foreign: ","")," $",""),".","")*1),"") -> 800 | F4: =IF($E4="",IFERROR(IF($A4="","",SUBSTITUTE(SUBSTITUTE(SUBSTITUTE(INDIRECT("Trello!"&ADDRESS(ROW()-1, F$1, 4)),"MXN: ","")," MX$",""),".","")*1),""),E4*F$2) -> 14000 | G4: =IFERROR(IF($A4="","",SUBSTITUTE(SUBSTITUTE(SUBSTITUTE(INDIRECT("Trello!"&ADDRESS(ROW()-1, G$1, 4)),"Debt: ","")," $",""),".","")*1)*IF(E4="",1,F$2),"") ->  | H4: =IFERROR(IF($A4="","",SUBSTITUTE(SUBSTITUTE(SUBSTITUTE(INDIRECT("Trello!"&ADDRESS(ROW()-1, H$1, 4)),"Cost: ","")," $",""),".","")*1*$F$2),"") ->  | I4: =IF(OR(F4="",H4=""),F4,F4-H4) -> 14000 | J4: =IFERROR(SUBSTITUTE(SUBSTITUTE(SUBSTITUTE(RIGHT(INDIRECT("Trello!"&ADDRESS(ROW()-1, L$1, 4)),LEN(INDIRECT("Trello!"&ADDRESS(ROW()-1, L$1, 4)))-15),". ","/")," 20","/20")," ",""),"") ->  | K4: =IFERROR(SUBSTITUTE(SUBSTITUTE(SUBSTITUTE(RIGHT(INDIRECT("Trello!"&ADDRESS(ROW()-1, M$1, 4)),LEN(INDIRECT("Trello!"&ADDRESS(ROW()-1, M$1, 4)))-15),". ","/")," 20","/20")," ",""),"") ->  | O4: =IFERROR(SUBSTITUTE(INDIRECT("Trello!"&ADDRESS(ROW()-1, O$1, 4)),"Estimate hrs: ","")*1,"") -> 20 | P4: =IF(SUMIF(Timecamp!C:C,Reporte!A4,Timecamp!J:J)=0,"",SUMIF(Timecamp!C:C,Reporte!A4,Timecamp!J:J)) ->  | S4: =IFERROR(VLOOKUP(A4,'SLA Trab'!E:I,5,FALSE),"") ->  | T4: =IFERROR(VLOOKUP(A4,'SLA Cobr'!E:I,5,FALSE),"") ->  | V4: Vendiendo | W4: =COUNTIF(B:B,V4) -> 8 | X4: =IFERROR(AVERAGEIF($B:$B,$V4,D:D),"") -> 26.25 | Y4: =SUMIF($B:$B,$V4,G:G) -> 0 | AA4: =IFERROR(AVERAGEIF($B:$B,$V4,N:N),"") ->  | AB4: =SUMIF($B:$B,$V4,P:P) -> 0.25 | AC4: =AB4/24 -> 0.01041666667 | AD4: =IFERROR(AVERAGEIF($B:$B,$V4,Q:Q),"") ->  | AE4: 212916.6667 | AI4: En trello exportas 3 csvs (console y 2 de SLA) y revisa R1. En timecamp copias y pegas Zeiteintrage de alle Zeiten (solo nuevas). Ya en reporte analisas. | AK4: Usa export de app usage en el rango (uso semanas) y pegas en app usage. En app cat ya exportas con "Trello handy time.php" el tiempo a timecamp (y agregas alguna categoria a alguna app si gustas). | AM4: Timecamp | AN4: https://app.timecamp.com/time_tracking/task_report/130052148#/entries
A5: =IFERROR(IF(Trello!E4="","",Trello!E4)," ") -> Ricardo CDMX - Página web | B5: =IF($A5="","",IF(Trello!A4="",B4,Trello!A4)) -> Vendiendo | C5: 2023-08-26 | D5: =IF($A5="","",SUBSTITUTE(SUBSTITUTE(Trello!J4," days",""),"⌚ ","")*1) -> 18 | E5: =IFERROR(IF($A5="","",SUBSTITUTE(SUBSTITUTE(SUBSTITUTE(INDIRECT("Trello!"&ADDRESS(ROW()-1, E$1, 4)),"Foreign: ","")," $",""),".","")*1),"") -> 500 | F5: =IF($E5="",IFERROR(IF($A5="","",SUBSTITUTE(SUBSTITUTE(SUBSTITUTE(INDIRECT("Trello!"&ADDRESS(ROW()-1, F$1, 4)),"MXN: ","")," MX$",""),".","")*1),""),E5*F$2) -> 8750 | G5: =IFERROR(IF($A5="","",SUBSTITUTE(SUBSTITUTE(SUBSTITUTE(INDIRECT("Trello!"&ADDRESS(ROW()-1, G$1, 4)),"Debt: ","")," $",""),".","")*1)*IF(E5="",1,F$2),"") ->  | H5: =IFERROR(IF($A5="","",SUBSTITUTE(SUBSTITUTE(SUBSTITUTE(INDIRECT("Trello!"&ADDRESS(ROW()-1, H$1, 4)),"Cost: ","")," $",""),".","")*1*$F$2),"") ->  | I5: =IF(OR(F5="",H5=""),F5,F5-H5) -> 8750 | J5: =IFERROR(SUBSTITUTE(SUBSTITUTE(SUBSTITUTE(RIGHT(INDIRECT("Trello!"&ADDRESS(ROW()-1, L$1, 4)),LEN(INDIRECT("Trello!"&ADDRESS(ROW()-1, L$1, 4)))-15),". ","/")," 20","/20")," ",""),"") ->  | K5: =IFERROR(SUBSTITUTE(SUBSTITUTE(SUBSTITUTE(RIGHT(INDIRECT("Trello!"&ADDRESS(ROW()-1, M$1, 4)),LEN(INDIRECT("Trello!"&ADDRESS(ROW()-1, M$1, 4)))-15),". ","/")," 20","/20")," ",""),"") ->  | O5: =IFERROR(SUBSTITUTE(INDIRECT("Trello!"&ADDRESS(ROW()-1, O$1, 4)),"Estimate hrs: ","")*1,"") ->  | P5: =IF(SUMIF(Timecamp!C:C,Reporte!A5,Timecamp!J:J)=0,"",SUMIF(Timecamp!C:C,Reporte!A5,Timecamp!J:J)) -> 0.15 | Q5: =IF(AND(O5>0,P5>0,O5<>"",P5<>""),(P5/O5)-1,"") ->  | R5: 58333.33333 | S5: =IFERROR(VLOOKUP(A5,'SLA Trab'!E:I,5,FALSE),"") ->  | T5: =IFERROR(VLOOKUP(A5,'SLA Cobr'!E:I,5,FALSE),"") ->  | V5: Actual | W5: =COUNTIF(B:B,V5) -> 6 | X5: =IFERROR(AVERAGEIF($B:$B,$V5,D:D),"") -> 17.33333333 | Y5: =SUMIF($B:$B,$V5,G:G) -> 0 | Z5: =SUMIF($B:$B,$V5,I:I) -> 78750 | AA5: =IFERROR(AVERAGEIF($B:$B,$V5,N:N),"") -> -2 | AB5: =SUMIF($B:$B,$V5,P:P) -> 16.06666667 | AC5: =AB5/24 -> 0.6694444444 | AD5: -0.9611111111 | AE5: 9530.589544 | AF5: 6.180555556 | AG5: 12.25 | AM5: App Usage | AN5: https://app.timecamp.com/time_tracking/task_report/130076421#/entries
A6: =IFERROR(IF(Trello!E5="","",Trello!E5)," ") -> Juan Balnearis - Landing bodyclinic | B6: =IF($A6="","",IF(Trello!A5="",B5,Trello!A5)) -> Vendiendo | C6: 2023-08-30 | D6: =IF($A6="","",SUBSTITUTE(SUBSTITUTE(Trello!J5," days",""),"⌚ ","")*1) -> 14 | E6: =IFERROR(IF($A6="","",SUBSTITUTE(SUBSTITUTE(SUBSTITUTE(INDIRECT("Trello!"&ADDRESS(ROW()-1, E$1, 4)),"Foreign: ","")," $",""),".","")*1),"") -> 75 | F6: =IF($E6="",IFERROR(IF($A6="","",SUBSTITUTE(SUBSTITUTE(SUBSTITUTE(INDIRECT("Trello!"&ADDRESS(ROW()-1, F$1, 4)),"MXN: ","")," MX$",""),".","")*1),""),E6*F$2) -> 1312.5 | G6: =IFERROR(IF($A6="","",SUBSTITUTE(SUBSTITUTE(SUBSTITUTE(INDIRECT("Trello!"&ADDRESS(ROW()-1, G$1, 4)),"Debt: ","")," $",""),".","")*1)*IF(E6="",1,F$2),"") ->  | H6: =IFERROR(IF($A6="","",SUBSTITUTE(SUBSTITUTE(SUBSTITUTE(INDIRECT("Trello!"&ADDRESS(ROW()-1, H$1, 4)),"Cost: ","")," $",""),".","")*1*$F$2),"") ->  | I6: 1312.5 | J6: =IFERROR(SUBSTITUTE(SUBSTITUTE(SUBSTITUTE(RIGHT(INDIRECT("Trello!"&ADDRESS(ROW()-1, L$1, 4)),LEN(INDIRECT("Trello!"&ADDRESS(ROW()-1, L$1, 4)))-15),". ","/")," 20","/20")," ",""),"") ->  | K6: =IFERROR(SUBSTITUTE(SUBSTITUTE(SUBSTITUTE(RIGHT(INDIRECT("Trello!"&ADDRESS(ROW()-1, M$1, 4)),LEN(INDIRECT("Trello!"&ADDRESS(ROW()-1, M$1, 4)))-15),". ","/")," 20","/20")," ",""),"") ->  | O6: =IFERROR(SUBSTITUTE(INDIRECT("Trello!"&ADDRESS(ROW()-1, O$1, 4)),"Estimate hrs: ","")*1,"") ->  | P6: =IF(SUMIF(Timecamp!C:C,Reporte!A6,Timecamp!J:J)=0,"",SUMIF(Timecamp!C:C,Reporte!A6,Timecamp!J:J)) ->  | S6: =IFERROR(VLOOKUP(A6,'SLA Trab'!E:I,5,FALSE),"") ->  | T6: =IFERROR(VLOOKUP(A6,'SLA Cobr'!E:I,5,FALSE),"") ->  | V6: Cobrando | W6: =COUNTIF(B:B,V6) -> 7 | X6: =IFERROR(AVERAGEIF($B:$B,$V6,D:D),"") -> 69.57142857 | Y6: =SUMIF($B:$B,$V6,G:G) -> 22947.5 | Z6: =SUMIF($B:$B,$V6,I:I) -> 143947.5 | AA6: =IFERROR(AVERAGEIF($B:$B,$V6,N:N),"") ->  | AB6: =SUMIF($B:$B,$V6,P:P) -> 19.66666667 | AC6: 0.8194444444 | AE6: 108884.9868 | AF6: 9.566666667 | AG6: 24.56547619
A7: =IFERROR(IF(Trello!E6="","",Trello!E6)," ") -> Francisco Inlat - Nuevo Figurella Franquicias | B7: =IF($A7="","",IF(Trello!A6="",B6,Trello!A6)) -> Vendiendo | C7: 2023-04-25 | D7: =IF($A7="","",SUBSTITUTE(SUBSTITUTE(Trello!J6," days",""),"⌚ ","")*1) -> 141 | E7: =IFERROR(IF($A7="","",SUBSTITUTE(SUBSTITUTE(SUBSTITUTE(INDIRECT("Trello!"&ADDRESS(ROW()-1, E$1, 4)),"Foreign: ","")," $",""),".","")*1),"") -> 1400 | F7: =IF($E7="",IFERROR(IF($A7="","",SUBSTITUTE(SUBSTITUTE(SUBSTITUTE(INDIRECT("Trello!"&ADDRESS(ROW()-1, F$1, 4)),"MXN: ","")," MX$",""),".","")*1),""),E7*F$2) -> 24500 | G7: =IFERROR(IF($A7="","",SUBSTITUTE(SUBSTITUTE(SUBSTITUTE(INDIRECT("Trello!"&ADDRESS(ROW()-1, G$1, 4)),"Debt: ","")," $",""),".","")*1)*IF(E7="",1,F$2),"") ->  | H7: =IFERROR(IF($A7="","",SUBSTITUTE(SUBSTITUTE(SUBSTITUTE(INDIRECT("Trello!"&ADDRESS(ROW()-1, H$1, 4)),"Cost: ","")," $",""),".","")*1*$F$2),"") ->  | I7: 24500 | J7: =IFERROR(SUBSTITUTE(SUBSTITUTE(SUBSTITUTE(RIGHT(INDIRECT("Trello!"&ADDRESS(ROW()-1, L$1, 4)),LEN(INDIRECT("Trello!"&ADDRESS(ROW()-1, L$1, 4)))-15),". ","/")," 20","/20")," ",""),"") ->  | K7: =IFERROR(SUBSTITUTE(SUBSTITUTE(SUBSTITUTE(RIGHT(INDIRECT("Trello!"&ADDRESS(ROW()-1, M$1, 4)),LEN(INDIRECT("Trello!"&ADDRESS(ROW()-1, M$1, 4)))-15),". ","/")," 20","/20")," ",""),"") ->  | O7: =IFERROR(SUBSTITUTE(INDIRECT("Trello!"&ADDRESS(ROW()-1, O$1, 4)),"Estimate hrs: ","")*1,"") -> 40 | P7: =IF(SUMIF(Timecamp!C:C,Reporte!A7,Timecamp!J:J)=0,"",SUMIF(Timecamp!C:C,Reporte!A7,Timecamp!J:J)) ->  | S7: =IFERROR(VLOOKUP(A7,'SLA Trab'!E:I,5,FALSE),"") ->  | T7: =IFERROR(VLOOKUP(A7,'SLA Cobr'!E:I,5,FALSE),"") ->  | V7: Terminado | W7: =COUNTIF(B:B,V7) -> 118 | X7: =IFERROR(AVERAGEIF($B:$B,$V7,D:D),"") -> 219.779661 | Y7: =SUMIF($B:$B,$V7,G:G) -> 66382.5 | Z7: =SUMIF($B:$B,$V7,I:I) -> 665619 | AA7: =IFERROR(AVERAGEIF($B:$B,$V7,N:N),"") -> -11.63636364 | AB7: =SUMIF($B:$B,$V7,P:P) -> 504.9333333 | AC7: 21.03888889 | AD7: 0.1614667659 | AE7: 18899.53214 | AF7: 14.82995495 | AG7: 17.74337121
A8: =IFERROR(IF(Trello!E7="","",Trello!E7)," ") -> Ricardo Cuerna - Designer space | B8: =IF($A8="","",IF(Trello!A7="",B7,Trello!A7)) -> Vendiendo | C8: 2023-09-07 | D8: =IF($A8="","",SUBSTITUTE(SUBSTITUTE(Trello!J7," days",""),"⌚ ","")*1) -> 6 | E8: =IFERROR(IF($A8="","",SUBSTITUTE(SUBSTITUTE(SUBSTITUTE(INDIRECT("Trello!"&ADDRESS(ROW()-1, E$1, 4)),"Foreign: ","")," $",""),".","")*1),"") -> 750 | F8: =IF($E8="",IFERROR(IF($A8="","",SUBSTITUTE(SUBSTITUTE(SUBSTITUTE(INDIRECT("Trello!"&ADDRESS(ROW()-1, F$1, 4)),"MXN: ","")," MX$",""),".","")*1),""),E8*F$2) -> 13125 | G8: =IFERROR(IF($A8="","",SUBSTITUTE(SUBSTITUTE(SUBSTITUTE(INDIRECT("Trello!"&ADDRESS(ROW()-1, G$1, 4)),"Debt: ","")," $",""),".","")*1)*IF(E8="",1,F$2),"") ->  | H8: =IFERROR(IF($A8="","",SUBSTITUTE(SUBSTITUTE(SUBSTITUTE(INDIRECT("Trello!"&ADDRESS(ROW()-1, H$1, 4)),"Cost: ","")," $",""),".","")*1*$F$2),"") ->  | I8: 13125 | J8: =IFERROR(SUBSTITUTE(SUBSTITUTE(SUBSTITUTE(RIGHT(INDIRECT("Trello!"&ADDRESS(ROW()-1, L$1, 4)),LEN(INDIRECT("Trello!"&ADDRESS(ROW()-1, L$1, 4)))-15),". ","/")," 20","/20")," ",""),"") ->  | K8: =IFERROR(SUBSTITUTE(SUBSTITUTE(SUBSTITUTE(RIGHT(INDIRECT("Trello!"&ADDRESS(ROW()-1, M$1, 4)),LEN(INDIRECT("Trello!"&ADDRESS(ROW()-1, M$1, 4)))-15),". ","/")," 20","/20")," ",""),"") ->  | N8: =IF(AND(L8>0,M8>0,L8<>"",M8<>""),L8-M8,"") ->  | O8: =IFERROR(SUBSTITUTE(INDIRECT("Trello!"&ADDRESS(ROW()-1, O$1, 4)),"Estimate hrs: ","")*1,"") -> 20 | P8: =IF(SUMIF(Timecamp!C:C,Reporte!A8,Timecamp!J:J)=0,"",SUMIF(Timecamp!C:C,Reporte!A8,Timecamp!J:J)) ->  | S8: =IFERROR(VLOOKUP(A8,'SLA Trab'!E:I,5,FALSE),"") ->  | T8: =IFERROR(VLOOKUP(A8,'SLA Cobr'!E:I,5,FALSE),"") ->  | V8: Cotizado | W8: =COUNTIF(B:B,V8) -> 46 | X8: =IFERROR(AVERAGEIF($B:$B,$V8,D:D),"") -> 223.9565217 | AA8: =IFERROR(AVERAGEIF($B:$B,$V8,N:N),"") ->  | AB8: =SUMIF($B:$B,$V8,P:P) -> 0.9333333333 | AC8: 0.03888888889 | AE8: 283500 | AF8: 30.52083333
A9: =IFERROR(IF(Trello!E8="","",Trello!E8)," ") -> Faby - APIs Libreria y rediseño | B9: =IF($A9="","",IF(Trello!A8="",B8,Trello!A8)) -> Vendiendo | C9: 2023-09-12 | D9: =IF($A9="","",SUBSTITUTE(SUBSTITUTE(Trello!J8," days",""),"⌚ ","")*1) -> 1 | E9: =IFERROR(IF($A9="","",SUBSTITUTE(SUBSTITUTE(SUBSTITUTE(INDIRECT("Trello!"&ADDRESS(ROW()-1, E$1, 4)),"Foreign: ","")," $",""),".","")*1),"") ->  | F9: =IF($E9="",IFERROR(IF($A9="","",SUBSTITUTE(SUBSTITUTE(SUBSTITUTE(INDIRECT("Trello!"&ADDRESS(ROW()-1, F$1, 4)),"MXN: ","")," MX$",""),".","")*1),""),E9*F$2) -> 22000 | G9: =IFERROR(IF($A9="","",SUBSTITUTE(SUBSTITUTE(SUBSTITUTE(INDIRECT("Trello!"&ADDRESS(ROW()-1, G$1, 4)),"Debt: ","")," $",""),".","")*1)*IF(E9="",1,F$2),"") ->  | H9: =IFERROR(IF($A9="","",SUBSTITUTE(SUBSTITUTE(SUBSTITUTE(INDIRECT("Trello!"&ADDRESS(ROW()-1, H$1, 4)),"Cost: ","")," $",""),".","")*1*$F$2),"") ->  | I9: 22000 | J9: =IFERROR(SUBSTITUTE(SUBSTITUTE(SUBSTITUTE(RIGHT(INDIRECT("Trello!"&ADDRESS(ROW()-1, L$1, 4)),LEN(INDIRECT("Trello!"&ADDRESS(ROW()-1, L$1, 4)))-15),". ","/")," 20","/20")," ",""),"") ->  | K9: =IFERROR(SUBSTITUTE(SUBSTITUTE(SUBSTITUTE(RIGHT(INDIRECT("Trello!"&ADDRESS(ROW()-1, M$1, 4)),LEN(INDIRECT("Trello!"&ADDRESS(ROW()-1, M$1, 4)))-15),". ","/")," 20","/20")," ",""),"") ->  | N9: =IF(AND(L9>0,M9>0,L9<>"",M9<>""),L9-M9,"") ->  | O9: =IFERROR(SUBSTITUTE(INDIRECT("Trello!"&ADDRESS(ROW()-1, O$1, 4)),"Estimate hrs: ","")*1,"") ->  | P9: =IF(SUMIF(Timecamp!C:C,Reporte!A9,Timecamp!J:J)=0,"",SUMIF(Timecamp!C:C,Reporte!A9,Timecamp!J:J)) ->  | S9: =IFERROR(VLOOKUP(A9,'SLA Trab'!E:I,5,FALSE),"") ->  | T9: =IFERROR(VLOOKUP(A9,'SLA Cobr'!E:I,5,FALSE),"") ->  | V9: Global | W9: =SUM(W4:W8) -> 185 | X9: =AVERAGE(X4:X8) -> 111.3781889 | Y9: =SUMIF(Y4:Y8,">0",Y4:Y8) -> 89330 | Z9: =SUM(Z4:Z8) -> 888316.5 | AA9: =AVERAGE(AA4:AA8) -> -6.818181818 | AB9: =SUM(AB4:AB8) -> 541.85 | AC9: 22.57708333 | AD9: =AVERAGE(AD4:AD8) -> -0.3998221726 | AE9: =AVERAGE(AE4:AE8) -> 126746.355 | AF9: =AVERAGE(AF4:AF8) -> 15.27450263 | AG9: =AVERAGE(AG4:AG8) -> 18.18628247
A10: =IFERROR(IF(Trello!E9="","",Trello!E9)," ") -> Eduardo Freelancer - cambios Arekkusu 2do round | B10: =IF($A10="","",IF(Trello!A9="",B9,Trello!A9)) -> Vendiendo | C10: 2023-09-12 | D10: =IF($A10="","",SUBSTITUTE(SUBSTITUTE(Trello!J9," days",""),"⌚ ","")*1) -> 1 | E10: =IFERROR(IF($A10="","",SUBSTITUTE(SUBSTITUTE(SUBSTITUTE(INDIRECT("Trello!"&ADDRESS(ROW()-1, E$1, 4)),"Foreign: ","")," $",""),".","")*1),"") -> 300 | F10: =IF($E10="",IFERROR(IF($A10="","",SUBSTITUTE(SUBSTITUTE(SUBSTITUTE(INDIRECT("Trello!"&ADDRESS(ROW()-1, F$1, 4)),"MXN: ","")," MX$",""),".","")*1),""),E10*F$2) -> 5250 | G10: =IFERROR(IF($A10="","",SUBSTITUTE(SUBSTITUTE(SUBSTITUTE(INDIRECT("Trello!"&ADDRESS(ROW()-1, G$1, 4)),"Debt: ","")," $",""),".","")*1)*IF(E10="",1,F$2),"") ->  | H10: =IFERROR(IF($A10="","",SUBSTITUTE(SUBSTITUTE(SUBSTITUTE(INDIRECT("Trello!"&ADDRESS(ROW()-1, H$1, 4)),"Cost: ","")," $",""),".","")*1*$F$2),"") ->  | I10: 5250 | J10: =IFERROR(SUBSTITUTE(SUBSTITUTE(SUBSTITUTE(RIGHT(INDIRECT("Trello!"&ADDRESS(ROW()-1, L$1, 4)),LEN(INDIRECT("Trello!"&ADDRESS(ROW()-1, L$1, 4)))-15),". ","/")," 20","/20")," ",""),"") ->  | K10: =IFERROR(SUBSTITUTE(SUBSTITUTE(SUBSTITUTE(RIGHT(INDIRECT("Trello!"&ADDRESS(ROW()-1, M$1, 4)),LEN(INDIRECT("Trello!"&ADDRESS(ROW()-1, M$1, 4)))-15),". ","/")," 20","/20")," ",""),"") ->  | L10: =IFERROR(SUBSTITUTE(SUBSTITUTE(SUBSTITUTE(SUBSTITUTE(SUBSTITUTE(SUBSTITUTE(SUBSTITUTE(SUBSTITUTE(SUBSTITUTE(SUBSTITUTE(SUBSTITUTE(SUBSTITUTE(J10,"Dez",12),"Nov",11),"Okt",10),"Sept",9),"Aug",8),"Juli",7),"Juni",6),"Mai",5),"Apr",4),"März",3),"Feb",2),"Jan",1)*1,"") ->  | N10: =IF(AND(L10>0,M10>0,L10<>"",M10<>""),L10-M10,"") ->  | O10: =IFERROR(SUBSTITUTE(INDIRECT("Trello!"&ADDRESS(ROW()-1, O$1, 4)),"Estimate hrs: ","")*1,"") ->  | P10: =IF(SUMIF(Timecamp!C:C,Reporte!A10,Timecamp!J:J)=0,"",SUMIF(Timecamp!C:C,Reporte!A10,Timecamp!J:J)) ->  | S10: =IFERROR(VLOOKUP(A10,'SLA Trab'!E:I,5,FALSE),"") ->  | T10: =IFERROR(VLOOKUP(A10,'SLA Cobr'!E:I,5,FALSE),"") -> 
A11: =IFERROR(IF(Trello!E10="","",Trello!E10)," ") -> Ricardo CDMX - Excel a Plataforma Web | B11: =IF($A11="","",IF(Trello!A10="",B10,Trello!A10)) -> Actual | C11: 2023-08-26 | D11: =IF($A11="","",SUBSTITUTE(SUBSTITUTE(Trello!J10," days",""),"⌚ ","")*1) -> 18 | E11: =IFERROR(IF($A11="","",SUBSTITUTE(SUBSTITUTE(SUBSTITUTE(INDIRECT("Trello!"&ADDRESS(ROW()-1, E$1, 4)),"Foreign: ","")," $",""),".","")*1),"") -> 300 | F11: =IF($E11="",IFERROR(IF($A11="","",SUBSTITUTE(SUBSTITUTE(SUBSTITUTE(INDIRECT("Trello!"&ADDRESS(ROW()-1, F$1, 4)),"MXN: ","")," MX$",""),".","")*1),""),E11*F$2) -> 5250 | G11: =IFERROR(IF($A11="","",SUBSTITUTE(SUBSTITUTE(SUBSTITUTE(INDIRECT("Trello!"&ADDRESS(ROW()-1, G$1, 4)),"Debt: ","")," $",""),".","")*1)*IF(E11="",1,F$2),"") ->  | H11: =IFERROR(IF($A11="","",SUBSTITUTE(SUBSTITUTE(SUBSTITUTE(INDIRECT("Trello!"&ADDRESS(ROW()-1, H$1, 4)),"Cost: ","")," $",""),".","")*1*$F$2),"") ->  | I11: 5250 | J11: =IFERROR(SUBSTITUTE(SUBSTITUTE(SUBSTITUTE(RIGHT(INDIRECT("Trello!"&ADDRESS(ROW()-1, L$1, 4)),LEN(INDIRECT("Trello!"&ADDRESS(ROW()-1, L$1, 4)))-15),". ","/")," 20","/20")," ",""),"") -> 30/Aug/2023 | K11: =IFERROR(SUBSTITUTE(SUBSTITUTE(SUBSTITUTE(RIGHT(INDIRECT("Trello!"&ADDRESS(ROW()-1, M$1, 4)),LEN(INDIRECT("Trello!"&ADDRESS(ROW()-1, M$1, 4)))-15),". ","/")," 20","/20")," ",""),"") -> 1/Sept/2023 | L11: =IFERROR(SUBSTITUTE(SUBSTITUTE(SUBSTITUTE(SUBSTITUTE(SUBSTITUTE(SUBSTITUTE(SUBSTITUTE(SUBSTITUTE(SUBSTITUTE(SUBSTITUTE(SUBSTITUTE(SUBSTITUTE(J11,"Dez",12),"Nov",11),"Okt",10),"Sept",9),"Aug",8),"Juli",7),"Juni",6),"Mai",5),"Apr",4),"März",3),"Feb",2),"Jan",1)*1,"") -> 2023-08-30 | M11: 2023-09-01 | N11: -2 | O11: =IFERROR(SUBSTITUTE(INDIRECT("Trello!"&ADDRESS(ROW()-1, O$1, 4)),"Estimate hrs: ","")*1,"") ->  | P11: =IF(SUMIF(Timecamp!C:C,Reporte!A11,Timecamp!J:J)=0,"",SUMIF(Timecamp!C:C,Reporte!A11,Timecamp!J:J)) -> 14.98333333 | R11: 350.3893215 | S11: =IFERROR(VLOOKUP(A11,'SLA Trab'!E:I,5,FALSE),"") -> 5.625 | T11: =IFERROR(VLOOKUP(A11,'SLA Cobr'!E:I,5,FALSE),"") -> 12.25
A12: =IFERROR(IF(Trello!E11="","",Trello!E11)," ") -> Jaidi Col - PDF online marker | B12: =IF($A12="","",IF(Trello!A11="",B11,Trello!A11)) -> Actual | C12: 2023-09-01 | D12: =IF($A12="","",SUBSTITUTE(SUBSTITUTE(Trello!J11," days",""),"⌚ ","")*1) -> 12 | E12: =IFERROR(IF($A12="","",SUBSTITUTE(SUBSTITUTE(SUBSTITUTE(INDIRECT("Trello!"&ADDRESS(ROW()-1, E$1, 4)),"Foreign: ","")," $",""),".","")*1),"") -> 700 | F12: =IF($E12="",IFERROR(IF($A12="","",SUBSTITUTE(SUBSTITUTE(SUBSTITUTE(INDIRECT("Trello!"&ADDRESS(ROW()-1, F$1, 4)),"MXN: ","")," MX$",""),".","")*1),""),E12*F$2) -> 12250 | G12: =IFERROR(IF($A12="","",SUBSTITUTE(SUBSTITUTE(SUBSTITUTE(INDIRECT("Trello!"&ADDRESS(ROW()-1, G$1, 4)),"Debt: ","")," $",""),".","")*1)*IF(E12="",1,F$2),"") ->  | H12: =IFERROR(IF($A12="","",SUBSTITUTE(SUBSTITUTE(SUBSTITUTE(INDIRECT("Trello!"&ADDRESS(ROW()-1, H$1, 4)),"Cost: ","")," $",""),".","")*1*$F$2),"") ->  | I12: 12250 | J12: =IFERROR(SUBSTITUTE(SUBSTITUTE(SUBSTITUTE(RIGHT(INDIRECT("Trello!"&ADDRESS(ROW()-1, L$1, 4)),LEN(INDIRECT("Trello!"&ADDRESS(ROW()-1, L$1, 4)))-15),". ","/")," 20","/20")," ",""),"") -> 15/Sept/2023 | K12: =IFERROR(SUBSTITUTE(SUBSTITUTE(SUBSTITUTE(RIGHT(INDIRECT("Trello!"&ADDRESS(ROW()-1, M$1, 4)),LEN(INDIRECT("Trello!"&ADDRESS(ROW()-1, M$1, 4)))-15),". ","/")," 20","/20")," ",""),"") ->  | L12: 2023-09-15 | O12: =IFERROR(SUBSTITUTE(INDIRECT("Trello!"&ADDRESS(ROW()-1, O$1, 4)),"Estimate hrs: ","")*1,"") -> 15 | P12: =IF(SUMIF(Timecamp!C:C,Reporte!A12,Timecamp!J:J)=0,"",SUMIF(Timecamp!C:C,Reporte!A12,Timecamp!J:J)) -> 0.5833333333 | Q12: -0.9611111111 | R12: 21000 | S12: =IFERROR(VLOOKUP(A12,'SLA Trab'!E:I,5,FALSE),"") -> 11.75 | T12: =IFERROR(VLOOKUP(A12,'SLA Cobr'!E:I,5,FALSE),"") -> 
A13: =IFERROR(IF(Trello!E12="","",Trello!E12)," ") -> Francisco Inlat - Ingeurbe Ingles | B13: =IF($A13="","",IF(Trello!A12="",B12,Trello!A12)) -> Actual | C13: 2023-08-22 | D13: =IF($A13="","",SUBSTITUTE(SUBSTITUTE(Trello!J12," days",""),"⌚ ","")*1) -> 22 | E13: =IFERROR(IF($A13="","",SUBSTITUTE(SUBSTITUTE(SUBSTITUTE(INDIRECT("Trello!"&ADDRESS(ROW()-1, E$1, 4)),"Foreign: ","")," $",""),".","")*1),"") -> 800 | F13: =IF($E13="",IFERROR(IF($A13="","",SUBSTITUTE(SUBSTITUTE(SUBSTITUTE(INDIRECT("Trello!"&ADDRESS(ROW()-1, F$1, 4)),"MXN: ","")," MX$",""),".","")*1),""),E13*F$2) -> 14000 | G13: =IFERROR(IF($A13="","",SUBSTITUTE(SUBSTITUTE(SUBSTITUTE(INDIRECT("Trello!"&ADDRESS(ROW()-1, G$1, 4)),"Debt: ","")," $",""),".","")*1)*IF(E13="",1,F$2),"") ->  | H13: =IFERROR(IF($A13="","",SUBSTITUTE(SUBSTITUTE(SUBSTITUTE(INDIRECT("Trello!"&ADDRESS(ROW()-1, H$1, 4)),"Cost: ","")," $",""),".","")*1*$F$2),"") ->  | I13: 14000 | J13: =IFERROR(SUBSTITUTE(SUBSTITUTE(SUBSTITUTE(RIGHT(INDIRECT("Trello!"&ADDRESS(ROW()-1, L$1, 4)),LEN(INDIRECT("Trello!"&ADDRESS(ROW()-1, L$1, 4)))-15),". ","/")," 20","/20")," ",""),"") ->  | K13: =IFERROR(SUBSTITUTE(SUBSTITUTE(SUBSTITUTE(RIGHT(INDIRECT("Trello!"&ADDRESS(ROW()-1, M$1, 4)),LEN(INDIRECT("Trello!"&ADDRESS(ROW()-1, M$1, 4)))-15),". ","/")," 20","/20")," ",""),"") ->  | O13: =IFERROR(SUBSTITUTE(INDIRECT("Trello!"&ADDRESS(ROW()-1, O$1, 4)),"Estimate hrs: ","")*1,"") ->  | P13: =IF(SUMIF(Timecamp!C:C,Reporte!A13,Timecamp!J:J)=0,"",SUMIF(Timecamp!C:C,Reporte!A13,Timecamp!J:J)) ->  | S13: =IFERROR(VLOOKUP(A13,'SLA Trab'!E:I,5,FALSE),"") -> 0.9166666667 | T13: =IFERROR(VLOOKUP(A13,'SLA Cobr'!E:I,5,FALSE),"") -> 
A14: =IFERROR(IF(Trello!E13="","",Trello!E13)," ") -> Gary Hydracheck - safe-2-bleed Quote on contact | B14: =IF($A14="","",IF(Trello!A13="",B13,Trello!A13)) -> Actual | C14: 2023-09-12 | D14: =IF($A14="","",SUBSTITUTE(SUBSTITUTE(Trello!J13," days",""),"⌚ ","")*1) -> 1 | E14: =IFERROR(IF($A14="","",SUBSTITUTE(SUBSTITUTE(SUBSTITUTE(INDIRECT("Trello!"&ADDRESS(ROW()-1, E$1, 4)),"Foreign: ","")," $",""),".","")*1),"") ->  | F14: =IF($E14="",IFERROR(IF($A14="","",SUBSTITUTE(SUBSTITUTE(SUBSTITUTE(INDIRECT("Trello!"&ADDRESS(ROW()-1, F$1, 4)),"MXN: ","")," MX$",""),".","")*1),""),E14*F$2) ->  | G14: =IFERROR(IF($A14="","",SUBSTITUTE(SUBSTITUTE(SUBSTITUTE(INDIRECT("Trello!"&ADDRESS(ROW()-1, G$1, 4)),"Debt: ","")," $",""),".","")*1)*IF(E14="",1,F$2),"") ->  | H14: =IFERROR(IF($A14="","",SUBSTITUTE(SUBSTITUTE(SUBSTITUTE(INDIRECT("Trello!"&ADDRESS(ROW()-1, H$1, 4)),"Cost: ","")," $",""),".","")*1*$F$2),"") ->  | J14: =IFERROR(SUBSTITUTE(SUBSTITUTE(SUBSTITUTE(RIGHT(INDIRECT("Trello!"&ADDRESS(ROW()-1, L$1, 4)),LEN(INDIRECT("Trello!"&ADDRESS(ROW()-1, L$1, 4)))-15),". ","/")," 20","/20")," ",""),"") ->  | K14: =IFERROR(SUBSTITUTE(SUBSTITUTE(SUBSTITUTE(RIGHT(INDIRECT("Trello!"&ADDRESS(ROW()-1, M$1, 4)),LEN(INDIRECT("Trello!"&ADDRESS(ROW()-1, M$1, 4)))-15),". ","/")," 20","/20")," ",""),"") ->  | O14: =IFERROR(SUBSTITUTE(INDIRECT("Trello!"&ADDRESS(ROW()-1, O$1, 4)),"Estimate hrs: ","")*1,"") ->  | P14: =IF(SUMIF(Timecamp!C:C,Reporte!A14,Timecamp!J:J)=0,"",SUMIF(Timecamp!C:C,Reporte!A14,Timecamp!J:J)) -> 0.01666666667 | S14: =IFERROR(VLOOKUP(A14,'SLA Trab'!E:I,5,FALSE),"") -> 0.7916666667 | T14: =IFERROR(VLOOKUP(A14,'SLA Cobr'!E:I,5,FALSE),"") -> 
A15: =IFERROR(IF(Trello!E14="","",Trello!E14)," ") -> Ricardo Cuerna - Fixum Carta Porte | B15: =IF($A15="","",IF(Trello!A14="",B14,Trello!A14)) -> Actual | C15: 2023-08-16 | D15: =IF($A15="","",SUBSTITUTE(SUBSTITUTE(Trello!J14," days",""),"⌚ ","")*1) -> 28 | E15: =IFERROR(IF($A15="","",SUBSTITUTE(SUBSTITUTE(SUBSTITUTE(INDIRECT("Trello!"&ADDRESS(ROW()-1, E$1, 4)),"Foreign: ","")," $",""),".","")*1),"") -> 2500 | F15: =IF($E15="",IFERROR(IF($A15="","",SUBSTITUTE(SUBSTITUTE(SUBSTITUTE(INDIRECT("Trello!"&ADDRESS(ROW()-1, F$1, 4)),"MXN: ","")," MX$",""),".","")*1),""),E15*F$2) -> 43750 | G15: =IFERROR(IF($A15="","",SUBSTITUTE(SUBSTITUTE(SUBSTITUTE(INDIRECT("Trello!"&ADDRESS(ROW()-1, G$1, 4)),"Debt: ","")," $",""),".","")*1)*IF(E15="",1,F$2),"") ->  | H15: =IFERROR(IF($A15="","",SUBSTITUTE(SUBSTITUTE(SUBSTITUTE(INDIRECT("Trello!"&ADDRESS(ROW()-1, H$1, 4)),"Cost: ","")," $",""),".","")*1*$F$2),"") ->  | I15: 43750 | J15: =IFERROR(SUBSTITUTE(SUBSTITUTE(SUBSTITUTE(RIGHT(INDIRECT("Trello!"&ADDRESS(ROW()-1, L$1, 4)),LEN(INDIRECT("Trello!"&ADDRESS(ROW()-1, L$1, 4)))-15),". ","/")," 20","/20")," ",""),"") ->  | K15: =IFERROR(SUBSTITUTE(SUBSTITUTE(SUBSTITUTE(RIGHT(INDIRECT("Trello!"&ADDRESS(ROW()-1, M$1, 4)),LEN(INDIRECT("Trello!"&ADDRESS(ROW()-1, M$1, 4)))-15),". ","/")," 20","/20")," ",""),"") ->  | O15: =IFERROR(SUBSTITUTE(INDIRECT("Trello!"&ADDRESS(ROW()-1, O$1, 4)),"Estimate hrs: ","")*1,"") ->  | P15: =IF(SUMIF(Timecamp!C:C,Reporte!A15,Timecamp!J:J)=0,"",SUMIF(Timecamp!C:C,Reporte!A15,Timecamp!J:J)) ->  | S15: =IFERROR(VLOOKUP(A15,'SLA Trab'!E:I,5,FALSE),"") -> 6.791666667 | T15: =IFERROR(VLOOKUP(A15,'SLA Cobr'!E:I,5,FALSE),"") -> 
A16: =IFERROR(IF(Trello!E15="","",Trello!E15)," ") -> Juan Balnearis - Bodyclinicmx cambios | B16: =IF($A16="","",IF(Trello!A15="",B15,Trello!A15)) -> Actual | C16: 2023-08-21 | D16: =IF($A16="","",SUBSTITUTE(SUBSTITUTE(Trello!J15," days",""),"⌚ ","")*1) -> 23 | E16: =IFERROR(IF($A16="","",SUBSTITUTE(SUBSTITUTE(SUBSTITUTE(INDIRECT("Trello!"&ADDRESS(ROW()-1, E$1, 4)),"Foreign: ","")," $",""),".","")*1),"") -> 200 | F16: =IF($E16="",IFERROR(IF($A16="","",SUBSTITUTE(SUBSTITUTE(SUBSTITUTE(INDIRECT("Trello!"&ADDRESS(ROW()-1, F$1, 4)),"MXN: ","")," MX$",""),".","")*1),""),E16*F$2) -> 3500 | G16: =IFERROR(IF($A16="","",SUBSTITUTE(SUBSTITUTE(SUBSTITUTE(INDIRECT("Trello!"&ADDRESS(ROW()-1, G$1, 4)),"Debt: ","")," $",""),".","")*1)*IF(E16="",1,F$2),"") ->  | H16: =IFERROR(IF($A16="","",SUBSTITUTE(SUBSTITUTE(SUBSTITUTE(INDIRECT("Trello!"&ADDRESS(ROW()-1, H$1, 4)),"Cost: ","")," $",""),".","")*1*$F$2),"") ->  | I16: 3500 | J16: =IFERROR(SUBSTITUTE(SUBSTITUTE(SUBSTITUTE(RIGHT(INDIRECT("Trello!"&ADDRESS(ROW()-1, L$1, 4)),LEN(INDIRECT("Trello!"&ADDRESS(ROW()-1, L$1, 4)))-15),". ","/")," 20","/20")," ",""),"") ->  | K16: =IFERROR(SUBSTITUTE(SUBSTITUTE(SUBSTITUTE(RIGHT(INDIRECT("Trello!"&ADDRESS(ROW()-1, M$1, 4)),LEN(INDIRECT("Trello!"&ADDRESS(ROW()-1, M$1, 4)))-15),". ","/")," 20","/20")," ",""),"") ->  | N16: =IF(AND(L16>0,M16>0,L16<>"",M16<>""),L16-M16,"") ->  | O16: =IFERROR(SUBSTITUTE(INDIRECT("Trello!"&ADDRESS(ROW()-1, O$1, 4)),"Estimate hrs: ","")*1,"") ->  | P16: =IF(SUMIF(Timecamp!C:C,Reporte!A16,Timecamp!J:J)=0,"",SUMIF(Timecamp!C:C,Reporte!A16,Timecamp!J:J)) -> 0.4833333333 | R16: 7241.37931 | S16: =IFERROR(VLOOKUP(A16,'SLA Trab'!E:I,5,FALSE),"") -> 11.20833333 | T16: =IFERROR(VLOOKUP(A16,'SLA Cobr'!E:I,5,FALSE),"") -> 
A17: =IFERROR(IF(Trello!E16="","",Trello!E16)," ") -> Faby - Crawler Farmakosto | B17: =IF($A17="","",IF(Trello!A16="",B16,Trello!A16)) -> Cobrando | C17: 2023-08-01 | D17: =IF($A17="","",SUBSTITUTE(SUBSTITUTE(Trello!J16," days",""),"⌚ ","")*1) -> 43 | E17: =IFERROR(IF($A17="","",SUBSTITUTE(SUBSTITUTE(SUBSTITUTE(INDIRECT("Trello!"&ADDRESS(ROW()-1, E$1, 4)),"Foreign: ","")," $",""),".","")*1),"") ->  | F17: =IF($E17="",IFERROR(IF($A17="","",SUBSTITUTE(SUBSTITUTE(SUBSTITUTE(INDIRECT("Trello!"&ADDRESS(ROW()-1, F$1, 4)),"MXN: ","")," MX$",""),".","")*1),""),E17*F$2) -> 30000 | G17: =IFERROR(IF($A17="","",SUBSTITUTE(SUBSTITUTE(SUBSTITUTE(INDIRECT("Trello!"&ADDRESS(ROW()-1, G$1, 4)),"Debt: ","")," $",""),".","")*1)*IF(E17="",1,F$2),"") -> 15000 | H17: =IFERROR(IF($A17="","",SUBSTITUTE(SUBSTITUTE(SUBSTITUTE(INDIRECT("Trello!"&ADDRESS(ROW()-1, H$1, 4)),"Cost: ","")," $",""),".","")*1*$F$2),"") ->  | I17: 30000 | J17: =IFERROR(SUBSTITUTE(SUBSTITUTE(SUBSTITUTE(RIGHT(INDIRECT("Trello!"&ADDRESS(ROW()-1, L$1, 4)),LEN(INDIRECT("Trello!"&ADDRESS(ROW()-1, L$1, 4)))-15),". ","/")," 20","/20")," ",""),"") -> 13/Sept/2023 | K17: =IFERROR(SUBSTITUTE(SUBSTITUTE(SUBSTITUTE(RIGHT(INDIRECT("Trello!"&ADDRESS(ROW()-1, M$1, 4)),LEN(INDIRECT("Trello!"&ADDRESS(ROW()-1, M$1, 4)))-15),". ","/")," 20","/20")," ",""),"") ->  | L17: 2023-09-13 | O17: =IFERROR(SUBSTITUTE(INDIRECT("Trello!"&ADDRESS(ROW()-1, O$1, 4)),"Estimate hrs: ","")*1,"") ->  | P17: =IF(SUMIF(Timecamp!C:C,Reporte!A17,Timecamp!J:J)=0,"",SUMIF(Timecamp!C:C,Reporte!A17,Timecamp!J:J)) -> 9.616666667 | R17: 3119.584055 | S17: =IFERROR(VLOOKUP(A17,'SLA Trab'!E:I,5,FALSE),"") -> 34.08333333 | T17: =IFERROR(VLOOKUP(A17,'SLA Cobr'!E:I,5,FALSE),"") -> 0.7916666667
A18: =IFERROR(IF(Trello!E17="","",Trello!E17)," ") -> Bjorn Sueco - Speedup | B18: =IF($A18="","",IF(Trello!A17="",B17,Trello!A17)) -> Cobrando | C18: 2023-09-10 | D18: =IF($A18="","",SUBSTITUTE(SUBSTITUTE(Trello!J17," days",""),"⌚ ","")*1) -> 3 | E18: =IFERROR(IF($A18="","",SUBSTITUTE(SUBSTITUTE(SUBSTITUTE(INDIRECT("Trello!"&ADDRESS(ROW()-1, E$1, 4)),"Foreign: ","")," $",""),".","")*1),"") -> 300 | F18: =IF($E18="",IFERROR(IF($A18="","",SUBSTITUTE(SUBSTITUTE(SUBSTITUTE(INDIRECT("Trello!"&ADDRESS(ROW()-1, F$1, 4)),"MXN: ","")," MX$",""),".","")*1),""),E18*F$2) -> 5250 | G18: =IFERROR(IF($A18="","",SUBSTITUTE(SUBSTITUTE(SUBSTITUTE(INDIRECT("Trello!"&ADDRESS(ROW()-1, G$1, 4)),"Debt: ","")," $",""),".","")*1)*IF(E18="",1,F$2),"") ->  | H18: =IFERROR(IF($A18="","",SUBSTITUTE(SUBSTITUTE(SUBSTITUTE(INDIRECT("Trello!"&ADDRESS(ROW()-1, H$1, 4)),"Cost: ","")," $",""),".","")*1*$F$2),"") ->  | I18: 5250 | J18: =IFERROR(SUBSTITUTE(SUBSTITUTE(SUBSTITUTE(RIGHT(INDIRECT("Trello!"&ADDRESS(ROW()-1, L$1, 4)),LEN(INDIRECT("Trello!"&ADDRESS(ROW()-1, L$1, 4)))-15),". ","/")," 20","/20")," ",""),"") ->  | K18: =IFERROR(SUBSTITUTE(SUBSTITUTE(SUBSTITUTE(RIGHT(INDIRECT("Trello!"&ADDRESS(ROW()-1, M$1, 4)),LEN(INDIRECT("Trello!"&ADDRESS(ROW()-1, M$1, 4)))-15),". ","/")," 20","/20")," ",""),"") ->  | N18: =IF(AND(L18>0,M18>0,L18<>"",M18<>""),L18-M18,"") ->  | O18: =IFERROR(SUBSTITUTE(INDIRECT("Trello!"&ADDRESS(ROW()-1, O$1, 4)),"Estimate hrs: ","")*1,"") ->  | P18: =IF(SUMIF(Timecamp!C:C,Reporte!A18,Timecamp!J:J)=0,"",SUMIF(Timecamp!C:C,Reporte!A18,Timecamp!J:J)) ->  | S18: =IFERROR(VLOOKUP(A18,'SLA Trab'!E:I,5,FALSE),"") -> 2.833333333 | T18: =IFERROR(VLOOKUP(A18,'SLA Cobr'!E:I,5,FALSE),"") -> 0.5833333333
A19: =IFERROR(IF(Trello!E18="","",Trello!E18)," ") -> Juan Balnearis - unidades medicas | B19: =IF($A19="","",IF(Trello!A18="",B18,Trello!A18)) -> Cobrando | C19: 2023-08-21 | D19: =IF($A19="","",SUBSTITUTE(SUBSTITUTE(Trello!J18," days",""),"⌚ ","")*1) -> 23 | E19: =IFERROR(IF($A19="","",SUBSTITUTE(SUBSTITUTE(SUBSTITUTE(INDIRECT("Trello!"&ADDRESS(ROW()-1, E$1, 4)),"Foreign: ","")," $",""),".","")*1),"") -> 400 | F19: =IF($E19="",IFERROR(IF($A19="","",SUBSTITUTE(SUBSTITUTE(SUBSTITUTE(INDIRECT("Trello!"&ADDRESS(ROW()-1, F$1, 4)),"MXN: ","")," MX$",""),".","")*1),""),E19*F$2) -> 7000 | G19: =IFERROR(IF($A19="","",SUBSTITUTE(SUBSTITUTE(SUBSTITUTE(INDIRECT("Trello!"&ADDRESS(ROW()-1, G$1, 4)),"Debt: ","")," $",""),".","")*1)*IF(E19="",1,F$2),"") ->  | H19: =IFERROR(IF($A19="","",SUBSTITUTE(SUBSTITUTE(SUBSTITUTE(INDIRECT("Trello!"&ADDRESS(ROW()-1, H$1, 4)),"Cost: ","")," $",""),".","")*1*$F$2),"") ->  | I19: 7000 | J19: =IFERROR(SUBSTITUTE(SUBSTITUTE(SUBSTITUTE(RIGHT(INDIRECT("Trello!"&ADDRESS(ROW()-1, L$1, 4)),LEN(INDIRECT("Trello!"&ADDRESS(ROW()-1, L$1, 4)))-15),". ","/")," 20","/20")," ",""),"") ->  | K19: =IFERROR(SUBSTITUTE(SUBSTITUTE(SUBSTITUTE(RIGHT(INDIRECT("Trello!"&ADDRESS(ROW()-1, M$1, 4)),LEN(INDIRECT("Trello!"&ADDRESS(ROW()-1, M$1, 4)))-15),". ","/")," 20","/20")," ",""),"") ->  | O19: =IFERROR(SUBSTITUTE(INDIRECT("Trello!"&ADDRESS(ROW()-1, O$1, 4)),"Estimate hrs: ","")*1,"") ->  | P19: =IF(SUMIF(Timecamp!C:C,Reporte!A19,Timecamp!J:J)=0,"",SUMIF(Timecamp!C:C,Reporte!A19,Timecamp!J:J)) -> 0.01666666667 | R19: 420000 | S19: =IFERROR(VLOOKUP(A19,'SLA Trab'!E:I,5,FALSE),"") -> 9.875 | T19: =IFERROR(VLOOKUP(A19,'SLA Cobr'!E:I,5,FALSE),"") -> 4.791666667
A20: =IFERROR(IF(Trello!E19="","",Trello!E19)," ") -> Daren frelancer - cambios maintenance form | B20: =IF($A20="","",IF(Trello!A19="",B19,Trello!A19)) -> Cobrando | C20: 2023-08-29 | D20: =IF($A20="","",SUBSTITUTE(SUBSTITUTE(Trello!J19," days",""),"⌚ ","")*1) -> 15 | E20: =IFERROR(IF($A20="","",SUBSTITUTE(SUBSTITUTE(SUBSTITUTE(INDIRECT("Trello!"&ADDRESS(ROW()-1, E$1, 4)),"Foreign: ","")," $",""),".","")*1),"") -> 100 | F20: =IF($E20="",IFERROR(IF($A20="","",SUBSTITUTE(SUBSTITUTE(SUBSTITUTE(INDIRECT("Trello!"&ADDRESS(ROW()-1, F$1, 4)),"MXN: ","")," MX$",""),".","")*1),""),E20*F$2) -> 1750 | G20: =IFERROR(IF($A20="","",SUBSTITUTE(SUBSTITUTE(SUBSTITUTE(INDIRECT("Trello!"&ADDRESS(ROW()-1, G$1, 4)),"Debt: ","")," $",""),".","")*1)*IF(E20="",1,F$2),"") -> 1750 | H20: =IFERROR(IF($A20="","",SUBSTITUTE(SUBSTITUTE(SUBSTITUTE(INDIRECT("Trello!"&ADDRESS(ROW()-1, H$1, 4)),"Cost: ","")," $",""),".","")*1*$F$2),"") ->  | I20: 1750 | J20: =IFERROR(SUBSTITUTE(SUBSTITUTE(SUBSTITUTE(RIGHT(INDIRECT("Trello!"&ADDRESS(ROW()-1, L$1, 4)),LEN(INDIRECT("Trello!"&ADDRESS(ROW()-1, L$1, 4)))-15),". ","/")," 20","/20")," ",""),"") ->  | K20: =IFERROR(SUBSTITUTE(SUBSTITUTE(SUBSTITUTE(RIGHT(INDIRECT("Trello!"&ADDRESS(ROW()-1, M$1, 4)),LEN(INDIRECT("Trello!"&ADDRESS(ROW()-1, M$1, 4)))-15),". ","/")," 20","/20")," ",""),"") ->  | O20: =IFERROR(SUBSTITUTE(INDIRECT("Trello!"&ADDRESS(ROW()-1, O$1, 4)),"Estimate hrs: ","")*1,"") ->  | P20: =IF(SUMIF(Timecamp!C:C,Reporte!A20,Timecamp!J:J)=0,"",SUMIF(Timecamp!C:C,Reporte!A20,Timecamp!J:J)) -> 0.9666666667 | R20: 1810.344828 | S20: =IFERROR(VLOOKUP(A20,'SLA Trab'!E:I,5,FALSE),"") -> 1.041666667 | T20: =IFERROR(VLOOKUP(A20,'SLA Cobr'!E:I,5,FALSE),"") -> 13.75
A21: =IFERROR(IF(Trello!E20="","",Trello!E20)," ") -> Rodrigo Techservices - Kanatest Hosting | B21: =IF($A21="","",IF(Trello!A20="",B20,Trello!A20)) -> Cobrando | C21: 2023-07-05 | D21: =IF($A21="","",SUBSTITUTE(SUBSTITUTE(Trello!J20," days",""),"⌚ ","")*1) -> 70 | E21: =IFERROR(IF($A21="","",SUBSTITUTE(SUBSTITUTE(SUBSTITUTE(INDIRECT("Trello!"&ADDRESS(ROW()-1, E$1, 4)),"Foreign: ","")," $",""),".","")*1),"") ->  | F21: =IF($E21="",IFERROR(IF($A21="","",SUBSTITUTE(SUBSTITUTE(SUBSTITUTE(INDIRECT("Trello!"&ADDRESS(ROW()-1, F$1, 4)),"MXN: ","")," MX$",""),".","")*1),""),E21*F$2) -> 2000 | G21: =IFERROR(IF($A21="","",SUBSTITUTE(SUBSTITUTE(SUBSTITUTE(INDIRECT("Trello!"&ADDRESS(ROW()-1, G$1, 4)),"Debt: ","")," $",""),".","")*1)*IF(E21="",1,F$2),"") -> 1700 | H21: =IFERROR(IF($A21="","",SUBSTITUTE(SUBSTITUTE(SUBSTITUTE(INDIRECT("Trello!"&ADDRESS(ROW()-1, H$1, 4)),"Cost: ","")," $",""),".","")*1*$F$2),"") ->  | I21: 2000 | J21: =IFERROR(SUBSTITUTE(SUBSTITUTE(SUBSTITUTE(RIGHT(INDIRECT("Trello!"&ADDRESS(ROW()-1, L$1, 4)),LEN(INDIRECT("Trello!"&ADDRESS(ROW()-1, L$1, 4)))-15),". ","/")," 20","/20")," ",""),"") ->  | K21: =IFERROR(SUBSTITUTE(SUBSTITUTE(SUBSTITUTE(RIGHT(INDIRECT("Trello!"&ADDRESS(ROW()-1, M$1, 4)),LEN(INDIRECT("Trello!"&ADDRESS(ROW()-1, M$1, 4)))-15),". ","/")," 20","/20")," ",""),"") ->  | O21: =IFERROR(SUBSTITUTE(INDIRECT("Trello!"&ADDRESS(ROW()-1, O$1, 4)),"Estimate hrs: ","")*1,"") ->  | P21: =IF(SUMIF(Timecamp!C:C,Reporte!A21,Timecamp!J:J)=0,"",SUMIF(Timecamp!C:C,Reporte!A21,Timecamp!J:J)) ->  | S21: =IFERROR(VLOOKUP(A21,'SLA Trab'!E:I,5,FALSE),"") -> 0 | T21: =IFERROR(VLOOKUP(A21,'SLA Cobr'!E:I,5,FALSE),"") -> 69.875
A22: =IFERROR(IF(Trello!E21="","",Trello!E21)," ") -> Ricardo Freelancer - BDD Spotify | B22: =IF($A22="","",IF(Trello!A21="",B21,Trello!A21)) -> Cobrando | C22: 2022-10-27 | D22: =IF($A22="","",SUBSTITUTE(SUBSTITUTE(Trello!J21," days",""),"⌚ ","")*1) -> 321 | E22: =IFERROR(IF($A22="","",SUBSTITUTE(SUBSTITUTE(SUBSTITUTE(INDIRECT("Trello!"&ADDRESS(ROW()-1, E$1, 4)),"Foreign: ","")," $",""),".","")*1),"") -> 5497 | F22: =IF($E22="",IFERROR(IF($A22="","",SUBSTITUTE(SUBSTITUTE(SUBSTITUTE(INDIRECT("Trello!"&ADDRESS(ROW()-1, F$1, 4)),"MXN: ","")," MX$",""),".","")*1),""),E22*F$2) -> 96197.5 | G22: =IFERROR(IF($A22="","",SUBSTITUTE(SUBSTITUTE(SUBSTITUTE(INDIRECT("Trello!"&ADDRESS(ROW()-1, G$1, 4)),"Debt: ","")," $",""),".","")*1)*IF(E22="",1,F$2),"") -> 4497.5 | H22: =IFERROR(IF($A22="","",SUBSTITUTE(SUBSTITUTE(SUBSTITUTE(INDIRECT("Trello!"&ADDRESS(ROW()-1, H$1, 4)),"Cost: ","")," $",""),".","")*1*$F$2),"") ->  | I22: 96197.5 | J22: =IFERROR(SUBSTITUTE(SUBSTITUTE(SUBSTITUTE(RIGHT(INDIRECT("Trello!"&ADDRESS(ROW()-1, L$1, 4)),LEN(INDIRECT("Trello!"&ADDRESS(ROW()-1, L$1, 4)))-15),". ","/")," 20","/20")," ",""),"") ->  | K22: =IFERROR(SUBSTITUTE(SUBSTITUTE(SUBSTITUTE(RIGHT(INDIRECT("Trello!"&ADDRESS(ROW()-1, M$1, 4)),LEN(INDIRECT("Trello!"&ADDRESS(ROW()-1, M$1, 4)))-15),". ","/")," 20","/20")," ",""),"") ->  | O22: =IFERROR(SUBSTITUTE(INDIRECT("Trello!"&ADDRESS(ROW()-1, O$1, 4)),"Estimate hrs: ","")*1,"") ->  | P22: =IF(SUMIF(Timecamp!C:C,Reporte!A22,Timecamp!J:J)=0,"",SUMIF(Timecamp!C:C,Reporte!A22,Timecamp!J:J)) -> 9.066666667 | R22: 10610.01838 | S22: =IFERROR(VLOOKUP(A22,'SLA Trab'!E:I,5,FALSE),"") ->  | T22: =IFERROR(VLOOKUP(A22,'SLA Cobr'!E:I,5,FALSE),"") -> 69.75
A23: =IFERROR(IF(Trello!E22="","",Trello!E22)," ") -> Yordi - Prestamo Kennedy | B23: =IF($A23="","",IF(Trello!A22="",B22,Trello!A22)) -> Cobrando | C23: 2023-09-01 | D23: =IF($A23="","",SUBSTITUTE(SUBSTITUTE(Trello!J22," days",""),"⌚ ","")*1) -> 12 | E23: =IFERROR(IF($A23="","",SUBSTITUTE(SUBSTITUTE(SUBSTITUTE(INDIRECT("Trello!"&ADDRESS(ROW()-1, E$1, 4)),"Foreign: ","")," $",""),".","")*1),"") ->  | F23: =IF($E23="",IFERROR(IF($A23="","",SUBSTITUTE(SUBSTITUTE(SUBSTITUTE(INDIRECT("Trello!"&ADDRESS(ROW()-1, F$1, 4)),"MXN: ","")," MX$",""),".","")*1),""),E23*F$2) -> 1750 | G23: =IFERROR(IF($A23="","",SUBSTITUTE(SUBSTITUTE(SUBSTITUTE(INDIRECT("Trello!"&ADDRESS(ROW()-1, G$1, 4)),"Debt: ","")," $",""),".","")*1)*IF(E23="",1,F$2),"") ->  | H23: =IFERROR(IF($A23="","",SUBSTITUTE(SUBSTITUTE(SUBSTITUTE(INDIRECT("Trello!"&ADDRESS(ROW()-1, H$1, 4)),"Cost: ","")," $",""),".","")*1*$F$2),"") ->  | I23: 1750 | J23: =IFERROR(SUBSTITUTE(SUBSTITUTE(SUBSTITUTE(RIGHT(INDIRECT("Trello!"&ADDRESS(ROW()-1, L$1, 4)),LEN(INDIRECT("Trello!"&ADDRESS(ROW()-1, L$1, 4)))-15),". ","/")," 20","/20")," ",""),"") ->  | K23: =IFERROR(SUBSTITUTE(SUBSTITUTE(SUBSTITUTE(RIGHT(INDIRECT("Trello!"&ADDRESS(ROW()-1, M$1, 4)),LEN(INDIRECT("Trello!"&ADDRESS(ROW()-1, M$1, 4)))-15),". ","/")," 20","/20")," ",""),"") ->  | O23: =IFERROR(SUBSTITUTE(INDIRECT("Trello!"&ADDRESS(ROW()-1, O$1, 4)),"Estimate hrs: ","")*1,"") ->  | P23: =IF(SUMIF(Timecamp!C:C,Reporte!A23,Timecamp!J:J)=0,"",SUMIF(Timecamp!C:C,Reporte!A23,Timecamp!J:J)) ->  | S23: =IFERROR(VLOOKUP(A23,'SLA Trab'!E:I,5,FALSE),"") ->  | T23: =IFERROR(VLOOKUP(A23,'SLA Cobr'!E:I,5,FALSE),"") -> 12.41666667
A24: =IFERROR(IF(Trello!E23="","",Trello!E23)," ") -> Alejandro Disidentes - Sixbell | B24: =IF($A24="","",IF(Trello!A23="",B23,Trello!A23)) -> Terminado | C24: 2023-07-10 | D24: =IF($A24="","",SUBSTITUTE(SUBSTITUTE(Trello!J23," days",""),"⌚ ","")*1) -> 65 | E24: =IFERROR(IF($A24="","",SUBSTITUTE(SUBSTITUTE(SUBSTITUTE(INDIRECT("Trello!"&ADDRESS(ROW()-1, E$1, 4)),"Foreign: ","")," $",""),".","")*1),"") -> 450 | F24: =IF($E24="",IFERROR(IF($A24="","",SUBSTITUTE(SUBSTITUTE(SUBSTITUTE(INDIRECT("Trello!"&ADDRESS(ROW()-1, F$1, 4)),"MXN: ","")," MX$",""),".","")*1),""),E24*F$2) -> 7875 | G24: =IFERROR(IF($A24="","",SUBSTITUTE(SUBSTITUTE(SUBSTITUTE(INDIRECT("Trello!"&ADDRESS(ROW()-1, G$1, 4)),"Debt: ","")," $",""),".","")*1)*IF(E24="",1,F$2),"") -> 0 | H24: =IFERROR(IF($A24="","",SUBSTITUTE(SUBSTITUTE(SUBSTITUTE(INDIRECT("Trello!"&ADDRESS(ROW()-1, H$1, 4)),"Cost: ","")," $",""),".","")*1*$F$2),"") ->  | I24: 7875 | J24: =IFERROR(SUBSTITUTE(SUBSTITUTE(SUBSTITUTE(RIGHT(INDIRECT("Trello!"&ADDRESS(ROW()-1, L$1, 4)),LEN(INDIRECT("Trello!"&ADDRESS(ROW()-1, L$1, 4)))-15),". ","/")," 20","/20")," ",""),"") ->  | K24: =IFERROR(SUBSTITUTE(SUBSTITUTE(SUBSTITUTE(RIGHT(INDIRECT("Trello!"&ADDRESS(ROW()-1, M$1, 4)),LEN(INDIRECT("Trello!"&ADDRESS(ROW()-1, M$1, 4)))-15),". ","/")," 20","/20")," ",""),"") ->  | O24: =IFERROR(SUBSTITUTE(INDIRECT("Trello!"&ADDRESS(ROW()-1, O$1, 4)),"Estimate hrs: ","")*1,"") ->  | P24: =IF(SUMIF(Timecamp!C:C,Reporte!A24,Timecamp!J:J)=0,"",SUMIF(Timecamp!C:C,Reporte!A24,Timecamp!J:J)) -> 7.6 | R24: 1036.184211 | S24: =IFERROR(VLOOKUP(A24,'SLA Trab'!E:I,5,FALSE),"") -> 40.83333333 | T24: =IFERROR(VLOOKUP(A24,'SLA Cobr'!E:I,5,FALSE),"") -> 0
A25: =IFERROR(IF(Trello!E24="","",Trello!E24)," ") -> Gary Hydracheck - add to cart godspeedsocks | B25: =IF($A25="","",IF(Trello!A24="",B24,Trello!A24)) -> Terminado | C25: 2023-08-29 | D25: =IF($A25="","",SUBSTITUTE(SUBSTITUTE(Trello!J24," days",""),"⌚ ","")*1) -> 15 | E25: =IFERROR(IF($A25="","",SUBSTITUTE(SUBSTITUTE(SUBSTITUTE(INDIRECT("Trello!"&ADDRESS(ROW()-1, E$1, 4)),"Foreign: ","")," $",""),".","")*1),"") -> 100 | F25: =IF($E25="",IFERROR(IF($A25="","",SUBSTITUTE(SUBSTITUTE(SUBSTITUTE(INDIRECT("Trello!"&ADDRESS(ROW()-1, F$1, 4)),"MXN: ","")," MX$",""),".","")*1),""),E25*F$2) -> 1750 | G25: =IFERROR(IF($A25="","",SUBSTITUTE(SUBSTITUTE(SUBSTITUTE(INDIRECT("Trello!"&ADDRESS(ROW()-1, G$1, 4)),"Debt: ","")," $",""),".","")*1)*IF(E25="",1,F$2),"") -> 1750 | H25: =IFERROR(IF($A25="","",SUBSTITUTE(SUBSTITUTE(SUBSTITUTE(INDIRECT("Trello!"&ADDRESS(ROW()-1, H$1, 4)),"Cost: ","")," $",""),".","")*1*$F$2),"") -> 175 | I25: 1575 | J25: =IFERROR(SUBSTITUTE(SUBSTITUTE(SUBSTITUTE(RIGHT(INDIRECT("Trello!"&ADDRESS(ROW()-1, L$1, 4)),LEN(INDIRECT("Trello!"&ADDRESS(ROW()-1, L$1, 4)))-15),". ","/")," 20","/20")," ",""),"") ->  | K25: =IFERROR(SUBSTITUTE(SUBSTITUTE(SUBSTITUTE(RIGHT(INDIRECT("Trello!"&ADDRESS(ROW()-1, M$1, 4)),LEN(INDIRECT("Trello!"&ADDRESS(ROW()-1, M$1, 4)))-15),". ","/")," 20","/20")," ",""),"") ->  | O25: =IFERROR(SUBSTITUTE(INDIRECT("Trello!"&ADDRESS(ROW()-1, O$1, 4)),"Estimate hrs: ","")*1,"") ->  | P25: =IF(SUMIF(Timecamp!C:C,Reporte!A25,Timecamp!J:J)=0,"",SUMIF(Timecamp!C:C,Reporte!A25,Timecamp!J:J)) ->  | S25: =IFERROR(VLOOKUP(A25,'SLA Trab'!E:I,5,FALSE),"") -> 3.083333333 | T25: =IFERROR(VLOOKUP(A25,'SLA Cobr'!E:I,5,FALSE),"") -> 4.958333333
A26: =IFERROR(IF(Trello!E25="","",Trello!E25)," ") -> Ricardo Cuerna - Fixum facturacion | B26: =IF($A26="","",IF(Trello!A25="",B25,Trello!A25)) -> Terminado | C26: 2023-06-22 | D26: =IF($A26="","",SUBSTITUTE(SUBSTITUTE(Trello!J25," days",""),"⌚ ","")*1) -> 83 | E26: =IFERROR(IF($A26="","",SUBSTITUTE(SUBSTITUTE(SUBSTITUTE(INDIRECT("Trello!"&ADDRESS(ROW()-1, E$1, 4)),"Foreign: ","")," $",""),".","")*1),"") -> 1900 | F26: =IF($E26="",IFERROR(IF($A26="","",SUBSTITUTE(SUBSTITUTE(SUBSTITUTE(INDIRECT("Trello!"&ADDRESS(ROW()-1, F$1, 4)),"MXN: ","")," MX$",""),".","")*1),""),E26*F$2) -> 33250 | G26: =IFERROR(IF($A26="","",SUBSTITUTE(SUBSTITUTE(SUBSTITUTE(INDIRECT("Trello!"&ADDRESS(ROW()-1, G$1, 4)),"Debt: ","")," $",""),".","")*1)*IF(E26="",1,F$2),"") -> 0 | H26: =IFERROR(IF($A26="","",SUBSTITUTE(SUBSTITUTE(SUBSTITUTE(INDIRECT("Trello!"&ADDRESS(ROW()-1, H$1, 4)),"Cost: ","")," $",""),".","")*1*$F$2),"") ->  | I26: 33250 | J26: =IFERROR(SUBSTITUTE(SUBSTITUTE(SUBSTITUTE(RIGHT(INDIRECT("Trello!"&ADDRESS(ROW()-1, L$1, 4)),LEN(INDIRECT("Trello!"&ADDRESS(ROW()-1, L$1, 4)))-15),". ","/")," 20","/20")," ",""),"") -> 31/Juli/2023 | K26: =IFERROR(SUBSTITUTE(SUBSTITUTE(SUBSTITUTE(RIGHT(INDIRECT("Trello!"&ADDRESS(ROW()-1, M$1, 4)),LEN(INDIRECT("Trello!"&ADDRESS(ROW()-1, M$1, 4)))-15),". ","/")," 20","/20")," ",""),"") ->  | L26: 2023-07-31 | O26: =IFERROR(SUBSTITUTE(INDIRECT("Trello!"&ADDRESS(ROW()-1, O$1, 4)),"Estimate hrs: ","")*1,"") -> 40 | P26: =IF(SUMIF(Timecamp!C:C,Reporte!A26,Timecamp!J:J)=0,"",SUMIF(Timecamp!C:C,Reporte!A26,Timecamp!J:J)) -> 24.26666667 | Q26: -0.3933333333 | R26: 1370.192308 | S26: =IFERROR(VLOOKUP(A26,'SLA Trab'!E:I,5,FALSE),"") -> 71.79166667 | T26: =IFERROR(VLOOKUP(A26,'SLA Cobr'!E:I,5,FALSE),"") -> 0
A27: =IFERROR(IF(Trello!E26="","",Trello!E26)," ") -> Viv Freelancer - 5 column filter | B27: =IF($A27="","",IF(Trello!A26="",B26,Trello!A26)) -> Terminado | C27: 2023-08-12 | D27: =IF($A27="","",SUBSTITUTE(SUBSTITUTE(Trello!J26," days",""),"⌚ ","")*1) -> 32 | E27: =IFERROR(IF($A27="","",SUBSTITUTE(SUBSTITUTE(SUBSTITUTE(INDIRECT("Trello!"&ADDRESS(ROW()-1, E$1, 4)),"Foreign: ","")," $",""),".","")*1),"") -> 200 | F27: =IF($E27="",IFERROR(IF($A27="","",SUBSTITUTE(SUBSTITUTE(SUBSTITUTE(INDIRECT("Trello!"&ADDRESS(ROW()-1, F$1, 4)),"MXN: ","")," MX$",""),".","")*1),""),E27*F$2) -> 3500 | G27: =IFERROR(IF($A27="","",SUBSTITUTE(SUBSTITUTE(SUBSTITUTE(INDIRECT("Trello!"&ADDRESS(ROW()-1, G$1, 4)),"Debt: ","")," $",""),".","")*1)*IF(E27="",1,F$2),"") -> 0 | H27: =IFERROR(IF($A27="","",SUBSTITUTE(SUBSTITUTE(SUBSTITUTE(INDIRECT("Trello!"&ADDRESS(ROW()-1, H$1, 4)),"Cost: ","")," $",""),".","")*1*$F$2),"") ->  | I27: 3500 | J27: =IFERROR(SUBSTITUTE(SUBSTITUTE(SUBSTITUTE(RIGHT(INDIRECT("Trello!"&ADDRESS(ROW()-1, L$1, 4)),LEN(INDIRECT("Trello!"&ADDRESS(ROW()-1, L$1, 4)))-15),". ","/")," 20","/20")," ",""),"") ->  | K27: =IFERROR(SUBSTITUTE(SUBSTITUTE(SUBSTITUTE(RIGHT(INDIRECT("Trello!"&ADDRESS(ROW()-1, M$1, 4)),LEN(INDIRECT("Trello!"&ADDRESS(ROW()-1, M$1, 4)))-15),". ","/")," 20","/20")," ",""),"") -> 29/Aug/2023 | M27: 2023-08-29 | O27: =IFERROR(SUBSTITUTE(INDIRECT("Trello!"&ADDRESS(ROW()-1, O$1, 4)),"Estimate hrs: ","")*1,"") ->  | P27: =IF(SUMIF(Timecamp!C:C,Reporte!A27,Timecamp!J:J)=0,"",SUMIF(Timecamp!C:C,Reporte!A27,Timecamp!J:J)) -> 8.8 | R27: 397.7272727 | S27: =IFERROR(VLOOKUP(A27,'SLA Trab'!E:I,5,FALSE),"") -> 16.66666667 | T27: =IFERROR(VLOOKUP(A27,'SLA Cobr'!E:I,5,FALSE),"") -> 1.291666667
A28: =IFERROR(IF(Trello!E27="","",Trello!E27)," ") -> Juan Balnearis - Landing y cambios web | B28: =IF($A28="","",IF(Trello!A27="",B27,Trello!A27)) -> Terminado | C28: 2023-08-14 | D28: =IF($A28="","",SUBSTITUTE(SUBSTITUTE(Trello!J27," days",""),"⌚ ","")*1) -> 30 | E28: =IFERROR(IF($A28="","",SUBSTITUTE(SUBSTITUTE(SUBSTITUTE(INDIRECT("Trello!"&ADDRESS(ROW()-1, E$1, 4)),"Foreign: ","")," $",""),".","")*1),"") -> 350 | F28: =IF($E28="",IFERROR(IF($A28="","",SUBSTITUTE(SUBSTITUTE(SUBSTITUTE(INDIRECT("Trello!"&ADDRESS(ROW()-1, F$1, 4)),"MXN: ","")," MX$",""),".","")*1),""),E28*F$2) -> 6125 | G28: =IFERROR(IF($A28="","",SUBSTITUTE(SUBSTITUTE(SUBSTITUTE(INDIRECT("Trello!"&ADDRESS(ROW()-1, G$1, 4)),"Debt: ","")," $",""),".","")*1)*IF(E28="",1,F$2),"") -> 0 | H28: =IFERROR(IF($A28="","",SUBSTITUTE(SUBSTITUTE(SUBSTITUTE(INDIRECT("Trello!"&ADDRESS(ROW()-1, H$1, 4)),"Cost: ","")," $",""),".","")*1*$F$2),"") ->  | I28: 6125 | J28: =IFERROR(SUBSTITUTE(SUBSTITUTE(SUBSTITUTE(RIGHT(INDIRECT("Trello!"&ADDRESS(ROW()-1, L$1, 4)),LEN(INDIRECT("Trello!"&ADDRESS(ROW()-1, L$1, 4)))-15),". ","/")," 20","/20")," ",""),"") ->  | K28: =IFERROR(SUBSTITUTE(SUBSTITUTE(SUBSTITUTE(RIGHT(INDIRECT("Trello!"&ADDRESS(ROW()-1, M$1, 4)),LEN(INDIRECT("Trello!"&ADDRESS(ROW()-1, M$1, 4)))-15),". ","/")," 20","/20")," ",""),"") -> 29/Aug/2023 | M28: 2023-08-29 | O28: =IFERROR(SUBSTITUTE(INDIRECT("Trello!"&ADDRESS(ROW()-1, O$1, 4)),"Estimate hrs: ","")*1,"") ->  | P28: =IF(SUMIF(Timecamp!C:C,Reporte!A28,Timecamp!J:J)=0,"",SUMIF(Timecamp!C:C,Reporte!A28,Timecamp!J:J)) -> 4.166666667 | R28: 1470 | S28: =IFERROR(VLOOKUP(A28,'SLA Trab'!E:I,5,FALSE),"") -> 7.083333333 | T28: =IFERROR(VLOOKUP(A28,'SLA Cobr'!E:I,5,FALSE),"") -> 10.54166667
A29: =IFERROR(IF(Trello!E28="","",Trello!E28)," ") -> Juan Balnearis - promedicamujer | B29: =IF($A29="","",IF(Trello!A28="",B28,Trello!A28)) -> Terminado | C29: 2023-08-22 | D29: =IF($A29="","",SUBSTITUTE(SUBSTITUTE(Trello!J28," days",""),"⌚ ","")*1) -> 22 | E29: =IFERROR(IF($A29="","",SUBSTITUTE(SUBSTITUTE(SUBSTITUTE(INDIRECT("Trello!"&ADDRESS(ROW()-1, E$1, 4)),"Foreign: ","")," $",""),".","")*1),"") -> 200 | F29: =IF($E29="",IFERROR(IF($A29="","",SUBSTITUTE(SUBSTITUTE(SUBSTITUTE(INDIRECT("Trello!"&ADDRESS(ROW()-1, F$1, 4)),"MXN: ","")," MX$",""),".","")*1),""),E29*F$2) -> 3500 | G29: =IFERROR(IF($A29="","",SUBSTITUTE(SUBSTITUTE(SUBSTITUTE(INDIRECT("Trello!"&ADDRESS(ROW()-1, G$1, 4)),"Debt: ","")," $",""),".","")*1)*IF(E29="",1,F$2),"") -> 0 | H29: =IFERROR(IF($A29="","",SUBSTITUTE(SUBSTITUTE(SUBSTITUTE(INDIRECT("Trello!"&ADDRESS(ROW()-1, H$1, 4)),"Cost: ","")," $",""),".","")*1*$F$2),"") ->  | I29: 3500 | J29: =IFERROR(SUBSTITUTE(SUBSTITUTE(SUBSTITUTE(RIGHT(INDIRECT("Trello!"&ADDRESS(ROW()-1, L$1, 4)),LEN(INDIRECT("Trello!"&ADDRESS(ROW()-1, L$1, 4)))-15),". ","/")," 20","/20")," ",""),"") -> 24/Aug/2023 | K29: =IFERROR(SUBSTITUTE(SUBSTITUTE(SUBSTITUTE(RIGHT(INDIRECT("Trello!"&ADDRESS(ROW()-1, M$1, 4)),LEN(INDIRECT("Trello!"&ADDRESS(ROW()-1, M$1, 4)))-15),". ","/")," 20","/20")," ",""),"") -> 29/Aug/2023 | L29: 2023-08-24 | M29: 2023-08-29 | N29: -5 | O29: =IFERROR(SUBSTITUTE(INDIRECT("Trello!"&ADDRESS(ROW()-1, O$1, 4)),"Estimate hrs: ","")*1,"") ->  | P29: =IF(SUMIF(Timecamp!C:C,Reporte!A29,Timecamp!J:J)=0,"",SUMIF(Timecamp!C:C,Reporte!A29,Timecamp!J:J)) -> 0.6333333333 | R29: 5526.315789 | S29: =IFERROR(VLOOKUP(A29,'SLA Trab'!E:I,5,FALSE),"") -> 3.833333333 | T29: =IFERROR(VLOOKUP(A29,'SLA Cobr'!E:I,5,FALSE),"") -> 1.958333333
A30: =IFERROR(IF(Trello!E29="","",Trello!E29)," ") -> Andres - Checkout fondo apuestas | B30: =IF($A30="","",IF(Trello!A29="",B29,Trello!A29)) -> Terminado | C30: 2023-08-19 | D30: =IF($A30="","",SUBSTITUTE(SUBSTITUTE(Trello!J29," days",""),"⌚ ","")*1) -> 25 | E30: =IFERROR(IF($A30="","",SUBSTITUTE(SUBSTITUTE(SUBSTITUTE(INDIRECT("Trello!"&ADDRESS(ROW()-1, E$1, 4)),"Foreign: ","")," $",""),".","")*1),"") ->  | F30: =IF($E30="",IFERROR(IF($A30="","",SUBSTITUTE(SUBSTITUTE(SUBSTITUTE(INDIRECT("Trello!"&ADDRESS(ROW()-1, F$1, 4)),"MXN: ","")," MX$",""),".","")*1),""),E30*F$2) -> 3000 | G30: =IFERROR(IF($A30="","",SUBSTITUTE(SUBSTITUTE(SUBSTITUTE(INDIRECT("Trello!"&ADDRESS(ROW()-1, G$1, 4)),"Debt: ","")," $",""),".","")*1)*IF(E30="",1,F$2),"") -> 0 | H30: =IFERROR(IF($A30="","",SUBSTITUTE(SUBSTITUTE(SUBSTITUTE(INDIRECT("Trello!"&ADDRESS(ROW()-1, H$1, 4)),"Cost: ","")," $",""),".","")*1*$F$2),"") ->  | I30: 3000 | J30: =IFERROR(SUBSTITUTE(SUBSTITUTE(SUBSTITUTE(RIGHT(INDIRECT("Trello!"&ADDRESS(ROW()-1, L$1, 4)),LEN(INDIRECT("Trello!"&ADDRESS(ROW()-1, L$1, 4)))-15),". ","/")," 20","/20")," ",""),"") ->  | K30: =IFERROR(SUBSTITUTE(SUBSTITUTE(SUBSTITUTE(RIGHT(INDIRECT("Trello!"&ADDRESS(ROW()-1, M$1, 4)),LEN(INDIRECT("Trello!"&ADDRESS(ROW()-1, M$1, 4)))-15),". ","/")," 20","/20")," ",""),"") ->  | O30: =IFERROR(SUBSTITUTE(INDIRECT("Trello!"&ADDRESS(ROW()-1, O$1, 4)),"Estimate hrs: ","")*1,"") ->  | P30: =IF(SUMIF(Timecamp!C:C,Reporte!A30,Timecamp!J:J)=0,"",SUMIF(Timecamp!C:C,Reporte!A30,Timecamp!J:J)) ->  | S30: =IFERROR(VLOOKUP(A30,'SLA Trab'!E:I,5,FALSE),"") ->  | T30: =IFERROR(VLOOKUP(A30,'SLA Cobr'!E:I,5,FALSE),"") -> 11.41666667
A31: =IFERROR(IF(Trello!E30="","",Trello!E30)," ") -> Thomas Ferdinand - Website | B31: =IF($A31="","",IF(Trello!A30="",B30,Trello!A30)) -> Terminado | C31: 2023-07-17 | D31: =IF($A31="","",SUBSTITUTE(SUBSTITUTE(Trello!J30," days",""),"⌚ ","")*1) -> 58 | E31: =IFERROR(IF($A31="","",SUBSTITUTE(SUBSTITUTE(SUBSTITUTE(INDIRECT("Trello!"&ADDRESS(ROW()-1, E$1, 4)),"Foreign: ","")," $",""),".","")*1),"") -> 375 | F31: =IF($E31="",IFERROR(IF($A31="","",SUBSTITUTE(SUBSTITUTE(SUBSTITUTE(INDIRECT("Trello!"&ADDRESS(ROW()-1, F$1, 4)),"MXN: ","")," MX$",""),".","")*1),""),E31*F$2) -> 6562.5 | G31: =IFERROR(IF($A31="","",SUBSTITUTE(SUBSTITUTE(SUBSTITUTE(INDIRECT("Trello!"&ADDRESS(ROW()-1, G$1, 4)),"Debt: ","")," $",""),".","")*1)*IF(E31="",1,F$2),"") -> 6562.5 | H31: =IFERROR(IF($A31="","",SUBSTITUTE(SUBSTITUTE(SUBSTITUTE(INDIRECT("Trello!"&ADDRESS(ROW()-1, H$1, 4)),"Cost: ","")," $",""),".","")*1*$F$2),"") -> 3850 | I31: 2712.5 | J31: =IFERROR(SUBSTITUTE(SUBSTITUTE(SUBSTITUTE(RIGHT(INDIRECT("Trello!"&ADDRESS(ROW()-1, L$1, 4)),LEN(INDIRECT("Trello!"&ADDRESS(ROW()-1, L$1, 4)))-15),". ","/")," 20","/20")," ",""),"") -> 26/Juli/2023 | K31: =IFERROR(SUBSTITUTE(SUBSTITUTE(SUBSTITUTE(RIGHT(INDIRECT("Trello!"&ADDRESS(ROW()-1, M$1, 4)),LEN(INDIRECT("Trello!"&ADDRESS(ROW()-1, M$1, 4)))-15),". ","/")," 20","/20")," ",""),"") -> 22/Aug/2023 | L31: 2023-07-26 | M31: 2023-08-22 | N31: -27 | O31: =IFERROR(SUBSTITUTE(INDIRECT("Trello!"&ADDRESS(ROW()-1, O$1, 4)),"Estimate hrs: ","")*1,"") ->  | P31: =IF(SUMIF(Timecamp!C:C,Reporte!A31,Timecamp!J:J)=0,"",SUMIF(Timecamp!C:C,Reporte!A31,Timecamp!J:J)) -> 9.166666667 | R31: 715.9090909 | S31: =IFERROR(VLOOKUP(A31,'SLA Trab'!E:I,5,FALSE),"") -> 12.04166667 | T31: =IFERROR(VLOOKUP(A31,'SLA Cobr'!E:I,5,FALSE),"") -> 31.16666667
A32: =IFERROR(IF(Trello!E31="","",Trello!E31)," ") -> Paul Freelancer - 2nd round crypto website | B32: =IF($A32="","",IF(Trello!A31="",B31,Trello!A31)) -> Terminado | C32: 2023-08-14 | D32: =IF($A32="","",SUBSTITUTE(SUBSTITUTE(Trello!J31," days",""),"⌚ ","")*1) -> 30 | E32: =IFERROR(IF($A32="","",SUBSTITUTE(SUBSTITUTE(SUBSTITUTE(INDIRECT("Trello!"&ADDRESS(ROW()-1, E$1, 4)),"Foreign: ","")," $",""),".","")*1),"") -> 205 | F32: =IF($E32="",IFERROR(IF($A32="","",SUBSTITUTE(SUBSTITUTE(SUBSTITUTE(INDIRECT("Trello!"&ADDRESS(ROW()-1, F$1, 4)),"MXN: ","")," MX$",""),".","")*1),""),E32*F$2) -> 3587.5 | G32: =IFERROR(IF($A32="","",SUBSTITUTE(SUBSTITUTE(SUBSTITUTE(INDIRECT("Trello!"&ADDRESS(ROW()-1, G$1, 4)),"Debt: ","")," $",""),".","")*1)*IF(E32="",1,F$2),"") -> 0 | H32: =IFERROR(IF($A32="","",SUBSTITUTE(SUBSTITUTE(SUBSTITUTE(INDIRECT("Trello!"&ADDRESS(ROW()-1, H$1, 4)),"Cost: ","")," $",""),".","")*1*$F$2),"") ->  | I32: 3587.5 | J32: =IFERROR(SUBSTITUTE(SUBSTITUTE(SUBSTITUTE(RIGHT(INDIRECT("Trello!"&ADDRESS(ROW()-1, L$1, 4)),LEN(INDIRECT("Trello!"&ADDRESS(ROW()-1, L$1, 4)))-15),". ","/")," 20","/20")," ",""),"") ->  | K32: =IFERROR(SUBSTITUTE(SUBSTITUTE(SUBSTITUTE(RIGHT(INDIRECT("Trello!"&ADDRESS(ROW()-1, M$1, 4)),LEN(INDIRECT("Trello!"&ADDRESS(ROW()-1, M$1, 4)))-15),". ","/")," 20","/20")," ",""),"") ->  | O32: =IFERROR(SUBSTITUTE(INDIRECT("Trello!"&ADDRESS(ROW()-1, O$1, 4)),"Estimate hrs: ","")*1,"") ->  | P32: =IF(SUMIF(Timecamp!C:C,Reporte!A32,Timecamp!J:J)=0,"",SUMIF(Timecamp!C:C,Reporte!A32,Timecamp!J:J)) -> 3.333333333 | R32: 1076.25 | S32: =IFERROR(VLOOKUP(A32,'SLA Trab'!E:I,5,FALSE),"") -> 0.4583333333 | T32: =IFERROR(VLOOKUP(A32,'SLA Cobr'!E:I,5,FALSE),"") -> 8.458333333
A33: =IFERROR(IF(Trello!E32="","",Trello!E32)," ") -> Bjorn Sueco - Nordic foods 2nd round | B33: =IF($A33="","",IF(Trello!A32="",B32,Trello!A32)) -> Terminado | C33: 2023-07-21 | D33: =IF($A33="","",SUBSTITUTE(SUBSTITUTE(Trello!J32," days",""),"⌚ ","")*1) -> 54 | E33: =IFERROR(IF($A33="","",SUBSTITUTE(SUBSTITUTE(SUBSTITUTE(INDIRECT("Trello!"&ADDRESS(ROW()-1, E$1, 4)),"Foreign: ","")," $",""),".","")*1),"") -> 600 | F33: =IF($E33="",IFERROR(IF($A33="","",SUBSTITUTE(SUBSTITUTE(SUBSTITUTE(INDIRECT("Trello!"&ADDRESS(ROW()-1, F$1, 4)),"MXN: ","")," MX$",""),".","")*1),""),E33*F$2) -> 10500 | G33: =IFERROR(IF($A33="","",SUBSTITUTE(SUBSTITUTE(SUBSTITUTE(INDIRECT("Trello!"&ADDRESS(ROW()-1, G$1, 4)),"Debt: ","")," $",""),".","")*1)*IF(E33="",1,F$2),"") -> 0 | H33: =IFERROR(IF($A33="","",SUBSTITUTE(SUBSTITUTE(SUBSTITUTE(INDIRECT("Trello!"&ADDRESS(ROW()-1, H$1, 4)),"Cost: ","")," $",""),".","")*1*$F$2),"") -> 3710 | I33: 6790 | J33: =IFERROR(SUBSTITUTE(SUBSTITUTE(SUBSTITUTE(RIGHT(INDIRECT("Trello!"&ADDRESS(ROW()-1, L$1, 4)),LEN(INDIRECT("Trello!"&ADDRESS(ROW()-1, L$1, 4)))-15),". ","/")," 20","/20")," ",""),"") ->  | K33: =IFERROR(SUBSTITUTE(SUBSTITUTE(SUBSTITUTE(RIGHT(INDIRECT("Trello!"&ADDRESS(ROW()-1, M$1, 4)),LEN(INDIRECT("Trello!"&ADDRESS(ROW()-1, M$1, 4)))-15),". ","/")," 20","/20")," ",""),"") ->  | O33: =IFERROR(SUBSTITUTE(INDIRECT("Trello!"&ADDRESS(ROW()-1, O$1, 4)),"Estimate hrs: ","")*1,"") ->  | P33: =IF(SUMIF(Timecamp!C:C,Reporte!A33,Timecamp!J:J)=0,"",SUMIF(Timecamp!C:C,Reporte!A33,Timecamp!J:J)) -> 9.933333333 | R33: 1057.04698 | S33: =IFERROR(VLOOKUP(A33,'SLA Trab'!E:I,5,FALSE),"") -> 6.5 | T33: =IFERROR(VLOOKUP(A33,'SLA Cobr'!E:I,5,FALSE),"") -> 0
A34: =IFERROR(IF(Trello!E33="","",Trello!E33)," ") -> Carlos Sanchez - rehacer chrishop.mx | B34: =IF($A34="","",IF(Trello!A33="",B33,Trello!A33)) -> Terminado | C34: 2023-07-05 | D34: =IF($A34="","",SUBSTITUTE(SUBSTITUTE(Trello!J33," days",""),"⌚ ","")*1) -> 70 | E34: =IFERROR(IF($A34="","",SUBSTITUTE(SUBSTITUTE(SUBSTITUTE(INDIRECT("Trello!"&ADDRESS(ROW()-1, E$1, 4)),"Foreign: ","")," $",""),".","")*1),"") ->  | F34: =IF($E34="",IFERROR(IF($A34="","",SUBSTITUTE(SUBSTITUTE(SUBSTITUTE(INDIRECT("Trello!"&ADDRESS(ROW()-1, F$1, 4)),"MXN: ","")," MX$",""),".","")*1),""),E34*F$2) -> 1000 | G34: =IFERROR(IF($A34="","",SUBSTITUTE(SUBSTITUTE(SUBSTITUTE(INDIRECT("Trello!"&ADDRESS(ROW()-1, G$1, 4)),"Debt: ","")," $",""),".","")*1)*IF(E34="",1,F$2),"") ->  | H34: =IFERROR(IF($A34="","",SUBSTITUTE(SUBSTITUTE(SUBSTITUTE(INDIRECT("Trello!"&ADDRESS(ROW()-1, H$1, 4)),"Cost: ","")," $",""),".","")*1*$F$2),"") ->  | I34: 1000 | J34: =IFERROR(SUBSTITUTE(SUBSTITUTE(SUBSTITUTE(RIGHT(INDIRECT("Trello!"&ADDRESS(ROW()-1, L$1, 4)),LEN(INDIRECT("Trello!"&ADDRESS(ROW()-1, L$1, 4)))-15),". ","/")," 20","/20")," ",""),"") ->  | K34: =IFERROR(SUBSTITUTE(SUBSTITUTE(SUBSTITUTE(RIGHT(INDIRECT("Trello!"&ADDRESS(ROW()-1, M$1, 4)),LEN(INDIRECT("Trello!"&ADDRESS(ROW()-1, M$1, 4)))-15),". ","/")," 20","/20")," ",""),"") ->  | O34: =IFERROR(SUBSTITUTE(INDIRECT("Trello!"&ADDRESS(ROW()-1, O$1, 4)),"Estimate hrs: ","")*1,"") ->  | P34: =IF(SUMIF(Timecamp!C:C,Reporte!A34,Timecamp!J:J)=0,"",SUMIF(Timecamp!C:C,Reporte!A34,Timecamp!J:J)) -> 1 | R34: 1000 | S34: =IFERROR(VLOOKUP(A34,'SLA Trab'!E:I,5,FALSE),"") -> 0.9583333333 | T34: =IFERROR(VLOOKUP(A34,'SLA Cobr'!E:I,5,FALSE),"") -> 0
A35: =IFERROR(IF(Trello!E34="","",Trello!E34)," ") -> Paul Freelancer - Coinbase API site | B35: =IF($A35="","",IF(Trello!A34="",B34,Trello!A34)) -> Terminado | C35: 2023-07-11 | D35: =IF($A35="","",SUBSTITUTE(SUBSTITUTE(Trello!J34," days",""),"⌚ ","")*1) -> 64 | E35: =IFERROR(IF($A35="","",SUBSTITUTE(SUBSTITUTE(SUBSTITUTE(INDIRECT("Trello!"&ADDRESS(ROW()-1, E$1, 4)),"Foreign: ","")," $",""),".","")*1),"") -> 575 | F35: =IF($E35="",IFERROR(IF($A35="","",SUBSTITUTE(SUBSTITUTE(SUBSTITUTE(INDIRECT("Trello!"&ADDRESS(ROW()-1, F$1, 4)),"MXN: ","")," MX$",""),".","")*1),""),E35*F$2) -> 10062.5 | G35: =IFERROR(IF($A35="","",SUBSTITUTE(SUBSTITUTE(SUBSTITUTE(INDIRECT("Trello!"&ADDRESS(ROW()-1, G$1, 4)),"Debt: ","")," $",""),".","")*1)*IF(E35="",1,F$2),"") -> 0 | H35: =IFERROR(IF($A35="","",SUBSTITUTE(SUBSTITUTE(SUBSTITUTE(INDIRECT("Trello!"&ADDRESS(ROW()-1, H$1, 4)),"Cost: ","")," $",""),".","")*1*$F$2),"") -> 3500 | I35: 6562.5 | J35: =IFERROR(SUBSTITUTE(SUBSTITUTE(SUBSTITUTE(RIGHT(INDIRECT("Trello!"&ADDRESS(ROW()-1, L$1, 4)),LEN(INDIRECT("Trello!"&ADDRESS(ROW()-1, L$1, 4)))-15),". ","/")," 20","/20")," ",""),"") -> 25/Juli/2023 | K35: =IFERROR(SUBSTITUTE(SUBSTITUTE(SUBSTITUTE(RIGHT(INDIRECT("Trello!"&ADDRESS(ROW()-1, M$1, 4)),LEN(INDIRECT("Trello!"&ADDRESS(ROW()-1, M$1, 4)))-15),". ","/")," 20","/20")," ",""),"") ->  | L35: 2023-07-25 | O35: =IFERROR(SUBSTITUTE(INDIRECT("Trello!"&ADDRESS(ROW()-1, O$1, 4)),"Estimate hrs: ","")*1,"") -> 10 | P35: =IF(SUMIF(Timecamp!C:C,Reporte!A35,Timecamp!J:J)=0,"",SUMIF(Timecamp!C:C,Reporte!A35,Timecamp!J:J)) -> 9.033333333 | Q35: -0.09666666667 | R35: 1113.929889 | S35: =IFERROR(VLOOKUP(A35,'SLA Trab'!E:I,5,FALSE),"") -> 19.875 | T35: =IFERROR(VLOOKUP(A35,'SLA Cobr'!E:I,5,FALSE),"") -> 13.91666667
A36: =IFERROR(IF(Trello!E35="","",Trello!E35)," ") -> Viv Freelancer - Fourdle game | B36: =IF($A36="","",IF(Trello!A35="",B35,Trello!A35)) -> Terminado | C36: 2023-07-10 | D36: =IF($A36="","",SUBSTITUTE(SUBSTITUTE(Trello!J35," days",""),"⌚ ","")*1) -> 65 | E36: =IFERROR(IF($A36="","",SUBSTITUTE(SUBSTITUTE(SUBSTITUTE(INDIRECT("Trello!"&ADDRESS(ROW()-1, E$1, 4)),"Foreign: ","")," $",""),".","")*1),"") -> 685 | F36: =IF($E36="",IFERROR(IF($A36="","",SUBSTITUTE(SUBSTITUTE(SUBSTITUTE(INDIRECT("Trello!"&ADDRESS(ROW()-1, F$1, 4)),"MXN: ","")," MX$",""),".","")*1),""),E36*F$2) -> 11987.5 | G36: =IFERROR(IF($A36="","",SUBSTITUTE(SUBSTITUTE(SUBSTITUTE(INDIRECT("Trello!"&ADDRESS(ROW()-1, G$1, 4)),"Debt: ","")," $",""),".","")*1)*IF(E36="",1,F$2),"") -> 0 | H36: =IFERROR(IF($A36="","",SUBSTITUTE(SUBSTITUTE(SUBSTITUTE(INDIRECT("Trello!"&ADDRESS(ROW()-1, H$1, 4)),"Cost: ","")," $",""),".","")*1*$F$2),"") -> 8225 | I36: 3762.5 | J36: =IFERROR(SUBSTITUTE(SUBSTITUTE(SUBSTITUTE(RIGHT(INDIRECT("Trello!"&ADDRESS(ROW()-1, L$1, 4)),LEN(INDIRECT("Trello!"&ADDRESS(ROW()-1, L$1, 4)))-15),". ","/")," 20","/20")," ",""),"") -> 26/Juli/2023 | K36: =IFERROR(SUBSTITUTE(SUBSTITUTE(SUBSTITUTE(RIGHT(INDIRECT("Trello!"&ADDRESS(ROW()-1, M$1, 4)),LEN(INDIRECT("Trello!"&ADDRESS(ROW()-1, M$1, 4)))-15),". ","/")," 20","/20")," ",""),"") ->  | L36: 2023-07-26 | O36: =IFERROR(SUBSTITUTE(INDIRECT("Trello!"&ADDRESS(ROW()-1, O$1, 4)),"Estimate hrs: ","")*1,"") ->  | P36: =IF(SUMIF(Timecamp!C:C,Reporte!A36,Timecamp!J:J)=0,"",SUMIF(Timecamp!C:C,Reporte!A36,Timecamp!J:J)) -> 27.3 | Q36: =IF(AND(O36>0,P36>0,O36<>"",P36<>""),(P36/O36)-1,"") ->  | R36: =IF(OR(P36="",F36=""),"",F36/P36) -> 439.1025641 | S36: =IFERROR(VLOOKUP(A36,'SLA Trab'!E:I,5,FALSE),"") -> 31.625 | T36: =IFERROR(VLOOKUP(A36,'SLA Cobr'!E:I,5,FALSE),"") -> 0.04166666667
A37: =IFERROR(IF(Trello!E36="","",Trello!E36)," ") -> Mama Madhu préstamo | B37: =IF($A37="","",IF(Trello!A36="",B36,Trello!A36)) -> Terminado | C37: 2023-06-26 | D37: =IF($A37="","",SUBSTITUTE(SUBSTITUTE(Trello!J36," days",""),"⌚ ","")*1) -> 79 | E37: =IFERROR(IF($A37="","",SUBSTITUTE(SUBSTITUTE(SUBSTITUTE(INDIRECT("Trello!"&ADDRESS(ROW()-1, E$1, 4)),"Foreign: ","")," $",""),".","")*1),"") ->  | F37: =IF($E37="",IFERROR(IF($A37="","",SUBSTITUTE(SUBSTITUTE(SUBSTITUTE(INDIRECT("Trello!"&ADDRESS(ROW()-1, F$1, 4)),"MXN: ","")," MX$",""),".","")*1),""),E37*F$2) -> 5000 | G37: =IFERROR(IF($A37="","",SUBSTITUTE(SUBSTITUTE(SUBSTITUTE(INDIRECT("Trello!"&ADDRESS(ROW()-1, G$1, 4)),"Debt: ","")," $",""),".","")*1)*IF(E37="",1,F$2),"") ->  | H37: =IFERROR(IF($A37="","",SUBSTITUTE(SUBSTITUTE(SUBSTITUTE(INDIRECT("Trello!"&ADDRESS(ROW()-1, H$1, 4)),"Cost: ","")," $",""),".","")*1*$F$2),"") ->  | I37: 5000 | J37: =IFERROR(SUBSTITUTE(SUBSTITUTE(SUBSTITUTE(RIGHT(INDIRECT("Trello!"&ADDRESS(ROW()-1, L$1, 4)),LEN(INDIRECT("Trello!"&ADDRESS(ROW()-1, L$1, 4)))-15),". ","/")," 20","/20")," ",""),"") -> 10/Juli/2023 | K37: =IFERROR(SUBSTITUTE(SUBSTITUTE(SUBSTITUTE(RIGHT(INDIRECT("Trello!"&ADDRESS(ROW()-1, M$1, 4)),LEN(INDIRECT("Trello!"&ADDRESS(ROW()-1, M$1, 4)))-15),". ","/")," 20","/20")," ",""),"") ->  | L37: 2023-07-10 | O37: =IFERROR(SUBSTITUTE(INDIRECT("Trello!"&ADDRESS(ROW()-1, O$1, 4)),"Estimate hrs: ","")*1,"") ->  | P37: =IF(SUMIF(Timecamp!C:C,Reporte!A37,Timecamp!J:J)=0,"",SUMIF(Timecamp!C:C,Reporte!A37,Timecamp!J:J)) ->  | S37: =IFERROR(VLOOKUP(A37,'SLA Trab'!E:I,5,FALSE),"") ->  | T37: =IFERROR(VLOOKUP(A37,'SLA Cobr'!E:I,5,FALSE),"") -> 
A38: =IFERROR(IF(Trello!E37="","",Trello!E37)," ") -> Juan Balnearis - Maquetar figma a html | B38: =IF($A38="","",IF(Trello!A37="",B37,Trello!A37)) -> Terminado | C38: 2023-07-25 | D38: =IF($A38="","",SUBSTITUTE(SUBSTITUTE(Trello!J37," days",""),"⌚ ","")*1) -> 50 | E38: =IFERROR(IF($A38="","",SUBSTITUTE(SUBSTITUTE(SUBSTITUTE(INDIRECT("Trello!"&ADDRESS(ROW()-1, E$1, 4)),"Foreign: ","")," $",""),".","")*1),"") -> 325 | F38: =IF($E38="",IFERROR(IF($A38="","",SUBSTITUTE(SUBSTITUTE(SUBSTITUTE(INDIRECT("Trello!"&ADDRESS(ROW()-1, F$1, 4)),"MXN: ","")," MX$",""),".","")*1),""),E38*F$2) -> 5687.5 | G38: =IFERROR(IF($A38="","",SUBSTITUTE(SUBSTITUTE(SUBSTITUTE(INDIRECT("Trello!"&ADDRESS(ROW()-1, G$1, 4)),"Debt: ","")," $",""),".","")*1)*IF(E38="",1,F$2),"") -> 0 | H38: =IFERROR(IF($A38="","",SUBSTITUTE(SUBSTITUTE(SUBSTITUTE(INDIRECT("Trello!"&ADDRESS(ROW()-1, H$1, 4)),"Cost: ","")," $",""),".","")*1*$F$2),"") -> 2450 | I38: 3237.5 | J38: =IFERROR(SUBSTITUTE(SUBSTITUTE(SUBSTITUTE(RIGHT(INDIRECT("Trello!"&ADDRESS(ROW()-1, L$1, 4)),LEN(INDIRECT("Trello!"&ADDRESS(ROW()-1, L$1, 4)))-15),". ","/")," 20","/20")," ",""),"") ->  | K38: =IFERROR(SUBSTITUTE(SUBSTITUTE(SUBSTITUTE(RIGHT(INDIRECT("Trello!"&ADDRESS(ROW()-1, M$1, 4)),LEN(INDIRECT("Trello!"&ADDRESS(ROW()-1, M$1, 4)))-15),". ","/")," 20","/20")," ",""),"") ->  | O38: =IFERROR(SUBSTITUTE(INDIRECT("Trello!"&ADDRESS(ROW()-1, O$1, 4)),"Estimate hrs: ","")*1,"") ->  | P38: =IF(SUMIF(Timecamp!C:C,Reporte!A38,Timecamp!J:J)=0,"",SUMIF(Timecamp!C:C,Reporte!A38,Timecamp!J:J)) -> 0.08333333333 | R38: 68250 | S38: =IFERROR(VLOOKUP(A38,'SLA Trab'!E:I,5,FALSE),"") ->  | T38: =IFERROR(VLOOKUP(A38,'SLA Cobr'!E:I,5,FALSE),"") -> 
A39: =IFERROR(IF(Trello!E38="","",Trello!E38)," ") -> Sam - Peters Window Hosting | B39: =IF($A39="","",IF(Trello!A38="",B38,Trello!A38)) -> Terminado | C39: 2023-08-02 | D39: =IF($A39="","",SUBSTITUTE(SUBSTITUTE(Trello!J38," days",""),"⌚ ","")*1) -> 42 | E39: =IFERROR(IF($A39="","",SUBSTITUTE(SUBSTITUTE(SUBSTITUTE(INDIRECT("Trello!"&ADDRESS(ROW()-1, E$1, 4)),"Foreign: ","")," $",""),".","")*1),"") -> 100 | F39: =IF($E39="",IFERROR(IF($A39="","",SUBSTITUTE(SUBSTITUTE(SUBSTITUTE(INDIRECT("Trello!"&ADDRESS(ROW()-1, F$1, 4)),"MXN: ","")," MX$",""),".","")*1),""),E39*F$2) -> 1750 | G39: =IFERROR(IF($A39="","",SUBSTITUTE(SUBSTITUTE(SUBSTITUTE(INDIRECT("Trello!"&ADDRESS(ROW()-1, G$1, 4)),"Debt: ","")," $",""),".","")*1)*IF(E39="",1,F$2),"") -> 0 | H39: =IFERROR(IF($A39="","",SUBSTITUTE(SUBSTITUTE(SUBSTITUTE(INDIRECT("Trello!"&ADDRESS(ROW()-1, H$1, 4)),"Cost: ","")," $",""),".","")*1*$F$2),"") ->  | I39: 1750 | J39: =IFERROR(SUBSTITUTE(SUBSTITUTE(SUBSTITUTE(RIGHT(INDIRECT("Trello!"&ADDRESS(ROW()-1, L$1, 4)),LEN(INDIRECT("Trello!"&ADDRESS(ROW()-1, L$1, 4)))-15),". ","/")," 20","/20")," ",""),"") ->  | K39: =IFERROR(SUBSTITUTE(SUBSTITUTE(SUBSTITUTE(RIGHT(INDIRECT("Trello!"&ADDRESS(ROW()-1, M$1, 4)),LEN(INDIRECT("Trello!"&ADDRESS(ROW()-1, M$1, 4)))-15),". ","/")," 20","/20")," ",""),"") ->  | O39: =IFERROR(SUBSTITUTE(INDIRECT("Trello!"&ADDRESS(ROW()-1, O$1, 4)),"Estimate hrs: ","")*1,"") ->  | P39: =IF(SUMIF(Timecamp!C:C,Reporte!A39,Timecamp!J:J)=0,"",SUMIF(Timecamp!C:C,Reporte!A39,Timecamp!J:J)) ->  | S39: =IFERROR(VLOOKUP(A39,'SLA Trab'!E:I,5,FALSE),"") ->  | T39: =IFERROR(VLOOKUP(A39,'SLA Cobr'!E:I,5,FALSE),"") -> 7.666666667
A40: =IFERROR(IF(Trello!E39="","",Trello!E39)," ") -> Diana Inlat - Ingeurbe Tablet e Ingles | B40: =IF($A40="","",IF(Trello!A39="",B39,Trello!A39)) -> Terminado | C40: 2023-05-22 | D40: =IF($A40="","",SUBSTITUTE(SUBSTITUTE(Trello!J39," days",""),"⌚ ","")*1) -> 114 | E40: =IFERROR(IF($A40="","",SUBSTITUTE(SUBSTITUTE(SUBSTITUTE(INDIRECT("Trello!"&ADDRESS(ROW()-1, E$1, 4)),"Foreign: ","")," $",""),".","")*1),"") -> 500 | F40: =IF($E40="",IFERROR(IF($A40="","",SUBSTITUTE(SUBSTITUTE(SUBSTITUTE(INDIRECT("Trello!"&ADDRESS(ROW()-1, F$1, 4)),"MXN: ","")," MX$",""),".","")*1),""),E40*F$2) -> 8750 | G40: =IFERROR(IF($A40="","",SUBSTITUTE(SUBSTITUTE(SUBSTITUTE(INDIRECT("Trello!"&ADDRESS(ROW()-1, G$1, 4)),"Debt: ","")," $",""),".","")*1)*IF(E40="",1,F$2),"") ->  | H40: =IFERROR(IF($A40="","",SUBSTITUTE(SUBSTITUTE(SUBSTITUTE(INDIRECT("Trello!"&ADDRESS(ROW()-1, H$1, 4)),"Cost: ","")," $",""),".","")*1*$F$2),"") -> 875 | I40: 7875 | J40: =IFERROR(SUBSTITUTE(SUBSTITUTE(SUBSTITUTE(RIGHT(INDIRECT("Trello!"&ADDRESS(ROW()-1, L$1, 4)),LEN(INDIRECT("Trello!"&ADDRESS(ROW()-1, L$1, 4)))-15),". ","/")," 20","/20")," ",""),"") ->  | K40: =IFERROR(SUBSTITUTE(SUBSTITUTE(SUBSTITUTE(RIGHT(INDIRECT("Trello!"&ADDRESS(ROW()-1, M$1, 4)),LEN(INDIRECT("Trello!"&ADDRESS(ROW()-1, M$1, 4)))-15),". ","/")," 20","/20")," ",""),"") ->  | O40: =IFERROR(SUBSTITUTE(INDIRECT("Trello!"&ADDRESS(ROW()-1, O$1, 4)),"Estimate hrs: ","")*1,"") -> 5 | P40: =IF(SUMIF(Timecamp!C:C,Reporte!A40,Timecamp!J:J)=0,"",SUMIF(Timecamp!C:C,Reporte!A40,Timecamp!J:J)) -> 1.45 | Q40: -0.71 | R40: 6034.482759 | S40: =IFERROR(VLOOKUP(A40,'SLA Trab'!E:I,5,FALSE),"") -> 14 | T40: =IFERROR(VLOOKUP(A40,'SLA Cobr'!E:I,5,FALSE),"") -> 59.125
A41: =IFERROR(IF(Trello!E40="","",Trello!E40)," ") -> Faby - LB Logistics | B41: =IF($A41="","",IF(Trello!A40="",B40,Trello!A40)) -> Terminado | C41: 2023-05-26 | D41: =IF($A41="","",SUBSTITUTE(SUBSTITUTE(Trello!J40," days",""),"⌚ ","")*1) -> 110 | E41: =IFERROR(IF($A41="","",SUBSTITUTE(SUBSTITUTE(SUBSTITUTE(INDIRECT("Trello!"&ADDRESS(ROW()-1, E$1, 4)),"Foreign: ","")," $",""),".","")*1),"") ->  | F41: =IF($E41="",IFERROR(IF($A41="","",SUBSTITUTE(SUBSTITUTE(SUBSTITUTE(INDIRECT("Trello!"&ADDRESS(ROW()-1, F$1, 4)),"MXN: ","")," MX$",""),".","")*1),""),E41*F$2) -> 12000 | G41: =IFERROR(IF($A41="","",SUBSTITUTE(SUBSTITUTE(SUBSTITUTE(INDIRECT("Trello!"&ADDRESS(ROW()-1, G$1, 4)),"Debt: ","")," $",""),".","")*1)*IF(E41="",1,F$2),"") -> 0 | H41: =IFERROR(IF($A41="","",SUBSTITUTE(SUBSTITUTE(SUBSTITUTE(INDIRECT("Trello!"&ADDRESS(ROW()-1, H$1, 4)),"Cost: ","")," $",""),".","")*1*$F$2),"") -> 4550 | I41: 7450 | J41: =IFERROR(SUBSTITUTE(SUBSTITUTE(SUBSTITUTE(RIGHT(INDIRECT("Trello!"&ADDRESS(ROW()-1, L$1, 4)),LEN(INDIRECT("Trello!"&ADDRESS(ROW()-1, L$1, 4)))-15),". ","/")," 20","/20")," ",""),"") -> 20/Juli/2023 | K41: =IFERROR(SUBSTITUTE(SUBSTITUTE(SUBSTITUTE(RIGHT(INDIRECT("Trello!"&ADDRESS(ROW()-1, M$1, 4)),LEN(INDIRECT("Trello!"&ADDRESS(ROW()-1, M$1, 4)))-15),". ","/")," 20","/20")," ",""),"") ->  | L41: 2023-07-20 | O41: =IFERROR(SUBSTITUTE(INDIRECT("Trello!"&ADDRESS(ROW()-1, O$1, 4)),"Estimate hrs: ","")*1,"") -> 5 | P41: =IF(SUMIF(Timecamp!C:C,Reporte!A41,Timecamp!J:J)=0,"",SUMIF(Timecamp!C:C,Reporte!A41,Timecamp!J:J)) -> 13.16666667 | Q41: 1.633333333 | R41: 911.3924051 | S41: =IFERROR(VLOOKUP(A41,'SLA Trab'!E:I,5,FALSE),"") -> 18.25 | T41: =IFERROR(VLOOKUP(A41,'SLA Cobr'!E:I,5,FALSE),"") -> 2.875
A42: =IFERROR(IF(Trello!E41="","",Trello!E41)," ") -> Ricardo Freelancer - Accounting | B42: =IF($A42="","",IF(Trello!A41="",B41,Trello!A41)) -> Terminado | C42: 2023-04-04 | D42: =IF($A42="","",SUBSTITUTE(SUBSTITUTE(Trello!J41," days",""),"⌚ ","")*1) -> 162 | E42: =IFERROR(IF($A42="","",SUBSTITUTE(SUBSTITUTE(SUBSTITUTE(INDIRECT("Trello!"&ADDRESS(ROW()-1, E$1, 4)),"Foreign: ","")," $",""),".","")*1),"") -> 6000 | F42: =IF($E42="",IFERROR(IF($A42="","",SUBSTITUTE(SUBSTITUTE(SUBSTITUTE(INDIRECT("Trello!"&ADDRESS(ROW()-1, F$1, 4)),"MXN: ","")," MX$",""),".","")*1),""),E42*F$2) -> 105000 | G42: =IFERROR(IF($A42="","",SUBSTITUTE(SUBSTITUTE(SUBSTITUTE(INDIRECT("Trello!"&ADDRESS(ROW()-1, G$1, 4)),"Debt: ","")," $",""),".","")*1)*IF(E42="",1,F$2),"") -> 0 | H42: =IFERROR(IF($A42="","",SUBSTITUTE(SUBSTITUTE(SUBSTITUTE(INDIRECT("Trello!"&ADDRESS(ROW()-1, H$1, 4)),"Cost: ","")," $",""),".","")*1*$F$2),"") ->  | I42: 105000 | J42: =IFERROR(SUBSTITUTE(SUBSTITUTE(SUBSTITUTE(RIGHT(INDIRECT("Trello!"&ADDRESS(ROW()-1, L$1, 4)),LEN(INDIRECT("Trello!"&ADDRESS(ROW()-1, L$1, 4)))-15),". ","/")," 20","/20")," ",""),"") -> 28/Apr/2023 | K42: =IFERROR(SUBSTITUTE(SUBSTITUTE(SUBSTITUTE(RIGHT(INDIRECT("Trello!"&ADDRESS(ROW()-1, M$1, 4)),LEN(INDIRECT("Trello!"&ADDRESS(ROW()-1, M$1, 4)))-15),". ","/")," 20","/20")," ",""),"") ->  | L42: 2023-04-28 | O42: =IFERROR(SUBSTITUTE(INDIRECT("Trello!"&ADDRESS(ROW()-1, O$1, 4)),"Estimate hrs: ","")*1,"") ->  | P42: =IF(SUMIF(Timecamp!C:C,Reporte!A42,Timecamp!J:J)=0,"",SUMIF(Timecamp!C:C,Reporte!A42,Timecamp!J:J)) -> 146 | R42: 719.1780822 | S42: =IFERROR(VLOOKUP(A42,'SLA Trab'!E:I,5,FALSE),"") -> 83 | T42: =IFERROR(VLOOKUP(A42,'SLA Cobr'!E:I,5,FALSE),"") -> 36.95833333
A43: =IFERROR(IF(Trello!E42="","",Trello!E42)," ") -> Nana maletas Feb 23 | B43: =IF($A43="","",IF(Trello!A42="",B42,Trello!A42)) -> Terminado | C43: 2023-06-27 | D43: =IF($A43="","",SUBSTITUTE(SUBSTITUTE(Trello!J42," days",""),"⌚ ","")*1) -> 78 | E43: =IFERROR(IF($A43="","",SUBSTITUTE(SUBSTITUTE(SUBSTITUTE(INDIRECT("Trello!"&ADDRESS(ROW()-1, E$1, 4)),"Foreign: ","")," $",""),".","")*1),"") ->  | F43: =IF($E43="",IFERROR(IF($A43="","",SUBSTITUTE(SUBSTITUTE(SUBSTITUTE(INDIRECT("Trello!"&ADDRESS(ROW()-1, F$1, 4)),"MXN: ","")," MX$",""),".","")*1),""),E43*F$2) -> 1750 | G43: =IFERROR(IF($A43="","",SUBSTITUTE(SUBSTITUTE(SUBSTITUTE(INDIRECT("Trello!"&ADDRESS(ROW()-1, G$1, 4)),"Debt: ","")," $",""),".","")*1)*IF(E43="",1,F$2),"") ->  | H43: =IFERROR(IF($A43="","",SUBSTITUTE(SUBSTITUTE(SUBSTITUTE(INDIRECT("Trello!"&ADDRESS(ROW()-1, H$1, 4)),"Cost: ","")," $",""),".","")*1*$F$2),"") ->  | I43: 1750 | J43: =IFERROR(SUBSTITUTE(SUBSTITUTE(SUBSTITUTE(RIGHT(INDIRECT("Trello!"&ADDRESS(ROW()-1, L$1, 4)),LEN(INDIRECT("Trello!"&ADDRESS(ROW()-1, L$1, 4)))-15),". ","/")," 20","/20")," ",""),"") ->  | K43: =IFERROR(SUBSTITUTE(SUBSTITUTE(SUBSTITUTE(RIGHT(INDIRECT("Trello!"&ADDRESS(ROW()-1, M$1, 4)),LEN(INDIRECT("Trello!"&ADDRESS(ROW()-1, M$1, 4)))-15),". ","/")," 20","/20")," ",""),"") ->  | O43: =IFERROR(SUBSTITUTE(INDIRECT("Trello!"&ADDRESS(ROW()-1, O$1, 4)),"Estimate hrs: ","")*1,"") ->  | P43: =IF(SUMIF(Timecamp!C:C,Reporte!A43,Timecamp!J:J)=0,"",SUMIF(Timecamp!C:C,Reporte!A43,Timecamp!J:J)) ->  | S43: =IFERROR(VLOOKUP(A43,'SLA Trab'!E:I,5,FALSE),"") ->  | T43: =IFERROR(VLOOKUP(A43,'SLA Cobr'!E:I,5,FALSE),"") -> 36.95833333
A44: =IFERROR(IF(Trello!E43="","",Trello!E43)," ") -> Steve 5 10 - Página personal protfolio | B44: =IF($A44="","",IF(Trello!A43="",B43,Trello!A43)) -> Terminado | C44: 2023-05-25 | D44: =IF($A44="","",SUBSTITUTE(SUBSTITUTE(Trello!J43," days",""),"⌚ ","")*1) -> 111 | E44: =IFERROR(IF($A44="","",SUBSTITUTE(SUBSTITUTE(SUBSTITUTE(INDIRECT("Trello!"&ADDRESS(ROW()-1, E$1, 4)),"Foreign: ","")," $",""),".","")*1),"") -> 450 | F44: =IF($E44="",IFERROR(IF($A44="","",SUBSTITUTE(SUBSTITUTE(SUBSTITUTE(INDIRECT("Trello!"&ADDRESS(ROW()-1, F$1, 4)),"MXN: ","")," MX$",""),".","")*1),""),E44*F$2) -> 7875 | G44: =IFERROR(IF($A44="","",SUBSTITUTE(SUBSTITUTE(SUBSTITUTE(INDIRECT("Trello!"&ADDRESS(ROW()-1, G$1, 4)),"Debt: ","")," $",""),".","")*1)*IF(E44="",1,F$2),"") -> 0 | H44: =IFERROR(IF($A44="","",SUBSTITUTE(SUBSTITUTE(SUBSTITUTE(INDIRECT("Trello!"&ADDRESS(ROW()-1, H$1, 4)),"Cost: ","")," $",""),".","")*1*$F$2),"") -> 1312.5 | I44: 6562.5 | J44: =IFERROR(SUBSTITUTE(SUBSTITUTE(SUBSTITUTE(RIGHT(INDIRECT("Trello!"&ADDRESS(ROW()-1, L$1, 4)),LEN(INDIRECT("Trello!"&ADDRESS(ROW()-1, L$1, 4)))-15),". ","/")," 20","/20")," ",""),"") -> 21/Juli/2023 | K44: =IFERROR(SUBSTITUTE(SUBSTITUTE(SUBSTITUTE(RIGHT(INDIRECT("Trello!"&ADDRESS(ROW()-1, M$1, 4)),LEN(INDIRECT("Trello!"&ADDRESS(ROW()-1, M$1, 4)))-15),". ","/")," 20","/20")," ",""),"") ->  | L44: 2023-07-21 | O44: =IFERROR(SUBSTITUTE(INDIRECT("Trello!"&ADDRESS(ROW()-1, O$1, 4)),"Estimate hrs: ","")*1,"") ->  | P44: =IF(SUMIF(Timecamp!C:C,Reporte!A44,Timecamp!J:J)=0,"",SUMIF(Timecamp!C:C,Reporte!A44,Timecamp!J:J)) -> 10.03333333 | R44: 784.8837209 | S44: =IFERROR(VLOOKUP(A44,'SLA Trab'!E:I,5,FALSE),"") ->  | T44: =IFERROR(VLOOKUP(A44,'SLA Cobr'!E:I,5,FALSE),"") -> 
A45: =IFERROR(IF(Trello!E44="","",Trello!E44)," ") -> Daren freelancer - Nuevo Form | B45: =IF($A45="","",IF(Trello!A44="",B44,Trello!A44)) -> Terminado | C45: 2023-06-08 | D45: =IF($A45="","",SUBSTITUTE(SUBSTITUTE(Trello!J44," days",""),"⌚ ","")*1) -> 97 | E45: =IFERROR(IF($A45="","",SUBSTITUTE(SUBSTITUTE(SUBSTITUTE(INDIRECT("Trello!"&ADDRESS(ROW()-1, E$1, 4)),"Foreign: ","")," $",""),".","")*1),"") -> 250 | F45: =IF($E45="",IFERROR(IF($A45="","",SUBSTITUTE(SUBSTITUTE(SUBSTITUTE(INDIRECT("Trello!"&ADDRESS(ROW()-1, F$1, 4)),"MXN: ","")," MX$",""),".","")*1),""),E45*F$2) -> 4375 | G45: =IFERROR(IF($A45="","",SUBSTITUTE(SUBSTITUTE(SUBSTITUTE(INDIRECT("Trello!"&ADDRESS(ROW()-1, G$1, 4)),"Debt: ","")," $",""),".","")*1)*IF(E45="",1,F$2),"") -> 0 | H45: =IFERROR(IF($A45="","",SUBSTITUTE(SUBSTITUTE(SUBSTITUTE(INDIRECT("Trello!"&ADDRESS(ROW()-1, H$1, 4)),"Cost: ","")," $",""),".","")*1*$F$2),"") ->  | I45: 4375 | J45: =IFERROR(SUBSTITUTE(SUBSTITUTE(SUBSTITUTE(RIGHT(INDIRECT("Trello!"&ADDRESS(ROW()-1, L$1, 4)),LEN(INDIRECT("Trello!"&ADDRESS(ROW()-1, L$1, 4)))-15),". ","/")," 20","/20")," ",""),"") ->  | K45: =IFERROR(SUBSTITUTE(SUBSTITUTE(SUBSTITUTE(RIGHT(INDIRECT("Trello!"&ADDRESS(ROW()-1, M$1, 4)),LEN(INDIRECT("Trello!"&ADDRESS(ROW()-1, M$1, 4)))-15),". ","/")," 20","/20")," ",""),"") ->  | O45: =IFERROR(SUBSTITUTE(INDIRECT("Trello!"&ADDRESS(ROW()-1, O$1, 4)),"Estimate hrs: ","")*1,"") -> 5 | P45: =IF(SUMIF(Timecamp!C:C,Reporte!A45,Timecamp!J:J)=0,"",SUMIF(Timecamp!C:C,Reporte!A45,Timecamp!J:J)) ->  | S45: =IFERROR(VLOOKUP(A45,'SLA Trab'!E:I,5,FALSE),"") ->  | T45: =IFERROR(VLOOKUP(A45,'SLA Cobr'!E:I,5,FALSE),"") -> 
A46: =IFERROR(IF(Trello!E45="","",Trello!E45)," ") -> Samantha - vuelo mty | B46: =IF($A46="","",IF(Trello!A45="",B45,Trello!A45)) -> Terminado | C46: 2023-03-12 | D46: =IF($A46="","",SUBSTITUTE(SUBSTITUTE(Trello!J45," days",""),"⌚ ","")*1) -> 185 | E46: =IFERROR(IF($A46="","",SUBSTITUTE(SUBSTITUTE(SUBSTITUTE(INDIRECT("Trello!"&ADDRESS(ROW()-1, E$1, 4)),"Foreign: ","")," $",""),".","")*1),"") ->  | F46: =IF($E46="",IFERROR(IF($A46="","",SUBSTITUTE(SUBSTITUTE(SUBSTITUTE(INDIRECT("Trello!"&ADDRESS(ROW()-1, F$1, 4)),"MXN: ","")," MX$",""),".","")*1),""),E46*F$2) -> 4148 | G46: =IFERROR(IF($A46="","",SUBSTITUTE(SUBSTITUTE(SUBSTITUTE(INDIRECT("Trello!"&ADDRESS(ROW()-1, G$1, 4)),"Debt: ","")," $",""),".","")*1)*IF(E46="",1,F$2),"") -> 4148 | H46: =IFERROR(IF($A46="","",SUBSTITUTE(SUBSTITUTE(SUBSTITUTE(INDIRECT("Trello!"&ADDRESS(ROW()-1, H$1, 4)),"Cost: ","")," $",""),".","")*1*$F$2),"") ->  | I46: 4148 | J46: =IFERROR(SUBSTITUTE(SUBSTITUTE(SUBSTITUTE(RIGHT(INDIRECT("Trello!"&ADDRESS(ROW()-1, L$1, 4)),LEN(INDIRECT("Trello!"&ADDRESS(ROW()-1, L$1, 4)))-15),". ","/")," 20","/20")," ",""),"") ->  | K46: =IFERROR(SUBSTITUTE(SUBSTITUTE(SUBSTITUTE(RIGHT(INDIRECT("Trello!"&ADDRESS(ROW()-1, M$1, 4)),LEN(INDIRECT("Trello!"&ADDRESS(ROW()-1, M$1, 4)))-15),". ","/")," 20","/20")," ",""),"") ->  | O46: =IFERROR(SUBSTITUTE(INDIRECT("Trello!"&ADDRESS(ROW()-1, O$1, 4)),"Estimate hrs: ","")*1,"") ->  | P46: =IF(SUMIF(Timecamp!C:C,Reporte!A46,Timecamp!J:J)=0,"",SUMIF(Timecamp!C:C,Reporte!A46,Timecamp!J:J)) ->  | S46: =IFERROR(VLOOKUP(A46,'SLA Trab'!E:I,5,FALSE),"") ->  | T46: =IFERROR(VLOOKUP(A46,'SLA Cobr'!E:I,5,FALSE),"") -> 26.625
A47: =IFERROR(IF(Trello!E46="","",Trello!E46)," ") -> Gary Hydracheck - Fix quote shipping | B47: =IF($A47="","",IF(Trello!A46="",B46,Trello!A46)) -> Terminado | C47: 2023-06-26 | D47: =IF($A47="","",SUBSTITUTE(SUBSTITUTE(Trello!J46," days",""),"⌚ ","")*1) -> 79 | E47: =IFERROR(IF($A47="","",SUBSTITUTE(SUBSTITUTE(SUBSTITUTE(INDIRECT("Trello!"&ADDRESS(ROW()-1, E$1, 4)),"Foreign: ","")," $",""),".","")*1),"") -> 250 | F47: =IF($E47="",IFERROR(IF($A47="","",SUBSTITUTE(SUBSTITUTE(SUBSTITUTE(INDIRECT("Trello!"&ADDRESS(ROW()-1, F$1, 4)),"MXN: ","")," MX$",""),".","")*1),""),E47*F$2) -> 4375 | G47: =IFERROR(IF($A47="","",SUBSTITUTE(SUBSTITUTE(SUBSTITUTE(INDIRECT("Trello!"&ADDRESS(ROW()-1, G$1, 4)),"Debt: ","")," $",""),".","")*1)*IF(E47="",1,F$2),"") -> 0 | H47: =IFERROR(IF($A47="","",SUBSTITUTE(SUBSTITUTE(SUBSTITUTE(INDIRECT("Trello!"&ADDRESS(ROW()-1, H$1, 4)),"Cost: ","")," $",""),".","")*1*$F$2),"") ->  | I47: 4375 | J47: =IFERROR(SUBSTITUTE(SUBSTITUTE(SUBSTITUTE(RIGHT(INDIRECT("Trello!"&ADDRESS(ROW()-1, L$1, 4)),LEN(INDIRECT("Trello!"&ADDRESS(ROW()-1, L$1, 4)))-15),". ","/")," 20","/20")," ",""),"") ->  | K47: =IFERROR(SUBSTITUTE(SUBSTITUTE(SUBSTITUTE(RIGHT(INDIRECT("Trello!"&ADDRESS(ROW()-1, M$1, 4)),LEN(INDIRECT("Trello!"&ADDRESS(ROW()-1, M$1, 4)))-15),". ","/")," 20","/20")," ",""),"") ->  | O47: =IFERROR(SUBSTITUTE(INDIRECT("Trello!"&ADDRESS(ROW()-1, O$1, 4)),"Estimate hrs: ","")*1,"") -> 5 | P47: =IF(SUMIF(Timecamp!C:C,Reporte!A47,Timecamp!J:J)=0,"",SUMIF(Timecamp!C:C,Reporte!A47,Timecamp!J:J)) -> 3.55 | Q47: -0.29 | R47: 1232.394366 | S47: =IFERROR(VLOOKUP(A47,'SLA Trab'!E:I,5,FALSE),"") -> 7.75 | T47: =IFERROR(VLOOKUP(A47,'SLA Cobr'!E:I,5,FALSE),"") -> 0.04166666667
A48: =IFERROR(IF(Trello!E47="","",Trello!E47)," ") -> Yordi - préstamo fisher's | B48: =IF($A48="","",IF(Trello!A47="",B47,Trello!A47)) -> Terminado | C48: 2023-07-10 | D48: =IF($A48="","",SUBSTITUTE(SUBSTITUTE(Trello!J47," days",""),"⌚ ","")*1) -> 65 | E48: =IFERROR(IF($A48="","",SUBSTITUTE(SUBSTITUTE(SUBSTITUTE(INDIRECT("Trello!"&ADDRESS(ROW()-1, E$1, 4)),"Foreign: ","")," $",""),".","")*1),"") ->  | F48: =IF($E48="",IFERROR(IF($A48="","",SUBSTITUTE(SUBSTITUTE(SUBSTITUTE(INDIRECT("Trello!"&ADDRESS(ROW()-1, F$1, 4)),"MXN: ","")," MX$",""),".","")*1),""),E48*F$2) -> 1500 | G48: =IFERROR(IF($A48="","",SUBSTITUTE(SUBSTITUTE(SUBSTITUTE(INDIRECT("Trello!"&ADDRESS(ROW()-1, G$1, 4)),"Debt: ","")," $",""),".","")*1)*IF(E48="",1,F$2),"") ->  | H48: =IFERROR(IF($A48="","",SUBSTITUTE(SUBSTITUTE(SUBSTITUTE(INDIRECT("Trello!"&ADDRESS(ROW()-1, H$1, 4)),"Cost: ","")," $",""),".","")*1*$F$2),"") ->  | I48: 1500 | J48: =IFERROR(SUBSTITUTE(SUBSTITUTE(SUBSTITUTE(RIGHT(INDIRECT("Trello!"&ADDRESS(ROW()-1, L$1, 4)),LEN(INDIRECT("Trello!"&ADDRESS(ROW()-1, L$1, 4)))-15),". ","/")," 20","/20")," ",""),"") -> 13/Aug/2023 | K48: =IFERROR(SUBSTITUTE(SUBSTITUTE(SUBSTITUTE(RIGHT(INDIRECT("Trello!"&ADDRESS(ROW()-1, M$1, 4)),LEN(INDIRECT("Trello!"&ADDRESS(ROW()-1, M$1, 4)))-15),". ","/")," 20","/20")," ",""),"") ->  | L48: 2023-08-13 | O48: =IFERROR(SUBSTITUTE(INDIRECT("Trello!"&ADDRESS(ROW()-1, O$1, 4)),"Estimate hrs: ","")*1,"") ->  | P48: =IF(SUMIF(Timecamp!C:C,Reporte!A48,Timecamp!J:J)=0,"",SUMIF(Timecamp!C:C,Reporte!A48,Timecamp!J:J)) ->  | S48: =IFERROR(VLOOKUP(A48,'SLA Trab'!E:I,5,FALSE),"") ->  | T48: =IFERROR(VLOOKUP(A48,'SLA Cobr'!E:I,5,FALSE),"") -> 
A49: =IFERROR(IF(Trello!E48="","",Trello!E48)," ") -> Bjorn Sueco - ajustes Woo y POS | B49: =IF($A49="","",IF(Trello!A48="",B48,Trello!A48)) -> Terminado | C49: 2023-05-24 | D49: =IF($A49="","",SUBSTITUTE(SUBSTITUTE(Trello!J48," days",""),"⌚ ","")*1) -> 112 | E49: =IFERROR(IF($A49="","",SUBSTITUTE(SUBSTITUTE(SUBSTITUTE(INDIRECT("Trello!"&ADDRESS(ROW()-1, E$1, 4)),"Foreign: ","")," $",""),".","")*1),"") -> 900 | F49: =IF($E49="",IFERROR(IF($A49="","",SUBSTITUTE(SUBSTITUTE(SUBSTITUTE(INDIRECT("Trello!"&ADDRESS(ROW()-1, F$1, 4)),"MXN: ","")," MX$",""),".","")*1),""),E49*F$2) -> 15750 | G49: =IFERROR(IF($A49="","",SUBSTITUTE(SUBSTITUTE(SUBSTITUTE(INDIRECT("Trello!"&ADDRESS(ROW()-1, G$1, 4)),"Debt: ","")," $",""),".","")*1)*IF(E49="",1,F$2),"") -> 0 | H49: =IFERROR(IF($A49="","",SUBSTITUTE(SUBSTITUTE(SUBSTITUTE(INDIRECT("Trello!"&ADDRESS(ROW()-1, H$1, 4)),"Cost: ","")," $",""),".","")*1*$F$2),"") -> 7875 | I49: 7875 | J49: =IFERROR(SUBSTITUTE(SUBSTITUTE(SUBSTITUTE(RIGHT(INDIRECT("Trello!"&ADDRESS(ROW()-1, L$1, 4)),LEN(INDIRECT("Trello!"&ADDRESS(ROW()-1, L$1, 4)))-15),". ","/")," 20","/20")," ",""),"") ->  | K49: =IFERROR(SUBSTITUTE(SUBSTITUTE(SUBSTITUTE(RIGHT(INDIRECT("Trello!"&ADDRESS(ROW()-1, M$1, 4)),LEN(INDIRECT("Trello!"&ADDRESS(ROW()-1, M$1, 4)))-15),". ","/")," 20","/20")," ",""),"") ->  | O49: =IFERROR(SUBSTITUTE(INDIRECT("Trello!"&ADDRESS(ROW()-1, O$1, 4)),"Estimate hrs: ","")*1,"") -> 10 | P49: =IF(SUMIF(Timecamp!C:C,Reporte!A49,Timecamp!J:J)=0,"",SUMIF(Timecamp!C:C,Reporte!A49,Timecamp!J:J)) -> 8.883333333 | Q49: -0.1116666667 | R49: 1772.983114 | S49: =IFERROR(VLOOKUP(A49,'SLA Trab'!E:I,5,FALSE),"") -> 38.125 | T49: =IFERROR(VLOOKUP(A49,'SLA Cobr'!E:I,5,FALSE),"") -> 2.25
A50: =IFERROR(IF(Trello!E49="","",Trello!E49)," ") -> Carlos Freelancer - Tarea flowchart y reporte | B50: =IF($A50="","",IF(Trello!A49="",B49,Trello!A49)) -> Terminado | C50: 2023-07-06 | D50: =IF($A50="","",SUBSTITUTE(SUBSTITUTE(Trello!J49," days",""),"⌚ ","")*1) -> 69 | E50: =IFERROR(IF($A50="","",SUBSTITUTE(SUBSTITUTE(SUBSTITUTE(INDIRECT("Trello!"&ADDRESS(ROW()-1, E$1, 4)),"Foreign: ","")," $",""),".","")*1),"") -> 50 | F50: =IF($E50="",IFERROR(IF($A50="","",SUBSTITUTE(SUBSTITUTE(SUBSTITUTE(INDIRECT("Trello!"&ADDRESS(ROW()-1, F$1, 4)),"MXN: ","")," MX$",""),".","")*1),""),E50*F$2) -> 875 | G50: =IFERROR(IF($A50="","",SUBSTITUTE(SUBSTITUTE(SUBSTITUTE(INDIRECT("Trello!"&ADDRESS(ROW()-1, G$1, 4)),"Debt: ","")," $",""),".","")*1)*IF(E50="",1,F$2),"") ->  | H50: =IFERROR(IF($A50="","",SUBSTITUTE(SUBSTITUTE(SUBSTITUTE(INDIRECT("Trello!"&ADDRESS(ROW()-1, H$1, 4)),"Cost: ","")," $",""),".","")*1*$F$2),"") -> 0 | I50: 875 | J50: =IFERROR(SUBSTITUTE(SUBSTITUTE(SUBSTITUTE(RIGHT(INDIRECT("Trello!"&ADDRESS(ROW()-1, L$1, 4)),LEN(INDIRECT("Trello!"&ADDRESS(ROW()-1, L$1, 4)))-15),". ","/")," 20","/20")," ",""),"") ->  | K50: =IFERROR(SUBSTITUTE(SUBSTITUTE(SUBSTITUTE(RIGHT(INDIRECT("Trello!"&ADDRESS(ROW()-1, M$1, 4)),LEN(INDIRECT("Trello!"&ADDRESS(ROW()-1, M$1, 4)))-15),". ","/")," 20","/20")," ",""),"") ->  | O50: =IFERROR(SUBSTITUTE(INDIRECT("Trello!"&ADDRESS(ROW()-1, O$1, 4)),"Estimate hrs: ","")*1,"") -> 1 | P50: =IF(SUMIF(Timecamp!C:C,Reporte!A50,Timecamp!J:J)=0,"",SUMIF(Timecamp!C:C,Reporte!A50,Timecamp!J:J)) -> 1.2 | Q50: 0.2 | R50: 729.1666667 | S50: =IFERROR(VLOOKUP(A50,'SLA Trab'!E:I,5,FALSE),"") -> 0.04166666667 | T50: =IFERROR(VLOOKUP(A50,'SLA Cobr'!E:I,5,FALSE),"") -> 0.3333333333
A51: =IFERROR(IF(Trello!E50="","",Trello!E50)," ") -> Rodrigo Techservices - Techservices Hosting y run4you | B51: =IF($A51="","",IF(Trello!A50="",B50,Trello!A50)) -> Terminado | C51: 2023-05-26 | D51: =IF($A51="","",SUBSTITUTE(SUBSTITUTE(Trello!J50," days",""),"⌚ ","")*1) -> 110 | E51: =IFERROR(IF($A51="","",SUBSTITUTE(SUBSTITUTE(SUBSTITUTE(INDIRECT("Trello!"&ADDRESS(ROW()-1, E$1, 4)),"Foreign: ","")," $",""),".","")*1),"") ->  | F51: =IF($E51="",IFERROR(IF($A51="","",SUBSTITUTE(SUBSTITUTE(SUBSTITUTE(INDIRECT("Trello!"&ADDRESS(ROW()-1, F$1, 4)),"MXN: ","")," MX$",""),".","")*1),""),E51*F$2) -> 3000 | G51: =IFERROR(IF($A51="","",SUBSTITUTE(SUBSTITUTE(SUBSTITUTE(INDIRECT("Trello!"&ADDRESS(ROW()-1, G$1, 4)),"Debt: ","")," $",""),".","")*1)*IF(E51="",1,F$2),"") ->  | H51: =IFERROR(IF($A51="","",SUBSTITUTE(SUBSTITUTE(SUBSTITUTE(INDIRECT("Trello!"&ADDRESS(ROW()-1, H$1, 4)),"Cost: ","")," $",""),".","")*1*$F$2),"") ->  | I51: 3000 | J51: =IFERROR(SUBSTITUTE(SUBSTITUTE(SUBSTITUTE(RIGHT(INDIRECT("Trello!"&ADDRESS(ROW()-1, L$1, 4)),LEN(INDIRECT("Trello!"&ADDRESS(ROW()-1, L$1, 4)))-15),". ","/")," 20","/20")," ",""),"") ->  | K51: =IFERROR(SUBSTITUTE(SUBSTITUTE(SUBSTITUTE(RIGHT(INDIRECT("Trello!"&ADDRESS(ROW()-1, M$1, 4)),LEN(INDIRECT("Trello!"&ADDRESS(ROW()-1, M$1, 4)))-15),". ","/")," 20","/20")," ",""),"") ->  | O51: =IFERROR(SUBSTITUTE(INDIRECT("Trello!"&ADDRESS(ROW()-1, O$1, 4)),"Estimate hrs: ","")*1,"") -> 2 | P51: =IF(SUMIF(Timecamp!C:C,Reporte!A51,Timecamp!J:J)=0,"",SUMIF(Timecamp!C:C,Reporte!A51,Timecamp!J:J)) -> 0.01666666667 | Q51: -0.9916666667 | R51: 180000 | S51: =IFERROR(VLOOKUP(A51,'SLA Trab'!E:I,5,FALSE),"") ->  | T51: =IFERROR(VLOOKUP(A51,'SLA Cobr'!E:I,5,FALSE),"") -> 
A52: =IFERROR(IF(Trello!E51="","",Trello!E51)," ") -> Carlos Freelancer - Tarea API Tickers | B52: =IF($A52="","",IF(Trello!A51="",B51,Trello!A51)) -> Terminado | C52: 2023-06-29 | D52: =IF($A52="","",SUBSTITUTE(SUBSTITUTE(Trello!J51," days",""),"⌚ ","")*1) -> 76 | E52: =IFERROR(IF($A52="","",SUBSTITUTE(SUBSTITUTE(SUBSTITUTE(INDIRECT("Trello!"&ADDRESS(ROW()-1, E$1, 4)),"Foreign: ","")," $",""),".","")*1),"") -> 500 | F52: =IF($E52="",IFERROR(IF($A52="","",SUBSTITUTE(SUBSTITUTE(SUBSTITUTE(INDIRECT("Trello!"&ADDRESS(ROW()-1, F$1, 4)),"MXN: ","")," MX$",""),".","")*1),""),E52*F$2) -> 8750 | G52: =IFERROR(IF($A52="","",SUBSTITUTE(SUBSTITUTE(SUBSTITUTE(INDIRECT("Trello!"&ADDRESS(ROW()-1, G$1, 4)),"Debt: ","")," $",""),".","")*1)*IF(E52="",1,F$2),"") ->  | H52: =IFERROR(IF($A52="","",SUBSTITUTE(SUBSTITUTE(SUBSTITUTE(INDIRECT("Trello!"&ADDRESS(ROW()-1, H$1, 4)),"Cost: ","")," $",""),".","")*1*$F$2),"") ->  | I52: 8750 | J52: =IFERROR(SUBSTITUTE(SUBSTITUTE(SUBSTITUTE(RIGHT(INDIRECT("Trello!"&ADDRESS(ROW()-1, L$1, 4)),LEN(INDIRECT("Trello!"&ADDRESS(ROW()-1, L$1, 4)))-15),". ","/")," 20","/20")," ",""),"") ->  | K52: =IFERROR(SUBSTITUTE(SUBSTITUTE(SUBSTITUTE(RIGHT(INDIRECT("Trello!"&ADDRESS(ROW()-1, M$1, 4)),LEN(INDIRECT("Trello!"&ADDRESS(ROW()-1, M$1, 4)))-15),". ","/")," 20","/20")," ",""),"") ->  | O52: =IFERROR(SUBSTITUTE(INDIRECT("Trello!"&ADDRESS(ROW()-1, O$1, 4)),"Estimate hrs: ","")*1,"") ->  | P52: =IF(SUMIF(Timecamp!C:C,Reporte!A52,Timecamp!J:J)=0,"",SUMIF(Timecamp!C:C,Reporte!A52,Timecamp!J:J)) -> 13.6 | R52: 643.3823529 | S52: =IFERROR(VLOOKUP(A52,'SLA Trab'!E:I,5,FALSE),"") -> 0.6666666667 | T52: =IFERROR(VLOOKUP(A52,'SLA Cobr'!E:I,5,FALSE),"") -> 2.25
A53: =IFERROR(IF(Trello!E52="","",Trello!E52)," ") -> Faby - PMI Ame Sitio multilang | B53: =IF($A53="","",IF(Trello!A52="",B52,Trello!A52)) -> Terminado | C53: 2023-03-17 | D53: =IF($A53="","",SUBSTITUTE(SUBSTITUTE(Trello!J52," days",""),"⌚ ","")*1) -> 180 | E53: =IFERROR(IF($A53="","",SUBSTITUTE(SUBSTITUTE(SUBSTITUTE(INDIRECT("Trello!"&ADDRESS(ROW()-1, E$1, 4)),"Foreign: ","")," $",""),".","")*1),"") ->  | F53: =IF($E53="",IFERROR(IF($A53="","",SUBSTITUTE(SUBSTITUTE(SUBSTITUTE(INDIRECT("Trello!"&ADDRESS(ROW()-1, F$1, 4)),"MXN: ","")," MX$",""),".","")*1),""),E53*F$2) -> 13000 | G53: =IFERROR(IF($A53="","",SUBSTITUTE(SUBSTITUTE(SUBSTITUTE(INDIRECT("Trello!"&ADDRESS(ROW()-1, G$1, 4)),"Debt: ","")," $",""),".","")*1)*IF(E53="",1,F$2),"") -> 6500 | H53: =IFERROR(IF($A53="","",SUBSTITUTE(SUBSTITUTE(SUBSTITUTE(INDIRECT("Trello!"&ADDRESS(ROW()-1, H$1, 4)),"Cost: ","")," $",""),".","")*1*$F$2),"") -> 3500 | I53: 9500 | J53: =IFERROR(SUBSTITUTE(SUBSTITUTE(SUBSTITUTE(RIGHT(INDIRECT("Trello!"&ADDRESS(ROW()-1, L$1, 4)),LEN(INDIRECT("Trello!"&ADDRESS(ROW()-1, L$1, 4)))-15),". ","/")," 20","/20")," ",""),"") -> 28/Apr/2023 | K53: =IFERROR(SUBSTITUTE(SUBSTITUTE(SUBSTITUTE(RIGHT(INDIRECT("Trello!"&ADDRESS(ROW()-1, M$1, 4)),LEN(INDIRECT("Trello!"&ADDRESS(ROW()-1, M$1, 4)))-15),". ","/")," 20","/20")," ",""),"") ->  | L53: 2023-04-28 | O53: =IFERROR(SUBSTITUTE(INDIRECT("Trello!"&ADDRESS(ROW()-1, O$1, 4)),"Estimate hrs: ","")*1,"") -> 10 | P53: =IF(SUMIF(Timecamp!C:C,Reporte!A53,Timecamp!J:J)=0,"",SUMIF(Timecamp!C:C,Reporte!A53,Timecamp!J:J)) -> 10.03333333 | Q53: 0.003333333333 | R53: 1295.681063 | S53: =IFERROR(VLOOKUP(A53,'SLA Trab'!E:I,5,FALSE),"") -> 32.70833333 | T53: =IFERROR(VLOOKUP(A53,'SLA Cobr'!E:I,5,FALSE),"") -> 40
A54: =IFERROR(IF(Trello!E53="","",Trello!E53)," ") -> Viv Freelancer - Historic wordle | B54: =IF($A54="","",IF(Trello!A53="",B53,Trello!A53)) -> Terminado | C54: 2023-06-29 | D54: =IF($A54="","",SUBSTITUTE(SUBSTITUTE(Trello!J53," days",""),"⌚ ","")*1) -> 76 | E54: =IFERROR(IF($A54="","",SUBSTITUTE(SUBSTITUTE(SUBSTITUTE(INDIRECT("Trello!"&ADDRESS(ROW()-1, E$1, 4)),"Foreign: ","")," $",""),".","")*1),"") -> 250 | F54: =IF($E54="",IFERROR(IF($A54="","",SUBSTITUTE(SUBSTITUTE(SUBSTITUTE(INDIRECT("Trello!"&ADDRESS(ROW()-1, F$1, 4)),"MXN: ","")," MX$",""),".","")*1),""),E54*F$2) -> 4375 | G54: =IFERROR(IF($A54="","",SUBSTITUTE(SUBSTITUTE(SUBSTITUTE(INDIRECT("Trello!"&ADDRESS(ROW()-1, G$1, 4)),"Debt: ","")," $",""),".","")*1)*IF(E54="",1,F$2),"") -> 2187.5 | H54: =IFERROR(IF($A54="","",SUBSTITUTE(SUBSTITUTE(SUBSTITUTE(INDIRECT("Trello!"&ADDRESS(ROW()-1, H$1, 4)),"Cost: ","")," $",""),".","")*1*$F$2),"") ->  | I54: 4375 | J54: =IFERROR(SUBSTITUTE(SUBSTITUTE(SUBSTITUTE(RIGHT(INDIRECT("Trello!"&ADDRESS(ROW()-1, L$1, 4)),LEN(INDIRECT("Trello!"&ADDRESS(ROW()-1, L$1, 4)))-15),". ","/")," 20","/20")," ",""),"") ->  | K54: =IFERROR(SUBSTITUTE(SUBSTITUTE(SUBSTITUTE(RIGHT(INDIRECT("Trello!"&ADDRESS(ROW()-1, M$1, 4)),LEN(INDIRECT("Trello!"&ADDRESS(ROW()-1, M$1, 4)))-15),". ","/")," 20","/20")," ",""),"") ->  | O54: =IFERROR(SUBSTITUTE(INDIRECT("Trello!"&ADDRESS(ROW()-1, O$1, 4)),"Estimate hrs: ","")*1,"") ->  | P54: =IF(SUMIF(Timecamp!C:C,Reporte!A54,Timecamp!J:J)=0,"",SUMIF(Timecamp!C:C,Reporte!A54,Timecamp!J:J)) -> 5.116666667 | R54: 855.0488599 | S54: =IFERROR(VLOOKUP(A54,'SLA Trab'!E:I,5,FALSE),"") -> 0.04166666667 | T54: =IFERROR(VLOOKUP(A54,'SLA Cobr'!E:I,5,FALSE),"") -> 0.9583333333
A55: =IFERROR(IF(Trello!E54="","",Trello!E54)," ") -> Faby - Candywax Depilaciones | B55: =IF($A55="","",IF(Trello!A54="",B54,Trello!A54)) -> Terminado | C55: 2023-01-19 | D55: =IF($A55="","",SUBSTITUTE(SUBSTITUTE(Trello!J54," days",""),"⌚ ","")*1) -> 237 | E55: =IFERROR(IF($A55="","",SUBSTITUTE(SUBSTITUTE(SUBSTITUTE(INDIRECT("Trello!"&ADDRESS(ROW()-1, E$1, 4)),"Foreign: ","")," $",""),".","")*1),"") ->  | F55: =IF($E55="",IFERROR(IF($A55="","",SUBSTITUTE(SUBSTITUTE(SUBSTITUTE(INDIRECT("Trello!"&ADDRESS(ROW()-1, F$1, 4)),"MXN: ","")," MX$",""),".","")*1),""),E55*F$2) -> 12000 | G55: =IFERROR(IF($A55="","",SUBSTITUTE(SUBSTITUTE(SUBSTITUTE(INDIRECT("Trello!"&ADDRESS(ROW()-1, G$1, 4)),"Debt: ","")," $",""),".","")*1)*IF(E55="",1,F$2),"") -> 7000 | H55: =IFERROR(IF($A55="","",SUBSTITUTE(SUBSTITUTE(SUBSTITUTE(INDIRECT("Trello!"&ADDRESS(ROW()-1, H$1, 4)),"Cost: ","")," $",""),".","")*1*$F$2),"") ->  | I55: 12000 | J55: =IFERROR(SUBSTITUTE(SUBSTITUTE(SUBSTITUTE(RIGHT(INDIRECT("Trello!"&ADDRESS(ROW()-1, L$1, 4)),LEN(INDIRECT("Trello!"&ADDRESS(ROW()-1, L$1, 4)))-15),". ","/")," 20","/20")," ",""),"") -> 28/Feb/2023 | K55: =IFERROR(SUBSTITUTE(SUBSTITUTE(SUBSTITUTE(RIGHT(INDIRECT("Trello!"&ADDRESS(ROW()-1, M$1, 4)),LEN(INDIRECT("Trello!"&ADDRESS(ROW()-1, M$1, 4)))-15),". ","/")," 20","/20")," ",""),"") -> 8/März/2023 | L55: 2023-02-28 | M55: 2023-03-08 | N55: -8 | O55: =IFERROR(SUBSTITUTE(INDIRECT("Trello!"&ADDRESS(ROW()-1, O$1, 4)),"Estimate hrs: ","")*1,"") ->  | P55: =IF(SUMIF(Timecamp!C:C,Reporte!A55,Timecamp!J:J)=0,"",SUMIF(Timecamp!C:C,Reporte!A55,Timecamp!J:J)) -> 3.316666667 | R55: 3618.090452 | S55: =IFERROR(VLOOKUP(A55,'SLA Trab'!E:I,5,FALSE),"") ->  | T55: =IFERROR(VLOOKUP(A55,'SLA Cobr'!E:I,5,FALSE),"") -> 99.20833333
A56: =IFERROR(IF(Trello!E55="","",Trello!E55)," ") -> Mama Madhu - prestamo | B56: =IF($A56="","",IF(Trello!A55="",B55,Trello!A55)) -> Terminado | C56: 2023-04-15 | D56: =IF($A56="","",SUBSTITUTE(SUBSTITUTE(Trello!J55," days",""),"⌚ ","")*1) -> 151 | E56: =IFERROR(IF($A56="","",SUBSTITUTE(SUBSTITUTE(SUBSTITUTE(INDIRECT("Trello!"&ADDRESS(ROW()-1, E$1, 4)),"Foreign: ","")," $",""),".","")*1),"") ->  | F56: =IF($E56="",IFERROR(IF($A56="","",SUBSTITUTE(SUBSTITUTE(SUBSTITUTE(INDIRECT("Trello!"&ADDRESS(ROW()-1, F$1, 4)),"MXN: ","")," MX$",""),".","")*1),""),E56*F$2) -> 6000 | G56: =IFERROR(IF($A56="","",SUBSTITUTE(SUBSTITUTE(SUBSTITUTE(INDIRECT("Trello!"&ADDRESS(ROW()-1, G$1, 4)),"Debt: ","")," $",""),".","")*1)*IF(E56="",1,F$2),"") -> -400 | H56: =IFERROR(IF($A56="","",SUBSTITUTE(SUBSTITUTE(SUBSTITUTE(INDIRECT("Trello!"&ADDRESS(ROW()-1, H$1, 4)),"Cost: ","")," $",""),".","")*1*$F$2),"") ->  | I56: 6000 | J56: =IFERROR(SUBSTITUTE(SUBSTITUTE(SUBSTITUTE(RIGHT(INDIRECT("Trello!"&ADDRESS(ROW()-1, L$1, 4)),LEN(INDIRECT("Trello!"&ADDRESS(ROW()-1, L$1, 4)))-15),". ","/")," 20","/20")," ",""),"") ->  | K56: =IFERROR(SUBSTITUTE(SUBSTITUTE(SUBSTITUTE(RIGHT(INDIRECT("Trello!"&ADDRESS(ROW()-1, M$1, 4)),LEN(INDIRECT("Trello!"&ADDRESS(ROW()-1, M$1, 4)))-15),". ","/")," 20","/20")," ",""),"") ->  | O56: =IFERROR(SUBSTITUTE(INDIRECT("Trello!"&ADDRESS(ROW()-1, O$1, 4)),"Estimate hrs: ","")*1,"") ->  | P56: =IF(SUMIF(Timecamp!C:C,Reporte!A56,Timecamp!J:J)=0,"",SUMIF(Timecamp!C:C,Reporte!A56,Timecamp!J:J)) -> 1.016666667 | R56: 5901.639344 | S56: =IFERROR(VLOOKUP(A56,'SLA Trab'!E:I,5,FALSE),"") ->  | T56: =IFERROR(VLOOKUP(A56,'SLA Cobr'!E:I,5,FALSE),"") -> 67.08333333
A57: =IFERROR(IF(Trello!E56="","",Trello!E56)," ") -> Eduardo Freelancer - Inmobiliaria Cambios php pura | B57: =IF($A57="","",IF(Trello!A56="",B56,Trello!A56)) -> Terminado | C57: 2023-02-01 | D57: =IF($A57="","",SUBSTITUTE(SUBSTITUTE(Trello!J56," days",""),"⌚ ","")*1) -> 224 | E57: =IFERROR(IF($A57="","",SUBSTITUTE(SUBSTITUTE(SUBSTITUTE(INDIRECT("Trello!"&ADDRESS(ROW()-1, E$1, 4)),"Foreign: ","")," $",""),".","")*1),"") -> 500 | F57: =IF($E57="",IFERROR(IF($A57="","",SUBSTITUTE(SUBSTITUTE(SUBSTITUTE(INDIRECT("Trello!"&ADDRESS(ROW()-1, F$1, 4)),"MXN: ","")," MX$",""),".","")*1),""),E57*F$2) -> 8750 | G57: =IFERROR(IF($A57="","",SUBSTITUTE(SUBSTITUTE(SUBSTITUTE(INDIRECT("Trello!"&ADDRESS(ROW()-1, G$1, 4)),"Debt: ","")," $",""),".","")*1)*IF(E57="",1,F$2),"") -> 0 | H57: =IFERROR(IF($A57="","",SUBSTITUTE(SUBSTITUTE(SUBSTITUTE(INDIRECT("Trello!"&ADDRESS(ROW()-1, H$1, 4)),"Cost: ","")," $",""),".","")*1*$F$2),"") -> 3500 | I57: 5250 | J57: =IFERROR(SUBSTITUTE(SUBSTITUTE(SUBSTITUTE(RIGHT(INDIRECT("Trello!"&ADDRESS(ROW()-1, L$1, 4)),LEN(INDIRECT("Trello!"&ADDRESS(ROW()-1, L$1, 4)))-15),". ","/")," 20","/20")," ",""),"") ->  | K57: =IFERROR(SUBSTITUTE(SUBSTITUTE(SUBSTITUTE(RIGHT(INDIRECT("Trello!"&ADDRESS(ROW()-1, M$1, 4)),LEN(INDIRECT("Trello!"&ADDRESS(ROW()-1, M$1, 4)))-15),". ","/")," 20","/20")," ",""),"") ->  | O57: =IFERROR(SUBSTITUTE(INDIRECT("Trello!"&ADDRESS(ROW()-1, O$1, 4)),"Estimate hrs: ","")*1,"") ->  | P57: =IF(SUMIF(Timecamp!C:C,Reporte!A57,Timecamp!J:J)=0,"",SUMIF(Timecamp!C:C,Reporte!A57,Timecamp!J:J)) -> 7.716666667 | R57: 1133.909287 | S57: =IFERROR(VLOOKUP(A57,'SLA Trab'!E:I,5,FALSE),"") -> 16.95833333 | T57: =IFERROR(VLOOKUP(A57,'SLA Cobr'!E:I,5,FALSE),"") -> 11.25
A58: =IFERROR(IF(Trello!E57="","",Trello!E57)," ") -> Emilio pinturas arreglar su sitio | B58: =IF($A58="","",IF(Trello!A57="",B57,Trello!A57)) -> Terminado | C58: 2023-06-15 | D58: =IF($A58="","",SUBSTITUTE(SUBSTITUTE(Trello!J57," days",""),"⌚ ","")*1) -> 90 | E58: =IFERROR(IF($A58="","",SUBSTITUTE(SUBSTITUTE(SUBSTITUTE(INDIRECT("Trello!"&ADDRESS(ROW()-1, E$1, 4)),"Foreign: ","")," $",""),".","")*1),"") -> 35 | F58: =IF($E58="",IFERROR(IF($A58="","",SUBSTITUTE(SUBSTITUTE(SUBSTITUTE(INDIRECT("Trello!"&ADDRESS(ROW()-1, F$1, 4)),"MXN: ","")," MX$",""),".","")*1),""),E58*F$2) -> 612.5 | G58: =IFERROR(IF($A58="","",SUBSTITUTE(SUBSTITUTE(SUBSTITUTE(INDIRECT("Trello!"&ADDRESS(ROW()-1, G$1, 4)),"Debt: ","")," $",""),".","")*1)*IF(E58="",1,F$2),"") ->  | H58: =IFERROR(IF($A58="","",SUBSTITUTE(SUBSTITUTE(SUBSTITUTE(INDIRECT("Trello!"&ADDRESS(ROW()-1, H$1, 4)),"Cost: ","")," $",""),".","")*1*$F$2),"") ->  | I58: 612.5 | J58: =IFERROR(SUBSTITUTE(SUBSTITUTE(SUBSTITUTE(RIGHT(INDIRECT("Trello!"&ADDRESS(ROW()-1, L$1, 4)),LEN(INDIRECT("Trello!"&ADDRESS(ROW()-1, L$1, 4)))-15),". ","/")," 20","/20")," ",""),"") ->  | K58: =IFERROR(SUBSTITUTE(SUBSTITUTE(SUBSTITUTE(RIGHT(INDIRECT("Trello!"&ADDRESS(ROW()-1, M$1, 4)),LEN(INDIRECT("Trello!"&ADDRESS(ROW()-1, M$1, 4)))-15),". ","/")," 20","/20")," ",""),"") ->  | O58: =IFERROR(SUBSTITUTE(INDIRECT("Trello!"&ADDRESS(ROW()-1, O$1, 4)),"Estimate hrs: ","")*1,"") ->  | P58: =IF(SUMIF(Timecamp!C:C,Reporte!A58,Timecamp!J:J)=0,"",SUMIF(Timecamp!C:C,Reporte!A58,Timecamp!J:J)) -> 0.6333333333 | R58: 967.1052632 | S58: =IFERROR(VLOOKUP(A58,'SLA Trab'!E:I,5,FALSE),"") -> 0.04166666667 | T58: =IFERROR(VLOOKUP(A58,'SLA Cobr'!E:I,5,FALSE),"") -> 0.04166666667
A59: =IFERROR(IF(Trello!E58="","",Trello!E58)," ") -> Gary Hydracheck - Quote page makeup | B59: =IF($A59="","",IF(Trello!A58="",B58,Trello!A58)) -> Terminado | C59: 2023-05-21 | D59: =IF($A59="","",SUBSTITUTE(SUBSTITUTE(Trello!J58," days",""),"⌚ ","")*1) -> 115 | E59: =IFERROR(IF($A59="","",SUBSTITUTE(SUBSTITUTE(SUBSTITUTE(INDIRECT("Trello!"&ADDRESS(ROW()-1, E$1, 4)),"Foreign: ","")," $",""),".","")*1),"") -> 200 | F59: =IF($E59="",IFERROR(IF($A59="","",SUBSTITUTE(SUBSTITUTE(SUBSTITUTE(INDIRECT("Trello!"&ADDRESS(ROW()-1, F$1, 4)),"MXN: ","")," MX$",""),".","")*1),""),E59*F$2) -> 3500 | G59: =IFERROR(IF($A59="","",SUBSTITUTE(SUBSTITUTE(SUBSTITUTE(INDIRECT("Trello!"&ADDRESS(ROW()-1, G$1, 4)),"Debt: ","")," $",""),".","")*1)*IF(E59="",1,F$2),"") ->  | H59: =IFERROR(IF($A59="","",SUBSTITUTE(SUBSTITUTE(SUBSTITUTE(INDIRECT("Trello!"&ADDRESS(ROW()-1, H$1, 4)),"Cost: ","")," $",""),".","")*1*$F$2),"") -> 1400 | I59: 2100 | J59: =IFERROR(SUBSTITUTE(SUBSTITUTE(SUBSTITUTE(RIGHT(INDIRECT("Trello!"&ADDRESS(ROW()-1, L$1, 4)),LEN(INDIRECT("Trello!"&ADDRESS(ROW()-1, L$1, 4)))-15),". ","/")," 20","/20")," ",""),"") ->  | K59: =IFERROR(SUBSTITUTE(SUBSTITUTE(SUBSTITUTE(RIGHT(INDIRECT("Trello!"&ADDRESS(ROW()-1, M$1, 4)),LEN(INDIRECT("Trello!"&ADDRESS(ROW()-1, M$1, 4)))-15),". ","/")," 20","/20")," ",""),"") ->  | O59: =IFERROR(SUBSTITUTE(INDIRECT("Trello!"&ADDRESS(ROW()-1, O$1, 4)),"Estimate hrs: ","")*1,"") ->  | P59: =IF(SUMIF(Timecamp!C:C,Reporte!A59,Timecamp!J:J)=0,"",SUMIF(Timecamp!C:C,Reporte!A59,Timecamp!J:J)) -> 5.833333333 | R59: 600 | S59: =IFERROR(VLOOKUP(A59,'SLA Trab'!E:I,5,FALSE),"") ->  | T59: =IFERROR(VLOOKUP(A59,'SLA Cobr'!E:I,5,FALSE),"") -> 
A60: =IFERROR(IF(Trello!E59="","",Trello!E59)," ") -> Viv Freelancer - Soporte anual $200 | B60: =IF($A60="","",IF(Trello!A59="",B59,Trello!A59)) -> Terminado | C60: 2023-06-09 | D60: =IF($A60="","",SUBSTITUTE(SUBSTITUTE(Trello!J59," days",""),"⌚ ","")*1) -> 96 | E60: =IFERROR(IF($A60="","",SUBSTITUTE(SUBSTITUTE(SUBSTITUTE(INDIRECT("Trello!"&ADDRESS(ROW()-1, E$1, 4)),"Foreign: ","")," $",""),".","")*1),"") -> 230 | F60: =IF($E60="",IFERROR(IF($A60="","",SUBSTITUTE(SUBSTITUTE(SUBSTITUTE(INDIRECT("Trello!"&ADDRESS(ROW()-1, F$1, 4)),"MXN: ","")," MX$",""),".","")*1),""),E60*F$2) -> 4025 | G60: =IFERROR(IF($A60="","",SUBSTITUTE(SUBSTITUTE(SUBSTITUTE(INDIRECT("Trello!"&ADDRESS(ROW()-1, G$1, 4)),"Debt: ","")," $",""),".","")*1)*IF(E60="",1,F$2),"") ->  | H60: =IFERROR(IF($A60="","",SUBSTITUTE(SUBSTITUTE(SUBSTITUTE(INDIRECT("Trello!"&ADDRESS(ROW()-1, H$1, 4)),"Cost: ","")," $",""),".","")*1*$F$2),"") ->  | I60: 4025 | J60: =IFERROR(SUBSTITUTE(SUBSTITUTE(SUBSTITUTE(RIGHT(INDIRECT("Trello!"&ADDRESS(ROW()-1, L$1, 4)),LEN(INDIRECT("Trello!"&ADDRESS(ROW()-1, L$1, 4)))-15),". ","/")," 20","/20")," ",""),"") ->  | K60: =IFERROR(SUBSTITUTE(SUBSTITUTE(SUBSTITUTE(RIGHT(INDIRECT("Trello!"&ADDRESS(ROW()-1, M$1, 4)),LEN(INDIRECT("Trello!"&ADDRESS(ROW()-1, M$1, 4)))-15),". ","/")," 20","/20")," ",""),"") ->  | O60: =IFERROR(SUBSTITUTE(INDIRECT("Trello!"&ADDRESS(ROW()-1, O$1, 4)),"Estimate hrs: ","")*1,"") ->  | P60: =IF(SUMIF(Timecamp!C:C,Reporte!A60,Timecamp!J:J)=0,"",SUMIF(Timecamp!C:C,Reporte!A60,Timecamp!J:J)) -> 10.11666667 | R60: 397.8583196 | S60: =IFERROR(VLOOKUP(A60,'SLA Trab'!E:I,5,FALSE),"") -> 0.04166666667 | T60: =IFERROR(VLOOKUP(A60,'SLA Cobr'!E:I,5,FALSE),"") -> 0.04166666667
A61: =IFERROR(IF(Trello!E60="","",Trello!E60)," ") -> Daren freelancer - nuevo form precisemd | B61: =IF($A61="","",IF(Trello!A60="",B60,Trello!A60)) -> Terminado | C61: 2023-05-24 | D61: =IF($A61="","",SUBSTITUTE(SUBSTITUTE(Trello!J60," days",""),"⌚ ","")*1) -> 112 | E61: =IFERROR(IF($A61="","",SUBSTITUTE(SUBSTITUTE(SUBSTITUTE(INDIRECT("Trello!"&ADDRESS(ROW()-1, E$1, 4)),"Foreign: ","")," $",""),".","")*1),"") -> 250 | F61: =IF($E61="",IFERROR(IF($A61="","",SUBSTITUTE(SUBSTITUTE(SUBSTITUTE(INDIRECT("Trello!"&ADDRESS(ROW()-1, F$1, 4)),"MXN: ","")," MX$",""),".","")*1),""),E61*F$2) -> 4375 | G61: =IFERROR(IF($A61="","",SUBSTITUTE(SUBSTITUTE(SUBSTITUTE(INDIRECT("Trello!"&ADDRESS(ROW()-1, G$1, 4)),"Debt: ","")," $",""),".","")*1)*IF(E61="",1,F$2),"") ->  | H61: =IFERROR(IF($A61="","",SUBSTITUTE(SUBSTITUTE(SUBSTITUTE(INDIRECT("Trello!"&ADDRESS(ROW()-1, H$1, 4)),"Cost: ","")," $",""),".","")*1*$F$2),"") -> 525 | I61: 3850 | J61: =IFERROR(SUBSTITUTE(SUBSTITUTE(SUBSTITUTE(RIGHT(INDIRECT("Trello!"&ADDRESS(ROW()-1, L$1, 4)),LEN(INDIRECT("Trello!"&ADDRESS(ROW()-1, L$1, 4)))-15),". ","/")," 20","/20")," ",""),"") ->  | K61: =IFERROR(SUBSTITUTE(SUBSTITUTE(SUBSTITUTE(RIGHT(INDIRECT("Trello!"&ADDRESS(ROW()-1, M$1, 4)),LEN(INDIRECT("Trello!"&ADDRESS(ROW()-1, M$1, 4)))-15),". ","/")," 20","/20")," ",""),"") ->  | O61: =IFERROR(SUBSTITUTE(INDIRECT("Trello!"&ADDRESS(ROW()-1, O$1, 4)),"Estimate hrs: ","")*1,"") ->  | P61: =IF(SUMIF(Timecamp!C:C,Reporte!A61,Timecamp!J:J)=0,"",SUMIF(Timecamp!C:C,Reporte!A61,Timecamp!J:J)) -> 8.816666667 | R61: 496.2192817 | S61: =IFERROR(VLOOKUP(A61,'SLA Trab'!E:I,5,FALSE),"") -> 12.83333333 | T61: =IFERROR(VLOOKUP(A61,'SLA Cobr'!E:I,5,FALSE),"") -> 2
A62: =IFERROR(IF(Trello!E61="","",Trello!E61)," ") -> Viv Freelancer - Ecommerce Wordle | B62: =IF($A62="","",IF(Trello!A61="",B61,Trello!A61)) -> Terminado | C62: 2023-03-22 | D62: =IF($A62="","",SUBSTITUTE(SUBSTITUTE(Trello!J61," days",""),"⌚ ","")*1) -> 175 | E62: =IFERROR(IF($A62="","",SUBSTITUTE(SUBSTITUTE(SUBSTITUTE(INDIRECT("Trello!"&ADDRESS(ROW()-1, E$1, 4)),"Foreign: ","")," $",""),".","")*1),"") -> 885 | F62: =IF($E62="",IFERROR(IF($A62="","",SUBSTITUTE(SUBSTITUTE(SUBSTITUTE(INDIRECT("Trello!"&ADDRESS(ROW()-1, F$1, 4)),"MXN: ","")," MX$",""),".","")*1),""),E62*F$2) -> 15487.5 | G62: =IFERROR(IF($A62="","",SUBSTITUTE(SUBSTITUTE(SUBSTITUTE(INDIRECT("Trello!"&ADDRESS(ROW()-1, G$1, 4)),"Debt: ","")," $",""),".","")*1)*IF(E62="",1,F$2),"") -> 0 | H62: =IFERROR(IF($A62="","",SUBSTITUTE(SUBSTITUTE(SUBSTITUTE(INDIRECT("Trello!"&ADDRESS(ROW()-1, H$1, 4)),"Cost: ","")," $",""),".","")*1*$F$2),"") ->  | I62: 15487.5 | J62: =IFERROR(SUBSTITUTE(SUBSTITUTE(SUBSTITUTE(RIGHT(INDIRECT("Trello!"&ADDRESS(ROW()-1, L$1, 4)),LEN(INDIRECT("Trello!"&ADDRESS(ROW()-1, L$1, 4)))-15),". ","/")," 20","/20")," ",""),"") -> 12/Apr/2023 | K62: =IFERROR(SUBSTITUTE(SUBSTITUTE(SUBSTITUTE(RIGHT(INDIRECT("Trello!"&ADDRESS(ROW()-1, M$1, 4)),LEN(INDIRECT("Trello!"&ADDRESS(ROW()-1, M$1, 4)))-15),". ","/")," 20","/20")," ",""),"") ->  | L62: 2023-04-12 | O62: =IFERROR(SUBSTITUTE(INDIRECT("Trello!"&ADDRESS(ROW()-1, O$1, 4)),"Estimate hrs: ","")*1,"") -> 20 | P62: =IF(SUMIF(Timecamp!C:C,Reporte!A62,Timecamp!J:J)=0,"",SUMIF(Timecamp!C:C,Reporte!A62,Timecamp!J:J)) -> 21.01666667 | Q62: 0.05083333333 | R62: 736.9151467 | S62: =IFERROR(VLOOKUP(A62,'SLA Trab'!E:I,5,FALSE),"") -> 21.79166667 | T62: =IFERROR(VLOOKUP(A62,'SLA Cobr'!E:I,5,FALSE),"") -> 47.5
A63: =IFERROR(IF(Trello!E62="","",Trello!E62)," ") -> Miguel Bullkens - B2B Nuevo Exchange | B63: =IF($A63="","",IF(Trello!A62="",B62,Trello!A62)) -> Terminado | C63: 2023-01-17 | D63: =IF($A63="","",SUBSTITUTE(SUBSTITUTE(Trello!J62," days",""),"⌚ ","")*1) -> 239 | E63: =IFERROR(IF($A63="","",SUBSTITUTE(SUBSTITUTE(SUBSTITUTE(INDIRECT("Trello!"&ADDRESS(ROW()-1, E$1, 4)),"Foreign: ","")," $",""),".","")*1),"") -> 650 | F63: =IF($E63="",IFERROR(IF($A63="","",SUBSTITUTE(SUBSTITUTE(SUBSTITUTE(INDIRECT("Trello!"&ADDRESS(ROW()-1, F$1, 4)),"MXN: ","")," MX$",""),".","")*1),""),E63*F$2) -> 11375 | G63: =IFERROR(IF($A63="","",SUBSTITUTE(SUBSTITUTE(SUBSTITUTE(INDIRECT("Trello!"&ADDRESS(ROW()-1, G$1, 4)),"Debt: ","")," $",""),".","")*1)*IF(E63="",1,F$2),"") -> 6125 | H63: =IFERROR(IF($A63="","",SUBSTITUTE(SUBSTITUTE(SUBSTITUTE(INDIRECT("Trello!"&ADDRESS(ROW()-1, H$1, 4)),"Cost: ","")," $",""),".","")*1*$F$2),"") ->  | I63: 11375 | J63: =IFERROR(SUBSTITUTE(SUBSTITUTE(SUBSTITUTE(RIGHT(INDIRECT("Trello!"&ADDRESS(ROW()-1, L$1, 4)),LEN(INDIRECT("Trello!"&ADDRESS(ROW()-1, L$1, 4)))-15),". ","/")," 20","/20")," ",""),"") -> 17/Feb/2023 | K63: =IFERROR(SUBSTITUTE(SUBSTITUTE(SUBSTITUTE(RIGHT(INDIRECT("Trello!"&ADDRESS(ROW()-1, M$1, 4)),LEN(INDIRECT("Trello!"&ADDRESS(ROW()-1, M$1, 4)))-15),". ","/")," 20","/20")," ",""),"") ->  | L63: 2023-02-17 | O63: =IFERROR(SUBSTITUTE(INDIRECT("Trello!"&ADDRESS(ROW()-1, O$1, 4)),"Estimate hrs: ","")*1,"") -> 5 | P63: =IF(SUMIF(Timecamp!C:C,Reporte!A63,Timecamp!J:J)=0,"",SUMIF(Timecamp!C:C,Reporte!A63,Timecamp!J:J)) -> 2.8 | Q63: -0.44 | R63: 4062.5 | S63: =IFERROR(VLOOKUP(A63,'SLA Trab'!E:I,5,FALSE),"") -> 0.08333333333 | T63: =IFERROR(VLOOKUP(A63,'SLA Cobr'!E:I,5,FALSE),"") -> 68.41666667
A64: =IFERROR(IF(Trello!E63="","",Trello!E63)," ") -> Yamel - renovación Konditorhusset 2023 | B64: =IF($A64="","",IF(Trello!A63="",B63,Trello!A63)) -> Terminado | C64: 2023-05-26 | D64: =IF($A64="","",SUBSTITUTE(SUBSTITUTE(Trello!J63," days",""),"⌚ ","")*1) -> 110 | E64: =IFERROR(IF($A64="","",SUBSTITUTE(SUBSTITUTE(SUBSTITUTE(INDIRECT("Trello!"&ADDRESS(ROW()-1, E$1, 4)),"Foreign: ","")," $",""),".","")*1),"") ->  | F64: =IF($E64="",IFERROR(IF($A64="","",SUBSTITUTE(SUBSTITUTE(SUBSTITUTE(INDIRECT("Trello!"&ADDRESS(ROW()-1, F$1, 4)),"MXN: ","")," MX$",""),".","")*1),""),E64*F$2) -> 2000 | G64: =IFERROR(IF($A64="","",SUBSTITUTE(SUBSTITUTE(SUBSTITUTE(INDIRECT("Trello!"&ADDRESS(ROW()-1, G$1, 4)),"Debt: ","")," $",""),".","")*1)*IF(E64="",1,F$2),"") ->  | H64: =IFERROR(IF($A64="","",SUBSTITUTE(SUBSTITUTE(SUBSTITUTE(INDIRECT("Trello!"&ADDRESS(ROW()-1, H$1, 4)),"Cost: ","")," $",""),".","")*1*$F$2),"") ->  | I64: 2000 | J64: =IFERROR(SUBSTITUTE(SUBSTITUTE(SUBSTITUTE(RIGHT(INDIRECT("Trello!"&ADDRESS(ROW()-1, L$1, 4)),LEN(INDIRECT("Trello!"&ADDRESS(ROW()-1, L$1, 4)))-15),". ","/")," 20","/20")," ",""),"") ->  | K64: =IFERROR(SUBSTITUTE(SUBSTITUTE(SUBSTITUTE(RIGHT(INDIRECT("Trello!"&ADDRESS(ROW()-1, M$1, 4)),LEN(INDIRECT("Trello!"&ADDRESS(ROW()-1, M$1, 4)))-15),". ","/")," 20","/20")," ",""),"") ->  | O64: =IFERROR(SUBSTITUTE(INDIRECT("Trello!"&ADDRESS(ROW()-1, O$1, 4)),"Estimate hrs: ","")*1,"") ->  | P64: =IF(SUMIF(Timecamp!C:C,Reporte!A64,Timecamp!J:J)=0,"",SUMIF(Timecamp!C:C,Reporte!A64,Timecamp!J:J)) ->  | S64: =IFERROR(VLOOKUP(A64,'SLA Trab'!E:I,5,FALSE),"") -> 0 | T64: =IFERROR(VLOOKUP(A64,'SLA Cobr'!E:I,5,FALSE),"") -> 0.4583333333
A65: =IFERROR(IF(Trello!E64="","",Trello!E64)," ") -> Viv Freelancer - hosting migration | B65: =IF($A65="","",IF(Trello!A64="",B64,Trello!A64)) -> Terminado | C65: 2023-05-21 | D65: =IF($A65="","",SUBSTITUTE(SUBSTITUTE(Trello!J64," days",""),"⌚ ","")*1) -> 115 | E65: =IFERROR(IF($A65="","",SUBSTITUTE(SUBSTITUTE(SUBSTITUTE(INDIRECT("Trello!"&ADDRESS(ROW()-1, E$1, 4)),"Foreign: ","")," $",""),".","")*1),"") -> 400 | F65: =IF($E65="",IFERROR(IF($A65="","",SUBSTITUTE(SUBSTITUTE(SUBSTITUTE(INDIRECT("Trello!"&ADDRESS(ROW()-1, F$1, 4)),"MXN: ","")," MX$",""),".","")*1),""),E65*F$2) -> 7000 | G65: =IFERROR(IF($A65="","",SUBSTITUTE(SUBSTITUTE(SUBSTITUTE(INDIRECT("Trello!"&ADDRESS(ROW()-1, G$1, 4)),"Debt: ","")," $",""),".","")*1)*IF(E65="",1,F$2),"") ->  | H65: =IFERROR(IF($A65="","",SUBSTITUTE(SUBSTITUTE(SUBSTITUTE(INDIRECT("Trello!"&ADDRESS(ROW()-1, H$1, 4)),"Cost: ","")," $",""),".","")*1*$F$2),"") ->  | I65: 7000 | J65: =IFERROR(SUBSTITUTE(SUBSTITUTE(SUBSTITUTE(RIGHT(INDIRECT("Trello!"&ADDRESS(ROW()-1, L$1, 4)),LEN(INDIRECT("Trello!"&ADDRESS(ROW()-1, L$1, 4)))-15),". ","/")," 20","/20")," ",""),"") ->  | K65: =IFERROR(SUBSTITUTE(SUBSTITUTE(SUBSTITUTE(RIGHT(INDIRECT("Trello!"&ADDRESS(ROW()-1, M$1, 4)),LEN(INDIRECT("Trello!"&ADDRESS(ROW()-1, M$1, 4)))-15),". ","/")," 20","/20")," ",""),"") ->  | O65: =IFERROR(SUBSTITUTE(INDIRECT("Trello!"&ADDRESS(ROW()-1, O$1, 4)),"Estimate hrs: ","")*1,"") -> 3 | P65: =IF(SUMIF(Timecamp!C:C,Reporte!A65,Timecamp!J:J)=0,"",SUMIF(Timecamp!C:C,Reporte!A65,Timecamp!J:J)) -> 6.283333333 | Q65: 1.094444444 | R65: 1114.058355 | S65: =IFERROR(VLOOKUP(A65,'SLA Trab'!E:I,5,FALSE),"") -> 3.625 | T65: =IFERROR(VLOOKUP(A65,'SLA Cobr'!E:I,5,FALSE),"") -> 0.1666666667
A66: =IFERROR(IF(Trello!E65="","",Trello!E65)," ") -> Xavier Bobby - Itel plugins desactivar | B66: =IF($A66="","",IF(Trello!A65="",B65,Trello!A65)) -> Terminado | C66: 2023-04-14 | D66: =IF($A66="","",SUBSTITUTE(SUBSTITUTE(Trello!J65," days",""),"⌚ ","")*1) -> 152 | E66: =IFERROR(IF($A66="","",SUBSTITUTE(SUBSTITUTE(SUBSTITUTE(INDIRECT("Trello!"&ADDRESS(ROW()-1, E$1, 4)),"Foreign: ","")," $",""),".","")*1),"") -> 35 | F66: =IF($E66="",IFERROR(IF($A66="","",SUBSTITUTE(SUBSTITUTE(SUBSTITUTE(INDIRECT("Trello!"&ADDRESS(ROW()-1, F$1, 4)),"MXN: ","")," MX$",""),".","")*1),""),E66*F$2) -> 612.5 | G66: =IFERROR(IF($A66="","",SUBSTITUTE(SUBSTITUTE(SUBSTITUTE(INDIRECT("Trello!"&ADDRESS(ROW()-1, G$1, 4)),"Debt: ","")," $",""),".","")*1)*IF(E66="",1,F$2),"") -> 612.5 | H66: =IFERROR(IF($A66="","",SUBSTITUTE(SUBSTITUTE(SUBSTITUTE(INDIRECT("Trello!"&ADDRESS(ROW()-1, H$1, 4)),"Cost: ","")," $",""),".","")*1*$F$2),"") ->  | I66: 612.5 | J66: =IFERROR(SUBSTITUTE(SUBSTITUTE(SUBSTITUTE(RIGHT(INDIRECT("Trello!"&ADDRESS(ROW()-1, L$1, 4)),LEN(INDIRECT("Trello!"&ADDRESS(ROW()-1, L$1, 4)))-15),". ","/")," 20","/20")," ",""),"") ->  | K66: =IFERROR(SUBSTITUTE(SUBSTITUTE(SUBSTITUTE(RIGHT(INDIRECT("Trello!"&ADDRESS(ROW()-1, M$1, 4)),LEN(INDIRECT("Trello!"&ADDRESS(ROW()-1, M$1, 4)))-15),". ","/")," 20","/20")," ",""),"") ->  | O66: =IFERROR(SUBSTITUTE(INDIRECT("Trello!"&ADDRESS(ROW()-1, O$1, 4)),"Estimate hrs: ","")*1,"") ->  | P66: =IF(SUMIF(Timecamp!C:C,Reporte!A66,Timecamp!J:J)=0,"",SUMIF(Timecamp!C:C,Reporte!A66,Timecamp!J:J)) -> 2.4 | R66: 255.2083333 | S66: =IFERROR(VLOOKUP(A66,'SLA Trab'!E:I,5,FALSE),"") ->  | T66: =IFERROR(VLOOKUP(A66,'SLA Cobr'!E:I,5,FALSE),"") -> 40.75
A67: =IFERROR(IF(Trello!E66="","",Trello!E66)," ") -> Pablo Nanofactura - Soporte errores | B67: =IF($A67="","",IF(Trello!A66="",B66,Trello!A66)) -> Terminado | C67: 2023-05-11 | D67: =IF($A67="","",SUBSTITUTE(SUBSTITUTE(Trello!J66," days",""),"⌚ ","")*1) -> 125 | E67: =IFERROR(IF($A67="","",SUBSTITUTE(SUBSTITUTE(SUBSTITUTE(INDIRECT("Trello!"&ADDRESS(ROW()-1, E$1, 4)),"Foreign: ","")," $",""),".","")*1),"") ->  | F67: =IF($E67="",IFERROR(IF($A67="","",SUBSTITUTE(SUBSTITUTE(SUBSTITUTE(INDIRECT("Trello!"&ADDRESS(ROW()-1, F$1, 4)),"MXN: ","")," MX$",""),".","")*1),""),E67*F$2) -> 2100 | G67: =IFERROR(IF($A67="","",SUBSTITUTE(SUBSTITUTE(SUBSTITUTE(INDIRECT("Trello!"&ADDRESS(ROW()-1, G$1, 4)),"Debt: ","")," $",""),".","")*1)*IF(E67="",1,F$2),"") -> 2100 | H67: =IFERROR(IF($A67="","",SUBSTITUTE(SUBSTITUTE(SUBSTITUTE(INDIRECT("Trello!"&ADDRESS(ROW()-1, H$1, 4)),"Cost: ","")," $",""),".","")*1*$F$2),"") ->  | I67: 2100 | J67: =IFERROR(SUBSTITUTE(SUBSTITUTE(SUBSTITUTE(RIGHT(INDIRECT("Trello!"&ADDRESS(ROW()-1, L$1, 4)),LEN(INDIRECT("Trello!"&ADDRESS(ROW()-1, L$1, 4)))-15),". ","/")," 20","/20")," ",""),"") ->  | K67: =IFERROR(SUBSTITUTE(SUBSTITUTE(SUBSTITUTE(RIGHT(INDIRECT("Trello!"&ADDRESS(ROW()-1, M$1, 4)),LEN(INDIRECT("Trello!"&ADDRESS(ROW()-1, M$1, 4)))-15),". ","/")," 20","/20")," ",""),"") ->  | O67: =IFERROR(SUBSTITUTE(INDIRECT("Trello!"&ADDRESS(ROW()-1, O$1, 4)),"Estimate hrs: ","")*1,"") -> 3 | P67: =IF(SUMIF(Timecamp!C:C,Reporte!A67,Timecamp!J:J)=0,"",SUMIF(Timecamp!C:C,Reporte!A67,Timecamp!J:J)) -> 5.383333333 | Q67: =IF(AND(O67>0,P67>0,O67<>"",P67<>""),(P67/O67)-1,"") -> 0.7944444444 | R67: =IF(OR(P67="",F67=""),"",F67/P67) -> 390.0928793 | S67: =IFERROR(VLOOKUP(A67,'SLA Trab'!E:I,5,FALSE),"") -> 0.7916666667 | T67: =IFERROR(VLOOKUP(A67,'SLA Cobr'!E:I,5,FALSE),"") -> 13.125
A68: =IFERROR(IF(Trello!E67="","",Trello!E67)," ") -> Diana Inlat - Rehacer Ingeurbe | B68: =IF($A68="","",IF(Trello!A67="",B67,Trello!A67)) -> Terminado | C68: =IF($A68="","",TODAY()-D68) -> 2023-03-01 | D68: =IF($A68="","",SUBSTITUTE(SUBSTITUTE(Trello!J67," days",""),"⌚ ","")*1) -> 196 | E68: =IFERROR(IF($A68="","",SUBSTITUTE(SUBSTITUTE(SUBSTITUTE(INDIRECT("Trello!"&ADDRESS(ROW()-1, E$1, 4)),"Foreign: ","")," $",""),".","")*1),"") -> 1000 | F68: =IF($E68="",IFERROR(IF($A68="","",SUBSTITUTE(SUBSTITUTE(SUBSTITUTE(INDIRECT("Trello!"&ADDRESS(ROW()-1, F$1, 4)),"MXN: ","")," MX$",""),".","")*1),""),E68*F$2) -> 17500 | G68: =IFERROR(IF($A68="","",SUBSTITUTE(SUBSTITUTE(SUBSTITUTE(INDIRECT("Trello!"&ADDRESS(ROW()-1, G$1, 4)),"Debt: ","")," $",""),".","")*1)*IF(E68="",1,F$2),"") -> 11375 | H68: =IFERROR(IF($A68="","",SUBSTITUTE(SUBSTITUTE(SUBSTITUTE(INDIRECT("Trello!"&ADDRESS(ROW()-1, H$1, 4)),"Cost: ","")," $",""),".","")*1*$F$2),"") -> 4375 | I68: 13125 | J68: =IFERROR(SUBSTITUTE(SUBSTITUTE(SUBSTITUTE(RIGHT(INDIRECT("Trello!"&ADDRESS(ROW()-1, L$1, 4)),LEN(INDIRECT("Trello!"&ADDRESS(ROW()-1, L$1, 4)))-15),". ","/")," 20","/20")," ",""),"") -> 21/Apr/2023 | K68: =IFERROR(SUBSTITUTE(SUBSTITUTE(SUBSTITUTE(RIGHT(INDIRECT("Trello!"&ADDRESS(ROW()-1, M$1, 4)),LEN(INDIRECT("Trello!"&ADDRESS(ROW()-1, M$1, 4)))-15),". ","/")," 20","/20")," ",""),"") ->  | L68: 2023-04-21 | O68: =IFERROR(SUBSTITUTE(INDIRECT("Trello!"&ADDRESS(ROW()-1, O$1, 4)),"Estimate hrs: ","")*1,"") -> 15 | P68: =IF(SUMIF(Timecamp!C:C,Reporte!A68,Timecamp!J:J)=0,"",SUMIF(Timecamp!C:C,Reporte!A68,Timecamp!J:J)) -> 55.63333333 | Q68: 2.708888889 | R68: 314.5596165 | S68: =IFERROR(VLOOKUP(A68,'SLA Trab'!E:I,5,FALSE),"") -> 51.91666667 | T68: =IFERROR(VLOOKUP(A68,'SLA Cobr'!E:I,5,FALSE),"") -> 0
A69: =IFERROR(IF(Trello!E68="","",Trello!E68)," ") -> Pablo Nanofactura - Con IVA o sin IVA premium function global | B69: =IF($A69="","",IF(Trello!A68="",B68,Trello!A68)) -> Terminado | C69: 2023-04-21 | D69: =IF($A69="","",SUBSTITUTE(SUBSTITUTE(Trello!J68," days",""),"⌚ ","")*1) -> 145 | E69: =IFERROR(IF($A69="","",SUBSTITUTE(SUBSTITUTE(SUBSTITUTE(INDIRECT("Trello!"&ADDRESS(ROW()-1, E$1, 4)),"Foreign: ","")," $",""),".","")*1),"") ->  | F69: =IF($E69="",IFERROR(IF($A69="","",SUBSTITUTE(SUBSTITUTE(SUBSTITUTE(INDIRECT("Trello!"&ADDRESS(ROW()-1, F$1, 4)),"MXN: ","")," MX$",""),".","")*1),""),E69*F$2) ->  | G69: =IFERROR(IF($A69="","",SUBSTITUTE(SUBSTITUTE(SUBSTITUTE(INDIRECT("Trello!"&ADDRESS(ROW()-1, G$1, 4)),"Debt: ","")," $",""),".","")*1)*IF(E69="",1,F$2),"") ->  | H69: =IFERROR(IF($A69="","",SUBSTITUTE(SUBSTITUTE(SUBSTITUTE(INDIRECT("Trello!"&ADDRESS(ROW()-1, H$1, 4)),"Cost: ","")," $",""),".","")*1*$F$2),"") ->  | I69: =IF(OR(F69="",H69=""),F69,F69-H69) ->  | J69: =IFERROR(SUBSTITUTE(SUBSTITUTE(SUBSTITUTE(RIGHT(INDIRECT("Trello!"&ADDRESS(ROW()-1, L$1, 4)),LEN(INDIRECT("Trello!"&ADDRESS(ROW()-1, L$1, 4)))-15),". ","/")," 20","/20")," ",""),"") ->  | K69: =IFERROR(SUBSTITUTE(SUBSTITUTE(SUBSTITUTE(RIGHT(INDIRECT("Trello!"&ADDRESS(ROW()-1, M$1, 4)),LEN(INDIRECT("Trello!"&ADDRESS(ROW()-1, M$1, 4)))-15),". ","/")," 20","/20")," ",""),"") ->  | O69: =IFERROR(SUBSTITUTE(INDIRECT("Trello!"&ADDRESS(ROW()-1, O$1, 4)),"Estimate hrs: ","")*1,"") ->  | P69: =IF(SUMIF(Timecamp!C:C,Reporte!A69,Timecamp!J:J)=0,"",SUMIF(Timecamp!C:C,Reporte!A69,Timecamp!J:J)) -> 4.316666667 | S69: =IFERROR(VLOOKUP(A69,'SLA Trab'!E:I,5,FALSE),"") -> 3.333333333 | T69: =IFERROR(VLOOKUP(A69,'SLA Cobr'!E:I,5,FALSE),"") -> 0.7916666667
A70: =IFERROR(IF(Trello!E69="","",Trello!E69)," ") -> Rodrigo Techservices - WP Run4u | B70: =IF($A70="","",IF(Trello!A69="",B69,Trello!A69)) -> Terminado | C70: 2023-03-31 | D70: =IF($A70="","",SUBSTITUTE(SUBSTITUTE(Trello!J69," days",""),"⌚ ","")*1) -> 166 | E70: =IFERROR(IF($A70="","",SUBSTITUTE(SUBSTITUTE(SUBSTITUTE(INDIRECT("Trello!"&ADDRESS(ROW()-1, E$1, 4)),"Foreign: ","")," $",""),".","")*1),"") ->  | F70: =IF($E70="",IFERROR(IF($A70="","",SUBSTITUTE(SUBSTITUTE(SUBSTITUTE(INDIRECT("Trello!"&ADDRESS(ROW()-1, F$1, 4)),"MXN: ","")," MX$",""),".","")*1),""),E70*F$2) -> 350 | G70: =IFERROR(IF($A70="","",SUBSTITUTE(SUBSTITUTE(SUBSTITUTE(INDIRECT("Trello!"&ADDRESS(ROW()-1, G$1, 4)),"Debt: ","")," $",""),".","")*1)*IF(E70="",1,F$2),"") ->  | H70: =IFERROR(IF($A70="","",SUBSTITUTE(SUBSTITUTE(SUBSTITUTE(INDIRECT("Trello!"&ADDRESS(ROW()-1, H$1, 4)),"Cost: ","")," $",""),".","")*1*$F$2),"") ->  | I70: 350 | J70: =IFERROR(SUBSTITUTE(SUBSTITUTE(SUBSTITUTE(RIGHT(INDIRECT("Trello!"&ADDRESS(ROW()-1, L$1, 4)),LEN(INDIRECT("Trello!"&ADDRESS(ROW()-1, L$1, 4)))-15),". ","/")," 20","/20")," ",""),"") ->  | K70: =IFERROR(SUBSTITUTE(SUBSTITUTE(SUBSTITUTE(RIGHT(INDIRECT("Trello!"&ADDRESS(ROW()-1, M$1, 4)),LEN(INDIRECT("Trello!"&ADDRESS(ROW()-1, M$1, 4)))-15),". ","/")," 20","/20")," ",""),"") ->  | O70: =IFERROR(SUBSTITUTE(INDIRECT("Trello!"&ADDRESS(ROW()-1, O$1, 4)),"Estimate hrs: ","")*1,"") ->  | P70: =IF(SUMIF(Timecamp!C:C,Reporte!A70,Timecamp!J:J)=0,"",SUMIF(Timecamp!C:C,Reporte!A70,Timecamp!J:J)) -> 0.35 | R70: 1000 | S70: =IFERROR(VLOOKUP(A70,'SLA Trab'!E:I,5,FALSE),"") -> 0.04166666667 | T70: =IFERROR(VLOOKUP(A70,'SLA Cobr'!E:I,5,FALSE),"") -> 32.79166667
A71: =IFERROR(IF(Trello!E70="","",Trello!E70)," ") -> Gary Hydracheck New Checkout quitar maquillaje viejo | B71: =IF($A71="","",IF(Trello!A70="",B70,Trello!A70)) -> Terminado | C71: =IF($A71="","",TODAY()-D71) -> 2023-04-26 | D71: =IF($A71="","",SUBSTITUTE(SUBSTITUTE(Trello!J70," days",""),"⌚ ","")*1) -> 140 | E71: =IFERROR(IF($A71="","",SUBSTITUTE(SUBSTITUTE(SUBSTITUTE(INDIRECT("Trello!"&ADDRESS(ROW()-1, E$1, 4)),"Foreign: ","")," $",""),".","")*1),"") -> 200 | F71: =IF($E71="",IFERROR(IF($A71="","",SUBSTITUTE(SUBSTITUTE(SUBSTITUTE(INDIRECT("Trello!"&ADDRESS(ROW()-1, F$1, 4)),"MXN: ","")," MX$",""),".","")*1),""),E71*F$2) -> 3500 | G71: =IFERROR(IF($A71="","",SUBSTITUTE(SUBSTITUTE(SUBSTITUTE(INDIRECT("Trello!"&ADDRESS(ROW()-1, G$1, 4)),"Debt: ","")," $",""),".","")*1)*IF(E71="",1,F$2),"") -> 0 | H71: =IFERROR(IF($A71="","",SUBSTITUTE(SUBSTITUTE(SUBSTITUTE(INDIRECT("Trello!"&ADDRESS(ROW()-1, H$1, 4)),"Cost: ","")," $",""),".","")*1*$F$2),"") ->  | I71: 3500 | J71: =IFERROR(SUBSTITUTE(SUBSTITUTE(SUBSTITUTE(RIGHT(INDIRECT("Trello!"&ADDRESS(ROW()-1, L$1, 4)),LEN(INDIRECT("Trello!"&ADDRESS(ROW()-1, L$1, 4)))-15),". ","/")," 20","/20")," ",""),"") -> 5/Mai/2023 | K71: =IFERROR(SUBSTITUTE(SUBSTITUTE(SUBSTITUTE(RIGHT(INDIRECT("Trello!"&ADDRESS(ROW()-1, M$1, 4)),LEN(INDIRECT("Trello!"&ADDRESS(ROW()-1, M$1, 4)))-15),". ","/")," 20","/20")," ",""),"") -> 3/Mai/2023 | L71: 2023-05-05 | M71: 2023-05-03 | N71: 2 | O71: =IFERROR(SUBSTITUTE(INDIRECT("Trello!"&ADDRESS(ROW()-1, O$1, 4)),"Estimate hrs: ","")*1,"") ->  | P71: =IF(SUMIF(Timecamp!C:C,Reporte!A71,Timecamp!J:J)=0,"",SUMIF(Timecamp!C:C,Reporte!A71,Timecamp!J:J)) -> 8.633333333 | R71: 405.4054054 | S71: =IFERROR(VLOOKUP(A71,'SLA Trab'!E:I,5,FALSE),"") -> 27.79166667 | T71: =IFERROR(VLOOKUP(A71,'SLA Cobr'!E:I,5,FALSE),"") -> 
A72: =IFERROR(IF(Trello!E71="","",Trello!E71)," ") -> Gustavo Freelancer - Cambios pag ITESM | B72: =IF($A72="","",IF(Trello!A71="",B71,Trello!A71)) -> Terminado | C72: 2023-01-18 | D72: =IF($A72="","",SUBSTITUTE(SUBSTITUTE(Trello!J71," days",""),"⌚ ","")*1) -> 238 | E72: =IFERROR(IF($A72="","",SUBSTITUTE(SUBSTITUTE(SUBSTITUTE(INDIRECT("Trello!"&ADDRESS(ROW()-1, E$1, 4)),"Foreign: ","")," $",""),".","")*1),"") ->  | F72: =IF($E72="",IFERROR(IF($A72="","",SUBSTITUTE(SUBSTITUTE(SUBSTITUTE(INDIRECT("Trello!"&ADDRESS(ROW()-1, F$1, 4)),"MXN: ","")," MX$",""),".","")*1),""),E72*F$2) -> 2750 | G72: =IFERROR(IF($A72="","",SUBSTITUTE(SUBSTITUTE(SUBSTITUTE(INDIRECT("Trello!"&ADDRESS(ROW()-1, G$1, 4)),"Debt: ","")," $",""),".","")*1)*IF(E72="",1,F$2),"") -> 1125 | H72: =IFERROR(IF($A72="","",SUBSTITUTE(SUBSTITUTE(SUBSTITUTE(INDIRECT("Trello!"&ADDRESS(ROW()-1, H$1, 4)),"Cost: ","")," $",""),".","")*1*$F$2),"") ->  | I72: 2750 | J72: =IFERROR(SUBSTITUTE(SUBSTITUTE(SUBSTITUTE(RIGHT(INDIRECT("Trello!"&ADDRESS(ROW()-1, L$1, 4)),LEN(INDIRECT("Trello!"&ADDRESS(ROW()-1, L$1, 4)))-15),". ","/")," 20","/20")," ",""),"") -> 24/Jan/2023 | K72: =IFERROR(SUBSTITUTE(SUBSTITUTE(SUBSTITUTE(RIGHT(INDIRECT("Trello!"&ADDRESS(ROW()-1, M$1, 4)),LEN(INDIRECT("Trello!"&ADDRESS(ROW()-1, M$1, 4)))-15),". ","/")," 20","/20")," ",""),"") -> 26/Jan/2023 | L72: 2023-01-24 | M72: 2023-01-26 | N72: -2 | O72: =IFERROR(SUBSTITUTE(INDIRECT("Trello!"&ADDRESS(ROW()-1, O$1, 4)),"Estimate hrs: ","")*1,"") ->  | P72: =IF(SUMIF(Timecamp!C:C,Reporte!A72,Timecamp!J:J)=0,"",SUMIF(Timecamp!C:C,Reporte!A72,Timecamp!J:J)) -> 2.416666667 | R72: 1137.931034 | S72: =IFERROR(VLOOKUP(A72,'SLA Trab'!E:I,5,FALSE),"") ->  | T72: =IFERROR(VLOOKUP(A72,'SLA Cobr'!E:I,5,FALSE),"") -> 75.75
A73: =IFERROR(IF(Trello!E72="","",Trello!E72)," ") -> Pablo Nanofactura - Nuevo Diseño y nueva API | B73: =IF($A73="","",IF(Trello!A72="",B72,Trello!A72)) -> Terminado | C73: 2023-02-13 | D73: =IF($A73="","",SUBSTITUTE(SUBSTITUTE(Trello!J72," days",""),"⌚ ","")*1) -> 212 | E73: =IFERROR(IF($A73="","",SUBSTITUTE(SUBSTITUTE(SUBSTITUTE(INDIRECT("Trello!"&ADDRESS(ROW()-1, E$1, 4)),"Foreign: ","")," $",""),".","")*1),"") ->  | F73: =IF($E73="",IFERROR(IF($A73="","",SUBSTITUTE(SUBSTITUTE(SUBSTITUTE(INDIRECT("Trello!"&ADDRESS(ROW()-1, F$1, 4)),"MXN: ","")," MX$",""),".","")*1),""),E73*F$2) -> 11000 | G73: =IFERROR(IF($A73="","",SUBSTITUTE(SUBSTITUTE(SUBSTITUTE(INDIRECT("Trello!"&ADDRESS(ROW()-1, G$1, 4)),"Debt: ","")," $",""),".","")*1)*IF(E73="",1,F$2),"") -> 3300 | H73: =IFERROR(IF($A73="","",SUBSTITUTE(SUBSTITUTE(SUBSTITUTE(INDIRECT("Trello!"&ADDRESS(ROW()-1, H$1, 4)),"Cost: ","")," $",""),".","")*1*$F$2),"") ->  | I73: 11000 | J73: =IFERROR(SUBSTITUTE(SUBSTITUTE(SUBSTITUTE(RIGHT(INDIRECT("Trello!"&ADDRESS(ROW()-1, L$1, 4)),LEN(INDIRECT("Trello!"&ADDRESS(ROW()-1, L$1, 4)))-15),". ","/")," 20","/20")," ",""),"") -> 24/Feb/2023 | K73: =IFERROR(SUBSTITUTE(SUBSTITUTE(SUBSTITUTE(RIGHT(INDIRECT("Trello!"&ADDRESS(ROW()-1, M$1, 4)),LEN(INDIRECT("Trello!"&ADDRESS(ROW()-1, M$1, 4)))-15),". ","/")," 20","/20")," ",""),"") -> 4/Apr/2023 | L73: 2023-02-24 | M73: 2023-04-04 | N73: -39 | O73: =IFERROR(SUBSTITUTE(INDIRECT("Trello!"&ADDRESS(ROW()-1, O$1, 4)),"Estimate hrs: ","")*1,"") -> 25 | P73: =IF(SUMIF(Timecamp!C:C,Reporte!A73,Timecamp!J:J)=0,"",SUMIF(Timecamp!C:C,Reporte!A73,Timecamp!J:J)) -> 0.05 | Q73: -0.998 | R73: 220000 | S73: =IFERROR(VLOOKUP(A73,'SLA Trab'!E:I,5,FALSE),"") -> 0.04166666667 | T73: =IFERROR(VLOOKUP(A73,'SLA Cobr'!E:I,5,FALSE),"") -> 19.70833333
A74: =IFERROR(IF(Trello!E73="","",Trello!E73)," ") -> Emilio Pinturas - bug lotes | B74: =IF($A74="","",IF(Trello!A73="",B73,Trello!A73)) -> Terminado | C74: 2023-04-04 | D74: =IF($A74="","",SUBSTITUTE(SUBSTITUTE(Trello!J73," days",""),"⌚ ","")*1) -> 162 | E74: =IFERROR(IF($A74="","",SUBSTITUTE(SUBSTITUTE(SUBSTITUTE(INDIRECT("Trello!"&ADDRESS(ROW()-1, E$1, 4)),"Foreign: ","")," $",""),".","")*1),"") -> 30 | F74: =IF($E74="",IFERROR(IF($A74="","",SUBSTITUTE(SUBSTITUTE(SUBSTITUTE(INDIRECT("Trello!"&ADDRESS(ROW()-1, F$1, 4)),"MXN: ","")," MX$",""),".","")*1),""),E74*F$2) -> 525 | G74: =IFERROR(IF($A74="","",SUBSTITUTE(SUBSTITUTE(SUBSTITUTE(INDIRECT("Trello!"&ADDRESS(ROW()-1, G$1, 4)),"Debt: ","")," $",""),".","")*1)*IF(E74="",1,F$2),"") ->  | H74: =IFERROR(IF($A74="","",SUBSTITUTE(SUBSTITUTE(SUBSTITUTE(INDIRECT("Trello!"&ADDRESS(ROW()-1, H$1, 4)),"Cost: ","")," $",""),".","")*1*$F$2),"") ->  | I74: 525 | J74: =IFERROR(SUBSTITUTE(SUBSTITUTE(SUBSTITUTE(RIGHT(INDIRECT("Trello!"&ADDRESS(ROW()-1, L$1, 4)),LEN(INDIRECT("Trello!"&ADDRESS(ROW()-1, L$1, 4)))-15),". ","/")," 20","/20")," ",""),"") ->  | K74: =IFERROR(SUBSTITUTE(SUBSTITUTE(SUBSTITUTE(RIGHT(INDIRECT("Trello!"&ADDRESS(ROW()-1, M$1, 4)),LEN(INDIRECT("Trello!"&ADDRESS(ROW()-1, M$1, 4)))-15),". ","/")," 20","/20")," ",""),"") ->  | N74: =IF(AND(L74>0,M74>0,L74<>"",M74<>""),L74-M74,"") ->  | O74: =IFERROR(SUBSTITUTE(INDIRECT("Trello!"&ADDRESS(ROW()-1, O$1, 4)),"Estimate hrs: ","")*1,"") ->  | P74: =IF(SUMIF(Timecamp!C:C,Reporte!A74,Timecamp!J:J)=0,"",SUMIF(Timecamp!C:C,Reporte!A74,Timecamp!J:J)) ->  | S74: =IFERROR(VLOOKUP(A74,'SLA Trab'!E:I,5,FALSE),"") -> 0.04166666667 | T74: =IFERROR(VLOOKUP(A74,'SLA Cobr'!E:I,5,FALSE),"") -> 1.791666667
A75: =IFERROR(IF(Trello!E74="","",Trello!E74)," ") -> Xavier Bobby - Itel y Movitel Landings | B75: =IF($A75="","",IF(Trello!A74="",B74,Trello!A74)) -> Terminado | C75: 2022-12-27 | D75: =IF($A75="","",SUBSTITUTE(SUBSTITUTE(Trello!J74," days",""),"⌚ ","")*1) -> 260 | E75: =IFERROR(IF($A75="","",SUBSTITUTE(SUBSTITUTE(SUBSTITUTE(INDIRECT("Trello!"&ADDRESS(ROW()-1, E$1, 4)),"Foreign: ","")," $",""),".","")*1),"") -> 600 | F75: =IF($E75="",IFERROR(IF($A75="","",SUBSTITUTE(SUBSTITUTE(SUBSTITUTE(INDIRECT("Trello!"&ADDRESS(ROW()-1, F$1, 4)),"MXN: ","")," MX$",""),".","")*1),""),E75*F$2) -> 10500 | G75: =IFERROR(IF($A75="","",SUBSTITUTE(SUBSTITUTE(SUBSTITUTE(INDIRECT("Trello!"&ADDRESS(ROW()-1, G$1, 4)),"Debt: ","")," $",""),".","")*1)*IF(E75="",1,F$2),"") -> 0 | H75: =IFERROR(IF($A75="","",SUBSTITUTE(SUBSTITUTE(SUBSTITUTE(INDIRECT("Trello!"&ADDRESS(ROW()-1, H$1, 4)),"Cost: ","")," $",""),".","")*1*$F$2),"") ->  | I75: 10500 | J75: =IFERROR(SUBSTITUTE(SUBSTITUTE(SUBSTITUTE(RIGHT(INDIRECT("Trello!"&ADDRESS(ROW()-1, L$1, 4)),LEN(INDIRECT("Trello!"&ADDRESS(ROW()-1, L$1, 4)))-15),". ","/")," 20","/20")," ",""),"") -> 22/März/2023 | K75: =IFERROR(SUBSTITUTE(SUBSTITUTE(SUBSTITUTE(RIGHT(INDIRECT("Trello!"&ADDRESS(ROW()-1, M$1, 4)),LEN(INDIRECT("Trello!"&ADDRESS(ROW()-1, M$1, 4)))-15),". ","/")," 20","/20")," ",""),"") ->  | L75: =IFERROR(SUBSTITUTE(SUBSTITUTE(SUBSTITUTE(SUBSTITUTE(SUBSTITUTE(SUBSTITUTE(SUBSTITUTE(SUBSTITUTE(SUBSTITUTE(SUBSTITUTE(SUBSTITUTE(SUBSTITUTE(J75,"Dez",12),"Nov",11),"Okt",10),"Sept",9),"Aug",8),"Juli",7),"Juni",6),"Mai",5),"Apr",4),"März",3),"Feb",2),"Jan",1)*1,"") -> 2023-03-22 | O75: =IFERROR(SUBSTITUTE(INDIRECT("Trello!"&ADDRESS(ROW()-1, O$1, 4)),"Estimate hrs: ","")*1,"") -> 35 | P75: =IF(SUMIF(Timecamp!C:C,Reporte!A75,Timecamp!J:J)=0,"",SUMIF(Timecamp!C:C,Reporte!A75,Timecamp!J:J)) -> 39.53333333 | Q75: 0.1295238095 | R75: 265.5986509 | S75: =IFERROR(VLOOKUP(A75,'SLA Trab'!E:I,5,FALSE),"") -> 0.04166666667 | T75: =IFERROR(VLOOKUP(A75,'SLA Cobr'!E:I,5,FALSE),"") -> 0.04166666667
A76: =IFERROR(IF(Trello!E75="","",Trello!E75)," ") -> yo - Migración de mi Whatsapp normal a Business | B76: =IF($A76="","",IF(Trello!A75="",B75,Trello!A75)) -> Terminado | C76: 2023-03-25 | D76: =IF($A76="","",SUBSTITUTE(SUBSTITUTE(Trello!J75," days",""),"⌚ ","")*1) -> 172 | E76: =IFERROR(IF($A76="","",SUBSTITUTE(SUBSTITUTE(SUBSTITUTE(INDIRECT("Trello!"&ADDRESS(ROW()-1, E$1, 4)),"Foreign: ","")," $",""),".","")*1),"") ->  | F76: =IF($E76="",IFERROR(IF($A76="","",SUBSTITUTE(SUBSTITUTE(SUBSTITUTE(INDIRECT("Trello!"&ADDRESS(ROW()-1, F$1, 4)),"MXN: ","")," MX$",""),".","")*1),""),E76*F$2) ->  | G76: =IFERROR(IF($A76="","",SUBSTITUTE(SUBSTITUTE(SUBSTITUTE(INDIRECT("Trello!"&ADDRESS(ROW()-1, G$1, 4)),"Debt: ","")," $",""),".","")*1)*IF(E76="",1,F$2),"") ->  | H76: =IFERROR(IF($A76="","",SUBSTITUTE(SUBSTITUTE(SUBSTITUTE(INDIRECT("Trello!"&ADDRESS(ROW()-1, H$1, 4)),"Cost: ","")," $",""),".","")*1*$F$2),"") ->  | J76: =IFERROR(SUBSTITUTE(SUBSTITUTE(SUBSTITUTE(RIGHT(INDIRECT("Trello!"&ADDRESS(ROW()-1, L$1, 4)),LEN(INDIRECT("Trello!"&ADDRESS(ROW()-1, L$1, 4)))-15),". ","/")," 20","/20")," ",""),"") ->  | K76: =IFERROR(SUBSTITUTE(SUBSTITUTE(SUBSTITUTE(RIGHT(INDIRECT("Trello!"&ADDRESS(ROW()-1, M$1, 4)),LEN(INDIRECT("Trello!"&ADDRESS(ROW()-1, M$1, 4)))-15),". ","/")," 20","/20")," ",""),"") ->  | O76: =IFERROR(SUBSTITUTE(INDIRECT("Trello!"&ADDRESS(ROW()-1, O$1, 4)),"Estimate hrs: ","")*1,"") ->  | P76: =IF(SUMIF(Timecamp!C:C,Reporte!A76,Timecamp!J:J)=0,"",SUMIF(Timecamp!C:C,Reporte!A76,Timecamp!J:J)) ->  | S76: =IFERROR(VLOOKUP(A76,'SLA Trab'!E:I,5,FALSE),"") ->  | T76: =IFERROR(VLOOKUP(A76,'SLA Cobr'!E:I,5,FALSE),"") -> 
A77: =IFERROR(IF(Trello!E76="","",Trello!E76)," ") -> Viv Freelancer - Wordle New Probability | B77: =IF($A77="","",IF(Trello!A76="",B76,Trello!A76)) -> Terminado | C77: 2023-03-22 | D77: =IF($A77="","",SUBSTITUTE(SUBSTITUTE(Trello!J76," days",""),"⌚ ","")*1) -> 175 | E77: =IFERROR(IF($A77="","",SUBSTITUTE(SUBSTITUTE(SUBSTITUTE(INDIRECT("Trello!"&ADDRESS(ROW()-1, E$1, 4)),"Foreign: ","")," $",""),".","")*1),"") -> 80 | F77: =IF($E77="",IFERROR(IF($A77="","",SUBSTITUTE(SUBSTITUTE(SUBSTITUTE(INDIRECT("Trello!"&ADDRESS(ROW()-1, F$1, 4)),"MXN: ","")," MX$",""),".","")*1),""),E77*F$2) -> 1400 | G77: =IFERROR(IF($A77="","",SUBSTITUTE(SUBSTITUTE(SUBSTITUTE(INDIRECT("Trello!"&ADDRESS(ROW()-1, G$1, 4)),"Debt: ","")," $",""),".","")*1)*IF(E77="",1,F$2),"") ->  | H77: =IFERROR(IF($A77="","",SUBSTITUTE(SUBSTITUTE(SUBSTITUTE(INDIRECT("Trello!"&ADDRESS(ROW()-1, H$1, 4)),"Cost: ","")," $",""),".","")*1*$F$2),"") ->  | I77: 1400 | J77: =IFERROR(SUBSTITUTE(SUBSTITUTE(SUBSTITUTE(RIGHT(INDIRECT("Trello!"&ADDRESS(ROW()-1, L$1, 4)),LEN(INDIRECT("Trello!"&ADDRESS(ROW()-1, L$1, 4)))-15),". ","/")," 20","/20")," ",""),"") -> 24/März/2023 | K77: =IFERROR(SUBSTITUTE(SUBSTITUTE(SUBSTITUTE(RIGHT(INDIRECT("Trello!"&ADDRESS(ROW()-1, M$1, 4)),LEN(INDIRECT("Trello!"&ADDRESS(ROW()-1, M$1, 4)))-15),". ","/")," 20","/20")," ",""),"") ->  | L77: 2023-03-24 | O77: =IFERROR(SUBSTITUTE(INDIRECT("Trello!"&ADDRESS(ROW()-1, O$1, 4)),"Estimate hrs: ","")*1,"") ->  | P77: =IF(SUMIF(Timecamp!C:C,Reporte!A77,Timecamp!J:J)=0,"",SUMIF(Timecamp!C:C,Reporte!A77,Timecamp!J:J)) ->  | S77: =IFERROR(VLOOKUP(A77,'SLA Trab'!E:I,5,FALSE),"") ->  | T77: =IFERROR(VLOOKUP(A77,'SLA Cobr'!E:I,5,FALSE),"") -> 
A78: =IFERROR(IF(Trello!E77="","",Trello!E77)," ") -> Santiago Freelancer - EncuentraTuBote | B78: =IF($A78="","",IF(Trello!A77="",B77,Trello!A77)) -> Terminado | C78: 2022-09-21 | D78: =IF($A78="","",SUBSTITUTE(SUBSTITUTE(Trello!J77," days",""),"⌚ ","")*1) -> 357 | E78: =IFERROR(IF($A78="","",SUBSTITUTE(SUBSTITUTE(SUBSTITUTE(INDIRECT("Trello!"&ADDRESS(ROW()-1, E$1, 4)),"Foreign: ","")," $",""),".","")*1),"") -> 500 | F78: =IF($E78="",IFERROR(IF($A78="","",SUBSTITUTE(SUBSTITUTE(SUBSTITUTE(INDIRECT("Trello!"&ADDRESS(ROW()-1, F$1, 4)),"MXN: ","")," MX$",""),".","")*1),""),E78*F$2) -> 8750 | G78: =IFERROR(IF($A78="","",SUBSTITUTE(SUBSTITUTE(SUBSTITUTE(INDIRECT("Trello!"&ADDRESS(ROW()-1, G$1, 4)),"Debt: ","")," $",""),".","")*1)*IF(E78="",1,F$2),"") -> 4375 | H78: =IFERROR(IF($A78="","",SUBSTITUTE(SUBSTITUTE(SUBSTITUTE(INDIRECT("Trello!"&ADDRESS(ROW()-1, H$1, 4)),"Cost: ","")," $",""),".","")*1*$F$2),"") ->  | I78: 8750 | J78: =IFERROR(SUBSTITUTE(SUBSTITUTE(SUBSTITUTE(RIGHT(INDIRECT("Trello!"&ADDRESS(ROW()-1, L$1, 4)),LEN(INDIRECT("Trello!"&ADDRESS(ROW()-1, L$1, 4)))-15),". ","/")," 20","/20")," ",""),"") -> 27/Jan/2023 | K78: =IFERROR(SUBSTITUTE(SUBSTITUTE(SUBSTITUTE(RIGHT(INDIRECT("Trello!"&ADDRESS(ROW()-1, M$1, 4)),LEN(INDIRECT("Trello!"&ADDRESS(ROW()-1, M$1, 4)))-15),". ","/")," 20","/20")," ",""),"") ->  | L78: 2023-01-27 | O78: =IFERROR(SUBSTITUTE(INDIRECT("Trello!"&ADDRESS(ROW()-1, O$1, 4)),"Estimate hrs: ","")*1,"") ->  | P78: =IF(SUMIF(Timecamp!C:C,Reporte!A78,Timecamp!J:J)=0,"",SUMIF(Timecamp!C:C,Reporte!A78,Timecamp!J:J)) ->  | S78: =IFERROR(VLOOKUP(A78,'SLA Trab'!E:I,5,FALSE),"") ->  | T78: =IFERROR(VLOOKUP(A78,'SLA Cobr'!E:I,5,FALSE),"") -> 
A79: =IFERROR(IF(Trello!E78="","",Trello!E78)," ") -> John Freelancer - Traducción Form Ingles | B79: =IF($A79="","",IF(Trello!A78="",B78,Trello!A78)) -> Terminado | C79: 2023-03-10 | D79: =IF($A79="","",SUBSTITUTE(SUBSTITUTE(Trello!J78," days",""),"⌚ ","")*1) -> 187 | E79: =IFERROR(IF($A79="","",SUBSTITUTE(SUBSTITUTE(SUBSTITUTE(INDIRECT("Trello!"&ADDRESS(ROW()-1, E$1, 4)),"Foreign: ","")," $",""),".","")*1),"") -> 200 | F79: =IF($E79="",IFERROR(IF($A79="","",SUBSTITUTE(SUBSTITUTE(SUBSTITUTE(INDIRECT("Trello!"&ADDRESS(ROW()-1, F$1, 4)),"MXN: ","")," MX$",""),".","")*1),""),E79*F$2) -> 3500 | G79: =IFERROR(IF($A79="","",SUBSTITUTE(SUBSTITUTE(SUBSTITUTE(INDIRECT("Trello!"&ADDRESS(ROW()-1, G$1, 4)),"Debt: ","")," $",""),".","")*1)*IF(E79="",1,F$2),"") -> -2625 | H79: =IFERROR(IF($A79="","",SUBSTITUTE(SUBSTITUTE(SUBSTITUTE(INDIRECT("Trello!"&ADDRESS(ROW()-1, H$1, 4)),"Cost: ","")," $",""),".","")*1*$F$2),"") ->  | I79: 3500 | J79: =IFERROR(SUBSTITUTE(SUBSTITUTE(SUBSTITUTE(RIGHT(INDIRECT("Trello!"&ADDRESS(ROW()-1, L$1, 4)),LEN(INDIRECT("Trello!"&ADDRESS(ROW()-1, L$1, 4)))-15),". ","/")," 20","/20")," ",""),"") ->  | K79: =IFERROR(SUBSTITUTE(SUBSTITUTE(SUBSTITUTE(RIGHT(INDIRECT("Trello!"&ADDRESS(ROW()-1, M$1, 4)),LEN(INDIRECT("Trello!"&ADDRESS(ROW()-1, M$1, 4)))-15),". ","/")," 20","/20")," ",""),"") ->  | O79: =IFERROR(SUBSTITUTE(INDIRECT("Trello!"&ADDRESS(ROW()-1, O$1, 4)),"Estimate hrs: ","")*1,"") ->  | P79: =IF(SUMIF(Timecamp!C:C,Reporte!A79,Timecamp!J:J)=0,"",SUMIF(Timecamp!C:C,Reporte!A79,Timecamp!J:J)) ->  | S79: =IFERROR(VLOOKUP(A79,'SLA Trab'!E:I,5,FALSE),"") ->  | T79: =IFERROR(VLOOKUP(A79,'SLA Cobr'!E:I,5,FALSE),"") -> 
A80: =IFERROR(IF(Trello!E79="","",Trello!E79)," ") -> Emilio pinturas - Pinturas fix error | B80: =IF($A80="","",IF(Trello!A79="",B79,Trello!A79)) -> Terminado | C80: 2023-03-10 | D80: =IF($A80="","",SUBSTITUTE(SUBSTITUTE(Trello!J79," days",""),"⌚ ","")*1) -> 187 | E80: =IFERROR(IF($A80="","",SUBSTITUTE(SUBSTITUTE(SUBSTITUTE(INDIRECT("Trello!"&ADDRESS(ROW()-1, E$1, 4)),"Foreign: ","")," $",""),".","")*1),"") -> 25 | F80: =IF($E80="",IFERROR(IF($A80="","",SUBSTITUTE(SUBSTITUTE(SUBSTITUTE(INDIRECT("Trello!"&ADDRESS(ROW()-1, F$1, 4)),"MXN: ","")," MX$",""),".","")*1),""),E80*F$2) -> 437.5 | G80: =IFERROR(IF($A80="","",SUBSTITUTE(SUBSTITUTE(SUBSTITUTE(INDIRECT("Trello!"&ADDRESS(ROW()-1, G$1, 4)),"Debt: ","")," $",""),".","")*1)*IF(E80="",1,F$2),"") ->  | H80: =IFERROR(IF($A80="","",SUBSTITUTE(SUBSTITUTE(SUBSTITUTE(INDIRECT("Trello!"&ADDRESS(ROW()-1, H$1, 4)),"Cost: ","")," $",""),".","")*1*$F$2),"") ->  | I80: 437.5 | J80: =IFERROR(SUBSTITUTE(SUBSTITUTE(SUBSTITUTE(RIGHT(INDIRECT("Trello!"&ADDRESS(ROW()-1, L$1, 4)),LEN(INDIRECT("Trello!"&ADDRESS(ROW()-1, L$1, 4)))-15),". ","/")," 20","/20")," ",""),"") ->  | K80: =IFERROR(SUBSTITUTE(SUBSTITUTE(SUBSTITUTE(RIGHT(INDIRECT("Trello!"&ADDRESS(ROW()-1, M$1, 4)),LEN(INDIRECT("Trello!"&ADDRESS(ROW()-1, M$1, 4)))-15),". ","/")," 20","/20")," ",""),"") ->  | O80: =IFERROR(SUBSTITUTE(INDIRECT("Trello!"&ADDRESS(ROW()-1, O$1, 4)),"Estimate hrs: ","")*1,"") ->  | P80: =IF(SUMIF(Timecamp!C:C,Reporte!A80,Timecamp!J:J)=0,"",SUMIF(Timecamp!C:C,Reporte!A80,Timecamp!J:J)) ->  | S80: =IFERROR(VLOOKUP(A80,'SLA Trab'!E:I,5,FALSE),"") ->  | T80: =IFERROR(VLOOKUP(A80,'SLA Cobr'!E:I,5,FALSE),"") -> 
A81: =IFERROR(IF(Trello!E80="","",Trello!E80)," ") -> Gary Hydracheck - Checkout zipcode issue | B81: =IF($A81="","",IF(Trello!A80="",B80,Trello!A80)) -> Terminado | C81: 2023-03-09 | D81: =IF($A81="","",SUBSTITUTE(SUBSTITUTE(Trello!J80," days",""),"⌚ ","")*1) -> 188 | E81: =IFERROR(IF($A81="","",SUBSTITUTE(SUBSTITUTE(SUBSTITUTE(INDIRECT("Trello!"&ADDRESS(ROW()-1, E$1, 4)),"Foreign: ","")," $",""),".","")*1),"") -> 30 | F81: =IF($E81="",IFERROR(IF($A81="","",SUBSTITUTE(SUBSTITUTE(SUBSTITUTE(INDIRECT("Trello!"&ADDRESS(ROW()-1, F$1, 4)),"MXN: ","")," MX$",""),".","")*1),""),E81*F$2) -> 525 | G81: =IFERROR(IF($A81="","",SUBSTITUTE(SUBSTITUTE(SUBSTITUTE(INDIRECT("Trello!"&ADDRESS(ROW()-1, G$1, 4)),"Debt: ","")," $",""),".","")*1)*IF(E81="",1,F$2),"") ->  | H81: =IFERROR(IF($A81="","",SUBSTITUTE(SUBSTITUTE(SUBSTITUTE(INDIRECT("Trello!"&ADDRESS(ROW()-1, H$1, 4)),"Cost: ","")," $",""),".","")*1*$F$2),"") ->  | I81: 525 | J81: =IFERROR(SUBSTITUTE(SUBSTITUTE(SUBSTITUTE(RIGHT(INDIRECT("Trello!"&ADDRESS(ROW()-1, L$1, 4)),LEN(INDIRECT("Trello!"&ADDRESS(ROW()-1, L$1, 4)))-15),". ","/")," 20","/20")," ",""),"") ->  | K81: =IFERROR(SUBSTITUTE(SUBSTITUTE(SUBSTITUTE(RIGHT(INDIRECT("Trello!"&ADDRESS(ROW()-1, M$1, 4)),LEN(INDIRECT("Trello!"&ADDRESS(ROW()-1, M$1, 4)))-15),". ","/")," 20","/20")," ",""),"") ->  | O81: =IFERROR(SUBSTITUTE(INDIRECT("Trello!"&ADDRESS(ROW()-1, O$1, 4)),"Estimate hrs: ","")*1,"") ->  | P81: =IF(SUMIF(Timecamp!C:C,Reporte!A81,Timecamp!J:J)=0,"",SUMIF(Timecamp!C:C,Reporte!A81,Timecamp!J:J)) -> 0.1166666667 | R81: 4500 | S81: =IFERROR(VLOOKUP(A81,'SLA Trab'!E:I,5,FALSE),"") ->  | T81: =IFERROR(VLOOKUP(A81,'SLA Cobr'!E:I,5,FALSE),"") -> 
A82: =IFERROR(IF(Trello!E81="","",Trello!E81)," ") -> Nana - maletas | B82: =IF($A82="","",IF(Trello!A81="",B81,Trello!A81)) -> Terminado | C82: 2023-01-30 | D82: =IF($A82="","",SUBSTITUTE(SUBSTITUTE(Trello!J81," days",""),"⌚ ","")*1) -> 226 | E82: =IFERROR(IF($A82="","",SUBSTITUTE(SUBSTITUTE(SUBSTITUTE(INDIRECT("Trello!"&ADDRESS(ROW()-1, E$1, 4)),"Foreign: ","")," $",""),".","")*1),"") ->  | F82: =IF($E82="",IFERROR(IF($A82="","",SUBSTITUTE(SUBSTITUTE(SUBSTITUTE(INDIRECT("Trello!"&ADDRESS(ROW()-1, F$1, 4)),"MXN: ","")," MX$",""),".","")*1),""),E82*F$2) -> 4292 | G82: =IFERROR(IF($A82="","",SUBSTITUTE(SUBSTITUTE(SUBSTITUTE(INDIRECT("Trello!"&ADDRESS(ROW()-1, G$1, 4)),"Debt: ","")," $",""),".","")*1)*IF(E82="",1,F$2),"") -> 3847 | H82: =IFERROR(IF($A82="","",SUBSTITUTE(SUBSTITUTE(SUBSTITUTE(INDIRECT("Trello!"&ADDRESS(ROW()-1, H$1, 4)),"Cost: ","")," $",""),".","")*1*$F$2),"") ->  | I82: 4292 | J82: =IFERROR(SUBSTITUTE(SUBSTITUTE(SUBSTITUTE(RIGHT(INDIRECT("Trello!"&ADDRESS(ROW()-1, L$1, 4)),LEN(INDIRECT("Trello!"&ADDRESS(ROW()-1, L$1, 4)))-15),". ","/")," 20","/20")," ",""),"") ->  | K82: =IFERROR(SUBSTITUTE(SUBSTITUTE(SUBSTITUTE(RIGHT(INDIRECT("Trello!"&ADDRESS(ROW()-1, M$1, 4)),LEN(INDIRECT("Trello!"&ADDRESS(ROW()-1, M$1, 4)))-15),". ","/")," 20","/20")," ",""),"") ->  | O82: =IFERROR(SUBSTITUTE(INDIRECT("Trello!"&ADDRESS(ROW()-1, O$1, 4)),"Estimate hrs: ","")*1,"") ->  | P82: =IF(SUMIF(Timecamp!C:C,Reporte!A82,Timecamp!J:J)=0,"",SUMIF(Timecamp!C:C,Reporte!A82,Timecamp!J:J)) -> 0.1166666667 | R82: 36788.57143 | S82: =IFERROR(VLOOKUP(A82,'SLA Trab'!E:I,5,FALSE),"") ->  | T82: =IFERROR(VLOOKUP(A82,'SLA Cobr'!E:I,5,FALSE),"") -> 
